Workbook

Sheet Summary
C3: SUMMARY OF PRODUCT SALES IN MONTH
B6: OUTLET | C6: =MID(CELL("FILENAME",$A$1),FIND("[",CELL("FILENAME",$A$1))+1,3) -> KDA
B8: YEAR | C8: =MID(CELL("FILENAME",$A$1),FIND("[",CELL("FILENAME",$A$1))+4,4) -> 2013
B10: MONTH | C10: =INDEX($C$12:$C$23,MID(CELL("FILENAME",$A$1),FIND("[",CELL("FILENAME",$A$1))+8,2),1) -> MAY
B12: MONTH | C12: JANUARY
C13: FEBRUARY
C14: MARCH
C15: APRIL
C16: MAY
C17: JUNE
C18: JULY
C19: AUGUST
C20: SEPTEMBER
C21: OCTOBER
C22: NOVEMBER
C23: DECEMBER
B26: PRODUCT | D26: CATEGORY | E26: QTY | F26: QUANTITIES SOLD IN MONTH
E27: PER | F27: TOTAL | G27: =DATE(C8,MID(CELL("FILENAME",$A$1),FIND("[",CELL("FILENAME",$A$1))+8,2),1) -> 2013-05-01 | H27: =IFERROR(IF(MONTH(G27+1)<=MONTH($G$27),G27+1,""),"") -> 2013-05-02 | I27: =IFERROR(IF(MONTH(H27+1)<=MONTH($G$27),H27+1,""),"") -> 2013-05-03 | J27: 2013-05-04 | K27: 2013-05-05 | L27: 2013-05-06 | M27: 2013-05-07 | N27: 2013-05-08 | O27: 2013-05-09 | P27: 2013-05-10 | Q27: 2013-05-11 | R27: 2013-05-12 | S27: 2013-05-13 | T27: 2013-05-14 | U27: 2013-05-15 | V27: 2013-05-16 | W27: 2013-05-17 | X27: 2013-05-18 | Y27: 2013-05-19 | Z27: 2013-05-20 | AA27: 2013-05-21 | AB27: 2013-05-22 | AC27: 2013-05-23 | AD27: 2013-05-24 | AE27: 2013-05-25 | AF27: 2013-05-26 | AG27: 2013-05-27 | AH27: 2013-05-28 | AI27: 2013-05-29 | AJ27: 2013-05-30 | AK27: 2013-05-31
E28: ITEM
B30: BA01 K : 4BP | D30: BEER | E30: 12 | F30: =SUM($G30:$AK30) -> 0 | G30: =IFERROR($E30*SUMIF('Daily Log'!#REF!,$B30,'Daily Log'!#REF!),0) -> 0 | H30: =IFERROR($E30*SUMIF('Daily Log'!#REF!,$B30,'Daily Log'!#REF!),0) -> 0 | I30: =IFERROR($E30*SUMIF('Daily Log'!#REF!,$B30,'Daily Log'!#REF!),0) -> 0 | J30: =IFERROR($E30*SUMIF('Daily Log'!#REF!,$B30,'Daily Log'!#REF!),0) -> 0 | K30: =IFERROR($E30*SUMIF('Daily Log'!#REF!,$B30,'Daily Log'!#REF!),0) -> 0 | L30: =IFERROR($E30*SUMIF('Daily Log'!#REF!,$B30,'Daily Log'!#REF!),0) -> 0 | M30: =IFERROR($E30*SUMIF('Daily Log'!#REF!,$B30,'Daily Log'!#REF!),0) -> 0 | N30: =IFERROR($E30*SUMIF('Daily Log'!#REF!,$B30,'Daily Log'!#REF!),0) -> 0 | O30: =IFERROR($E30*SUMIF('Daily Log'!#REF!,$B30,'Daily Log'!#REF!),0) -> 0 | P30: =IFERROR($E30*SUMIF('Daily Log'!#REF!,$B30,'Daily Log'!#REF!),0) -> 0 | Q30: =IFERROR($E30*SUMIF('Daily Log'!#REF!,$B30,'Daily Log'!#REF!),0) -> 0 | R30: =IFERROR($E30*SUMIF('Daily Log'!#REF!,$B30,'Daily Log'!#REF!),0) -> 0 | S30: =IFERROR($E30*SUMIF('Daily Log'!#REF!,$B30,'Daily Log'!#REF!),0) -> 0 | T30: =IFERROR($E30*SUMIF('Daily Log'!#REF!,$B30,'Daily Log'!#REF!),0) -> 0 | U30: =IFERROR($E30*SUMIF('Daily Log'!#REF!,$B30,'Daily Log'!#REF!),0) -> 0 | V30: =IFERROR($E30*SUMIF('Daily Log'!#REF!,$B30,'Daily Log'!#REF!),0) -> 0 | W30: =IFERROR($E30*SUMIF('Daily Log'!#REF!,$B30,'Daily Log'!#REF!),0) -> 0 | X30: =IFERROR($E30*SUMIF('Daily Log'!#REF!,$B30,'Daily Log'!#REF!),0) -> 0 | Y30: =IFERROR($E30*SUMIF('Daily Log'!#REF!,$B30,'Daily Log'!#REF!),0) -> 0 | Z30: =IFERROR($E30*SUMIF('Daily Log'!$C$18:$C$1017,$B30,'Daily Log'!$D$18:$D$1017),0) -> 0 | AA30: =IFERROR($E30*SUMIF('Daily Log'!$F$18:$F$1017,$B30,'Daily Log'!$G$18:$G$1017),0) -> 0 | AB30: =IFERROR($E30*SUMIF('Daily Log'!$I$18:$I$1017,$B30,'Daily Log'!$J$18:$J$1017),0) -> 0 | AC30: =IFERROR($E30*SUMIF('Daily Log'!$L$18:$L$1017,$B30,'Daily Log'!$M$18:$M$1017),0) -> 0 | AD30: =IFERROR($E30*SUMIF('Daily Log'!$O$18:$O$1017,$B30,'Daily Log'!$P$18:$P$1017),0) -> 0 | AE30: =IFERROR($E30*SUMIF('Daily Log'!$R$18:$R$1017,$B30,'Daily Log'!$S$18:$S$1017),0) -> 0 | AF30: =IFERROR($E30*SUMIF('Daily Log'!$U$18:$U$1017,$B30,'Daily Log'!$V$18:$V$1017),0) -> 0 | AG30: =IFERROR($E30*SUMIF('Daily Log'!#REF!,$B30,'Daily Log'!#REF!),0) -> 0 | AH30: =IFERROR($E30*SUMIF('Daily Log'!#REF!,$B30,'Daily Log'!#REF!),0) -> 0 | AI30: =IFERROR($E30*SUMIF('Daily Log'!#REF!,$B30,'Daily Log'!#REF!),0) -> 0 | AJ30: =IFERROR($E30*SUMIF('Daily Log'!#REF!,$B30,'Daily Log'!#REF!),0) -> 0 | AK30: =IFERROR($E30*SUMIF('Daily Log'!#REF!,$B30,'Daily Log'!#REF!),0) -> 0
B31: BA02 H : 4BP | D31: BEER | E31: 12 | F31: 24 | G31: =IFERROR($E31*SUMIF('Daily Log'!#REF!,$B31,'Daily Log'!#REF!),0) -> 0 | H31: =IFERROR($E31*SUMIF('Daily Log'!#REF!,$B31,'Daily Log'!#REF!),0) -> 0 | I31: =IFERROR($E31*SUMIF('Daily Log'!#REF!,$B31,'Daily Log'!#REF!),0) -> 0 | J31: =IFERROR($E31*SUMIF('Daily Log'!#REF!,$B31,'Daily Log'!#REF!),0) -> 0 | K31: =IFERROR($E31*SUMIF('Daily Log'!#REF!,$B31,'Daily Log'!#REF!),0) -> 0 | L31: =IFERROR($E31*SUMIF('Daily Log'!#REF!,$B31,'Daily Log'!#REF!),0) -> 0 | M31: =IFERROR($E31*SUMIF('Daily Log'!#REF!,$B31,'Daily Log'!#REF!),0) -> 0 | N31: =IFERROR($E31*SUMIF('Daily Log'!#REF!,$B31,'Daily Log'!#REF!),0) -> 0 | O31: =IFERROR($E31*SUMIF('Daily Log'!#REF!,$B31,'Daily Log'!#REF!),0) -> 0 | P31: =IFERROR($E31*SUMIF('Daily Log'!#REF!,$B31,'Daily Log'!#REF!),0) -> 0 | Q31: =IFERROR($E31*SUMIF('Daily Log'!#REF!,$B31,'Daily Log'!#REF!),0) -> 0 | R31: =IFERROR($E31*SUMIF('Daily Log'!#REF!,$B31,'Daily Log'!#REF!),0) -> 0 | S31: =IFERROR($E31*SUMIF('Daily Log'!#REF!,$B31,'Daily Log'!#REF!),0) -> 0 | T31: =IFERROR($E31*SUMIF('Daily Log'!#REF!,$B31,'Daily Log'!#REF!),0) -> 0 | U31: =IFERROR($E31*SUMIF('Daily Log'!#REF!,$B31,'Daily Log'!#REF!),0) -> 0 | V31: =IFERROR($E31*SUMIF('Daily Log'!#REF!,$B31,'Daily Log'!#REF!),0) -> 0 | W31: =IFERROR($E31*SUMIF('Daily Log'!#REF!,$B31,'Daily Log'!#REF!),0) -> 0 | X31: =IFERROR($E31*SUMIF('Daily Log'!#REF!,$B31,'Daily Log'!#REF!),0) -> 0 | Y31: =IFERROR($E31*SUMIF('Daily Log'!#REF!,$B31,'Daily Log'!#REF!),0) -> 0 | Z31: =IFERROR($E31*SUMIF('Daily Log'!$C$18:$C$1017,$B31,'Daily Log'!$D$18:$D$1017),0) -> 0 | AA31: =IFERROR($E31*SUMIF('Daily Log'!$F$18:$F$1017,$B31,'Daily Log'!$G$18:$G$1017),0) -> 0 | AB31: =IFERROR($E31*SUMIF('Daily Log'!$I$18:$I$1017,$B31,'Daily Log'!$J$18:$J$1017),0) -> 12 | AC31: =IFERROR($E31*SUMIF('Daily Log'!$L$18:$L$1017,$B31,'Daily Log'!$M$18:$M$1017),0) -> 12 | AD31: =IFERROR($E31*SUMIF('Daily Log'!$O$18:$O$1017,$B31,'Daily Log'!$P$18:$P$1017),0) -> 0 | AE31: =IFERROR($E31*SUMIF('Daily Log'!$R$18:$R$1017,$B31,'Daily Log'!$S$18:$S$1017),0) -> 0 | AF31: =IFERROR($E31*SUMIF('Daily Log'!$U$18:$U$1017,$B31,'Daily Log'!$V$18:$V$1017),0) -> 0 | AG31: =IFERROR($E31*SUMIF('Daily Log'!#REF!,$B31,'Daily Log'!#REF!),0) -> 0 | AH31: =IFERROR($E31*SUMIF('Daily Log'!#REF!,$B31,'Daily Log'!#REF!),0) -> 0 | AI31: =IFERROR($E31*SUMIF('Daily Log'!#REF!,$B31,'Daily Log'!#REF!),0) -> 0 | AJ31: =IFERROR($E31*SUMIF('Daily Log'!#REF!,$B31,'Daily Log'!#REF!),0) -> 0 | AK31: =IFERROR($E31*SUMIF('Daily Log'!#REF!,$B31,'Daily Log'!#REF!),0) -> 0
B32: BA03 H : 4BP MEMBER | D32: BEER | E32: 12 | F32: 0 | G32: =IFERROR($E32*SUMIF('Daily Log'!#REF!,$B32,'Daily Log'!#REF!),0) -> 0 | H32: =IFERROR($E32*SUMIF('Daily Log'!#REF!,$B32,'Daily Log'!#REF!),0) -> 0 | I32: =IFERROR($E32*SUMIF('Daily Log'!#REF!,$B32,'Daily Log'!#REF!),0) -> 0 | J32: =IFERROR($E32*SUMIF('Daily Log'!#REF!,$B32,'Daily Log'!#REF!),0) -> 0 | K32: =IFERROR($E32*SUMIF('Daily Log'!#REF!,$B32,'Daily Log'!#REF!),0) -> 0 | L32: =IFERROR($E32*SUMIF('Daily Log'!#REF!,$B32,'Daily Log'!#REF!),0) -> 0 | M32: =IFERROR($E32*SUMIF('Daily Log'!#REF!,$B32,'Daily Log'!#REF!),0) -> 0 | N32: =IFERROR($E32*SUMIF('Daily Log'!#REF!,$B32,'Daily Log'!#REF!),0) -> 0 | O32: =IFERROR($E32*SUMIF('Daily Log'!#REF!,$B32,'Daily Log'!#REF!),0) -> 0 | P32: =IFERROR($E32*SUMIF('Daily Log'!#REF!,$B32,'Daily Log'!#REF!),0) -> 0 | Q32: =IFERROR($E32*SUMIF('Daily Log'!#REF!,$B32,'Daily Log'!#REF!),0) -> 0 | R32: =IFERROR($E32*SUMIF('Daily Log'!#REF!,$B32,'Daily Log'!#REF!),0) -> 0 | S32: =IFERROR($E32*SUMIF('Daily Log'!#REF!,$B32,'Daily Log'!#REF!),0) -> 0 | T32: =IFERROR($E32*SUMIF('Daily Log'!#REF!,$B32,'Daily Log'!#REF!),0) -> 0 | U32: =IFERROR($E32*SUMIF('Daily Log'!#REF!,$B32,'Daily Log'!#REF!),0) -> 0 | V32: =IFERROR($E32*SUMIF('Daily Log'!#REF!,$B32,'Daily Log'!#REF!),0) -> 0 | W32: =IFERROR($E32*SUMIF('Daily Log'!#REF!,$B32,'Daily Log'!#REF!),0) -> 0 | X32: =IFERROR($E32*SUMIF('Daily Log'!#REF!,$B32,'Daily Log'!#REF!),0) -> 0 | Y32: =IFERROR($E32*SUMIF('Daily Log'!#REF!,$B32,'Daily Log'!#REF!),0) -> 0 | Z32: =IFERROR($E32*SUMIF('Daily Log'!$C$18:$C$1017,$B32,'Daily Log'!$D$18:$D$1017),0) -> 0 | AA32: =IFERROR($E32*SUMIF('Daily Log'!$F$18:$F$1017,$B32,'Daily Log'!$G$18:$G$1017),0) -> 0 | AB32: =IFERROR($E32*SUMIF('Daily Log'!$I$18:$I$1017,$B32,'Daily Log'!$J$18:$J$1017),0) -> 0 | AC32: =IFERROR($E32*SUMIF('Daily Log'!$L$18:$L$1017,$B32,'Daily Log'!$M$18:$M$1017),0) -> 0 | AD32: =IFERROR($E32*SUMIF('Daily Log'!$O$18:$O$1017,$B32,'Daily Log'!$P$18:$P$1017),0) -> 0 | AE32: =IFERROR($E32*SUMIF('Daily Log'!$R$18:$R$1017,$B32,'Daily Log'!$S$18:$S$1017),0) -> 0 | AF32: =IFERROR($E32*SUMIF('Daily Log'!$U$18:$U$1017,$B32,'Daily Log'!$V$18:$V$1017),0) -> 0 | AG32: =IFERROR($E32*SUMIF('Daily Log'!#REF!,$B32,'Daily Log'!#REF!),0) -> 0 | AH32: =IFERROR($E32*SUMIF('Daily Log'!#REF!,$B32,'Daily Log'!#REF!),0) -> 0 | AI32: =IFERROR($E32*SUMIF('Daily Log'!#REF!,$B32,'Daily Log'!#REF!),0) -> 0 | AJ32: =IFERROR($E32*SUMIF('Daily Log'!#REF!,$B32,'Daily Log'!#REF!),0) -> 0 | AK32: =IFERROR($E32*SUMIF('Daily Log'!#REF!,$B32,'Daily Log'!#REF!),0) -> 0
B33: BA04 N : 4BP | D33: BEER | E33: 12 | F33: 504 | G33: =IFERROR($E33*SUMIF('Daily Log'!#REF!,$B33,'Daily Log'!#REF!),0) -> 0 | H33: =IFERROR($E33*SUMIF('Daily Log'!#REF!,$B33,'Daily Log'!#REF!),0) -> 0 | I33: =IFERROR($E33*SUMIF('Daily Log'!#REF!,$B33,'Daily Log'!#REF!),0) -> 0 | J33: =IFERROR($E33*SUMIF('Daily Log'!#REF!,$B33,'Daily Log'!#REF!),0) -> 0 | K33: =IFERROR($E33*SUMIF('Daily Log'!#REF!,$B33,'Daily Log'!#REF!),0) -> 0 | L33: =IFERROR($E33*SUMIF('Daily Log'!#REF!,$B33,'Daily Log'!#REF!),0) -> 0 | M33: =IFERROR($E33*SUMIF('Daily Log'!#REF!,$B33,'Daily Log'!#REF!),0) -> 0 | N33: =IFERROR($E33*SUMIF('Daily Log'!#REF!,$B33,'Daily Log'!#REF!),0) -> 0 | O33: =IFERROR($E33*SUMIF('Daily Log'!#REF!,$B33,'Daily Log'!#REF!),0) -> 0 | P33: =IFERROR($E33*SUMIF('Daily Log'!#REF!,$B33,'Daily Log'!#REF!),0) -> 0 | Q33: =IFERROR($E33*SUMIF('Daily Log'!#REF!,$B33,'Daily Log'!#REF!),0) -> 0 | R33: =IFERROR($E33*SUMIF('Daily Log'!#REF!,$B33,'Daily Log'!#REF!),0) -> 0 | S33: =IFERROR($E33*SUMIF('Daily Log'!#REF!,$B33,'Daily Log'!#REF!),0) -> 0 | T33: =IFERROR($E33*SUMIF('Daily Log'!#REF!,$B33,'Daily Log'!#REF!),0) -> 0 | U33: =IFERROR($E33*SUMIF('Daily Log'!#REF!,$B33,'Daily Log'!#REF!),0) -> 0 | V33: =IFERROR($E33*SUMIF('Daily Log'!#REF!,$B33,'Daily Log'!#REF!),0) -> 0 | W33: =IFERROR($E33*SUMIF('Daily Log'!#REF!,$B33,'Daily Log'!#REF!),0) -> 0 | X33: =IFERROR($E33*SUMIF('Daily Log'!#REF!,$B33,'Daily Log'!#REF!),0) -> 0 | Y33: =IFERROR($E33*SUMIF('Daily Log'!#REF!,$B33,'Daily Log'!#REF!),0) -> 0 | Z33: =IFERROR($E33*SUMIF('Daily Log'!$C$18:$C$1017,$B33,'Daily Log'!$D$18:$D$1017),0) -> 24 | AA33: =IFERROR($E33*SUMIF('Daily Log'!$F$18:$F$1017,$B33,'Daily Log'!$G$18:$G$1017),0) -> 24 | AB33: =IFERROR($E33*SUMIF('Daily Log'!$I$18:$I$1017,$B33,'Daily Log'!$J$18:$J$1017),0) -> 12 | AC33: =IFERROR($E33*SUMIF('Daily Log'!$L$18:$L$1017,$B33,'Daily Log'!$M$18:$M$1017),0) -> 96 | AD33: =IFERROR($E33*SUMIF('Daily Log'!$O$18:$O$1017,$B33,'Daily Log'!$P$18:$P$1017),0) -> 120 | AE33: =IFERROR($E33*SUMIF('Daily Log'!$R$18:$R$1017,$B33,'Daily Log'!$S$18:$S$1017),0) -> 144 | AF33: =IFERROR($E33*SUMIF('Daily Log'!$U$18:$U$1017,$B33,'Daily Log'!$V$18:$V$1017),0) -> 84 | AG33: =IFERROR($E33*SUMIF('Daily Log'!#REF!,$B33,'Daily Log'!#REF!),0) -> 0 | AH33: =IFERROR($E33*SUMIF('Daily Log'!#REF!,$B33,'Daily Log'!#REF!),0) -> 0 | AI33: =IFERROR($E33*SUMIF('Daily Log'!#REF!,$B33,'Daily Log'!#REF!),0) -> 0 | AJ33: =IFERROR($E33*SUMIF('Daily Log'!#REF!,$B33,'Daily Log'!#REF!),0) -> 0 | AK33: =IFERROR($E33*SUMIF('Daily Log'!#REF!,$B33,'Daily Log'!#REF!),0) -> 0
B34: BA05 N : 4BP MEMBER | D34: BEER | E34: 12 | F34: 0 | G34: =IFERROR($E34*SUMIF('Daily Log'!#REF!,$B34,'Daily Log'!#REF!),0) -> 0 | H34: =IFERROR($E34*SUMIF('Daily Log'!#REF!,$B34,'Daily Log'!#REF!),0) -> 0 | I34: =IFERROR($E34*SUMIF('Daily Log'!#REF!,$B34,'Daily Log'!#REF!),0) -> 0 | J34: =IFERROR($E34*SUMIF('Daily Log'!#REF!,$B34,'Daily Log'!#REF!),0) -> 0 | K34: =IFERROR($E34*SUMIF('Daily Log'!#REF!,$B34,'Daily Log'!#REF!),0) -> 0 | L34: =IFERROR($E34*SUMIF('Daily Log'!#REF!,$B34,'Daily Log'!#REF!),0) -> 0 | M34: =IFERROR($E34*SUMIF('Daily Log'!#REF!,$B34,'Daily Log'!#REF!),0) -> 0 | N34: =IFERROR($E34*SUMIF('Daily Log'!#REF!,$B34,'Daily Log'!#REF!),0) -> 0 | O34: =IFERROR($E34*SUMIF('Daily Log'!#REF!,$B34,'Daily Log'!#REF!),0) -> 0 | P34: =IFERROR($E34*SUMIF('Daily Log'!#REF!,$B34,'Daily Log'!#REF!),0) -> 0 | Q34: =IFERROR($E34*SUMIF('Daily Log'!#REF!,$B34,'Daily Log'!#REF!),0) -> 0 | R34: =IFERROR($E34*SUMIF('Daily Log'!#REF!,$B34,'Daily Log'!#REF!),0) -> 0 | S34: =IFERROR($E34*SUMIF('Daily Log'!#REF!,$B34,'Daily Log'!#REF!),0) -> 0 | T34: =IFERROR($E34*SUMIF('Daily Log'!#REF!,$B34,'Daily Log'!#REF!),0) -> 0 | U34: =IFERROR($E34*SUMIF('Daily Log'!#REF!,$B34,'Daily Log'!#REF!),0) -> 0 | V34: =IFERROR($E34*SUMIF('Daily Log'!#REF!,$B34,'Daily Log'!#REF!),0) -> 0 | W34: =IFERROR($E34*SUMIF('Daily Log'!#REF!,$B34,'Daily Log'!#REF!),0) -> 0 | X34: =IFERROR($E34*SUMIF('Daily Log'!#REF!,$B34,'Daily Log'!#REF!),0) -> 0 | Y34: =IFERROR($E34*SUMIF('Daily Log'!#REF!,$B34,'Daily Log'!#REF!),0) -> 0 | Z34: =IFERROR($E34*SUMIF('Daily Log'!$C$18:$C$1017,$B34,'Daily Log'!$D$18:$D$1017),0) -> 0 | AA34: =IFERROR($E34*SUMIF('Daily Log'!$F$18:$F$1017,$B34,'Daily Log'!$G$18:$G$1017),0) -> 0 | AB34: =IFERROR($E34*SUMIF('Daily Log'!$I$18:$I$1017,$B34,'Daily Log'!$J$18:$J$1017),0) -> 0 | AC34: =IFERROR($E34*SUMIF('Daily Log'!$L$18:$L$1017,$B34,'Daily Log'!$M$18:$M$1017),0) -> 0 | AD34: =IFERROR($E34*SUMIF('Daily Log'!$O$18:$O$1017,$B34,'Daily Log'!$P$18:$P$1017),0) -> 0 | AE34: =IFERROR($E34*SUMIF('Daily Log'!$R$18:$R$1017,$B34,'Daily Log'!$S$18:$S$1017),0) -> 0 | AF34: =IFERROR($E34*SUMIF('Daily Log'!$U$18:$U$1017,$B34,'Daily Log'!$V$18:$V$1017),0) -> 0 | AG34: =IFERROR($E34*SUMIF('Daily Log'!#REF!,$B34,'Daily Log'!#REF!),0) -> 0 | AH34: =IFERROR($E34*SUMIF('Daily Log'!#REF!,$B34,'Daily Log'!#REF!),0) -> 0 | AI34: =IFERROR($E34*SUMIF('Daily Log'!#REF!,$B34,'Daily Log'!#REF!),0) -> 0 | AJ34: =IFERROR($E34*SUMIF('Daily Log'!#REF!,$B34,'Daily Log'!#REF!),0) -> 0 | AK34: =IFERROR($E34*SUMIF('Daily Log'!#REF!,$B34,'Daily Log'!#REF!),0) -> 0
B35: BA06 M : 4BP | D35: BEER | E35: 12 | F35: 132 | G35: =IFERROR($E35*SUMIF('Daily Log'!#REF!,$B35,'Daily Log'!#REF!),0) -> 0 | H35: =IFERROR($E35*SUMIF('Daily Log'!#REF!,$B35,'Daily Log'!#REF!),0) -> 0 | I35: =IFERROR($E35*SUMIF('Daily Log'!#REF!,$B35,'Daily Log'!#REF!),0) -> 0 | J35: =IFERROR($E35*SUMIF('Daily Log'!#REF!,$B35,'Daily Log'!#REF!),0) -> 0 | K35: =IFERROR($E35*SUMIF('Daily Log'!#REF!,$B35,'Daily Log'!#REF!),0) -> 0 | L35: =IFERROR($E35*SUMIF('Daily Log'!#REF!,$B35,'Daily Log'!#REF!),0) -> 0 | M35: =IFERROR($E35*SUMIF('Daily Log'!#REF!,$B35,'Daily Log'!#REF!),0) -> 0 | N35: =IFERROR($E35*SUMIF('Daily Log'!#REF!,$B35,'Daily Log'!#REF!),0) -> 0 | O35: =IFERROR($E35*SUMIF('Daily Log'!#REF!,$B35,'Daily Log'!#REF!),0) -> 0 | P35: =IFERROR($E35*SUMIF('Daily Log'!#REF!,$B35,'Daily Log'!#REF!),0) -> 0 | Q35: =IFERROR($E35*SUMIF('Daily Log'!#REF!,$B35,'Daily Log'!#REF!),0) -> 0 | R35: =IFERROR($E35*SUMIF('Daily Log'!#REF!,$B35,'Daily Log'!#REF!),0) -> 0 | S35: =IFERROR($E35*SUMIF('Daily Log'!#REF!,$B35,'Daily Log'!#REF!),0) -> 0 | T35: =IFERROR($E35*SUMIF('Daily Log'!#REF!,$B35,'Daily Log'!#REF!),0) -> 0 | U35: =IFERROR($E35*SUMIF('Daily Log'!#REF!,$B35,'Daily Log'!#REF!),0) -> 0 | V35: =IFERROR($E35*SUMIF('Daily Log'!#REF!,$B35,'Daily Log'!#REF!),0) -> 0 | W35: =IFERROR($E35*SUMIF('Daily Log'!#REF!,$B35,'Daily Log'!#REF!),0) -> 0 | X35: =IFERROR($E35*SUMIF('Daily Log'!#REF!,$B35,'Daily Log'!#REF!),0) -> 0 | Y35: =IFERROR($E35*SUMIF('Daily Log'!#REF!,$B35,'Daily Log'!#REF!),0) -> 0 | Z35: =IFERROR($E35*SUMIF('Daily Log'!$C$18:$C$1017,$B35,'Daily Log'!$D$18:$D$1017),0) -> 0 | AA35: =IFERROR($E35*SUMIF('Daily Log'!$F$18:$F$1017,$B35,'Daily Log'!$G$18:$G$1017),0) -> 12 | AB35: =IFERROR($E35*SUMIF('Daily Log'!$I$18:$I$1017,$B35,'Daily Log'!$J$18:$J$1017),0) -> 0 | AC35: =IFERROR($E35*SUMIF('Daily Log'!$L$18:$L$1017,$B35,'Daily Log'!$M$18:$M$1017),0) -> 24 | AD35: =IFERROR($E35*SUMIF('Daily Log'!$O$18:$O$1017,$B35,'Daily Log'!$P$18:$P$1017),0) -> 12 | AE35: =IFERROR($E35*SUMIF('Daily Log'!$R$18:$R$1017,$B35,'Daily Log'!$S$18:$S$1017),0) -> 84 | AF35: =IFERROR($E35*SUMIF('Daily Log'!$U$18:$U$1017,$B35,'Daily Log'!$V$18:$V$1017),0) -> 0 | AG35: =IFERROR($E35*SUMIF('Daily Log'!#REF!,$B35,'Daily Log'!#REF!),0) -> 0 | AH35: =IFERROR($E35*SUMIF('Daily Log'!#REF!,$B35,'Daily Log'!#REF!),0) -> 0 | AI35: =IFERROR($E35*SUMIF('Daily Log'!#REF!,$B35,'Daily Log'!#REF!),0) -> 0 | AJ35: =IFERROR($E35*SUMIF('Daily Log'!#REF!,$B35,'Daily Log'!#REF!),0) -> 0 | AK35: =IFERROR($E35*SUMIF('Daily Log'!#REF!,$B35,'Daily Log'!#REF!),0) -> 0
B36: BA07 M : 4BP MEMBER | D36: BEER | E36: 12 | F36: 0 | G36: =IFERROR($E36*SUMIF('Daily Log'!#REF!,$B36,'Daily Log'!#REF!),0) -> 0 | H36: =IFERROR($E36*SUMIF('Daily Log'!#REF!,$B36,'Daily Log'!#REF!),0) -> 0 | I36: =IFERROR($E36*SUMIF('Daily Log'!#REF!,$B36,'Daily Log'!#REF!),0) -> 0 | J36: =IFERROR($E36*SUMIF('Daily Log'!#REF!,$B36,'Daily Log'!#REF!),0) -> 0 | K36: =IFERROR($E36*SUMIF('Daily Log'!#REF!,$B36,'Daily Log'!#REF!),0) -> 0 | L36: =IFERROR($E36*SUMIF('Daily Log'!#REF!,$B36,'Daily Log'!#REF!),0) -> 0 | M36: =IFERROR($E36*SUMIF('Daily Log'!#REF!,$B36,'Daily Log'!#REF!),0) -> 0 | N36: =IFERROR($E36*SUMIF('Daily Log'!#REF!,$B36,'Daily Log'!#REF!),0) -> 0 | O36: =IFERROR($E36*SUMIF('Daily Log'!#REF!,$B36,'Daily Log'!#REF!),0) -> 0 | P36: =IFERROR($E36*SUMIF('Daily Log'!#REF!,$B36,'Daily Log'!#REF!),0) -> 0 | Q36: =IFERROR($E36*SUMIF('Daily Log'!#REF!,$B36,'Daily Log'!#REF!),0) -> 0 | R36: =IFERROR($E36*SUMIF('Daily Log'!#REF!,$B36,'Daily Log'!#REF!),0) -> 0 | S36: =IFERROR($E36*SUMIF('Daily Log'!#REF!,$B36,'Daily Log'!#REF!),0) -> 0 | T36: =IFERROR($E36*SUMIF('Daily Log'!#REF!,$B36,'Daily Log'!#REF!),0) -> 0 | U36: =IFERROR($E36*SUMIF('Daily Log'!#REF!,$B36,'Daily Log'!#REF!),0) -> 0 | V36: =IFERROR($E36*SUMIF('Daily Log'!#REF!,$B36,'Daily Log'!#REF!),0) -> 0 | W36: =IFERROR($E36*SUMIF('Daily Log'!#REF!,$B36,'Daily Log'!#REF!),0) -> 0 | X36: =IFERROR($E36*SUMIF('Daily Log'!#REF!,$B36,'Daily Log'!#REF!),0) -> 0 | Y36: =IFERROR($E36*SUMIF('Daily Log'!#REF!,$B36,'Daily Log'!#REF!),0) -> 0 | Z36: =IFERROR($E36*SUMIF('Daily Log'!$C$18:$C$1017,$B36,'Daily Log'!$D$18:$D$1017),0) -> 0 | AA36: =IFERROR($E36*SUMIF('Daily Log'!$F$18:$F$1017,$B36,'Daily Log'!$G$18:$G$1017),0) -> 0 | AB36: =IFERROR($E36*SUMIF('Daily Log'!$I$18:$I$1017,$B36,'Daily Log'!$J$18:$J$1017),0) -> 0 | AC36: =IFERROR($E36*SUMIF('Daily Log'!$L$18:$L$1017,$B36,'Daily Log'!$M$18:$M$1017),0) -> 0 | AD36: =IFERROR($E36*SUMIF('Daily Log'!$O$18:$O$1017,$B36,'Daily Log'!$P$18:$P$1017),0) -> 0 | AE36: =IFERROR($E36*SUMIF('Daily Log'!$R$18:$R$1017,$B36,'Daily Log'!$S$18:$S$1017),0) -> 0 | AF36: =IFERROR($E36*SUMIF('Daily Log'!$U$18:$U$1017,$B36,'Daily Log'!$V$18:$V$1017),0) -> 0 | AG36: =IFERROR($E36*SUMIF('Daily Log'!#REF!,$B36,'Daily Log'!#REF!),0) -> 0 | AH36: =IFERROR($E36*SUMIF('Daily Log'!#REF!,$B36,'Daily Log'!#REF!),0) -> 0 | AI36: =IFERROR($E36*SUMIF('Daily Log'!#REF!,$B36,'Daily Log'!#REF!),0) -> 0 | AJ36: =IFERROR($E36*SUMIF('Daily Log'!#REF!,$B36,'Daily Log'!#REF!),0) -> 0 | AK36: =IFERROR($E36*SUMIF('Daily Log'!#REF!,$B36,'Daily Log'!#REF!),0) -> 0
B37: BA08 GUINNESS BTL | D37: BEER | E37: 1 | F37: 2 | G37: =IFERROR($E37*SUMIF('Daily Log'!#REF!,$B37,'Daily Log'!#REF!),0) -> 0 | H37: =IFERROR($E37*SUMIF('Daily Log'!#REF!,$B37,'Daily Log'!#REF!),0) -> 0 | I37: =IFERROR($E37*SUMIF('Daily Log'!#REF!,$B37,'Daily Log'!#REF!),0) -> 0 | J37: =IFERROR($E37*SUMIF('Daily Log'!#REF!,$B37,'Daily Log'!#REF!),0) -> 0 | K37: =IFERROR($E37*SUMIF('Daily Log'!#REF!,$B37,'Daily Log'!#REF!),0) -> 0 | L37: =IFERROR($E37*SUMIF('Daily Log'!#REF!,$B37,'Daily Log'!#REF!),0) -> 0 | M37: =IFERROR($E37*SUMIF('Daily Log'!#REF!,$B37,'Daily Log'!#REF!),0) -> 0 | N37: =IFERROR($E37*SUMIF('Daily Log'!#REF!,$B37,'Daily Log'!#REF!),0) -> 0 | O37: =IFERROR($E37*SUMIF('Daily Log'!#REF!,$B37,'Daily Log'!#REF!),0) -> 0 | P37: =IFERROR($E37*SUMIF('Daily Log'!#REF!,$B37,'Daily Log'!#REF!),0) -> 0 | Q37: =IFERROR($E37*SUMIF('Daily Log'!#REF!,$B37,'Daily Log'!#REF!),0) -> 0 | R37: =IFERROR($E37*SUMIF('Daily Log'!#REF!,$B37,'Daily Log'!#REF!),0) -> 0 | S37: =IFERROR($E37*SUMIF('Daily Log'!#REF!,$B37,'Daily Log'!#REF!),0) -> 0 | T37: =IFERROR($E37*SUMIF('Daily Log'!#REF!,$B37,'Daily Log'!#REF!),0) -> 0 | U37: =IFERROR($E37*SUMIF('Daily Log'!#REF!,$B37,'Daily Log'!#REF!),0) -> 0 | V37: =IFERROR($E37*SUMIF('Daily Log'!#REF!,$B37,'Daily Log'!#REF!),0) -> 0 | W37: =IFERROR($E37*SUMIF('Daily Log'!#REF!,$B37,'Daily Log'!#REF!),0) -> 0 | X37: =IFERROR($E37*SUMIF('Daily Log'!#REF!,$B37,'Daily Log'!#REF!),0) -> 0 | Y37: =IFERROR($E37*SUMIF('Daily Log'!#REF!,$B37,'Daily Log'!#REF!),0) -> 0 | Z37: =IFERROR($E37*SUMIF('Daily Log'!$C$18:$C$1017,$B37,'Daily Log'!$D$18:$D$1017),0) -> 0 | AA37: =IFERROR($E37*SUMIF('Daily Log'!$F$18:$F$1017,$B37,'Daily Log'!$G$18:$G$1017),0) -> 0 | AB37: =IFERROR($E37*SUMIF('Daily Log'!$I$18:$I$1017,$B37,'Daily Log'!$J$18:$J$1017),0) -> 1 | AC37: =IFERROR($E37*SUMIF('Daily Log'!$L$18:$L$1017,$B37,'Daily Log'!$M$18:$M$1017),0) -> 1 | AD37: =IFERROR($E37*SUMIF('Daily Log'!$O$18:$O$1017,$B37,'Daily Log'!$P$18:$P$1017),0) -> 0 | AE37: =IFERROR($E37*SUMIF('Daily Log'!$R$18:$R$1017,$B37,'Daily Log'!$S$18:$S$1017),0) -> 0 | AF37: =IFERROR($E37*SUMIF('Daily Log'!$U$18:$U$1017,$B37,'Daily Log'!$V$18:$V$1017),0) -> 0 | AG37: =IFERROR($E37*SUMIF('Daily Log'!#REF!,$B37,'Daily Log'!#REF!),0) -> 0 | AH37: =IFERROR($E37*SUMIF('Daily Log'!#REF!,$B37,'Daily Log'!#REF!),0) -> 0 | AI37: =IFERROR($E37*SUMIF('Daily Log'!#REF!,$B37,'Daily Log'!#REF!),0) -> 0 | AJ37: =IFERROR($E37*SUMIF('Daily Log'!#REF!,$B37,'Daily Log'!#REF!),0) -> 0 | AK37: =IFERROR($E37*SUMIF('Daily Log'!#REF!,$B37,'Daily Log'!#REF!),0) -> 0
B38: BA09 GUINNESS BKT | D38: BEER | E38: 4 | F38: 40 | G38: =IFERROR($E38*SUMIF('Daily Log'!#REF!,$B38,'Daily Log'!#REF!),0) -> 0 | H38: =IFERROR($E38*SUMIF('Daily Log'!#REF!,$B38,'Daily Log'!#REF!),0) -> 0 | I38: =IFERROR($E38*SUMIF('Daily Log'!#REF!,$B38,'Daily Log'!#REF!),0) -> 0 | J38: =IFERROR($E38*SUMIF('Daily Log'!#REF!,$B38,'Daily Log'!#REF!),0) -> 0 | K38: =IFERROR($E38*SUMIF('Daily Log'!#REF!,$B38,'Daily Log'!#REF!),0) -> 0 | L38: =IFERROR($E38*SUMIF('Daily Log'!#REF!,$B38,'Daily Log'!#REF!),0) -> 0 | M38: =IFERROR($E38*SUMIF('Daily Log'!#REF!,$B38,'Daily Log'!#REF!),0) -> 0 | N38: =IFERROR($E38*SUMIF('Daily Log'!#REF!,$B38,'Daily Log'!#REF!),0) -> 0 | O38: =IFERROR($E38*SUMIF('Daily Log'!#REF!,$B38,'Daily Log'!#REF!),0) -> 0 | P38: =IFERROR($E38*SUMIF('Daily Log'!#REF!,$B38,'Daily Log'!#REF!),0) -> 0 | Q38: =IFERROR($E38*SUMIF('Daily Log'!#REF!,$B38,'Daily Log'!#REF!),0) -> 0 | R38: =IFERROR($E38*SUMIF('Daily Log'!#REF!,$B38,'Daily Log'!#REF!),0) -> 0 | S38: =IFERROR($E38*SUMIF('Daily Log'!#REF!,$B38,'Daily Log'!#REF!),0) -> 0 | T38: =IFERROR($E38*SUMIF('Daily Log'!#REF!,$B38,'Daily Log'!#REF!),0) -> 0 | U38: =IFERROR($E38*SUMIF('Daily Log'!#REF!,$B38,'Daily Log'!#REF!),0) -> 0 | V38: =IFERROR($E38*SUMIF('Daily Log'!#REF!,$B38,'Daily Log'!#REF!),0) -> 0 | W38: =IFERROR($E38*SUMIF('Daily Log'!#REF!,$B38,'Daily Log'!#REF!),0) -> 0 | X38: =IFERROR($E38*SUMIF('Daily Log'!#REF!,$B38,'Daily Log'!#REF!),0) -> 0 | Y38: =IFERROR($E38*SUMIF('Daily Log'!#REF!,$B38,'Daily Log'!#REF!),0) -> 0 | Z38: =IFERROR($E38*SUMIF('Daily Log'!$C$18:$C$1017,$B38,'Daily Log'!$D$18:$D$1017),0) -> 4 | AA38: =IFERROR($E38*SUMIF('Daily Log'!$F$18:$F$1017,$B38,'Daily Log'!$G$18:$G$1017),0) -> 0 | AB38: =IFERROR($E38*SUMIF('Daily Log'!$I$18:$I$1017,$B38,'Daily Log'!$J$18:$J$1017),0) -> 12 | AC38: =IFERROR($E38*SUMIF('Daily Log'!$L$18:$L$1017,$B38,'Daily Log'!$M$18:$M$1017),0) -> 12 | AD38: =IFERROR($E38*SUMIF('Daily Log'!$O$18:$O$1017,$B38,'Daily Log'!$P$18:$P$1017),0) -> 0 | AE38: =IFERROR($E38*SUMIF('Daily Log'!$R$18:$R$1017,$B38,'Daily Log'!$S$18:$S$1017),0) -> 4 | AF38: =IFERROR($E38*SUMIF('Daily Log'!$U$18:$U$1017,$B38,'Daily Log'!$V$18:$V$1017),0) -> 8 | AG38: =IFERROR($E38*SUMIF('Daily Log'!#REF!,$B38,'Daily Log'!#REF!),0) -> 0 | AH38: =IFERROR($E38*SUMIF('Daily Log'!#REF!,$B38,'Daily Log'!#REF!),0) -> 0 | AI38: =IFERROR($E38*SUMIF('Daily Log'!#REF!,$B38,'Daily Log'!#REF!),0) -> 0 | AJ38: =IFERROR($E38*SUMIF('Daily Log'!#REF!,$B38,'Daily Log'!#REF!),0) -> 0 | AK38: =IFERROR($E38*SUMIF('Daily Log'!#REF!,$B38,'Daily Log'!#REF!),0) -> 0
B39: BA10 GUINNESS RND | D39: BEER | E39: 12 | F39: 12 | G39: =IFERROR($E39*SUMIF('Daily Log'!#REF!,$B39,'Daily Log'!#REF!),0) -> 0 | H39: =IFERROR($E39*SUMIF('Daily Log'!#REF!,$B39,'Daily Log'!#REF!),0) -> 0 | I39: =IFERROR($E39*SUMIF('Daily Log'!#REF!,$B39,'Daily Log'!#REF!),0) -> 0 | J39: =IFERROR($E39*SUMIF('Daily Log'!#REF!,$B39,'Daily Log'!#REF!),0) -> 0 | K39: =IFERROR($E39*SUMIF('Daily Log'!#REF!,$B39,'Daily Log'!#REF!),0) -> 0 | L39: =IFERROR($E39*SUMIF('Daily Log'!#REF!,$B39,'Daily Log'!#REF!),0) -> 0 | M39: =IFERROR($E39*SUMIF('Daily Log'!#REF!,$B39,'Daily Log'!#REF!),0) -> 0 | N39: =IFERROR($E39*SUMIF('Daily Log'!#REF!,$B39,'Daily Log'!#REF!),0) -> 0 | O39: =IFERROR($E39*SUMIF('Daily Log'!#REF!,$B39,'Daily Log'!#REF!),0) -> 0 | P39: =IFERROR($E39*SUMIF('Daily Log'!#REF!,$B39,'Daily Log'!#REF!),0) -> 0 | Q39: =IFERROR($E39*SUMIF('Daily Log'!#REF!,$B39,'Daily Log'!#REF!),0) -> 0 | R39: =IFERROR($E39*SUMIF('Daily Log'!#REF!,$B39,'Daily Log'!#REF!),0) -> 0 | S39: =IFERROR($E39*SUMIF('Daily Log'!#REF!,$B39,'Daily Log'!#REF!),0) -> 0 | T39: =IFERROR($E39*SUMIF('Daily Log'!#REF!,$B39,'Daily Log'!#REF!),0) -> 0 | U39: =IFERROR($E39*SUMIF('Daily Log'!#REF!,$B39,'Daily Log'!#REF!),0) -> 0 | V39: =IFERROR($E39*SUMIF('Daily Log'!#REF!,$B39,'Daily Log'!#REF!),0) -> 0 | W39: =IFERROR($E39*SUMIF('Daily Log'!#REF!,$B39,'Daily Log'!#REF!),0) -> 0 | X39: =IFERROR($E39*SUMIF('Daily Log'!#REF!,$B39,'Daily Log'!#REF!),0) -> 0 | Y39: =IFERROR($E39*SUMIF('Daily Log'!#REF!,$B39,'Daily Log'!#REF!),0) -> 0 | Z39: =IFERROR($E39*SUMIF('Daily Log'!$C$18:$C$1017,$B39,'Daily Log'!$D$18:$D$1017),0) -> 0 | AA39: =IFERROR($E39*SUMIF('Daily Log'!$F$18:$F$1017,$B39,'Daily Log'!$G$18:$G$1017),0) -> 0 | AB39: =IFERROR($E39*SUMIF('Daily Log'!$I$18:$I$1017,$B39,'Daily Log'!$J$18:$J$1017),0) -> 0 | AC39: =IFERROR($E39*SUMIF('Daily Log'!$L$18:$L$1017,$B39,'Daily Log'!$M$18:$M$1017),0) -> 0 | AD39: =IFERROR($E39*SUMIF('Daily Log'!$O$18:$O$1017,$B39,'Daily Log'!$P$18:$P$1017),0) -> 12 | AE39: =IFERROR($E39*SUMIF('Daily Log'!$R$18:$R$1017,$B39,'Daily Log'!$S$18:$S$1017),0) -> 0 | AF39: =IFERROR($E39*SUMIF('Daily Log'!$U$18:$U$1017,$B39,'Daily Log'!$V$18:$V$1017),0) -> 0 | AG39: =IFERROR($E39*SUMIF('Daily Log'!#REF!,$B39,'Daily Log'!#REF!),0) -> 0 | AH39: =IFERROR($E39*SUMIF('Daily Log'!#REF!,$B39,'Daily Log'!#REF!),0) -> 0 | AI39: =IFERROR($E39*SUMIF('Daily Log'!#REF!,$B39,'Daily Log'!#REF!),0) -> 0 | AJ39: =IFERROR($E39*SUMIF('Daily Log'!#REF!,$B39,'Daily Log'!#REF!),0) -> 0 | AK39: =IFERROR($E39*SUMIF('Daily Log'!#REF!,$B39,'Daily Log'!#REF!),0) -> 0
B40: BA11 HEINEKEN BTL | D40: BEER | E40: 1 | F40: 6 | G40: =IFERROR($E40*SUMIF('Daily Log'!#REF!,$B40,'Daily Log'!#REF!),0) -> 0 | H40: =IFERROR($E40*SUMIF('Daily Log'!#REF!,$B40,'Daily Log'!#REF!),0) -> 0 | I40: =IFERROR($E40*SUMIF('Daily Log'!#REF!,$B40,'Daily Log'!#REF!),0) -> 0 | J40: =IFERROR($E40*SUMIF('Daily Log'!#REF!,$B40,'Daily Log'!#REF!),0) -> 0 | K40: =IFERROR($E40*SUMIF('Daily Log'!#REF!,$B40,'Daily Log'!#REF!),0) -> 0 | L40: =IFERROR($E40*SUMIF('Daily Log'!#REF!,$B40,'Daily Log'!#REF!),0) -> 0 | M40: =IFERROR($E40*SUMIF('Daily Log'!#REF!,$B40,'Daily Log'!#REF!),0) -> 0 | N40: =IFERROR($E40*SUMIF('Daily Log'!#REF!,$B40,'Daily Log'!#REF!),0) -> 0 | O40: =IFERROR($E40*SUMIF('Daily Log'!#REF!,$B40,'Daily Log'!#REF!),0) -> 0 | P40: =IFERROR($E40*SUMIF('Daily Log'!#REF!,$B40,'Daily Log'!#REF!),0) -> 0 | Q40: =IFERROR($E40*SUMIF('Daily Log'!#REF!,$B40,'Daily Log'!#REF!),0) -> 0 | R40: =IFERROR($E40*SUMIF('Daily Log'!#REF!,$B40,'Daily Log'!#REF!),0) -> 0 | S40: =IFERROR($E40*SUMIF('Daily Log'!#REF!,$B40,'Daily Log'!#REF!),0) -> 0 | T40: =IFERROR($E40*SUMIF('Daily Log'!#REF!,$B40,'Daily Log'!#REF!),0) -> 0 | U40: =IFERROR($E40*SUMIF('Daily Log'!#REF!,$B40,'Daily Log'!#REF!),0) -> 0 | V40: =IFERROR($E40*SUMIF('Daily Log'!#REF!,$B40,'Daily Log'!#REF!),0) -> 0 | W40: =IFERROR($E40*SUMIF('Daily Log'!#REF!,$B40,'Daily Log'!#REF!),0) -> 0 | X40: =IFERROR($E40*SUMIF('Daily Log'!#REF!,$B40,'Daily Log'!#REF!),0) -> 0 | Y40: =IFERROR($E40*SUMIF('Daily Log'!#REF!,$B40,'Daily Log'!#REF!),0) -> 0 | Z40: =IFERROR($E40*SUMIF('Daily Log'!$C$18:$C$1017,$B40,'Daily Log'!$D$18:$D$1017),0) -> 2 | AA40: =IFERROR($E40*SUMIF('Daily Log'!$F$18:$F$1017,$B40,'Daily Log'!$G$18:$G$1017),0) -> 2 | AB40: =IFERROR($E40*SUMIF('Daily Log'!$I$18:$I$1017,$B40,'Daily Log'!$J$18:$J$1017),0) -> 0 | AC40: =IFERROR($E40*SUMIF('Daily Log'!$L$18:$L$1017,$B40,'Daily Log'!$M$18:$M$1017),0) -> 0 | AD40: =IFERROR($E40*SUMIF('Daily Log'!$O$18:$O$1017,$B40,'Daily Log'!$P$18:$P$1017),0) -> 0 | AE40: =IFERROR($E40*SUMIF('Daily Log'!$R$18:$R$1017,$B40,'Daily Log'!$S$18:$S$1017),0) -> 0 | AF40: =IFERROR($E40*SUMIF('Daily Log'!$U$18:$U$1017,$B40,'Daily Log'!$V$18:$V$1017),0) -> 2 | AG40: =IFERROR($E40*SUMIF('Daily Log'!#REF!,$B40,'Daily Log'!#REF!),0) -> 0 | AH40: =IFERROR($E40*SUMIF('Daily Log'!#REF!,$B40,'Daily Log'!#REF!),0) -> 0 | AI40: =IFERROR($E40*SUMIF('Daily Log'!#REF!,$B40,'Daily Log'!#REF!),0) -> 0 | AJ40: =IFERROR($E40*SUMIF('Daily Log'!#REF!,$B40,'Daily Log'!#REF!),0) -> 0 | AK40: =IFERROR($E40*SUMIF('Daily Log'!#REF!,$B40,'Daily Log'!#REF!),0) -> 0
B41: BA12 HEINEKEN BKT | D41: BEER | E41: 4 | F41: 76 | G41: =IFERROR($E41*SUMIF('Daily Log'!#REF!,$B41,'Daily Log'!#REF!),0) -> 0 | H41: =IFERROR($E41*SUMIF('Daily Log'!#REF!,$B41,'Daily Log'!#REF!),0) -> 0 | I41: =IFERROR($E41*SUMIF('Daily Log'!#REF!,$B41,'Daily Log'!#REF!),0) -> 0 | J41: =IFERROR($E41*SUMIF('Daily Log'!#REF!,$B41,'Daily Log'!#REF!),0) -> 0 | K41: =IFERROR($E41*SUMIF('Daily Log'!#REF!,$B41,'Daily Log'!#REF!),0) -> 0 | L41: =IFERROR($E41*SUMIF('Daily Log'!#REF!,$B41,'Daily Log'!#REF!),0) -> 0 | M41: =IFERROR($E41*SUMIF('Daily Log'!#REF!,$B41,'Daily Log'!#REF!),0) -> 0 | N41: =IFERROR($E41*SUMIF('Daily Log'!#REF!,$B41,'Daily Log'!#REF!),0) -> 0 | O41: =IFERROR($E41*SUMIF('Daily Log'!#REF!,$B41,'Daily Log'!#REF!),0) -> 0 | P41: =IFERROR($E41*SUMIF('Daily Log'!#REF!,$B41,'Daily Log'!#REF!),0) -> 0 | Q41: =IFERROR($E41*SUMIF('Daily Log'!#REF!,$B41,'Daily Log'!#REF!),0) -> 0 | R41: =IFERROR($E41*SUMIF('Daily Log'!#REF!,$B41,'Daily Log'!#REF!),0) -> 0 | S41: =IFERROR($E41*SUMIF('Daily Log'!#REF!,$B41,'Daily Log'!#REF!),0) -> 0 | T41: =IFERROR($E41*SUMIF('Daily Log'!#REF!,$B41,'Daily Log'!#REF!),0) -> 0 | U41: =IFERROR($E41*SUMIF('Daily Log'!#REF!,$B41,'Daily Log'!#REF!),0) -> 0 | V41: =IFERROR($E41*SUMIF('Daily Log'!#REF!,$B41,'Daily Log'!#REF!),0) -> 0 | W41: =IFERROR($E41*SUMIF('Daily Log'!#REF!,$B41,'Daily Log'!#REF!),0) -> 0 | X41: =IFERROR($E41*SUMIF('Daily Log'!#REF!,$B41,'Daily Log'!#REF!),0) -> 0 | Y41: =IFERROR($E41*SUMIF('Daily Log'!#REF!,$B41,'Daily Log'!#REF!),0) -> 0 | Z41: =IFERROR($E41*SUMIF('Daily Log'!$C$18:$C$1017,$B41,'Daily Log'!$D$18:$D$1017),0) -> 4 | AA41: =IFERROR($E41*SUMIF('Daily Log'!$F$18:$F$1017,$B41,'Daily Log'!$G$18:$G$1017),0) -> 12 | AB41: =IFERROR($E41*SUMIF('Daily Log'!$I$18:$I$1017,$B41,'Daily Log'!$J$18:$J$1017),0) -> 12 | AC41: =IFERROR($E41*SUMIF('Daily Log'!$L$18:$L$1017,$B41,'Daily Log'!$M$18:$M$1017),0) -> 8 | AD41: =IFERROR($E41*SUMIF('Daily Log'!$O$18:$O$1017,$B41,'Daily Log'!$P$18:$P$1017),0) -> 20 | AE41: =IFERROR($E41*SUMIF('Daily Log'!$R$18:$R$1017,$B41,'Daily Log'!$S$18:$S$1017),0) -> 0 | AF41: =IFERROR($E41*SUMIF('Daily Log'!$U$18:$U$1017,$B41,'Daily Log'!$V$18:$V$1017),0) -> 20 | AG41: =IFERROR($E41*SUMIF('Daily Log'!#REF!,$B41,'Daily Log'!#REF!),0) -> 0 | AH41: =IFERROR($E41*SUMIF('Daily Log'!#REF!,$B41,'Daily Log'!#REF!),0) -> 0 | AI41: =IFERROR($E41*SUMIF('Daily Log'!#REF!,$B41,'Daily Log'!#REF!),0) -> 0 | AJ41: =IFERROR($E41*SUMIF('Daily Log'!#REF!,$B41,'Daily Log'!#REF!),0) -> 0 | AK41: =IFERROR($E41*SUMIF('Daily Log'!#REF!,$B41,'Daily Log'!#REF!),0) -> 0
B42: BA13 HEINEKEN RND | D42: BEER | E42: 12 | F42: 144 | G42: =IFERROR($E42*SUMIF('Daily Log'!#REF!,$B42,'Daily Log'!#REF!),0) -> 0 | H42: =IFERROR($E42*SUMIF('Daily Log'!#REF!,$B42,'Daily Log'!#REF!),0) -> 0 | I42: =IFERROR($E42*SUMIF('Daily Log'!#REF!,$B42,'Daily Log'!#REF!),0) -> 0 | J42: =IFERROR($E42*SUMIF('Daily Log'!#REF!,$B42,'Daily Log'!#REF!),0) -> 0 | K42: =IFERROR($E42*SUMIF('Daily Log'!#REF!,$B42,'Daily Log'!#REF!),0) -> 0 | L42: =IFERROR($E42*SUMIF('Daily Log'!#REF!,$B42,'Daily Log'!#REF!),0) -> 0 | M42: =IFERROR($E42*SUMIF('Daily Log'!#REF!,$B42,'Daily Log'!#REF!),0) -> 0 | N42: =IFERROR($E42*SUMIF('Daily Log'!#REF!,$B42,'Daily Log'!#REF!),0) -> 0 | O42: =IFERROR($E42*SUMIF('Daily Log'!#REF!,$B42,'Daily Log'!#REF!),0) -> 0 | P42: =IFERROR($E42*SUMIF('Daily Log'!#REF!,$B42,'Daily Log'!#REF!),0) -> 0 | Q42: =IFERROR($E42*SUMIF('Daily Log'!#REF!,$B42,'Daily Log'!#REF!),0) -> 0 | R42: =IFERROR($E42*SUMIF('Daily Log'!#REF!,$B42,'Daily Log'!#REF!),0) -> 0 | S42: =IFERROR($E42*SUMIF('Daily Log'!#REF!,$B42,'Daily Log'!#REF!),0) -> 0 | T42: =IFERROR($E42*SUMIF('Daily Log'!#REF!,$B42,'Daily Log'!#REF!),0) -> 0 | U42: =IFERROR($E42*SUMIF('Daily Log'!#REF!,$B42,'Daily Log'!#REF!),0) -> 0 | V42: =IFERROR($E42*SUMIF('Daily Log'!#REF!,$B42,'Daily Log'!#REF!),0) -> 0 | W42: =IFERROR($E42*SUMIF('Daily Log'!#REF!,$B42,'Daily Log'!#REF!),0) -> 0 | X42: =IFERROR($E42*SUMIF('Daily Log'!#REF!,$B42,'Daily Log'!#REF!),0) -> 0 | Y42: =IFERROR($E42*SUMIF('Daily Log'!#REF!,$B42,'Daily Log'!#REF!),0) -> 0 | Z42: =IFERROR($E42*SUMIF('Daily Log'!$C$18:$C$1017,$B42,'Daily Log'!$D$18:$D$1017),0) -> 24 | AA42: =IFERROR($E42*SUMIF('Daily Log'!$F$18:$F$1017,$B42,'Daily Log'!$G$18:$G$1017),0) -> 36 | AB42: =IFERROR($E42*SUMIF('Daily Log'!$I$18:$I$1017,$B42,'Daily Log'!$J$18:$J$1017),0) -> 12 | AC42: =IFERROR($E42*SUMIF('Daily Log'!$L$18:$L$1017,$B42,'Daily Log'!$M$18:$M$1017),0) -> 24 | AD42: =IFERROR($E42*SUMIF('Daily Log'!$O$18:$O$1017,$B42,'Daily Log'!$P$18:$P$1017),0) -> 0 | AE42: =IFERROR($E42*SUMIF('Daily Log'!$R$18:$R$1017,$B42,'Daily Log'!$S$18:$S$1017),0) -> 36 | AF42: =IFERROR($E42*SUMIF('Daily Log'!$U$18:$U$1017,$B42,'Daily Log'!$V$18:$V$1017),0) -> 12 | AG42: =IFERROR($E42*SUMIF('Daily Log'!#REF!,$B42,'Daily Log'!#REF!),0) -> 0 | AH42: =IFERROR($E42*SUMIF('Daily Log'!#REF!,$B42,'Daily Log'!#REF!),0) -> 0 | AI42: =IFERROR($E42*SUMIF('Daily Log'!#REF!,$B42,'Daily Log'!#REF!),0) -> 0 | AJ42: =IFERROR($E42*SUMIF('Daily Log'!#REF!,$B42,'Daily Log'!#REF!),0) -> 0 | AK42: =IFERROR($E42*SUMIF('Daily Log'!#REF!,$B42,'Daily Log'!#REF!),0) -> 0
B43: BA14 TIGER BTL | D43: BEER | E43: 1 | F43: 7 | G43: =IFERROR($E43*SUMIF('Daily Log'!#REF!,$B43,'Daily Log'!#REF!),0) -> 0 | H43: =IFERROR($E43*SUMIF('Daily Log'!#REF!,$B43,'Daily Log'!#REF!),0) -> 0 | I43: =IFERROR($E43*SUMIF('Daily Log'!#REF!,$B43,'Daily Log'!#REF!),0) -> 0 | J43: =IFERROR($E43*SUMIF('Daily Log'!#REF!,$B43,'Daily Log'!#REF!),0) -> 0 | K43: =IFERROR($E43*SUMIF('Daily Log'!#REF!,$B43,'Daily Log'!#REF!),0) -> 0 | L43: =IFERROR($E43*SUMIF('Daily Log'!#REF!,$B43,'Daily Log'!#REF!),0) -> 0 | M43: =IFERROR($E43*SUMIF('Daily Log'!#REF!,$B43,'Daily Log'!#REF!),0) -> 0 | N43: =IFERROR($E43*SUMIF('Daily Log'!#REF!,$B43,'Daily Log'!#REF!),0) -> 0 | O43: =IFERROR($E43*SUMIF('Daily Log'!#REF!,$B43,'Daily Log'!#REF!),0) -> 0 | P43: =IFERROR($E43*SUMIF('Daily Log'!#REF!,$B43,'Daily Log'!#REF!),0) -> 0 | Q43: =IFERROR($E43*SUMIF('Daily Log'!#REF!,$B43,'Daily Log'!#REF!),0) -> 0 | R43: =IFERROR($E43*SUMIF('Daily Log'!#REF!,$B43,'Daily Log'!#REF!),0) -> 0 | S43: =IFERROR($E43*SUMIF('Daily Log'!#REF!,$B43,'Daily Log'!#REF!),0) -> 0 | T43: =IFERROR($E43*SUMIF('Daily Log'!#REF!,$B43,'Daily Log'!#REF!),0) -> 0 | U43: =IFERROR($E43*SUMIF('Daily Log'!#REF!,$B43,'Daily Log'!#REF!),0) -> 0 | V43: =IFERROR($E43*SUMIF('Daily Log'!#REF!,$B43,'Daily Log'!#REF!),0) -> 0 | W43: =IFERROR($E43*SUMIF('Daily Log'!#REF!,$B43,'Daily Log'!#REF!),0) -> 0 | X43: =IFERROR($E43*SUMIF('Daily Log'!#REF!,$B43,'Daily Log'!#REF!),0) -> 0 | Y43: =IFERROR($E43*SUMIF('Daily Log'!#REF!,$B43,'Daily Log'!#REF!),0) -> 0 | Z43: =IFERROR($E43*SUMIF('Daily Log'!$C$18:$C$1017,$B43,'Daily Log'!$D$18:$D$1017),0) -> 2 | AA43: =IFERROR($E43*SUMIF('Daily Log'!$F$18:$F$1017,$B43,'Daily Log'!$G$18:$G$1017),0) -> 0 | AB43: =IFERROR($E43*SUMIF('Daily Log'!$I$18:$I$1017,$B43,'Daily Log'!$J$18:$J$1017),0) -> 0 | AC43: =IFERROR($E43*SUMIF('Daily Log'!$L$18:$L$1017,$B43,'Daily Log'!$M$18:$M$1017),0) -> 0 | AD43: =IFERROR($E43*SUMIF('Daily Log'!$O$18:$O$1017,$B43,'Daily Log'!$P$18:$P$1017),0) -> 2 | AE43: =IFERROR($E43*SUMIF('Daily Log'!$R$18:$R$1017,$B43,'Daily Log'!$S$18:$S$1017),0) -> 0 | AF43: =IFERROR($E43*SUMIF('Daily Log'!$U$18:$U$1017,$B43,'Daily Log'!$V$18:$V$1017),0) -> 3 | AG43: =IFERROR($E43*SUMIF('Daily Log'!#REF!,$B43,'Daily Log'!#REF!),0) -> 0 | AH43: =IFERROR($E43*SUMIF('Daily Log'!#REF!,$B43,'Daily Log'!#REF!),0) -> 0 | AI43: =IFERROR($E43*SUMIF('Daily Log'!#REF!,$B43,'Daily Log'!#REF!),0) -> 0 | AJ43: =IFERROR($E43*SUMIF('Daily Log'!#REF!,$B43,'Daily Log'!#REF!),0) -> 0 | AK43: =IFERROR($E43*SUMIF('Daily Log'!#REF!,$B43,'Daily Log'!#REF!),0) -> 0
B44: BA15 TIGER BKT | D44: BEER | E44: 4 | F44: 160 | G44: =IFERROR($E44*SUMIF('Daily Log'!#REF!,$B44,'Daily Log'!#REF!),0) -> 0 | H44: =IFERROR($E44*SUMIF('Daily Log'!#REF!,$B44,'Daily Log'!#REF!),0) -> 0 | I44: =IFERROR($E44*SUMIF('Daily Log'!#REF!,$B44,'Daily Log'!#REF!),0) -> 0 | J44: =IFERROR($E44*SUMIF('Daily Log'!#REF!,$B44,'Daily Log'!#REF!),0) -> 0 | K44: =IFERROR($E44*SUMIF('Daily Log'!#REF!,$B44,'Daily Log'!#REF!),0) -> 0 | L44: =IFERROR($E44*SUMIF('Daily Log'!#REF!,$B44,'Daily Log'!#REF!),0) -> 0 | M44: =IFERROR($E44*SUMIF('Daily Log'!#REF!,$B44,'Daily Log'!#REF!),0) -> 0 | N44: =IFERROR($E44*SUMIF('Daily Log'!#REF!,$B44,'Daily Log'!#REF!),0) -> 0 | O44: =IFERROR($E44*SUMIF('Daily Log'!#REF!,$B44,'Daily Log'!#REF!),0) -> 0 | P44: =IFERROR($E44*SUMIF('Daily Log'!#REF!,$B44,'Daily Log'!#REF!),0) -> 0 | Q44: =IFERROR($E44*SUMIF('Daily Log'!#REF!,$B44,'Daily Log'!#REF!),0) -> 0 | R44: =IFERROR($E44*SUMIF('Daily Log'!#REF!,$B44,'Daily Log'!#REF!),0) -> 0 | S44: =IFERROR($E44*SUMIF('Daily Log'!#REF!,$B44,'Daily Log'!#REF!),0) -> 0 | T44: =IFERROR($E44*SUMIF('Daily Log'!#REF!,$B44,'Daily Log'!#REF!),0) -> 0 | U44: =IFERROR($E44*SUMIF('Daily Log'!#REF!,$B44,'Daily Log'!#REF!),0) -> 0 | V44: =IFERROR($E44*SUMIF('Daily Log'!#REF!,$B44,'Daily Log'!#REF!),0) -> 0 | W44: =IFERROR($E44*SUMIF('Daily Log'!#REF!,$B44,'Daily Log'!#REF!),0) -> 0 | X44: =IFERROR($E44*SUMIF('Daily Log'!#REF!,$B44,'Daily Log'!#REF!),0) -> 0 | Y44: =IFERROR($E44*SUMIF('Daily Log'!#REF!,$B44,'Daily Log'!#REF!),0) -> 0 | Z44: =IFERROR($E44*SUMIF('Daily Log'!$C$18:$C$1017,$B44,'Daily Log'!$D$18:$D$1017),0) -> 12 | AA44: =IFERROR($E44*SUMIF('Daily Log'!$F$18:$F$1017,$B44,'Daily Log'!$G$18:$G$1017),0) -> 32 | AB44: =IFERROR($E44*SUMIF('Daily Log'!$I$18:$I$1017,$B44,'Daily Log'!$J$18:$J$1017),0) -> 20 | AC44: =IFERROR($E44*SUMIF('Daily Log'!$L$18:$L$1017,$B44,'Daily Log'!$M$18:$M$1017),0) -> 16 | AD44: =IFERROR($E44*SUMIF('Daily Log'!$O$18:$O$1017,$B44,'Daily Log'!$P$18:$P$1017),0) -> 24 | AE44: =IFERROR($E44*SUMIF('Daily Log'!$R$18:$R$1017,$B44,'Daily Log'!$S$18:$S$1017),0) -> 24 | AF44: =IFERROR($E44*SUMIF('Daily Log'!$U$18:$U$1017,$B44,'Daily Log'!$V$18:$V$1017),0) -> 32 | AG44: =IFERROR($E44*SUMIF('Daily Log'!#REF!,$B44,'Daily Log'!#REF!),0) -> 0 | AH44: =IFERROR($E44*SUMIF('Daily Log'!#REF!,$B44,'Daily Log'!#REF!),0) -> 0 | AI44: =IFERROR($E44*SUMIF('Daily Log'!#REF!,$B44,'Daily Log'!#REF!),0) -> 0 | AJ44: =IFERROR($E44*SUMIF('Daily Log'!#REF!,$B44,'Daily Log'!#REF!),0) -> 0 | AK44: =IFERROR($E44*SUMIF('Daily Log'!#REF!,$B44,'Daily Log'!#REF!),0) -> 0
B45: BA16 TIGER RND | D45: BEER | E45: 12 | F45: 324 | G45: =IFERROR($E45*SUMIF('Daily Log'!#REF!,$B45,'Daily Log'!#REF!),0) -> 0 | H45: =IFERROR($E45*SUMIF('Daily Log'!#REF!,$B45,'Daily Log'!#REF!),0) -> 0 | I45: =IFERROR($E45*SUMIF('Daily Log'!#REF!,$B45,'Daily Log'!#REF!),0) -> 0 | J45: =IFERROR($E45*SUMIF('Daily Log'!#REF!,$B45,'Daily Log'!#REF!),0) -> 0 | K45: =IFERROR($E45*SUMIF('Daily Log'!#REF!,$B45,'Daily Log'!#REF!),0) -> 0 | L45: =IFERROR($E45*SUMIF('Daily Log'!#REF!,$B45,'Daily Log'!#REF!),0) -> 0 | M45: =IFERROR($E45*SUMIF('Daily Log'!#REF!,$B45,'Daily Log'!#REF!),0) -> 0 | N45: =IFERROR($E45*SUMIF('Daily Log'!#REF!,$B45,'Daily Log'!#REF!),0) -> 0 | O45: =IFERROR($E45*SUMIF('Daily Log'!#REF!,$B45,'Daily Log'!#REF!),0) -> 0 | P45: =IFERROR($E45*SUMIF('Daily Log'!#REF!,$B45,'Daily Log'!#REF!),0) -> 0 | Q45: =IFERROR($E45*SUMIF('Daily Log'!#REF!,$B45,'Daily Log'!#REF!),0) -> 0 | R45: =IFERROR($E45*SUMIF('Daily Log'!#REF!,$B45,'Daily Log'!#REF!),0) -> 0 | S45: =IFERROR($E45*SUMIF('Daily Log'!#REF!,$B45,'Daily Log'!#REF!),0) -> 0 | T45: =IFERROR($E45*SUMIF('Daily Log'!#REF!,$B45,'Daily Log'!#REF!),0) -> 0 | U45: =IFERROR($E45*SUMIF('Daily Log'!#REF!,$B45,'Daily Log'!#REF!),0) -> 0 | V45: =IFERROR($E45*SUMIF('Daily Log'!#REF!,$B45,'Daily Log'!#REF!),0) -> 0 | W45: =IFERROR($E45*SUMIF('Daily Log'!#REF!,$B45,'Daily Log'!#REF!),0) -> 0 | X45: =IFERROR($E45*SUMIF('Daily Log'!#REF!,$B45,'Daily Log'!#REF!),0) -> 0 | Y45: =IFERROR($E45*SUMIF('Daily Log'!#REF!,$B45,'Daily Log'!#REF!),0) -> 0 | Z45: =IFERROR($E45*SUMIF('Daily Log'!$C$18:$C$1017,$B45,'Daily Log'!$D$18:$D$1017),0) -> 0 | AA45: =IFERROR($E45*SUMIF('Daily Log'!$F$18:$F$1017,$B45,'Daily Log'!$G$18:$G$1017),0) -> 36 | AB45: =IFERROR($E45*SUMIF('Daily Log'!$I$18:$I$1017,$B45,'Daily Log'!$J$18:$J$1017),0) -> 0 | AC45: =IFERROR($E45*SUMIF('Daily Log'!$L$18:$L$1017,$B45,'Daily Log'!$M$18:$M$1017),0) -> 48 | AD45: =IFERROR($E45*SUMIF('Daily Log'!$O$18:$O$1017,$B45,'Daily Log'!$P$18:$P$1017),0) -> 108 | AE45: =IFERROR($E45*SUMIF('Daily Log'!$R$18:$R$1017,$B45,'Daily Log'!$S$18:$S$1017),0) -> 60 | AF45: =IFERROR($E45*SUMIF('Daily Log'!$U$18:$U$1017,$B45,'Daily Log'!$V$18:$V$1017),0) -> 72 | AG45: =IFERROR($E45*SUMIF('Daily Log'!#REF!,$B45,'Daily Log'!#REF!),0) -> 0 | AH45: =IFERROR($E45*SUMIF('Daily Log'!#REF!,$B45,'Daily Log'!#REF!),0) -> 0 | AI45: =IFERROR($E45*SUMIF('Daily Log'!#REF!,$B45,'Daily Log'!#REF!),0) -> 0 | AJ45: =IFERROR($E45*SUMIF('Daily Log'!#REF!,$B45,'Daily Log'!#REF!),0) -> 0 | AK45: =IFERROR($E45*SUMIF('Daily Log'!#REF!,$B45,'Daily Log'!#REF!),0) -> 0
B46: BA17 TIGER 3+1 | D46: BEER | F46: 0 | G46: =IFERROR($E46*SUMIF('Daily Log'!#REF!,$B46,'Daily Log'!#REF!),0) -> 0 | H46: =IFERROR($E46*SUMIF('Daily Log'!#REF!,$B46,'Daily Log'!#REF!),0) -> 0 | I46: =IFERROR($E46*SUMIF('Daily Log'!#REF!,$B46,'Daily Log'!#REF!),0) -> 0 | J46: =IFERROR($E46*SUMIF('Daily Log'!#REF!,$B46,'Daily Log'!#REF!),0) -> 0 | K46: =IFERROR($E46*SUMIF('Daily Log'!#REF!,$B46,'Daily Log'!#REF!),0) -> 0 | L46: =IFERROR($E46*SUMIF('Daily Log'!#REF!,$B46,'Daily Log'!#REF!),0) -> 0 | M46: =IFERROR($E46*SUMIF('Daily Log'!#REF!,$B46,'Daily Log'!#REF!),0) -> 0 | N46: =IFERROR($E46*SUMIF('Daily Log'!#REF!,$B46,'Daily Log'!#REF!),0) -> 0 | O46: =IFERROR($E46*SUMIF('Daily Log'!#REF!,$B46,'Daily Log'!#REF!),0) -> 0 | P46: =IFERROR($E46*SUMIF('Daily Log'!#REF!,$B46,'Daily Log'!#REF!),0) -> 0 | Q46: =IFERROR($E46*SUMIF('Daily Log'!#REF!,$B46,'Daily Log'!#REF!),0) -> 0 | R46: =IFERROR($E46*SUMIF('Daily Log'!#REF!,$B46,'Daily Log'!#REF!),0) -> 0 | S46: =IFERROR($E46*SUMIF('Daily Log'!#REF!,$B46,'Daily Log'!#REF!),0) -> 0 | T46: =IFERROR($E46*SUMIF('Daily Log'!#REF!,$B46,'Daily Log'!#REF!),0) -> 0 | U46: =IFERROR($E46*SUMIF('Daily Log'!#REF!,$B46,'Daily Log'!#REF!),0) -> 0 | V46: =IFERROR($E46*SUMIF('Daily Log'!#REF!,$B46,'Daily Log'!#REF!),0) -> 0 | W46: =IFERROR($E46*SUMIF('Daily Log'!#REF!,$B46,'Daily Log'!#REF!),0) -> 0 | X46: =IFERROR($E46*SUMIF('Daily Log'!#REF!,$B46,'Daily Log'!#REF!),0) -> 0 | Y46: =IFERROR($E46*SUMIF('Daily Log'!#REF!,$B46,'Daily Log'!#REF!),0) -> 0 | Z46: =IFERROR($E46*SUMIF('Daily Log'!$C$18:$C$1017,$B46,'Daily Log'!$D$18:$D$1017),0) -> 0 | AA46: =IFERROR($E46*SUMIF('Daily Log'!$F$18:$F$1017,$B46,'Daily Log'!$G$18:$G$1017),0) -> 0 | AB46: =IFERROR($E46*SUMIF('Daily Log'!$I$18:$I$1017,$B46,'Daily Log'!$J$18:$J$1017),0) -> 0 | AC46: =IFERROR($E46*SUMIF('Daily Log'!$L$18:$L$1017,$B46,'Daily Log'!$M$18:$M$1017),0) -> 0 | AD46: =IFERROR($E46*SUMIF('Daily Log'!$O$18:$O$1017,$B46,'Daily Log'!$P$18:$P$1017),0) -> 0 | AE46: =IFERROR($E46*SUMIF('Daily Log'!$R$18:$R$1017,$B46,'Daily Log'!$S$18:$S$1017),0) -> 0 | AF46: =IFERROR($E46*SUMIF('Daily Log'!$U$18:$U$1017,$B46,'Daily Log'!$V$18:$V$1017),0) -> 0 | AG46: =IFERROR($E46*SUMIF('Daily Log'!#REF!,$B46,'Daily Log'!#REF!),0) -> 0 | AH46: =IFERROR($E46*SUMIF('Daily Log'!#REF!,$B46,'Daily Log'!#REF!),0) -> 0 | AI46: =IFERROR($E46*SUMIF('Daily Log'!#REF!,$B46,'Daily Log'!#REF!),0) -> 0 | AJ46: =IFERROR($E46*SUMIF('Daily Log'!#REF!,$B46,'Daily Log'!#REF!),0) -> 0 | AK46: =IFERROR($E46*SUMIF('Daily Log'!#REF!,$B46,'Daily Log'!#REF!),0) -> 0
B47: BA18 BP+MEAL | D47: BEER | F47: 0 | G47: =IFERROR($E47*SUMIF('Daily Log'!#REF!,$B47,'Daily Log'!#REF!),0) -> 0 | H47: =IFERROR($E47*SUMIF('Daily Log'!#REF!,$B47,'Daily Log'!#REF!),0) -> 0 | I47: =IFERROR($E47*SUMIF('Daily Log'!#REF!,$B47,'Daily Log'!#REF!),0) -> 0 | J47: =IFERROR($E47*SUMIF('Daily Log'!#REF!,$B47,'Daily Log'!#REF!),0) -> 0 | K47: =IFERROR($E47*SUMIF('Daily Log'!#REF!,$B47,'Daily Log'!#REF!),0) -> 0 | L47: =IFERROR($E47*SUMIF('Daily Log'!#REF!,$B47,'Daily Log'!#REF!),0) -> 0 | M47: =IFERROR($E47*SUMIF('Daily Log'!#REF!,$B47,'Daily Log'!#REF!),0) -> 0 | N47: =IFERROR($E47*SUMIF('Daily Log'!#REF!,$B47,'Daily Log'!#REF!),0) -> 0 | O47: =IFERROR($E47*SUMIF('Daily Log'!#REF!,$B47,'Daily Log'!#REF!),0) -> 0 | P47: =IFERROR($E47*SUMIF('Daily Log'!#REF!,$B47,'Daily Log'!#REF!),0) -> 0 | Q47: =IFERROR($E47*SUMIF('Daily Log'!#REF!,$B47,'Daily Log'!#REF!),0) -> 0 | R47: =IFERROR($E47*SUMIF('Daily Log'!#REF!,$B47,'Daily Log'!#REF!),0) -> 0 | S47: =IFERROR($E47*SUMIF('Daily Log'!#REF!,$B47,'Daily Log'!#REF!),0) -> 0 | T47: =IFERROR($E47*SUMIF('Daily Log'!#REF!,$B47,'Daily Log'!#REF!),0) -> 0 | U47: =IFERROR($E47*SUMIF('Daily Log'!#REF!,$B47,'Daily Log'!#REF!),0) -> 0 | V47: =IFERROR($E47*SUMIF('Daily Log'!#REF!,$B47,'Daily Log'!#REF!),0) -> 0 | W47: =IFERROR($E47*SUMIF('Daily Log'!#REF!,$B47,'Daily Log'!#REF!),0) -> 0 | X47: =IFERROR($E47*SUMIF('Daily Log'!#REF!,$B47,'Daily Log'!#REF!),0) -> 0 | Y47: =IFERROR($E47*SUMIF('Daily Log'!#REF!,$B47,'Daily Log'!#REF!),0) -> 0 | Z47: =IFERROR($E47*SUMIF('Daily Log'!$C$18:$C$1017,$B47,'Daily Log'!$D$18:$D$1017),0) -> 0 | AA47: =IFERROR($E47*SUMIF('Daily Log'!$F$18:$F$1017,$B47,'Daily Log'!$G$18:$G$1017),0) -> 0 | AB47: =IFERROR($E47*SUMIF('Daily Log'!$I$18:$I$1017,$B47,'Daily Log'!$J$18:$J$1017),0) -> 0 | AC47: =IFERROR($E47*SUMIF('Daily Log'!$L$18:$L$1017,$B47,'Daily Log'!$M$18:$M$1017),0) -> 0 | AD47: =IFERROR($E47*SUMIF('Daily Log'!$O$18:$O$1017,$B47,'Daily Log'!$P$18:$P$1017),0) -> 0 | AE47: =IFERROR($E47*SUMIF('Daily Log'!$R$18:$R$1017,$B47,'Daily Log'!$S$18:$S$1017),0) -> 0 | AF47: =IFERROR($E47*SUMIF('Daily Log'!$U$18:$U$1017,$B47,'Daily Log'!$V$18:$V$1017),0) -> 0 | AG47: =IFERROR($E47*SUMIF('Daily Log'!#REF!,$B47,'Daily Log'!#REF!),0) -> 0 | AH47: =IFERROR($E47*SUMIF('Daily Log'!#REF!,$B47,'Daily Log'!#REF!),0) -> 0 | AI47: =IFERROR($E47*SUMIF('Daily Log'!#REF!,$B47,'Daily Log'!#REF!),0) -> 0 | AJ47: =IFERROR($E47*SUMIF('Daily Log'!#REF!,$B47,'Daily Log'!#REF!),0) -> 0 | AK47: =IFERROR($E47*SUMIF('Daily Log'!#REF!,$B47,'Daily Log'!#REF!),0) -> 0
B48: BA19 Tiger 2+1 | D48: BEER | F48: 0 | G48: =IFERROR($E48*SUMIF('Daily Log'!#REF!,$B48,'Daily Log'!#REF!),0) -> 0 | H48: =IFERROR($E48*SUMIF('Daily Log'!#REF!,$B48,'Daily Log'!#REF!),0) -> 0 | I48: =IFERROR($E48*SUMIF('Daily Log'!#REF!,$B48,'Daily Log'!#REF!),0) -> 0 | J48: =IFERROR($E48*SUMIF('Daily Log'!#REF!,$B48,'Daily Log'!#REF!),0) -> 0 | K48: =IFERROR($E48*SUMIF('Daily Log'!#REF!,$B48,'Daily Log'!#REF!),0) -> 0 | L48: =IFERROR($E48*SUMIF('Daily Log'!#REF!,$B48,'Daily Log'!#REF!),0) -> 0 | M48: =IFERROR($E48*SUMIF('Daily Log'!#REF!,$B48,'Daily Log'!#REF!),0) -> 0 | N48: =IFERROR($E48*SUMIF('Daily Log'!#REF!,$B48,'Daily Log'!#REF!),0) -> 0 | O48: =IFERROR($E48*SUMIF('Daily Log'!#REF!,$B48,'Daily Log'!#REF!),0) -> 0 | P48: =IFERROR($E48*SUMIF('Daily Log'!#REF!,$B48,'Daily Log'!#REF!),0) -> 0 | Q48: =IFERROR($E48*SUMIF('Daily Log'!#REF!,$B48,'Daily Log'!#REF!),0) -> 0 | R48: =IFERROR($E48*SUMIF('Daily Log'!#REF!,$B48,'Daily Log'!#REF!),0) -> 0 | S48: =IFERROR($E48*SUMIF('Daily Log'!#REF!,$B48,'Daily Log'!#REF!),0) -> 0 | T48: =IFERROR($E48*SUMIF('Daily Log'!#REF!,$B48,'Daily Log'!#REF!),0) -> 0 | U48: =IFERROR($E48*SUMIF('Daily Log'!#REF!,$B48,'Daily Log'!#REF!),0) -> 0 | V48: =IFERROR($E48*SUMIF('Daily Log'!#REF!,$B48,'Daily Log'!#REF!),0) -> 0 | W48: =IFERROR($E48*SUMIF('Daily Log'!#REF!,$B48,'Daily Log'!#REF!),0) -> 0 | X48: =IFERROR($E48*SUMIF('Daily Log'!#REF!,$B48,'Daily Log'!#REF!),0) -> 0 | Y48: =IFERROR($E48*SUMIF('Daily Log'!#REF!,$B48,'Daily Log'!#REF!),0) -> 0 | Z48: =IFERROR($E48*SUMIF('Daily Log'!$C$18:$C$1017,$B48,'Daily Log'!$D$18:$D$1017),0) -> 0 | AA48: =IFERROR($E48*SUMIF('Daily Log'!$F$18:$F$1017,$B48,'Daily Log'!$G$18:$G$1017),0) -> 0 | AB48: =IFERROR($E48*SUMIF('Daily Log'!$I$18:$I$1017,$B48,'Daily Log'!$J$18:$J$1017),0) -> 0 | AC48: =IFERROR($E48*SUMIF('Daily Log'!$L$18:$L$1017,$B48,'Daily Log'!$M$18:$M$1017),0) -> 0 | AD48: =IFERROR($E48*SUMIF('Daily Log'!$O$18:$O$1017,$B48,'Daily Log'!$P$18:$P$1017),0) -> 0 | AE48: =IFERROR($E48*SUMIF('Daily Log'!$R$18:$R$1017,$B48,'Daily Log'!$S$18:$S$1017),0) -> 0 | AF48: =IFERROR($E48*SUMIF('Daily Log'!$U$18:$U$1017,$B48,'Daily Log'!$V$18:$V$1017),0) -> 0 | AG48: =IFERROR($E48*SUMIF('Daily Log'!#REF!,$B48,'Daily Log'!#REF!),0) -> 0 | AH48: =IFERROR($E48*SUMIF('Daily Log'!#REF!,$B48,'Daily Log'!#REF!),0) -> 0 | AI48: =IFERROR($E48*SUMIF('Daily Log'!#REF!,$B48,'Daily Log'!#REF!),0) -> 0 | AJ48: =IFERROR($E48*SUMIF('Daily Log'!#REF!,$B48,'Daily Log'!#REF!),0) -> 0 | AK48: =IFERROR($E48*SUMIF('Daily Log'!#REF!,$B48,'Daily Log'!#REF!),0) -> 0
B49: BA20 Heineken 3+1 | D49: BEER | F49: 0 | G49: =IFERROR($E49*SUMIF('Daily Log'!#REF!,$B49,'Daily Log'!#REF!),0) -> 0 | H49: =IFERROR($E49*SUMIF('Daily Log'!#REF!,$B49,'Daily Log'!#REF!),0) -> 0 | I49: =IFERROR($E49*SUMIF('Daily Log'!#REF!,$B49,'Daily Log'!#REF!),0) -> 0 | J49: =IFERROR($E49*SUMIF('Daily Log'!#REF!,$B49,'Daily Log'!#REF!),0) -> 0 | K49: =IFERROR($E49*SUMIF('Daily Log'!#REF!,$B49,'Daily Log'!#REF!),0) -> 0 | L49: =IFERROR($E49*SUMIF('Daily Log'!#REF!,$B49,'Daily Log'!#REF!),0) -> 0 | M49: =IFERROR($E49*SUMIF('Daily Log'!#REF!,$B49,'Daily Log'!#REF!),0) -> 0 | N49: =IFERROR($E49*SUMIF('Daily Log'!#REF!,$B49,'Daily Log'!#REF!),0) -> 0 | O49: =IFERROR($E49*SUMIF('Daily Log'!#REF!,$B49,'Daily Log'!#REF!),0) -> 0 | P49: =IFERROR($E49*SUMIF('Daily Log'!#REF!,$B49,'Daily Log'!#REF!),0) -> 0 | Q49: =IFERROR($E49*SUMIF('Daily Log'!#REF!,$B49,'Daily Log'!#REF!),0) -> 0 | R49: =IFERROR($E49*SUMIF('Daily Log'!#REF!,$B49,'Daily Log'!#REF!),0) -> 0 | S49: =IFERROR($E49*SUMIF('Daily Log'!#REF!,$B49,'Daily Log'!#REF!),0) -> 0 | T49: =IFERROR($E49*SUMIF('Daily Log'!#REF!,$B49,'Daily Log'!#REF!),0) -> 0 | U49: =IFERROR($E49*SUMIF('Daily Log'!#REF!,$B49,'Daily Log'!#REF!),0) -> 0 | V49: =IFERROR($E49*SUMIF('Daily Log'!#REF!,$B49,'Daily Log'!#REF!),0) -> 0 | W49: =IFERROR($E49*SUMIF('Daily Log'!#REF!,$B49,'Daily Log'!#REF!),0) -> 0 | X49: =IFERROR($E49*SUMIF('Daily Log'!#REF!,$B49,'Daily Log'!#REF!),0) -> 0 | Y49: =IFERROR($E49*SUMIF('Daily Log'!#REF!,$B49,'Daily Log'!#REF!),0) -> 0 | Z49: =IFERROR($E49*SUMIF('Daily Log'!$C$18:$C$1017,$B49,'Daily Log'!$D$18:$D$1017),0) -> 0 | AA49: =IFERROR($E49*SUMIF('Daily Log'!$F$18:$F$1017,$B49,'Daily Log'!$G$18:$G$1017),0) -> 0 | AB49: =IFERROR($E49*SUMIF('Daily Log'!$I$18:$I$1017,$B49,'Daily Log'!$J$18:$J$1017),0) -> 0 | AC49: =IFERROR($E49*SUMIF('Daily Log'!$L$18:$L$1017,$B49,'Daily Log'!$M$18:$M$1017),0) -> 0 | AD49: =IFERROR($E49*SUMIF('Daily Log'!$O$18:$O$1017,$B49,'Daily Log'!$P$18:$P$1017),0) -> 0 | AE49: =IFERROR($E49*SUMIF('Daily Log'!$R$18:$R$1017,$B49,'Daily Log'!$S$18:$S$1017),0) -> 0 | AF49: =IFERROR($E49*SUMIF('Daily Log'!$U$18:$U$1017,$B49,'Daily Log'!$V$18:$V$1017),0) -> 0 | AG49: =IFERROR($E49*SUMIF('Daily Log'!#REF!,$B49,'Daily Log'!#REF!),0) -> 0 | AH49: =IFERROR($E49*SUMIF('Daily Log'!#REF!,$B49,'Daily Log'!#REF!),0) -> 0 | AI49: =IFERROR($E49*SUMIF('Daily Log'!#REF!,$B49,'Daily Log'!#REF!),0) -> 0 | AJ49: =IFERROR($E49*SUMIF('Daily Log'!#REF!,$B49,'Daily Log'!#REF!),0) -> 0 | AK49: =IFERROR($E49*SUMIF('Daily Log'!#REF!,$B49,'Daily Log'!#REF!),0) -> 0
B50: CA01 GRAPE J | D50: SIDE ORDER-COLD BEVERAGE | E50: 1 | F50: 0 | G50: =IFERROR($E50*SUMIF('Daily Log'!#REF!,$B50,'Daily Log'!#REF!),0) -> 0 | H50: =IFERROR($E50*SUMIF('Daily Log'!#REF!,$B50,'Daily Log'!#REF!),0) -> 0 | I50: =IFERROR($E50*SUMIF('Daily Log'!#REF!,$B50,'Daily Log'!#REF!),0) -> 0 | J50: =IFERROR($E50*SUMIF('Daily Log'!#REF!,$B50,'Daily Log'!#REF!),0) -> 0 | K50: =IFERROR($E50*SUMIF('Daily Log'!#REF!,$B50,'Daily Log'!#REF!),0) -> 0 | L50: =IFERROR($E50*SUMIF('Daily Log'!#REF!,$B50,'Daily Log'!#REF!),0) -> 0 | M50: =IFERROR($E50*SUMIF('Daily Log'!#REF!,$B50,'Daily Log'!#REF!),0) -> 0 | N50: =IFERROR($E50*SUMIF('Daily Log'!#REF!,$B50,'Daily Log'!#REF!),0) -> 0 | O50: =IFERROR($E50*SUMIF('Daily Log'!#REF!,$B50,'Daily Log'!#REF!),0) -> 0 | P50: =IFERROR($E50*SUMIF('Daily Log'!#REF!,$B50,'Daily Log'!#REF!),0) -> 0 | Q50: =IFERROR($E50*SUMIF('Daily Log'!#REF!,$B50,'Daily Log'!#REF!),0) -> 0 | R50: =IFERROR($E50*SUMIF('Daily Log'!#REF!,$B50,'Daily Log'!#REF!),0) -> 0 | S50: =IFERROR($E50*SUMIF('Daily Log'!#REF!,$B50,'Daily Log'!#REF!),0) -> 0 | T50: =IFERROR($E50*SUMIF('Daily Log'!#REF!,$B50,'Daily Log'!#REF!),0) -> 0 | U50: =IFERROR($E50*SUMIF('Daily Log'!#REF!,$B50,'Daily Log'!#REF!),0) -> 0 | V50: =IFERROR($E50*SUMIF('Daily Log'!#REF!,$B50,'Daily Log'!#REF!),0) -> 0 | W50: =IFERROR($E50*SUMIF('Daily Log'!#REF!,$B50,'Daily Log'!#REF!),0) -> 0 | X50: =IFERROR($E50*SUMIF('Daily Log'!#REF!,$B50,'Daily Log'!#REF!),0) -> 0 | Y50: =IFERROR($E50*SUMIF('Daily Log'!#REF!,$B50,'Daily Log'!#REF!),0) -> 0 | Z50: =IFERROR($E50*SUMIF('Daily Log'!$C$18:$C$1017,$B50,'Daily Log'!$D$18:$D$1017),0) -> 0 | AA50: =IFERROR($E50*SUMIF('Daily Log'!$F$18:$F$1017,$B50,'Daily Log'!$G$18:$G$1017),0) -> 0 | AB50: =IFERROR($E50*SUMIF('Daily Log'!$I$18:$I$1017,$B50,'Daily Log'!$J$18:$J$1017),0) -> 0 | AC50: =IFERROR($E50*SUMIF('Daily Log'!$L$18:$L$1017,$B50,'Daily Log'!$M$18:$M$1017),0) -> 0 | AD50: =IFERROR($E50*SUMIF('Daily Log'!$O$18:$O$1017,$B50,'Daily Log'!$P$18:$P$1017),0) -> 0 | AE50: =IFERROR($E50*SUMIF('Daily Log'!$R$18:$R$1017,$B50,'Daily Log'!$S$18:$S$1017),0) -> 0 | AF50: =IFERROR($E50*SUMIF('Daily Log'!$U$18:$U$1017,$B50,'Daily Log'!$V$18:$V$1017),0) -> 0 | AG50: =IFERROR($E50*SUMIF('Daily Log'!#REF!,$B50,'Daily Log'!#REF!),0) -> 0 | AH50: =IFERROR($E50*SUMIF('Daily Log'!#REF!,$B50,'Daily Log'!#REF!),0) -> 0 | AI50: =IFERROR($E50*SUMIF('Daily Log'!#REF!,$B50,'Daily Log'!#REF!),0) -> 0 | AJ50: =IFERROR($E50*SUMIF('Daily Log'!#REF!,$B50,'Daily Log'!#REF!),0) -> 0 | AK50: =IFERROR($E50*SUMIF('Daily Log'!#REF!,$B50,'Daily Log'!#REF!),0) -> 0
B51: CA02 APPLE J | D51: SIDE ORDER-COLD BEVERAGE | E51: 1 | F51: 0 | G51: =IFERROR($E51*SUMIF('Daily Log'!#REF!,$B51,'Daily Log'!#REF!),0) -> 0 | H51: =IFERROR($E51*SUMIF('Daily Log'!#REF!,$B51,'Daily Log'!#REF!),0) -> 0 | I51: =IFERROR($E51*SUMIF('Daily Log'!#REF!,$B51,'Daily Log'!#REF!),0) -> 0 | J51: =IFERROR($E51*SUMIF('Daily Log'!#REF!,$B51,'Daily Log'!#REF!),0) -> 0 | K51: =IFERROR($E51*SUMIF('Daily Log'!#REF!,$B51,'Daily Log'!#REF!),0) -> 0 | L51: =IFERROR($E51*SUMIF('Daily Log'!#REF!,$B51,'Daily Log'!#REF!),0) -> 0 | M51: =IFERROR($E51*SUMIF('Daily Log'!#REF!,$B51,'Daily Log'!#REF!),0) -> 0 | N51: =IFERROR($E51*SUMIF('Daily Log'!#REF!,$B51,'Daily Log'!#REF!),0) -> 0 | O51: =IFERROR($E51*SUMIF('Daily Log'!#REF!,$B51,'Daily Log'!#REF!),0) -> 0 | P51: =IFERROR($E51*SUMIF('Daily Log'!#REF!,$B51,'Daily Log'!#REF!),0) -> 0 | Q51: =IFERROR($E51*SUMIF('Daily Log'!#REF!,$B51,'Daily Log'!#REF!),0) -> 0 | R51: =IFERROR($E51*SUMIF('Daily Log'!#REF!,$B51,'Daily Log'!#REF!),0) -> 0 | S51: =IFERROR($E51*SUMIF('Daily Log'!#REF!,$B51,'Daily Log'!#REF!),0) -> 0 | T51: =IFERROR($E51*SUMIF('Daily Log'!#REF!,$B51,'Daily Log'!#REF!),0) -> 0 | U51: =IFERROR($E51*SUMIF('Daily Log'!#REF!,$B51,'Daily Log'!#REF!),0) -> 0 | V51: =IFERROR($E51*SUMIF('Daily Log'!#REF!,$B51,'Daily Log'!#REF!),0) -> 0 | W51: =IFERROR($E51*SUMIF('Daily Log'!#REF!,$B51,'Daily Log'!#REF!),0) -> 0 | X51: =IFERROR($E51*SUMIF('Daily Log'!#REF!,$B51,'Daily Log'!#REF!),0) -> 0 | Y51: =IFERROR($E51*SUMIF('Daily Log'!#REF!,$B51,'Daily Log'!#REF!),0) -> 0 | Z51: =IFERROR($E51*SUMIF('Daily Log'!$C$18:$C$1017,$B51,'Daily Log'!$D$18:$D$1017),0) -> 0 | AA51: =IFERROR($E51*SUMIF('Daily Log'!$F$18:$F$1017,$B51,'Daily Log'!$G$18:$G$1017),0) -> 0 | AB51: =IFERROR($E51*SUMIF('Daily Log'!$I$18:$I$1017,$B51,'Daily Log'!$J$18:$J$1017),0) -> 0 | AC51: =IFERROR($E51*SUMIF('Daily Log'!$L$18:$L$1017,$B51,'Daily Log'!$M$18:$M$1017),0) -> 0 | AD51: =IFERROR($E51*SUMIF('Daily Log'!$O$18:$O$1017,$B51,'Daily Log'!$P$18:$P$1017),0) -> 0 | AE51: =IFERROR($E51*SUMIF('Daily Log'!$R$18:$R$1017,$B51,'Daily Log'!$S$18:$S$1017),0) -> 0 | AF51: =IFERROR($E51*SUMIF('Daily Log'!$U$18:$U$1017,$B51,'Daily Log'!$V$18:$V$1017),0) -> 0 | AG51: =IFERROR($E51*SUMIF('Daily Log'!#REF!,$B51,'Daily Log'!#REF!),0) -> 0 | AH51: =IFERROR($E51*SUMIF('Daily Log'!#REF!,$B51,'Daily Log'!#REF!),0) -> 0 | AI51: =IFERROR($E51*SUMIF('Daily Log'!#REF!,$B51,'Daily Log'!#REF!),0) -> 0 | AJ51: =IFERROR($E51*SUMIF('Daily Log'!#REF!,$B51,'Daily Log'!#REF!),0) -> 0 | AK51: =IFERROR($E51*SUMIF('Daily Log'!#REF!,$B51,'Daily Log'!#REF!),0) -> 0
B52: CA03 KIWI J | D52: SIDE ORDER-COLD BEVERAGE | E52: 1 | F52: 0 | G52: =IFERROR($E52*SUMIF('Daily Log'!#REF!,$B52,'Daily Log'!#REF!),0) -> 0 | H52: =IFERROR($E52*SUMIF('Daily Log'!#REF!,$B52,'Daily Log'!#REF!),0) -> 0 | I52: =IFERROR($E52*SUMIF('Daily Log'!#REF!,$B52,'Daily Log'!#REF!),0) -> 0 | J52: =IFERROR($E52*SUMIF('Daily Log'!#REF!,$B52,'Daily Log'!#REF!),0) -> 0 | K52: =IFERROR($E52*SUMIF('Daily Log'!#REF!,$B52,'Daily Log'!#REF!),0) -> 0 | L52: =IFERROR($E52*SUMIF('Daily Log'!#REF!,$B52,'Daily Log'!#REF!),0) -> 0 | M52: =IFERROR($E52*SUMIF('Daily Log'!#REF!,$B52,'Daily Log'!#REF!),0) -> 0 | N52: =IFERROR($E52*SUMIF('Daily Log'!#REF!,$B52,'Daily Log'!#REF!),0) -> 0 | O52: =IFERROR($E52*SUMIF('Daily Log'!#REF!,$B52,'Daily Log'!#REF!),0) -> 0 | P52: =IFERROR($E52*SUMIF('Daily Log'!#REF!,$B52,'Daily Log'!#REF!),0) -> 0 | Q52: =IFERROR($E52*SUMIF('Daily Log'!#REF!,$B52,'Daily Log'!#REF!),0) -> 0 | R52: =IFERROR($E52*SUMIF('Daily Log'!#REF!,$B52,'Daily Log'!#REF!),0) -> 0 | S52: =IFERROR($E52*SUMIF('Daily Log'!#REF!,$B52,'Daily Log'!#REF!),0) -> 0 | T52: =IFERROR($E52*SUMIF('Daily Log'!#REF!,$B52,'Daily Log'!#REF!),0) -> 0 | U52: =IFERROR($E52*SUMIF('Daily Log'!#REF!,$B52,'Daily Log'!#REF!),0) -> 0 | V52: =IFERROR($E52*SUMIF('Daily Log'!#REF!,$B52,'Daily Log'!#REF!),0) -> 0 | W52: =IFERROR($E52*SUMIF('Daily Log'!#REF!,$B52,'Daily Log'!#REF!),0) -> 0 | X52: =IFERROR($E52*SUMIF('Daily Log'!#REF!,$B52,'Daily Log'!#REF!),0) -> 0 | Y52: =IFERROR($E52*SUMIF('Daily Log'!#REF!,$B52,'Daily Log'!#REF!),0) -> 0 | Z52: =IFERROR($E52*SUMIF('Daily Log'!$C$18:$C$1017,$B52,'Daily Log'!$D$18:$D$1017),0) -> 0 | AA52: =IFERROR($E52*SUMIF('Daily Log'!$F$18:$F$1017,$B52,'Daily Log'!$G$18:$G$1017),0) -> 0 | AB52: =IFERROR($E52*SUMIF('Daily Log'!$I$18:$I$1017,$B52,'Daily Log'!$J$18:$J$1017),0) -> 0 | AC52: =IFERROR($E52*SUMIF('Daily Log'!$L$18:$L$1017,$B52,'Daily Log'!$M$18:$M$1017),0) -> 0 | AD52: =IFERROR($E52*SUMIF('Daily Log'!$O$18:$O$1017,$B52,'Daily Log'!$P$18:$P$1017),0) -> 0 | AE52: =IFERROR($E52*SUMIF('Daily Log'!$R$18:$R$1017,$B52,'Daily Log'!$S$18:$S$1017),0) -> 0 | AF52: =IFERROR($E52*SUMIF('Daily Log'!$U$18:$U$1017,$B52,'Daily Log'!$V$18:$V$1017),0) -> 0 | AG52: =IFERROR($E52*SUMIF('Daily Log'!#REF!,$B52,'Daily Log'!#REF!),0) -> 0 | AH52: =IFERROR($E52*SUMIF('Daily Log'!#REF!,$B52,'Daily Log'!#REF!),0) -> 0 | AI52: =IFERROR($E52*SUMIF('Daily Log'!#REF!,$B52,'Daily Log'!#REF!),0) -> 0 | AJ52: =IFERROR($E52*SUMIF('Daily Log'!#REF!,$B52,'Daily Log'!#REF!),0) -> 0 | AK52: =IFERROR($E52*SUMIF('Daily Log'!#REF!,$B52,'Daily Log'!#REF!),0) -> 0
B53: CA04 MANGO J | D53: SIDE ORDER-COLD BEVERAGE | E53: 1 | F53: 1 | G53: =IFERROR($E53*SUMIF('Daily Log'!#REF!,$B53,'Daily Log'!#REF!),0) -> 0 | H53: =IFERROR($E53*SUMIF('Daily Log'!#REF!,$B53,'Daily Log'!#REF!),0) -> 0 | I53: =IFERROR($E53*SUMIF('Daily Log'!#REF!,$B53,'Daily Log'!#REF!),0) -> 0 | J53: =IFERROR($E53*SUMIF('Daily Log'!#REF!,$B53,'Daily Log'!#REF!),0) -> 0 | K53: =IFERROR($E53*SUMIF('Daily Log'!#REF!,$B53,'Daily Log'!#REF!),0) -> 0 | L53: =IFERROR($E53*SUMIF('Daily Log'!#REF!,$B53,'Daily Log'!#REF!),0) -> 0 | M53: =IFERROR($E53*SUMIF('Daily Log'!#REF!,$B53,'Daily Log'!#REF!),0) -> 0 | N53: =IFERROR($E53*SUMIF('Daily Log'!#REF!,$B53,'Daily Log'!#REF!),0) -> 0 | O53: =IFERROR($E53*SUMIF('Daily Log'!#REF!,$B53,'Daily Log'!#REF!),0) -> 0 | P53: =IFERROR($E53*SUMIF('Daily Log'!#REF!,$B53,'Daily Log'!#REF!),0) -> 0 | Q53: =IFERROR($E53*SUMIF('Daily Log'!#REF!,$B53,'Daily Log'!#REF!),0) -> 0 | R53: =IFERROR($E53*SUMIF('Daily Log'!#REF!,$B53,'Daily Log'!#REF!),0) -> 0 | S53: =IFERROR($E53*SUMIF('Daily Log'!#REF!,$B53,'Daily Log'!#REF!),0) -> 0 | T53: =IFERROR($E53*SUMIF('Daily Log'!#REF!,$B53,'Daily Log'!#REF!),0) -> 0 | U53: =IFERROR($E53*SUMIF('Daily Log'!#REF!,$B53,'Daily Log'!#REF!),0) -> 0 | V53: =IFERROR($E53*SUMIF('Daily Log'!#REF!,$B53,'Daily Log'!#REF!),0) -> 0 | W53: =IFERROR($E53*SUMIF('Daily Log'!#REF!,$B53,'Daily Log'!#REF!),0) -> 0 | X53: =IFERROR($E53*SUMIF('Daily Log'!#REF!,$B53,'Daily Log'!#REF!),0) -> 0 | Y53: =IFERROR($E53*SUMIF('Daily Log'!#REF!,$B53,'Daily Log'!#REF!),0) -> 0 | Z53: =IFERROR($E53*SUMIF('Daily Log'!$C$18:$C$1017,$B53,'Daily Log'!$D$18:$D$1017),0) -> 0 | AA53: =IFERROR($E53*SUMIF('Daily Log'!$F$18:$F$1017,$B53,'Daily Log'!$G$18:$G$1017),0) -> 0 | AB53: =IFERROR($E53*SUMIF('Daily Log'!$I$18:$I$1017,$B53,'Daily Log'!$J$18:$J$1017),0) -> 0 | AC53: =IFERROR($E53*SUMIF('Daily Log'!$L$18:$L$1017,$B53,'Daily Log'!$M$18:$M$1017),0) -> 0 | AD53: =IFERROR($E53*SUMIF('Daily Log'!$O$18:$O$1017,$B53,'Daily Log'!$P$18:$P$1017),0) -> 0 | AE53: =IFERROR($E53*SUMIF('Daily Log'!$R$18:$R$1017,$B53,'Daily Log'!$S$18:$S$1017),0) -> 1 | AF53: =IFERROR($E53*SUMIF('Daily Log'!$U$18:$U$1017,$B53,'Daily Log'!$V$18:$V$1017),0) -> 0 | AG53: =IFERROR($E53*SUMIF('Daily Log'!#REF!,$B53,'Daily Log'!#REF!),0) -> 0 | AH53: =IFERROR($E53*SUMIF('Daily Log'!#REF!,$B53,'Daily Log'!#REF!),0) -> 0 | AI53: =IFERROR($E53*SUMIF('Daily Log'!#REF!,$B53,'Daily Log'!#REF!),0) -> 0 | AJ53: =IFERROR($E53*SUMIF('Daily Log'!#REF!,$B53,'Daily Log'!#REF!),0) -> 0 | AK53: =IFERROR($E53*SUMIF('Daily Log'!#REF!,$B53,'Daily Log'!#REF!),0) -> 0
B54: CA05 PASSION J | D54: SIDE ORDER-COLD BEVERAGE | E54: 1 | F54: 0 | G54: =IFERROR($E54*SUMIF('Daily Log'!#REF!,$B54,'Daily Log'!#REF!),0) -> 0 | H54: =IFERROR($E54*SUMIF('Daily Log'!#REF!,$B54,'Daily Log'!#REF!),0) -> 0 | I54: =IFERROR($E54*SUMIF('Daily Log'!#REF!,$B54,'Daily Log'!#REF!),0) -> 0 | J54: =IFERROR($E54*SUMIF('Daily Log'!#REF!,$B54,'Daily Log'!#REF!),0) -> 0 | K54: =IFERROR($E54*SUMIF('Daily Log'!#REF!,$B54,'Daily Log'!#REF!),0) -> 0 | L54: =IFERROR($E54*SUMIF('Daily Log'!#REF!,$B54,'Daily Log'!#REF!),0) -> 0 | M54: =IFERROR($E54*SUMIF('Daily Log'!#REF!,$B54,'Daily Log'!#REF!),0) -> 0 | N54: =IFERROR($E54*SUMIF('Daily Log'!#REF!,$B54,'Daily Log'!#REF!),0) -> 0 | O54: =IFERROR($E54*SUMIF('Daily Log'!#REF!,$B54,'Daily Log'!#REF!),0) -> 0 | P54: =IFERROR($E54*SUMIF('Daily Log'!#REF!,$B54,'Daily Log'!#REF!),0) -> 0 | Q54: =IFERROR($E54*SUMIF('Daily Log'!#REF!,$B54,'Daily Log'!#REF!),0) -> 0 | R54: =IFERROR($E54*SUMIF('Daily Log'!#REF!,$B54,'Daily Log'!#REF!),0) -> 0 | S54: =IFERROR($E54*SUMIF('Daily Log'!#REF!,$B54,'Daily Log'!#REF!),0) -> 0 | T54: =IFERROR($E54*SUMIF('Daily Log'!#REF!,$B54,'Daily Log'!#REF!),0) -> 0 | U54: =IFERROR($E54*SUMIF('Daily Log'!#REF!,$B54,'Daily Log'!#REF!),0) -> 0 | V54: =IFERROR($E54*SUMIF('Daily Log'!#REF!,$B54,'Daily Log'!#REF!),0) -> 0 | W54: =IFERROR($E54*SUMIF('Daily Log'!#REF!,$B54,'Daily Log'!#REF!),0) -> 0 | X54: =IFERROR($E54*SUMIF('Daily Log'!#REF!,$B54,'Daily Log'!#REF!),0) -> 0 | Y54: =IFERROR($E54*SUMIF('Daily Log'!#REF!,$B54,'Daily Log'!#REF!),0) -> 0 | Z54: =IFERROR($E54*SUMIF('Daily Log'!$C$18:$C$1017,$B54,'Daily Log'!$D$18:$D$1017),0) -> 0 | AA54: =IFERROR($E54*SUMIF('Daily Log'!$F$18:$F$1017,$B54,'Daily Log'!$G$18:$G$1017),0) -> 0 | AB54: =IFERROR($E54*SUMIF('Daily Log'!$I$18:$I$1017,$B54,'Daily Log'!$J$18:$J$1017),0) -> 0 | AC54: =IFERROR($E54*SUMIF('Daily Log'!$L$18:$L$1017,$B54,'Daily Log'!$M$18:$M$1017),0) -> 0 | AD54: =IFERROR($E54*SUMIF('Daily Log'!$O$18:$O$1017,$B54,'Daily Log'!$P$18:$P$1017),0) -> 0 | AE54: =IFERROR($E54*SUMIF('Daily Log'!$R$18:$R$1017,$B54,'Daily Log'!$S$18:$S$1017),0) -> 0 | AF54: =IFERROR($E54*SUMIF('Daily Log'!$U$18:$U$1017,$B54,'Daily Log'!$V$18:$V$1017),0) -> 0 | AG54: =IFERROR($E54*SUMIF('Daily Log'!#REF!,$B54,'Daily Log'!#REF!),0) -> 0 | AH54: =IFERROR($E54*SUMIF('Daily Log'!#REF!,$B54,'Daily Log'!#REF!),0) -> 0 | AI54: =IFERROR($E54*SUMIF('Daily Log'!#REF!,$B54,'Daily Log'!#REF!),0) -> 0 | AJ54: =IFERROR($E54*SUMIF('Daily Log'!#REF!,$B54,'Daily Log'!#REF!),0) -> 0 | AK54: =IFERROR($E54*SUMIF('Daily Log'!#REF!,$B54,'Daily Log'!#REF!),0) -> 0
B55: CA06 RIBENA J | D55: SIDE ORDER-COLD BEVERAGE | E55: 1 | F55: 0 | G55: =IFERROR($E55*SUMIF('Daily Log'!#REF!,$B55,'Daily Log'!#REF!),0) -> 0 | H55: =IFERROR($E55*SUMIF('Daily Log'!#REF!,$B55,'Daily Log'!#REF!),0) -> 0 | I55: =IFERROR($E55*SUMIF('Daily Log'!#REF!,$B55,'Daily Log'!#REF!),0) -> 0 | J55: =IFERROR($E55*SUMIF('Daily Log'!#REF!,$B55,'Daily Log'!#REF!),0) -> 0 | K55: =IFERROR($E55*SUMIF('Daily Log'!#REF!,$B55,'Daily Log'!#REF!),0) -> 0 | L55: =IFERROR($E55*SUMIF('Daily Log'!#REF!,$B55,'Daily Log'!#REF!),0) -> 0 | M55: =IFERROR($E55*SUMIF('Daily Log'!#REF!,$B55,'Daily Log'!#REF!),0) -> 0 | N55: =IFERROR($E55*SUMIF('Daily Log'!#REF!,$B55,'Daily Log'!#REF!),0) -> 0 | O55: =IFERROR($E55*SUMIF('Daily Log'!#REF!,$B55,'Daily Log'!#REF!),0) -> 0 | P55: =IFERROR($E55*SUMIF('Daily Log'!#REF!,$B55,'Daily Log'!#REF!),0) -> 0 | Q55: =IFERROR($E55*SUMIF('Daily Log'!#REF!,$B55,'Daily Log'!#REF!),0) -> 0 | R55: =IFERROR($E55*SUMIF('Daily Log'!#REF!,$B55,'Daily Log'!#REF!),0) -> 0 | S55: =IFERROR($E55*SUMIF('Daily Log'!#REF!,$B55,'Daily Log'!#REF!),0) -> 0 | T55: =IFERROR($E55*SUMIF('Daily Log'!#REF!,$B55,'Daily Log'!#REF!),0) -> 0 | U55: =IFERROR($E55*SUMIF('Daily Log'!#REF!,$B55,'Daily Log'!#REF!),0) -> 0 | V55: =IFERROR($E55*SUMIF('Daily Log'!#REF!,$B55,'Daily Log'!#REF!),0) -> 0 | W55: =IFERROR($E55*SUMIF('Daily Log'!#REF!,$B55,'Daily Log'!#REF!),0) -> 0 | X55: =IFERROR($E55*SUMIF('Daily Log'!#REF!,$B55,'Daily Log'!#REF!),0) -> 0 | Y55: =IFERROR($E55*SUMIF('Daily Log'!#REF!,$B55,'Daily Log'!#REF!),0) -> 0 | Z55: =IFERROR($E55*SUMIF('Daily Log'!$C$18:$C$1017,$B55,'Daily Log'!$D$18:$D$1017),0) -> 0 | AA55: =IFERROR($E55*SUMIF('Daily Log'!$F$18:$F$1017,$B55,'Daily Log'!$G$18:$G$1017),0) -> 0 | AB55: =IFERROR($E55*SUMIF('Daily Log'!$I$18:$I$1017,$B55,'Daily Log'!$J$18:$J$1017),0) -> 0 | AC55: =IFERROR($E55*SUMIF('Daily Log'!$L$18:$L$1017,$B55,'Daily Log'!$M$18:$M$1017),0) -> 0 | AD55: =IFERROR($E55*SUMIF('Daily Log'!$O$18:$O$1017,$B55,'Daily Log'!$P$18:$P$1017),0) -> 0 | AE55: =IFERROR($E55*SUMIF('Daily Log'!$R$18:$R$1017,$B55,'Daily Log'!$S$18:$S$1017),0) -> 0 | AF55: =IFERROR($E55*SUMIF('Daily Log'!$U$18:$U$1017,$B55,'Daily Log'!$V$18:$V$1017),0) -> 0 | AG55: =IFERROR($E55*SUMIF('Daily Log'!#REF!,$B55,'Daily Log'!#REF!),0) -> 0 | AH55: =IFERROR($E55*SUMIF('Daily Log'!#REF!,$B55,'Daily Log'!#REF!),0) -> 0 | AI55: =IFERROR($E55*SUMIF('Daily Log'!#REF!,$B55,'Daily Log'!#REF!),0) -> 0 | AJ55: =IFERROR($E55*SUMIF('Daily Log'!#REF!,$B55,'Daily Log'!#REF!),0) -> 0 | AK55: =IFERROR($E55*SUMIF('Daily Log'!#REF!,$B55,'Daily Log'!#REF!),0) -> 0
B56: CB01 GRAPE SO | D56: SIDE ORDER-COLD BEVERAGE | E56: 1 | F56: 0 | G56: =IFERROR($E56*SUMIF('Daily Log'!#REF!,$B56,'Daily Log'!#REF!),0) -> 0 | H56: =IFERROR($E56*SUMIF('Daily Log'!#REF!,$B56,'Daily Log'!#REF!),0) -> 0 | I56: =IFERROR($E56*SUMIF('Daily Log'!#REF!,$B56,'Daily Log'!#REF!),0) -> 0 | J56: =IFERROR($E56*SUMIF('Daily Log'!#REF!,$B56,'Daily Log'!#REF!),0) -> 0 | K56: =IFERROR($E56*SUMIF('Daily Log'!#REF!,$B56,'Daily Log'!#REF!),0) -> 0 | L56: =IFERROR($E56*SUMIF('Daily Log'!#REF!,$B56,'Daily Log'!#REF!),0) -> 0 | M56: =IFERROR($E56*SUMIF('Daily Log'!#REF!,$B56,'Daily Log'!#REF!),0) -> 0 | N56: =IFERROR($E56*SUMIF('Daily Log'!#REF!,$B56,'Daily Log'!#REF!),0) -> 0 | O56: =IFERROR($E56*SUMIF('Daily Log'!#REF!,$B56,'Daily Log'!#REF!),0) -> 0 | P56: =IFERROR($E56*SUMIF('Daily Log'!#REF!,$B56,'Daily Log'!#REF!),0) -> 0 | Q56: =IFERROR($E56*SUMIF('Daily Log'!#REF!,$B56,'Daily Log'!#REF!),0) -> 0 | R56: =IFERROR($E56*SUMIF('Daily Log'!#REF!,$B56,'Daily Log'!#REF!),0) -> 0 | S56: =IFERROR($E56*SUMIF('Daily Log'!#REF!,$B56,'Daily Log'!#REF!),0) -> 0 | T56: =IFERROR($E56*SUMIF('Daily Log'!#REF!,$B56,'Daily Log'!#REF!),0) -> 0 | U56: =IFERROR($E56*SUMIF('Daily Log'!#REF!,$B56,'Daily Log'!#REF!),0) -> 0 | V56: =IFERROR($E56*SUMIF('Daily Log'!#REF!,$B56,'Daily Log'!#REF!),0) -> 0 | W56: =IFERROR($E56*SUMIF('Daily Log'!#REF!,$B56,'Daily Log'!#REF!),0) -> 0 | X56: =IFERROR($E56*SUMIF('Daily Log'!#REF!,$B56,'Daily Log'!#REF!),0) -> 0 | Y56: =IFERROR($E56*SUMIF('Daily Log'!#REF!,$B56,'Daily Log'!#REF!),0) -> 0 | Z56: =IFERROR($E56*SUMIF('Daily Log'!$C$18:$C$1017,$B56,'Daily Log'!$D$18:$D$1017),0) -> 0 | AA56: =IFERROR($E56*SUMIF('Daily Log'!$F$18:$F$1017,$B56,'Daily Log'!$G$18:$G$1017),0) -> 0 | AB56: =IFERROR($E56*SUMIF('Daily Log'!$I$18:$I$1017,$B56,'Daily Log'!$J$18:$J$1017),0) -> 0 | AC56: =IFERROR($E56*SUMIF('Daily Log'!$L$18:$L$1017,$B56,'Daily Log'!$M$18:$M$1017),0) -> 0 | AD56: =IFERROR($E56*SUMIF('Daily Log'!$O$18:$O$1017,$B56,'Daily Log'!$P$18:$P$1017),0) -> 0 | AE56: =IFERROR($E56*SUMIF('Daily Log'!$R$18:$R$1017,$B56,'Daily Log'!$S$18:$S$1017),0) -> 0 | AF56: =IFERROR($E56*SUMIF('Daily Log'!$U$18:$U$1017,$B56,'Daily Log'!$V$18:$V$1017),0) -> 0 | AG56: =IFERROR($E56*SUMIF('Daily Log'!#REF!,$B56,'Daily Log'!#REF!),0) -> 0 | AH56: =IFERROR($E56*SUMIF('Daily Log'!#REF!,$B56,'Daily Log'!#REF!),0) -> 0 | AI56: =IFERROR($E56*SUMIF('Daily Log'!#REF!,$B56,'Daily Log'!#REF!),0) -> 0 | AJ56: =IFERROR($E56*SUMIF('Daily Log'!#REF!,$B56,'Daily Log'!#REF!),0) -> 0 | AK56: =IFERROR($E56*SUMIF('Daily Log'!#REF!,$B56,'Daily Log'!#REF!),0) -> 0
B57: CB02 APPLE SO | D57: SIDE ORDER-COLD BEVERAGE | E57: 1 | F57: 0 | G57: =IFERROR($E57*SUMIF('Daily Log'!#REF!,$B57,'Daily Log'!#REF!),0) -> 0 | H57: =IFERROR($E57*SUMIF('Daily Log'!#REF!,$B57,'Daily Log'!#REF!),0) -> 0 | I57: =IFERROR($E57*SUMIF('Daily Log'!#REF!,$B57,'Daily Log'!#REF!),0) -> 0 | J57: =IFERROR($E57*SUMIF('Daily Log'!#REF!,$B57,'Daily Log'!#REF!),0) -> 0 | K57: =IFERROR($E57*SUMIF('Daily Log'!#REF!,$B57,'Daily Log'!#REF!),0) -> 0 | L57: =IFERROR($E57*SUMIF('Daily Log'!#REF!,$B57,'Daily Log'!#REF!),0) -> 0 | M57: =IFERROR($E57*SUMIF('Daily Log'!#REF!,$B57,'Daily Log'!#REF!),0) -> 0 | N57: =IFERROR($E57*SUMIF('Daily Log'!#REF!,$B57,'Daily Log'!#REF!),0) -> 0 | O57: =IFERROR($E57*SUMIF('Daily Log'!#REF!,$B57,'Daily Log'!#REF!),0) -> 0 | P57: =IFERROR($E57*SUMIF('Daily Log'!#REF!,$B57,'Daily Log'!#REF!),0) -> 0 | Q57: =IFERROR($E57*SUMIF('Daily Log'!#REF!,$B57,'Daily Log'!#REF!),0) -> 0 | R57: =IFERROR($E57*SUMIF('Daily Log'!#REF!,$B57,'Daily Log'!#REF!),0) -> 0 | S57: =IFERROR($E57*SUMIF('Daily Log'!#REF!,$B57,'Daily Log'!#REF!),0) -> 0 | T57: =IFERROR($E57*SUMIF('Daily Log'!#REF!,$B57,'Daily Log'!#REF!),0) -> 0 | U57: =IFERROR($E57*SUMIF('Daily Log'!#REF!,$B57,'Daily Log'!#REF!),0) -> 0 | V57: =IFERROR($E57*SUMIF('Daily Log'!#REF!,$B57,'Daily Log'!#REF!),0) -> 0 | W57: =IFERROR($E57*SUMIF('Daily Log'!#REF!,$B57,'Daily Log'!#REF!),0) -> 0 | X57: =IFERROR($E57*SUMIF('Daily Log'!#REF!,$B57,'Daily Log'!#REF!),0) -> 0 | Y57: =IFERROR($E57*SUMIF('Daily Log'!#REF!,$B57,'Daily Log'!#REF!),0) -> 0 | Z57: =IFERROR($E57*SUMIF('Daily Log'!$C$18:$C$1017,$B57,'Daily Log'!$D$18:$D$1017),0) -> 0 | AA57: =IFERROR($E57*SUMIF('Daily Log'!$F$18:$F$1017,$B57,'Daily Log'!$G$18:$G$1017),0) -> 0 | AB57: =IFERROR($E57*SUMIF('Daily Log'!$I$18:$I$1017,$B57,'Daily Log'!$J$18:$J$1017),0) -> 0 | AC57: =IFERROR($E57*SUMIF('Daily Log'!$L$18:$L$1017,$B57,'Daily Log'!$M$18:$M$1017),0) -> 0 | AD57: =IFERROR($E57*SUMIF('Daily Log'!$O$18:$O$1017,$B57,'Daily Log'!$P$18:$P$1017),0) -> 0 | AE57: =IFERROR($E57*SUMIF('Daily Log'!$R$18:$R$1017,$B57,'Daily Log'!$S$18:$S$1017),0) -> 0 | AF57: =IFERROR($E57*SUMIF('Daily Log'!$U$18:$U$1017,$B57,'Daily Log'!$V$18:$V$1017),0) -> 0 | AG57: =IFERROR($E57*SUMIF('Daily Log'!#REF!,$B57,'Daily Log'!#REF!),0) -> 0 | AH57: =IFERROR($E57*SUMIF('Daily Log'!#REF!,$B57,'Daily Log'!#REF!),0) -> 0 | AI57: =IFERROR($E57*SUMIF('Daily Log'!#REF!,$B57,'Daily Log'!#REF!),0) -> 0 | AJ57: =IFERROR($E57*SUMIF('Daily Log'!#REF!,$B57,'Daily Log'!#REF!),0) -> 0 | AK57: =IFERROR($E57*SUMIF('Daily Log'!#REF!,$B57,'Daily Log'!#REF!),0) -> 0
B58: CB03 KIWI SO | D58: SIDE ORDER-COLD BEVERAGE | E58: 1 | F58: 0 | G58: =IFERROR($E58*SUMIF('Daily Log'!#REF!,$B58,'Daily Log'!#REF!),0) -> 0 | H58: =IFERROR($E58*SUMIF('Daily Log'!#REF!,$B58,'Daily Log'!#REF!),0) -> 0 | I58: =IFERROR($E58*SUMIF('Daily Log'!#REF!,$B58,'Daily Log'!#REF!),0) -> 0 | J58: =IFERROR($E58*SUMIF('Daily Log'!#REF!,$B58,'Daily Log'!#REF!),0) -> 0 | K58: =IFERROR($E58*SUMIF('Daily Log'!#REF!,$B58,'Daily Log'!#REF!),0) -> 0 | L58: =IFERROR($E58*SUMIF('Daily Log'!#REF!,$B58,'Daily Log'!#REF!),0) -> 0 | M58: =IFERROR($E58*SUMIF('Daily Log'!#REF!,$B58,'Daily Log'!#REF!),0) -> 0 | N58: =IFERROR($E58*SUMIF('Daily Log'!#REF!,$B58,'Daily Log'!#REF!),0) -> 0 | O58: =IFERROR($E58*SUMIF('Daily Log'!#REF!,$B58,'Daily Log'!#REF!),0) -> 0 | P58: =IFERROR($E58*SUMIF('Daily Log'!#REF!,$B58,'Daily Log'!#REF!),0) -> 0 | Q58: =IFERROR($E58*SUMIF('Daily Log'!#REF!,$B58,'Daily Log'!#REF!),0) -> 0 | R58: =IFERROR($E58*SUMIF('Daily Log'!#REF!,$B58,'Daily Log'!#REF!),0) -> 0 | S58: =IFERROR($E58*SUMIF('Daily Log'!#REF!,$B58,'Daily Log'!#REF!),0) -> 0 | T58: =IFERROR($E58*SUMIF('Daily Log'!#REF!,$B58,'Daily Log'!#REF!),0) -> 0 | U58: =IFERROR($E58*SUMIF('Daily Log'!#REF!,$B58,'Daily Log'!#REF!),0) -> 0 | V58: =IFERROR($E58*SUMIF('Daily Log'!#REF!,$B58,'Daily Log'!#REF!),0) -> 0 | W58: =IFERROR($E58*SUMIF('Daily Log'!#REF!,$B58,'Daily Log'!#REF!),0) -> 0 | X58: =IFERROR($E58*SUMIF('Daily Log'!#REF!,$B58,'Daily Log'!#REF!),0) -> 0 | Y58: =IFERROR($E58*SUMIF('Daily Log'!#REF!,$B58,'Daily Log'!#REF!),0) -> 0 | Z58: =IFERROR($E58*SUMIF('Daily Log'!$C$18:$C$1017,$B58,'Daily Log'!$D$18:$D$1017),0) -> 0 | AA58: =IFERROR($E58*SUMIF('Daily Log'!$F$18:$F$1017,$B58,'Daily Log'!$G$18:$G$1017),0) -> 0 | AB58: =IFERROR($E58*SUMIF('Daily Log'!$I$18:$I$1017,$B58,'Daily Log'!$J$18:$J$1017),0) -> 0 | AC58: =IFERROR($E58*SUMIF('Daily Log'!$L$18:$L$1017,$B58,'Daily Log'!$M$18:$M$1017),0) -> 0 | AD58: =IFERROR($E58*SUMIF('Daily Log'!$O$18:$O$1017,$B58,'Daily Log'!$P$18:$P$1017),0) -> 0 | AE58: =IFERROR($E58*SUMIF('Daily Log'!$R$18:$R$1017,$B58,'Daily Log'!$S$18:$S$1017),0) -> 0 | AF58: =IFERROR($E58*SUMIF('Daily Log'!$U$18:$U$1017,$B58,'Daily Log'!$V$18:$V$1017),0) -> 0 | AG58: =IFERROR($E58*SUMIF('Daily Log'!#REF!,$B58,'Daily Log'!#REF!),0) -> 0 | AH58: =IFERROR($E58*SUMIF('Daily Log'!#REF!,$B58,'Daily Log'!#REF!),0) -> 0 | AI58: =IFERROR($E58*SUMIF('Daily Log'!#REF!,$B58,'Daily Log'!#REF!),0) -> 0 | AJ58: =IFERROR($E58*SUMIF('Daily Log'!#REF!,$B58,'Daily Log'!#REF!),0) -> 0 | AK58: =IFERROR($E58*SUMIF('Daily Log'!#REF!,$B58,'Daily Log'!#REF!),0) -> 0
B59: CB04 MANGO SO | D59: SIDE ORDER-COLD BEVERAGE | E59: 1 | F59: 0 | G59: =IFERROR($E59*SUMIF('Daily Log'!#REF!,$B59,'Daily Log'!#REF!),0) -> 0 | H59: =IFERROR($E59*SUMIF('Daily Log'!#REF!,$B59,'Daily Log'!#REF!),0) -> 0 | I59: =IFERROR($E59*SUMIF('Daily Log'!#REF!,$B59,'Daily Log'!#REF!),0) -> 0 | J59: =IFERROR($E59*SUMIF('Daily Log'!#REF!,$B59,'Daily Log'!#REF!),0) -> 0 | K59: =IFERROR($E59*SUMIF('Daily Log'!#REF!,$B59,'Daily Log'!#REF!),0) -> 0 | L59: =IFERROR($E59*SUMIF('Daily Log'!#REF!,$B59,'Daily Log'!#REF!),0) -> 0 | M59: =IFERROR($E59*SUMIF('Daily Log'!#REF!,$B59,'Daily Log'!#REF!),0) -> 0 | N59: =IFERROR($E59*SUMIF('Daily Log'!#REF!,$B59,'Daily Log'!#REF!),0) -> 0 | O59: =IFERROR($E59*SUMIF('Daily Log'!#REF!,$B59,'Daily Log'!#REF!),0) -> 0 | P59: =IFERROR($E59*SUMIF('Daily Log'!#REF!,$B59,'Daily Log'!#REF!),0) -> 0 | Q59: =IFERROR($E59*SUMIF('Daily Log'!#REF!,$B59,'Daily Log'!#REF!),0) -> 0 | R59: =IFERROR($E59*SUMIF('Daily Log'!#REF!,$B59,'Daily Log'!#REF!),0) -> 0 | S59: =IFERROR($E59*SUMIF('Daily Log'!#REF!,$B59,'Daily Log'!#REF!),0) -> 0 | T59: =IFERROR($E59*SUMIF('Daily Log'!#REF!,$B59,'Daily Log'!#REF!),0) -> 0 | U59: =IFERROR($E59*SUMIF('Daily Log'!#REF!,$B59,'Daily Log'!#REF!),0) -> 0 | V59: =IFERROR($E59*SUMIF('Daily Log'!#REF!,$B59,'Daily Log'!#REF!),0) -> 0 | W59: =IFERROR($E59*SUMIF('Daily Log'!#REF!,$B59,'Daily Log'!#REF!),0) -> 0 | X59: =IFERROR($E59*SUMIF('Daily Log'!#REF!,$B59,'Daily Log'!#REF!),0) -> 0 | Y59: =IFERROR($E59*SUMIF('Daily Log'!#REF!,$B59,'Daily Log'!#REF!),0) -> 0 | Z59: =IFERROR($E59*SUMIF('Daily Log'!$C$18:$C$1017,$B59,'Daily Log'!$D$18:$D$1017),0) -> 0 | AA59: =IFERROR($E59*SUMIF('Daily Log'!$F$18:$F$1017,$B59,'Daily Log'!$G$18:$G$1017),0) -> 0 | AB59: =IFERROR($E59*SUMIF('Daily Log'!$I$18:$I$1017,$B59,'Daily Log'!$J$18:$J$1017),0) -> 0 | AC59: =IFERROR($E59*SUMIF('Daily Log'!$L$18:$L$1017,$B59,'Daily Log'!$M$18:$M$1017),0) -> 0 | AD59: =IFERROR($E59*SUMIF('Daily Log'!$O$18:$O$1017,$B59,'Daily Log'!$P$18:$P$1017),0) -> 0 | AE59: =IFERROR($E59*SUMIF('Daily Log'!$R$18:$R$1017,$B59,'Daily Log'!$S$18:$S$1017),0) -> 0 | AF59: =IFERROR($E59*SUMIF('Daily Log'!$U$18:$U$1017,$B59,'Daily Log'!$V$18:$V$1017),0) -> 0 | AG59: =IFERROR($E59*SUMIF('Daily Log'!#REF!,$B59,'Daily Log'!#REF!),0) -> 0 | AH59: =IFERROR($E59*SUMIF('Daily Log'!#REF!,$B59,'Daily Log'!#REF!),0) -> 0 | AI59: =IFERROR($E59*SUMIF('Daily Log'!#REF!,$B59,'Daily Log'!#REF!),0) -> 0 | AJ59: =IFERROR($E59*SUMIF('Daily Log'!#REF!,$B59,'Daily Log'!#REF!),0) -> 0 | AK59: =IFERROR($E59*SUMIF('Daily Log'!#REF!,$B59,'Daily Log'!#REF!),0) -> 0
B60: CB05 PASSION SO | D60: SIDE ORDER-COLD BEVERAGE | E60: 1 | F60: 0 | G60: =IFERROR($E60*SUMIF('Daily Log'!#REF!,$B60,'Daily Log'!#REF!),0) -> 0 | H60: =IFERROR($E60*SUMIF('Daily Log'!#REF!,$B60,'Daily Log'!#REF!),0) -> 0 | I60: =IFERROR($E60*SUMIF('Daily Log'!#REF!,$B60,'Daily Log'!#REF!),0) -> 0 | J60: =IFERROR($E60*SUMIF('Daily Log'!#REF!,$B60,'Daily Log'!#REF!),0) -> 0 | K60: =IFERROR($E60*SUMIF('Daily Log'!#REF!,$B60,'Daily Log'!#REF!),0) -> 0 | L60: =IFERROR($E60*SUMIF('Daily Log'!#REF!,$B60,'Daily Log'!#REF!),0) -> 0 | M60: =IFERROR($E60*SUMIF('Daily Log'!#REF!,$B60,'Daily Log'!#REF!),0) -> 0 | N60: =IFERROR($E60*SUMIF('Daily Log'!#REF!,$B60,'Daily Log'!#REF!),0) -> 0 | O60: =IFERROR($E60*SUMIF('Daily Log'!#REF!,$B60,'Daily Log'!#REF!),0) -> 0 | P60: =IFERROR($E60*SUMIF('Daily Log'!#REF!,$B60,'Daily Log'!#REF!),0) -> 0 | Q60: =IFERROR($E60*SUMIF('Daily Log'!#REF!,$B60,'Daily Log'!#REF!),0) -> 0 | R60: =IFERROR($E60*SUMIF('Daily Log'!#REF!,$B60,'Daily Log'!#REF!),0) -> 0 | S60: =IFERROR($E60*SUMIF('Daily Log'!#REF!,$B60,'Daily Log'!#REF!),0) -> 0 | T60: =IFERROR($E60*SUMIF('Daily Log'!#REF!,$B60,'Daily Log'!#REF!),0) -> 0 | U60: =IFERROR($E60*SUMIF('Daily Log'!#REF!,$B60,'Daily Log'!#REF!),0) -> 0 | V60: =IFERROR($E60*SUMIF('Daily Log'!#REF!,$B60,'Daily Log'!#REF!),0) -> 0 | W60: =IFERROR($E60*SUMIF('Daily Log'!#REF!,$B60,'Daily Log'!#REF!),0) -> 0 | X60: =IFERROR($E60*SUMIF('Daily Log'!#REF!,$B60,'Daily Log'!#REF!),0) -> 0 | Y60: =IFERROR($E60*SUMIF('Daily Log'!#REF!,$B60,'Daily Log'!#REF!),0) -> 0 | Z60: =IFERROR($E60*SUMIF('Daily Log'!$C$18:$C$1017,$B60,'Daily Log'!$D$18:$D$1017),0) -> 0 | AA60: =IFERROR($E60*SUMIF('Daily Log'!$F$18:$F$1017,$B60,'Daily Log'!$G$18:$G$1017),0) -> 0 | AB60: =IFERROR($E60*SUMIF('Daily Log'!$I$18:$I$1017,$B60,'Daily Log'!$J$18:$J$1017),0) -> 0 | AC60: =IFERROR($E60*SUMIF('Daily Log'!$L$18:$L$1017,$B60,'Daily Log'!$M$18:$M$1017),0) -> 0 | AD60: =IFERROR($E60*SUMIF('Daily Log'!$O$18:$O$1017,$B60,'Daily Log'!$P$18:$P$1017),0) -> 0 | AE60: =IFERROR($E60*SUMIF('Daily Log'!$R$18:$R$1017,$B60,'Daily Log'!$S$18:$S$1017),0) -> 0 | AF60: =IFERROR($E60*SUMIF('Daily Log'!$U$18:$U$1017,$B60,'Daily Log'!$V$18:$V$1017),0) -> 0 | AG60: =IFERROR($E60*SUMIF('Daily Log'!#REF!,$B60,'Daily Log'!#REF!),0) -> 0 | AH60: =IFERROR($E60*SUMIF('Daily Log'!#REF!,$B60,'Daily Log'!#REF!),0) -> 0 | AI60: =IFERROR($E60*SUMIF('Daily Log'!#REF!,$B60,'Daily Log'!#REF!),0) -> 0 | AJ60: =IFERROR($E60*SUMIF('Daily Log'!#REF!,$B60,'Daily Log'!#REF!),0) -> 0 | AK60: =IFERROR($E60*SUMIF('Daily Log'!#REF!,$B60,'Daily Log'!#REF!),0) -> 0
B61: CB06 RIBENA SO | D61: SIDE ORDER-COLD BEVERAGE | E61: 1 | F61: 0 | G61: =IFERROR($E61*SUMIF('Daily Log'!#REF!,$B61,'Daily Log'!#REF!),0) -> 0 | H61: =IFERROR($E61*SUMIF('Daily Log'!#REF!,$B61,'Daily Log'!#REF!),0) -> 0 | I61: =IFERROR($E61*SUMIF('Daily Log'!#REF!,$B61,'Daily Log'!#REF!),0) -> 0 | J61: =IFERROR($E61*SUMIF('Daily Log'!#REF!,$B61,'Daily Log'!#REF!),0) -> 0 | K61: =IFERROR($E61*SUMIF('Daily Log'!#REF!,$B61,'Daily Log'!#REF!),0) -> 0 | L61: =IFERROR($E61*SUMIF('Daily Log'!#REF!,$B61,'Daily Log'!#REF!),0) -> 0 | M61: =IFERROR($E61*SUMIF('Daily Log'!#REF!,$B61,'Daily Log'!#REF!),0) -> 0 | N61: =IFERROR($E61*SUMIF('Daily Log'!#REF!,$B61,'Daily Log'!#REF!),0) -> 0 | O61: =IFERROR($E61*SUMIF('Daily Log'!#REF!,$B61,'Daily Log'!#REF!),0) -> 0 | P61: =IFERROR($E61*SUMIF('Daily Log'!#REF!,$B61,'Daily Log'!#REF!),0) -> 0 | Q61: =IFERROR($E61*SUMIF('Daily Log'!#REF!,$B61,'Daily Log'!#REF!),0) -> 0 | R61: =IFERROR($E61*SUMIF('Daily Log'!#REF!,$B61,'Daily Log'!#REF!),0) -> 0 | S61: =IFERROR($E61*SUMIF('Daily Log'!#REF!,$B61,'Daily Log'!#REF!),0) -> 0 | T61: =IFERROR($E61*SUMIF('Daily Log'!#REF!,$B61,'Daily Log'!#REF!),0) -> 0 | U61: =IFERROR($E61*SUMIF('Daily Log'!#REF!,$B61,'Daily Log'!#REF!),0) -> 0 | V61: =IFERROR($E61*SUMIF('Daily Log'!#REF!,$B61,'Daily Log'!#REF!),0) -> 0 | W61: =IFERROR($E61*SUMIF('Daily Log'!#REF!,$B61,'Daily Log'!#REF!),0) -> 0 | X61: =IFERROR($E61*SUMIF('Daily Log'!#REF!,$B61,'Daily Log'!#REF!),0) -> 0 | Y61: =IFERROR($E61*SUMIF('Daily Log'!#REF!,$B61,'Daily Log'!#REF!),0) -> 0 | Z61: =IFERROR($E61*SUMIF('Daily Log'!$C$18:$C$1017,$B61,'Daily Log'!$D$18:$D$1017),0) -> 0 | AA61: =IFERROR($E61*SUMIF('Daily Log'!$F$18:$F$1017,$B61,'Daily Log'!$G$18:$G$1017),0) -> 0 | AB61: =IFERROR($E61*SUMIF('Daily Log'!$I$18:$I$1017,$B61,'Daily Log'!$J$18:$J$1017),0) -> 0 | AC61: =IFERROR($E61*SUMIF('Daily Log'!$L$18:$L$1017,$B61,'Daily Log'!$M$18:$M$1017),0) -> 0 | AD61: =IFERROR($E61*SUMIF('Daily Log'!$O$18:$O$1017,$B61,'Daily Log'!$P$18:$P$1017),0) -> 0 | AE61: =IFERROR($E61*SUMIF('Daily Log'!$R$18:$R$1017,$B61,'Daily Log'!$S$18:$S$1017),0) -> 0 | AF61: =IFERROR($E61*SUMIF('Daily Log'!$U$18:$U$1017,$B61,'Daily Log'!$V$18:$V$1017),0) -> 0 | AG61: =IFERROR($E61*SUMIF('Daily Log'!#REF!,$B61,'Daily Log'!#REF!),0) -> 0 | AH61: =IFERROR($E61*SUMIF('Daily Log'!#REF!,$B61,'Daily Log'!#REF!),0) -> 0 | AI61: =IFERROR($E61*SUMIF('Daily Log'!#REF!,$B61,'Daily Log'!#REF!),0) -> 0 | AJ61: =IFERROR($E61*SUMIF('Daily Log'!#REF!,$B61,'Daily Log'!#REF!),0) -> 0 | AK61: =IFERROR($E61*SUMIF('Daily Log'!#REF!,$B61,'Daily Log'!#REF!),0) -> 0
B62: CC01 GRAPE SM | D62: SIDE ORDER-COLD BEVERAGE | E62: 1 | F62: 0 | G62: =IFERROR($E62*SUMIF('Daily Log'!#REF!,$B62,'Daily Log'!#REF!),0) -> 0 | H62: =IFERROR($E62*SUMIF('Daily Log'!#REF!,$B62,'Daily Log'!#REF!),0) -> 0 | I62: =IFERROR($E62*SUMIF('Daily Log'!#REF!,$B62,'Daily Log'!#REF!),0) -> 0 | J62: =IFERROR($E62*SUMIF('Daily Log'!#REF!,$B62,'Daily Log'!#REF!),0) -> 0 | K62: =IFERROR($E62*SUMIF('Daily Log'!#REF!,$B62,'Daily Log'!#REF!),0) -> 0 | L62: =IFERROR($E62*SUMIF('Daily Log'!#REF!,$B62,'Daily Log'!#REF!),0) -> 0 | M62: =IFERROR($E62*SUMIF('Daily Log'!#REF!,$B62,'Daily Log'!#REF!),0) -> 0 | N62: =IFERROR($E62*SUMIF('Daily Log'!#REF!,$B62,'Daily Log'!#REF!),0) -> 0 | O62: =IFERROR($E62*SUMIF('Daily Log'!#REF!,$B62,'Daily Log'!#REF!),0) -> 0 | P62: =IFERROR($E62*SUMIF('Daily Log'!#REF!,$B62,'Daily Log'!#REF!),0) -> 0 | Q62: =IFERROR($E62*SUMIF('Daily Log'!#REF!,$B62,'Daily Log'!#REF!),0) -> 0 | R62: =IFERROR($E62*SUMIF('Daily Log'!#REF!,$B62,'Daily Log'!#REF!),0) -> 0 | S62: =IFERROR($E62*SUMIF('Daily Log'!#REF!,$B62,'Daily Log'!#REF!),0) -> 0 | T62: =IFERROR($E62*SUMIF('Daily Log'!#REF!,$B62,'Daily Log'!#REF!),0) -> 0 | U62: =IFERROR($E62*SUMIF('Daily Log'!#REF!,$B62,'Daily Log'!#REF!),0) -> 0 | V62: =IFERROR($E62*SUMIF('Daily Log'!#REF!,$B62,'Daily Log'!#REF!),0) -> 0 | W62: =IFERROR($E62*SUMIF('Daily Log'!#REF!,$B62,'Daily Log'!#REF!),0) -> 0 | X62: =IFERROR($E62*SUMIF('Daily Log'!#REF!,$B62,'Daily Log'!#REF!),0) -> 0 | Y62: =IFERROR($E62*SUMIF('Daily Log'!#REF!,$B62,'Daily Log'!#REF!),0) -> 0 | Z62: =IFERROR($E62*SUMIF('Daily Log'!$C$18:$C$1017,$B62,'Daily Log'!$D$18:$D$1017),0) -> 0 | AA62: =IFERROR($E62*SUMIF('Daily Log'!$F$18:$F$1017,$B62,'Daily Log'!$G$18:$G$1017),0) -> 0 | AB62: =IFERROR($E62*SUMIF('Daily Log'!$I$18:$I$1017,$B62,'Daily Log'!$J$18:$J$1017),0) -> 0 | AC62: =IFERROR($E62*SUMIF('Daily Log'!$L$18:$L$1017,$B62,'Daily Log'!$M$18:$M$1017),0) -> 0 | AD62: =IFERROR($E62*SUMIF('Daily Log'!$O$18:$O$1017,$B62,'Daily Log'!$P$18:$P$1017),0) -> 0 | AE62: =IFERROR($E62*SUMIF('Daily Log'!$R$18:$R$1017,$B62,'Daily Log'!$S$18:$S$1017),0) -> 0 | AF62: =IFERROR($E62*SUMIF('Daily Log'!$U$18:$U$1017,$B62,'Daily Log'!$V$18:$V$1017),0) -> 0 | AG62: =IFERROR($E62*SUMIF('Daily Log'!#REF!,$B62,'Daily Log'!#REF!),0) -> 0 | AH62: =IFERROR($E62*SUMIF('Daily Log'!#REF!,$B62,'Daily Log'!#REF!),0) -> 0 | AI62: =IFERROR($E62*SUMIF('Daily Log'!#REF!,$B62,'Daily Log'!#REF!),0) -> 0 | AJ62: =IFERROR($E62*SUMIF('Daily Log'!#REF!,$B62,'Daily Log'!#REF!),0) -> 0 | AK62: =IFERROR($E62*SUMIF('Daily Log'!#REF!,$B62,'Daily Log'!#REF!),0) -> 0
B63: CC02 APPLE SM | D63: SIDE ORDER-COLD BEVERAGE | E63: 1 | F63: 0 | G63: =IFERROR($E63*SUMIF('Daily Log'!#REF!,$B63,'Daily Log'!#REF!),0) -> 0 | H63: =IFERROR($E63*SUMIF('Daily Log'!#REF!,$B63,'Daily Log'!#REF!),0) -> 0 | I63: =IFERROR($E63*SUMIF('Daily Log'!#REF!,$B63,'Daily Log'!#REF!),0) -> 0 | J63: =IFERROR($E63*SUMIF('Daily Log'!#REF!,$B63,'Daily Log'!#REF!),0) -> 0 | K63: =IFERROR($E63*SUMIF('Daily Log'!#REF!,$B63,'Daily Log'!#REF!),0) -> 0 | L63: =IFERROR($E63*SUMIF('Daily Log'!#REF!,$B63,'Daily Log'!#REF!),0) -> 0 | M63: =IFERROR($E63*SUMIF('Daily Log'!#REF!,$B63,'Daily Log'!#REF!),0) -> 0 | N63: =IFERROR($E63*SUMIF('Daily Log'!#REF!,$B63,'Daily Log'!#REF!),0) -> 0 | O63: =IFERROR($E63*SUMIF('Daily Log'!#REF!,$B63,'Daily Log'!#REF!),0) -> 0 | P63: =IFERROR($E63*SUMIF('Daily Log'!#REF!,$B63,'Daily Log'!#REF!),0) -> 0 | Q63: =IFERROR($E63*SUMIF('Daily Log'!#REF!,$B63,'Daily Log'!#REF!),0) -> 0 | R63: =IFERROR($E63*SUMIF('Daily Log'!#REF!,$B63,'Daily Log'!#REF!),0) -> 0 | S63: =IFERROR($E63*SUMIF('Daily Log'!#REF!,$B63,'Daily Log'!#REF!),0) -> 0 | T63: =IFERROR($E63*SUMIF('Daily Log'!#REF!,$B63,'Daily Log'!#REF!),0) -> 0 | U63: =IFERROR($E63*SUMIF('Daily Log'!#REF!,$B63,'Daily Log'!#REF!),0) -> 0 | V63: =IFERROR($E63*SUMIF('Daily Log'!#REF!,$B63,'Daily Log'!#REF!),0) -> 0 | W63: =IFERROR($E63*SUMIF('Daily Log'!#REF!,$B63,'Daily Log'!#REF!),0) -> 0 | X63: =IFERROR($E63*SUMIF('Daily Log'!#REF!,$B63,'Daily Log'!#REF!),0) -> 0 | Y63: =IFERROR($E63*SUMIF('Daily Log'!#REF!,$B63,'Daily Log'!#REF!),0) -> 0 | Z63: =IFERROR($E63*SUMIF('Daily Log'!$C$18:$C$1017,$B63,'Daily Log'!$D$18:$D$1017),0) -> 0 | AA63: =IFERROR($E63*SUMIF('Daily Log'!$F$18:$F$1017,$B63,'Daily Log'!$G$18:$G$1017),0) -> 0 | AB63: =IFERROR($E63*SUMIF('Daily Log'!$I$18:$I$1017,$B63,'Daily Log'!$J$18:$J$1017),0) -> 0 | AC63: =IFERROR($E63*SUMIF('Daily Log'!$L$18:$L$1017,$B63,'Daily Log'!$M$18:$M$1017),0) -> 0 | AD63: =IFERROR($E63*SUMIF('Daily Log'!$O$18:$O$1017,$B63,'Daily Log'!$P$18:$P$1017),0) -> 0 | AE63: =IFERROR($E63*SUMIF('Daily Log'!$R$18:$R$1017,$B63,'Daily Log'!$S$18:$S$1017),0) -> 0 | AF63: =IFERROR($E63*SUMIF('Daily Log'!$U$18:$U$1017,$B63,'Daily Log'!$V$18:$V$1017),0) -> 0 | AG63: =IFERROR($E63*SUMIF('Daily Log'!#REF!,$B63,'Daily Log'!#REF!),0) -> 0 | AH63: =IFERROR($E63*SUMIF('Daily Log'!#REF!,$B63,'Daily Log'!#REF!),0) -> 0 | AI63: =IFERROR($E63*SUMIF('Daily Log'!#REF!,$B63,'Daily Log'!#REF!),0) -> 0 | AJ63: =IFERROR($E63*SUMIF('Daily Log'!#REF!,$B63,'Daily Log'!#REF!),0) -> 0 | AK63: =IFERROR($E63*SUMIF('Daily Log'!#REF!,$B63,'Daily Log'!#REF!),0) -> 0
B64: CC03 KIWI SM | D64: SIDE ORDER-COLD BEVERAGE | E64: 1 | F64: 0 | G64: =IFERROR($E64*SUMIF('Daily Log'!#REF!,$B64,'Daily Log'!#REF!),0) -> 0 | H64: =IFERROR($E64*SUMIF('Daily Log'!#REF!,$B64,'Daily Log'!#REF!),0) -> 0 | I64: =IFERROR($E64*SUMIF('Daily Log'!#REF!,$B64,'Daily Log'!#REF!),0) -> 0 | J64: =IFERROR($E64*SUMIF('Daily Log'!#REF!,$B64,'Daily Log'!#REF!),0) -> 0 | K64: =IFERROR($E64*SUMIF('Daily Log'!#REF!,$B64,'Daily Log'!#REF!),0) -> 0 | L64: =IFERROR($E64*SUMIF('Daily Log'!#REF!,$B64,'Daily Log'!#REF!),0) -> 0 | M64: =IFERROR($E64*SUMIF('Daily Log'!#REF!,$B64,'Daily Log'!#REF!),0) -> 0 | N64: =IFERROR($E64*SUMIF('Daily Log'!#REF!,$B64,'Daily Log'!#REF!),0) -> 0 | O64: =IFERROR($E64*SUMIF('Daily Log'!#REF!,$B64,'Daily Log'!#REF!),0) -> 0 | P64: =IFERROR($E64*SUMIF('Daily Log'!#REF!,$B64,'Daily Log'!#REF!),0) -> 0 | Q64: =IFERROR($E64*SUMIF('Daily Log'!#REF!,$B64,'Daily Log'!#REF!),0) -> 0 | R64: =IFERROR($E64*SUMIF('Daily Log'!#REF!,$B64,'Daily Log'!#REF!),0) -> 0 | S64: =IFERROR($E64*SUMIF('Daily Log'!#REF!,$B64,'Daily Log'!#REF!),0) -> 0 | T64: =IFERROR($E64*SUMIF('Daily Log'!#REF!,$B64,'Daily Log'!#REF!),0) -> 0 | U64: =IFERROR($E64*SUMIF('Daily Log'!#REF!,$B64,'Daily Log'!#REF!),0) -> 0 | V64: =IFERROR($E64*SUMIF('Daily Log'!#REF!,$B64,'Daily Log'!#REF!),0) -> 0 | W64: =IFERROR($E64*SUMIF('Daily Log'!#REF!,$B64,'Daily Log'!#REF!),0) -> 0 | X64: =IFERROR($E64*SUMIF('Daily Log'!#REF!,$B64,'Daily Log'!#REF!),0) -> 0 | Y64: =IFERROR($E64*SUMIF('Daily Log'!#REF!,$B64,'Daily Log'!#REF!),0) -> 0 | Z64: =IFERROR($E64*SUMIF('Daily Log'!$C$18:$C$1017,$B64,'Daily Log'!$D$18:$D$1017),0) -> 0 | AA64: =IFERROR($E64*SUMIF('Daily Log'!$F$18:$F$1017,$B64,'Daily Log'!$G$18:$G$1017),0) -> 0 | AB64: =IFERROR($E64*SUMIF('Daily Log'!$I$18:$I$1017,$B64,'Daily Log'!$J$18:$J$1017),0) -> 0 | AC64: =IFERROR($E64*SUMIF('Daily Log'!$L$18:$L$1017,$B64,'Daily Log'!$M$18:$M$1017),0) -> 0 | AD64: =IFERROR($E64*SUMIF('Daily Log'!$O$18:$O$1017,$B64,'Daily Log'!$P$18:$P$1017),0) -> 0 | AE64: =IFERROR($E64*SUMIF('Daily Log'!$R$18:$R$1017,$B64,'Daily Log'!$S$18:$S$1017),0) -> 0 | AF64: =IFERROR($E64*SUMIF('Daily Log'!$U$18:$U$1017,$B64,'Daily Log'!$V$18:$V$1017),0) -> 0 | AG64: =IFERROR($E64*SUMIF('Daily Log'!#REF!,$B64,'Daily Log'!#REF!),0) -> 0 | AH64: =IFERROR($E64*SUMIF('Daily Log'!#REF!,$B64,'Daily Log'!#REF!),0) -> 0 | AI64: =IFERROR($E64*SUMIF('Daily Log'!#REF!,$B64,'Daily Log'!#REF!),0) -> 0 | AJ64: =IFERROR($E64*SUMIF('Daily Log'!#REF!,$B64,'Daily Log'!#REF!),0) -> 0 | AK64: =IFERROR($E64*SUMIF('Daily Log'!#REF!,$B64,'Daily Log'!#REF!),0) -> 0
B65: CC04 MANGO SM | D65: SIDE ORDER-COLD BEVERAGE | E65: 1 | F65: 1 | G65: =IFERROR($E65*SUMIF('Daily Log'!#REF!,$B65,'Daily Log'!#REF!),0) -> 0 | H65: =IFERROR($E65*SUMIF('Daily Log'!#REF!,$B65,'Daily Log'!#REF!),0) -> 0 | I65: =IFERROR($E65*SUMIF('Daily Log'!#REF!,$B65,'Daily Log'!#REF!),0) -> 0 | J65: =IFERROR($E65*SUMIF('Daily Log'!#REF!,$B65,'Daily Log'!#REF!),0) -> 0 | K65: =IFERROR($E65*SUMIF('Daily Log'!#REF!,$B65,'Daily Log'!#REF!),0) -> 0 | L65: =IFERROR($E65*SUMIF('Daily Log'!#REF!,$B65,'Daily Log'!#REF!),0) -> 0 | M65: =IFERROR($E65*SUMIF('Daily Log'!#REF!,$B65,'Daily Log'!#REF!),0) -> 0 | N65: =IFERROR($E65*SUMIF('Daily Log'!#REF!,$B65,'Daily Log'!#REF!),0) -> 0 | O65: =IFERROR($E65*SUMIF('Daily Log'!#REF!,$B65,'Daily Log'!#REF!),0) -> 0 | P65: =IFERROR($E65*SUMIF('Daily Log'!#REF!,$B65,'Daily Log'!#REF!),0) -> 0 | Q65: =IFERROR($E65*SUMIF('Daily Log'!#REF!,$B65,'Daily Log'!#REF!),0) -> 0 | R65: =IFERROR($E65*SUMIF('Daily Log'!#REF!,$B65,'Daily Log'!#REF!),0) -> 0 | S65: =IFERROR($E65*SUMIF('Daily Log'!#REF!,$B65,'Daily Log'!#REF!),0) -> 0 | T65: =IFERROR($E65*SUMIF('Daily Log'!#REF!,$B65,'Daily Log'!#REF!),0) -> 0 | U65: =IFERROR($E65*SUMIF('Daily Log'!#REF!,$B65,'Daily Log'!#REF!),0) -> 0 | V65: =IFERROR($E65*SUMIF('Daily Log'!#REF!,$B65,'Daily Log'!#REF!),0) -> 0 | W65: =IFERROR($E65*SUMIF('Daily Log'!#REF!,$B65,'Daily Log'!#REF!),0) -> 0 | X65: =IFERROR($E65*SUMIF('Daily Log'!#REF!,$B65,'Daily Log'!#REF!),0) -> 0 | Y65: =IFERROR($E65*SUMIF('Daily Log'!#REF!,$B65,'Daily Log'!#REF!),0) -> 0 | Z65: =IFERROR($E65*SUMIF('Daily Log'!$C$18:$C$1017,$B65,'Daily Log'!$D$18:$D$1017),0) -> 0 | AA65: =IFERROR($E65*SUMIF('Daily Log'!$F$18:$F$1017,$B65,'Daily Log'!$G$18:$G$1017),0) -> 1 | AB65: =IFERROR($E65*SUMIF('Daily Log'!$I$18:$I$1017,$B65,'Daily Log'!$J$18:$J$1017),0) -> 0 | AC65: =IFERROR($E65*SUMIF('Daily Log'!$L$18:$L$1017,$B65,'Daily Log'!$M$18:$M$1017),0) -> 0 | AD65: =IFERROR($E65*SUMIF('Daily Log'!$O$18:$O$1017,$B65,'Daily Log'!$P$18:$P$1017),0) -> 0 | AE65: =IFERROR($E65*SUMIF('Daily Log'!$R$18:$R$1017,$B65,'Daily Log'!$S$18:$S$1017),0) -> 0 | AF65: =IFERROR($E65*SUMIF('Daily Log'!$U$18:$U$1017,$B65,'Daily Log'!$V$18:$V$1017),0) -> 0 | AG65: =IFERROR($E65*SUMIF('Daily Log'!#REF!,$B65,'Daily Log'!#REF!),0) -> 0 | AH65: =IFERROR($E65*SUMIF('Daily Log'!#REF!,$B65,'Daily Log'!#REF!),0) -> 0 | AI65: =IFERROR($E65*SUMIF('Daily Log'!#REF!,$B65,'Daily Log'!#REF!),0) -> 0 | AJ65: =IFERROR($E65*SUMIF('Daily Log'!#REF!,$B65,'Daily Log'!#REF!),0) -> 0 | AK65: =IFERROR($E65*SUMIF('Daily Log'!#REF!,$B65,'Daily Log'!#REF!),0) -> 0
B66: CC05 PASSION SM | D66: SIDE ORDER-COLD BEVERAGE | E66: 1 | F66: 0 | G66: =IFERROR($E66*SUMIF('Daily Log'!#REF!,$B66,'Daily Log'!#REF!),0) -> 0 | H66: =IFERROR($E66*SUMIF('Daily Log'!#REF!,$B66,'Daily Log'!#REF!),0) -> 0 | I66: =IFERROR($E66*SUMIF('Daily Log'!#REF!,$B66,'Daily Log'!#REF!),0) -> 0 | J66: =IFERROR($E66*SUMIF('Daily Log'!#REF!,$B66,'Daily Log'!#REF!),0) -> 0 | K66: =IFERROR($E66*SUMIF('Daily Log'!#REF!,$B66,'Daily Log'!#REF!),0) -> 0 | L66: =IFERROR($E66*SUMIF('Daily Log'!#REF!,$B66,'Daily Log'!#REF!),0) -> 0 | M66: =IFERROR($E66*SUMIF('Daily Log'!#REF!,$B66,'Daily Log'!#REF!),0) -> 0 | N66: =IFERROR($E66*SUMIF('Daily Log'!#REF!,$B66,'Daily Log'!#REF!),0) -> 0 | O66: =IFERROR($E66*SUMIF('Daily Log'!#REF!,$B66,'Daily Log'!#REF!),0) -> 0 | P66: =IFERROR($E66*SUMIF('Daily Log'!#REF!,$B66,'Daily Log'!#REF!),0) -> 0 | Q66: =IFERROR($E66*SUMIF('Daily Log'!#REF!,$B66,'Daily Log'!#REF!),0) -> 0 | R66: =IFERROR($E66*SUMIF('Daily Log'!#REF!,$B66,'Daily Log'!#REF!),0) -> 0 | S66: =IFERROR($E66*SUMIF('Daily Log'!#REF!,$B66,'Daily Log'!#REF!),0) -> 0 | T66: =IFERROR($E66*SUMIF('Daily Log'!#REF!,$B66,'Daily Log'!#REF!),0) -> 0 | U66: =IFERROR($E66*SUMIF('Daily Log'!#REF!,$B66,'Daily Log'!#REF!),0) -> 0 | V66: =IFERROR($E66*SUMIF('Daily Log'!#REF!,$B66,'Daily Log'!#REF!),0) -> 0 | W66: =IFERROR($E66*SUMIF('Daily Log'!#REF!,$B66,'Daily Log'!#REF!),0) -> 0 | X66: =IFERROR($E66*SUMIF('Daily Log'!#REF!,$B66,'Daily Log'!#REF!),0) -> 0 | Y66: =IFERROR($E66*SUMIF('Daily Log'!#REF!,$B66,'Daily Log'!#REF!),0) -> 0 | Z66: =IFERROR($E66*SUMIF('Daily Log'!$C$18:$C$1017,$B66,'Daily Log'!$D$18:$D$1017),0) -> 0 | AA66: =IFERROR($E66*SUMIF('Daily Log'!$F$18:$F$1017,$B66,'Daily Log'!$G$18:$G$1017),0) -> 0 | AB66: =IFERROR($E66*SUMIF('Daily Log'!$I$18:$I$1017,$B66,'Daily Log'!$J$18:$J$1017),0) -> 0 | AC66: =IFERROR($E66*SUMIF('Daily Log'!$L$18:$L$1017,$B66,'Daily Log'!$M$18:$M$1017),0) -> 0 | AD66: =IFERROR($E66*SUMIF('Daily Log'!$O$18:$O$1017,$B66,'Daily Log'!$P$18:$P$1017),0) -> 0 | AE66: =IFERROR($E66*SUMIF('Daily Log'!$R$18:$R$1017,$B66,'Daily Log'!$S$18:$S$1017),0) -> 0 | AF66: =IFERROR($E66*SUMIF('Daily Log'!$U$18:$U$1017,$B66,'Daily Log'!$V$18:$V$1017),0) -> 0 | AG66: =IFERROR($E66*SUMIF('Daily Log'!#REF!,$B66,'Daily Log'!#REF!),0) -> 0 | AH66: =IFERROR($E66*SUMIF('Daily Log'!#REF!,$B66,'Daily Log'!#REF!),0) -> 0 | AI66: =IFERROR($E66*SUMIF('Daily Log'!#REF!,$B66,'Daily Log'!#REF!),0) -> 0 | AJ66: =IFERROR($E66*SUMIF('Daily Log'!#REF!,$B66,'Daily Log'!#REF!),0) -> 0 | AK66: =IFERROR($E66*SUMIF('Daily Log'!#REF!,$B66,'Daily Log'!#REF!),0) -> 0
B67: CC06 RIBENA SM | D67: SIDE ORDER-COLD BEVERAGE | E67: 1 | F67: 0 | G67: =IFERROR($E67*SUMIF('Daily Log'!#REF!,$B67,'Daily Log'!#REF!),0) -> 0 | H67: =IFERROR($E67*SUMIF('Daily Log'!#REF!,$B67,'Daily Log'!#REF!),0) -> 0 | I67: =IFERROR($E67*SUMIF('Daily Log'!#REF!,$B67,'Daily Log'!#REF!),0) -> 0 | J67: =IFERROR($E67*SUMIF('Daily Log'!#REF!,$B67,'Daily Log'!#REF!),0) -> 0 | K67: =IFERROR($E67*SUMIF('Daily Log'!#REF!,$B67,'Daily Log'!#REF!),0) -> 0 | L67: =IFERROR($E67*SUMIF('Daily Log'!#REF!,$B67,'Daily Log'!#REF!),0) -> 0 | M67: =IFERROR($E67*SUMIF('Daily Log'!#REF!,$B67,'Daily Log'!#REF!),0) -> 0 | N67: =IFERROR($E67*SUMIF('Daily Log'!#REF!,$B67,'Daily Log'!#REF!),0) -> 0 | O67: =IFERROR($E67*SUMIF('Daily Log'!#REF!,$B67,'Daily Log'!#REF!),0) -> 0 | P67: =IFERROR($E67*SUMIF('Daily Log'!#REF!,$B67,'Daily Log'!#REF!),0) -> 0 | Q67: =IFERROR($E67*SUMIF('Daily Log'!#REF!,$B67,'Daily Log'!#REF!),0) -> 0 | R67: =IFERROR($E67*SUMIF('Daily Log'!#REF!,$B67,'Daily Log'!#REF!),0) -> 0 | S67: =IFERROR($E67*SUMIF('Daily Log'!#REF!,$B67,'Daily Log'!#REF!),0) -> 0 | T67: =IFERROR($E67*SUMIF('Daily Log'!#REF!,$B67,'Daily Log'!#REF!),0) -> 0 | U67: =IFERROR($E67*SUMIF('Daily Log'!#REF!,$B67,'Daily Log'!#REF!),0) -> 0 | V67: =IFERROR($E67*SUMIF('Daily Log'!#REF!,$B67,'Daily Log'!#REF!),0) -> 0 | W67: =IFERROR($E67*SUMIF('Daily Log'!#REF!,$B67,'Daily Log'!#REF!),0) -> 0 | X67: =IFERROR($E67*SUMIF('Daily Log'!#REF!,$B67,'Daily Log'!#REF!),0) -> 0 | Y67: =IFERROR($E67*SUMIF('Daily Log'!#REF!,$B67,'Daily Log'!#REF!),0) -> 0 | Z67: =IFERROR($E67*SUMIF('Daily Log'!$C$18:$C$1017,$B67,'Daily Log'!$D$18:$D$1017),0) -> 0 | AA67: =IFERROR($E67*SUMIF('Daily Log'!$F$18:$F$1017,$B67,'Daily Log'!$G$18:$G$1017),0) -> 0 | AB67: =IFERROR($E67*SUMIF('Daily Log'!$I$18:$I$1017,$B67,'Daily Log'!$J$18:$J$1017),0) -> 0 | AC67: =IFERROR($E67*SUMIF('Daily Log'!$L$18:$L$1017,$B67,'Daily Log'!$M$18:$M$1017),0) -> 0 | AD67: =IFERROR($E67*SUMIF('Daily Log'!$O$18:$O$1017,$B67,'Daily Log'!$P$18:$P$1017),0) -> 0 | AE67: =IFERROR($E67*SUMIF('Daily Log'!$R$18:$R$1017,$B67,'Daily Log'!$S$18:$S$1017),0) -> 0 | AF67: =IFERROR($E67*SUMIF('Daily Log'!$U$18:$U$1017,$B67,'Daily Log'!$V$18:$V$1017),0) -> 0 | AG67: =IFERROR($E67*SUMIF('Daily Log'!#REF!,$B67,'Daily Log'!#REF!),0) -> 0 | AH67: =IFERROR($E67*SUMIF('Daily Log'!#REF!,$B67,'Daily Log'!#REF!),0) -> 0 | AI67: =IFERROR($E67*SUMIF('Daily Log'!#REF!,$B67,'Daily Log'!#REF!),0) -> 0 | AJ67: =IFERROR($E67*SUMIF('Daily Log'!#REF!,$B67,'Daily Log'!#REF!),0) -> 0 | AK67: =IFERROR($E67*SUMIF('Daily Log'!#REF!,$B67,'Daily Log'!#REF!),0) -> 0
B68: CC07 CAPPUCINNO SM | D68: SIDE ORDER-COLD BEVERAGE | E68: 1 | F68: 1 | G68: =IFERROR($E68*SUMIF('Daily Log'!#REF!,$B68,'Daily Log'!#REF!),0) -> 0 | H68: =IFERROR($E68*SUMIF('Daily Log'!#REF!,$B68,'Daily Log'!#REF!),0) -> 0 | I68: =IFERROR($E68*SUMIF('Daily Log'!#REF!,$B68,'Daily Log'!#REF!),0) -> 0 | J68: =IFERROR($E68*SUMIF('Daily Log'!#REF!,$B68,'Daily Log'!#REF!),0) -> 0 | K68: =IFERROR($E68*SUMIF('Daily Log'!#REF!,$B68,'Daily Log'!#REF!),0) -> 0 | L68: =IFERROR($E68*SUMIF('Daily Log'!#REF!,$B68,'Daily Log'!#REF!),0) -> 0 | M68: =IFERROR($E68*SUMIF('Daily Log'!#REF!,$B68,'Daily Log'!#REF!),0) -> 0 | N68: =IFERROR($E68*SUMIF('Daily Log'!#REF!,$B68,'Daily Log'!#REF!),0) -> 0 | O68: =IFERROR($E68*SUMIF('Daily Log'!#REF!,$B68,'Daily Log'!#REF!),0) -> 0 | P68: =IFERROR($E68*SUMIF('Daily Log'!#REF!,$B68,'Daily Log'!#REF!),0) -> 0 | Q68: =IFERROR($E68*SUMIF('Daily Log'!#REF!,$B68,'Daily Log'!#REF!),0) -> 0 | R68: =IFERROR($E68*SUMIF('Daily Log'!#REF!,$B68,'Daily Log'!#REF!),0) -> 0 | S68: =IFERROR($E68*SUMIF('Daily Log'!#REF!,$B68,'Daily Log'!#REF!),0) -> 0 | T68: =IFERROR($E68*SUMIF('Daily Log'!#REF!,$B68,'Daily Log'!#REF!),0) -> 0 | U68: =IFERROR($E68*SUMIF('Daily Log'!#REF!,$B68,'Daily Log'!#REF!),0) -> 0 | V68: =IFERROR($E68*SUMIF('Daily Log'!#REF!,$B68,'Daily Log'!#REF!),0) -> 0 | W68: =IFERROR($E68*SUMIF('Daily Log'!#REF!,$B68,'Daily Log'!#REF!),0) -> 0 | X68: =IFERROR($E68*SUMIF('Daily Log'!#REF!,$B68,'Daily Log'!#REF!),0) -> 0 | Y68: =IFERROR($E68*SUMIF('Daily Log'!#REF!,$B68,'Daily Log'!#REF!),0) -> 0 | Z68: =IFERROR($E68*SUMIF('Daily Log'!$C$18:$C$1017,$B68,'Daily Log'!$D$18:$D$1017),0) -> 0 | AA68: =IFERROR($E68*SUMIF('Daily Log'!$F$18:$F$1017,$B68,'Daily Log'!$G$18:$G$1017),0) -> 1 | AB68: =IFERROR($E68*SUMIF('Daily Log'!$I$18:$I$1017,$B68,'Daily Log'!$J$18:$J$1017),0) -> 0 | AC68: =IFERROR($E68*SUMIF('Daily Log'!$L$18:$L$1017,$B68,'Daily Log'!$M$18:$M$1017),0) -> 0 | AD68: =IFERROR($E68*SUMIF('Daily Log'!$O$18:$O$1017,$B68,'Daily Log'!$P$18:$P$1017),0) -> 0 | AE68: =IFERROR($E68*SUMIF('Daily Log'!$R$18:$R$1017,$B68,'Daily Log'!$S$18:$S$1017),0) -> 0 | AF68: =IFERROR($E68*SUMIF('Daily Log'!$U$18:$U$1017,$B68,'Daily Log'!$V$18:$V$1017),0) -> 0 | AG68: =IFERROR($E68*SUMIF('Daily Log'!#REF!,$B68,'Daily Log'!#REF!),0) -> 0 | AH68: =IFERROR($E68*SUMIF('Daily Log'!#REF!,$B68,'Daily Log'!#REF!),0) -> 0 | AI68: =IFERROR($E68*SUMIF('Daily Log'!#REF!,$B68,'Daily Log'!#REF!),0) -> 0 | AJ68: =IFERROR($E68*SUMIF('Daily Log'!#REF!,$B68,'Daily Log'!#REF!),0) -> 0 | AK68: =IFERROR($E68*SUMIF('Daily Log'!#REF!,$B68,'Daily Log'!#REF!),0) -> 0
B69: CC08 CHOCOLATE SM | D69: SIDE ORDER-COLD BEVERAGE | E69: 1 | F69: 2 | G69: =IFERROR($E69*SUMIF('Daily Log'!#REF!,$B69,'Daily Log'!#REF!),0) -> 0 | H69: =IFERROR($E69*SUMIF('Daily Log'!#REF!,$B69,'Daily Log'!#REF!),0) -> 0 | I69: =IFERROR($E69*SUMIF('Daily Log'!#REF!,$B69,'Daily Log'!#REF!),0) -> 0 | J69: =IFERROR($E69*SUMIF('Daily Log'!#REF!,$B69,'Daily Log'!#REF!),0) -> 0 | K69: =IFERROR($E69*SUMIF('Daily Log'!#REF!,$B69,'Daily Log'!#REF!),0) -> 0 | L69: =IFERROR($E69*SUMIF('Daily Log'!#REF!,$B69,'Daily Log'!#REF!),0) -> 0 | M69: =IFERROR($E69*SUMIF('Daily Log'!#REF!,$B69,'Daily Log'!#REF!),0) -> 0 | N69: =IFERROR($E69*SUMIF('Daily Log'!#REF!,$B69,'Daily Log'!#REF!),0) -> 0 | O69: =IFERROR($E69*SUMIF('Daily Log'!#REF!,$B69,'Daily Log'!#REF!),0) -> 0 | P69: =IFERROR($E69*SUMIF('Daily Log'!#REF!,$B69,'Daily Log'!#REF!),0) -> 0 | Q69: =IFERROR($E69*SUMIF('Daily Log'!#REF!,$B69,'Daily Log'!#REF!),0) -> 0 | R69: =IFERROR($E69*SUMIF('Daily Log'!#REF!,$B69,'Daily Log'!#REF!),0) -> 0 | S69: =IFERROR($E69*SUMIF('Daily Log'!#REF!,$B69,'Daily Log'!#REF!),0) -> 0 | T69: =IFERROR($E69*SUMIF('Daily Log'!#REF!,$B69,'Daily Log'!#REF!),0) -> 0 | U69: =IFERROR($E69*SUMIF('Daily Log'!#REF!,$B69,'Daily Log'!#REF!),0) -> 0 | V69: =IFERROR($E69*SUMIF('Daily Log'!#REF!,$B69,'Daily Log'!#REF!),0) -> 0 | W69: =IFERROR($E69*SUMIF('Daily Log'!#REF!,$B69,'Daily Log'!#REF!),0) -> 0 | X69: =IFERROR($E69*SUMIF('Daily Log'!#REF!,$B69,'Daily Log'!#REF!),0) -> 0 | Y69: =IFERROR($E69*SUMIF('Daily Log'!#REF!,$B69,'Daily Log'!#REF!),0) -> 0 | Z69: =IFERROR($E69*SUMIF('Daily Log'!$C$18:$C$1017,$B69,'Daily Log'!$D$18:$D$1017),0) -> 0 | AA69: =IFERROR($E69*SUMIF('Daily Log'!$F$18:$F$1017,$B69,'Daily Log'!$G$18:$G$1017),0) -> 1 | AB69: =IFERROR($E69*SUMIF('Daily Log'!$I$18:$I$1017,$B69,'Daily Log'!$J$18:$J$1017),0) -> 0 | AC69: =IFERROR($E69*SUMIF('Daily Log'!$L$18:$L$1017,$B69,'Daily Log'!$M$18:$M$1017),0) -> 0 | AD69: =IFERROR($E69*SUMIF('Daily Log'!$O$18:$O$1017,$B69,'Daily Log'!$P$18:$P$1017),0) -> 1 | AE69: =IFERROR($E69*SUMIF('Daily Log'!$R$18:$R$1017,$B69,'Daily Log'!$S$18:$S$1017),0) -> 0 | AF69: =IFERROR($E69*SUMIF('Daily Log'!$U$18:$U$1017,$B69,'Daily Log'!$V$18:$V$1017),0) -> 0 | AG69: =IFERROR($E69*SUMIF('Daily Log'!#REF!,$B69,'Daily Log'!#REF!),0) -> 0 | AH69: =IFERROR($E69*SUMIF('Daily Log'!#REF!,$B69,'Daily Log'!#REF!),0) -> 0 | AI69: =IFERROR($E69*SUMIF('Daily Log'!#REF!,$B69,'Daily Log'!#REF!),0) -> 0 | AJ69: =IFERROR($E69*SUMIF('Daily Log'!#REF!,$B69,'Daily Log'!#REF!),0) -> 0 | AK69: =IFERROR($E69*SUMIF('Daily Log'!#REF!,$B69,'Daily Log'!#REF!),0) -> 0
B70: CC09 MOCHA SM | D70: SIDE ORDER-COLD BEVERAGE | E70: 1 | F70: 0 | G70: =IFERROR($E70*SUMIF('Daily Log'!#REF!,$B70,'Daily Log'!#REF!),0) -> 0 | H70: =IFERROR($E70*SUMIF('Daily Log'!#REF!,$B70,'Daily Log'!#REF!),0) -> 0 | I70: =IFERROR($E70*SUMIF('Daily Log'!#REF!,$B70,'Daily Log'!#REF!),0) -> 0 | J70: =IFERROR($E70*SUMIF('Daily Log'!#REF!,$B70,'Daily Log'!#REF!),0) -> 0 | K70: =IFERROR($E70*SUMIF('Daily Log'!#REF!,$B70,'Daily Log'!#REF!),0) -> 0 | L70: =IFERROR($E70*SUMIF('Daily Log'!#REF!,$B70,'Daily Log'!#REF!),0) -> 0 | M70: =IFERROR($E70*SUMIF('Daily Log'!#REF!,$B70,'Daily Log'!#REF!),0) -> 0 | N70: =IFERROR($E70*SUMIF('Daily Log'!#REF!,$B70,'Daily Log'!#REF!),0) -> 0 | O70: =IFERROR($E70*SUMIF('Daily Log'!#REF!,$B70,'Daily Log'!#REF!),0) -> 0 | P70: =IFERROR($E70*SUMIF('Daily Log'!#REF!,$B70,'Daily Log'!#REF!),0) -> 0 | Q70: =IFERROR($E70*SUMIF('Daily Log'!#REF!,$B70,'Daily Log'!#REF!),0) -> 0 | R70: =IFERROR($E70*SUMIF('Daily Log'!#REF!,$B70,'Daily Log'!#REF!),0) -> 0 | S70: =IFERROR($E70*SUMIF('Daily Log'!#REF!,$B70,'Daily Log'!#REF!),0) -> 0 | T70: =IFERROR($E70*SUMIF('Daily Log'!#REF!,$B70,'Daily Log'!#REF!),0) -> 0 | U70: =IFERROR($E70*SUMIF('Daily Log'!#REF!,$B70,'Daily Log'!#REF!),0) -> 0 | V70: =IFERROR($E70*SUMIF('Daily Log'!#REF!,$B70,'Daily Log'!#REF!),0) -> 0 | W70: =IFERROR($E70*SUMIF('Daily Log'!#REF!,$B70,'Daily Log'!#REF!),0) -> 0 | X70: =IFERROR($E70*SUMIF('Daily Log'!#REF!,$B70,'Daily Log'!#REF!),0) -> 0 | Y70: =IFERROR($E70*SUMIF('Daily Log'!#REF!,$B70,'Daily Log'!#REF!),0) -> 0 | Z70: =IFERROR($E70*SUMIF('Daily Log'!$C$18:$C$1017,$B70,'Daily Log'!$D$18:$D$1017),0) -> 0 | AA70: =IFERROR($E70*SUMIF('Daily Log'!$F$18:$F$1017,$B70,'Daily Log'!$G$18:$G$1017),0) -> 0 | AB70: =IFERROR($E70*SUMIF('Daily Log'!$I$18:$I$1017,$B70,'Daily Log'!$J$18:$J$1017),0) -> 0 | AC70: =IFERROR($E70*SUMIF('Daily Log'!$L$18:$L$1017,$B70,'Daily Log'!$M$18:$M$1017),0) -> 0 | AD70: =IFERROR($E70*SUMIF('Daily Log'!$O$18:$O$1017,$B70,'Daily Log'!$P$18:$P$1017),0) -> 0 | AE70: =IFERROR($E70*SUMIF('Daily Log'!$R$18:$R$1017,$B70,'Daily Log'!$S$18:$S$1017),0) -> 0 | AF70: =IFERROR($E70*SUMIF('Daily Log'!$U$18:$U$1017,$B70,'Daily Log'!$V$18:$V$1017),0) -> 0 | AG70: =IFERROR($E70*SUMIF('Daily Log'!#REF!,$B70,'Daily Log'!#REF!),0) -> 0 | AH70: =IFERROR($E70*SUMIF('Daily Log'!#REF!,$B70,'Daily Log'!#REF!),0) -> 0 | AI70: =IFERROR($E70*SUMIF('Daily Log'!#REF!,$B70,'Daily Log'!#REF!),0) -> 0 | AJ70: =IFERROR($E70*SUMIF('Daily Log'!#REF!,$B70,'Daily Log'!#REF!),0) -> 0 | AK70: =IFERROR($E70*SUMIF('Daily Log'!#REF!,$B70,'Daily Log'!#REF!),0) -> 0
B71: CD01 7 UP | D71: SIDE ORDER-COLD BEVERAGE | E71: 1 | F71: 0 | G71: =IFERROR($E71*SUMIF('Daily Log'!#REF!,$B71,'Daily Log'!#REF!),0) -> 0 | H71: =IFERROR($E71*SUMIF('Daily Log'!#REF!,$B71,'Daily Log'!#REF!),0) -> 0 | I71: =IFERROR($E71*SUMIF('Daily Log'!#REF!,$B71,'Daily Log'!#REF!),0) -> 0 | J71: =IFERROR($E71*SUMIF('Daily Log'!#REF!,$B71,'Daily Log'!#REF!),0) -> 0 | K71: =IFERROR($E71*SUMIF('Daily Log'!#REF!,$B71,'Daily Log'!#REF!),0) -> 0 | L71: =IFERROR($E71*SUMIF('Daily Log'!#REF!,$B71,'Daily Log'!#REF!),0) -> 0 | M71: =IFERROR($E71*SUMIF('Daily Log'!#REF!,$B71,'Daily Log'!#REF!),0) -> 0 | N71: =IFERROR($E71*SUMIF('Daily Log'!#REF!,$B71,'Daily Log'!#REF!),0) -> 0 | O71: =IFERROR($E71*SUMIF('Daily Log'!#REF!,$B71,'Daily Log'!#REF!),0) -> 0 | P71: =IFERROR($E71*SUMIF('Daily Log'!#REF!,$B71,'Daily Log'!#REF!),0) -> 0 | Q71: =IFERROR($E71*SUMIF('Daily Log'!#REF!,$B71,'Daily Log'!#REF!),0) -> 0 | R71: =IFERROR($E71*SUMIF('Daily Log'!#REF!,$B71,'Daily Log'!#REF!),0) -> 0 | S71: =IFERROR($E71*SUMIF('Daily Log'!#REF!,$B71,'Daily Log'!#REF!),0) -> 0 | T71: =IFERROR($E71*SUMIF('Daily Log'!#REF!,$B71,'Daily Log'!#REF!),0) -> 0 | U71: =IFERROR($E71*SUMIF('Daily Log'!#REF!,$B71,'Daily Log'!#REF!),0) -> 0 | V71: =IFERROR($E71*SUMIF('Daily Log'!#REF!,$B71,'Daily Log'!#REF!),0) -> 0 | W71: =IFERROR($E71*SUMIF('Daily Log'!#REF!,$B71,'Daily Log'!#REF!),0) -> 0 | X71: =IFERROR($E71*SUMIF('Daily Log'!#REF!,$B71,'Daily Log'!#REF!),0) -> 0 | Y71: =IFERROR($E71*SUMIF('Daily Log'!#REF!,$B71,'Daily Log'!#REF!),0) -> 0 | Z71: =IFERROR($E71*SUMIF('Daily Log'!$C$18:$C$1017,$B71,'Daily Log'!$D$18:$D$1017),0) -> 0 | AA71: =IFERROR($E71*SUMIF('Daily Log'!$F$18:$F$1017,$B71,'Daily Log'!$G$18:$G$1017),0) -> 0 | AB71: =IFERROR($E71*SUMIF('Daily Log'!$I$18:$I$1017,$B71,'Daily Log'!$J$18:$J$1017),0) -> 0 | AC71: =IFERROR($E71*SUMIF('Daily Log'!$L$18:$L$1017,$B71,'Daily Log'!$M$18:$M$1017),0) -> 0 | AD71: =IFERROR($E71*SUMIF('Daily Log'!$O$18:$O$1017,$B71,'Daily Log'!$P$18:$P$1017),0) -> 0 | AE71: =IFERROR($E71*SUMIF('Daily Log'!$R$18:$R$1017,$B71,'Daily Log'!$S$18:$S$1017),0) -> 0 | AF71: =IFERROR($E71*SUMIF('Daily Log'!$U$18:$U$1017,$B71,'Daily Log'!$V$18:$V$1017),0) -> 0 | AG71: =IFERROR($E71*SUMIF('Daily Log'!#REF!,$B71,'Daily Log'!#REF!),0) -> 0 | AH71: =IFERROR($E71*SUMIF('Daily Log'!#REF!,$B71,'Daily Log'!#REF!),0) -> 0 | AI71: =IFERROR($E71*SUMIF('Daily Log'!#REF!,$B71,'Daily Log'!#REF!),0) -> 0 | AJ71: =IFERROR($E71*SUMIF('Daily Log'!#REF!,$B71,'Daily Log'!#REF!),0) -> 0 | AK71: =IFERROR($E71*SUMIF('Daily Log'!#REF!,$B71,'Daily Log'!#REF!),0) -> 0
B72: CD02 7 UP REVIVE | D72: SIDE ORDER-COLD BEVERAGE | E72: 1 | F72: 1 | G72: =IFERROR($E72*SUMIF('Daily Log'!#REF!,$B72,'Daily Log'!#REF!),0) -> 0 | H72: =IFERROR($E72*SUMIF('Daily Log'!#REF!,$B72,'Daily Log'!#REF!),0) -> 0 | I72: =IFERROR($E72*SUMIF('Daily Log'!#REF!,$B72,'Daily Log'!#REF!),0) -> 0 | J72: =IFERROR($E72*SUMIF('Daily Log'!#REF!,$B72,'Daily Log'!#REF!),0) -> 0 | K72: =IFERROR($E72*SUMIF('Daily Log'!#REF!,$B72,'Daily Log'!#REF!),0) -> 0 | L72: =IFERROR($E72*SUMIF('Daily Log'!#REF!,$B72,'Daily Log'!#REF!),0) -> 0 | M72: =IFERROR($E72*SUMIF('Daily Log'!#REF!,$B72,'Daily Log'!#REF!),0) -> 0 | N72: =IFERROR($E72*SUMIF('Daily Log'!#REF!,$B72,'Daily Log'!#REF!),0) -> 0 | O72: =IFERROR($E72*SUMIF('Daily Log'!#REF!,$B72,'Daily Log'!#REF!),0) -> 0 | P72: =IFERROR($E72*SUMIF('Daily Log'!#REF!,$B72,'Daily Log'!#REF!),0) -> 0 | Q72: =IFERROR($E72*SUMIF('Daily Log'!#REF!,$B72,'Daily Log'!#REF!),0) -> 0 | R72: =IFERROR($E72*SUMIF('Daily Log'!#REF!,$B72,'Daily Log'!#REF!),0) -> 0 | S72: =IFERROR($E72*SUMIF('Daily Log'!#REF!,$B72,'Daily Log'!#REF!),0) -> 0 | T72: =IFERROR($E72*SUMIF('Daily Log'!#REF!,$B72,'Daily Log'!#REF!),0) -> 0 | U72: =IFERROR($E72*SUMIF('Daily Log'!#REF!,$B72,'Daily Log'!#REF!),0) -> 0 | V72: =IFERROR($E72*SUMIF('Daily Log'!#REF!,$B72,'Daily Log'!#REF!),0) -> 0 | W72: =IFERROR($E72*SUMIF('Daily Log'!#REF!,$B72,'Daily Log'!#REF!),0) -> 0 | X72: =IFERROR($E72*SUMIF('Daily Log'!#REF!,$B72,'Daily Log'!#REF!),0) -> 0 | Y72: =IFERROR($E72*SUMIF('Daily Log'!#REF!,$B72,'Daily Log'!#REF!),0) -> 0 | Z72: =IFERROR($E72*SUMIF('Daily Log'!$C$18:$C$1017,$B72,'Daily Log'!$D$18:$D$1017),0) -> 0 | AA72: =IFERROR($E72*SUMIF('Daily Log'!$F$18:$F$1017,$B72,'Daily Log'!$G$18:$G$1017),0) -> 0 | AB72: =IFERROR($E72*SUMIF('Daily Log'!$I$18:$I$1017,$B72,'Daily Log'!$J$18:$J$1017),0) -> 0 | AC72: =IFERROR($E72*SUMIF('Daily Log'!$L$18:$L$1017,$B72,'Daily Log'!$M$18:$M$1017),0) -> 0 | AD72: =IFERROR($E72*SUMIF('Daily Log'!$O$18:$O$1017,$B72,'Daily Log'!$P$18:$P$1017),0) -> 0 | AE72: =IFERROR($E72*SUMIF('Daily Log'!$R$18:$R$1017,$B72,'Daily Log'!$S$18:$S$1017),0) -> 1 | AF72: =IFERROR($E72*SUMIF('Daily Log'!$U$18:$U$1017,$B72,'Daily Log'!$V$18:$V$1017),0) -> 0 | AG72: =IFERROR($E72*SUMIF('Daily Log'!#REF!,$B72,'Daily Log'!#REF!),0) -> 0 | AH72: =IFERROR($E72*SUMIF('Daily Log'!#REF!,$B72,'Daily Log'!#REF!),0) -> 0 | AI72: =IFERROR($E72*SUMIF('Daily Log'!#REF!,$B72,'Daily Log'!#REF!),0) -> 0 | AJ72: =IFERROR($E72*SUMIF('Daily Log'!#REF!,$B72,'Daily Log'!#REF!),0) -> 0 | AK72: =IFERROR($E72*SUMIF('Daily Log'!#REF!,$B72,'Daily Log'!#REF!),0) -> 0
B73: CD03 PEPSI | D73: SIDE ORDER-COLD BEVERAGE | E73: 1 | F73: 2 | G73: =IFERROR($E73*SUMIF('Daily Log'!#REF!,$B73,'Daily Log'!#REF!),0) -> 0 | H73: =IFERROR($E73*SUMIF('Daily Log'!#REF!,$B73,'Daily Log'!#REF!),0) -> 0 | I73: =IFERROR($E73*SUMIF('Daily Log'!#REF!,$B73,'Daily Log'!#REF!),0) -> 0 | J73: =IFERROR($E73*SUMIF('Daily Log'!#REF!,$B73,'Daily Log'!#REF!),0) -> 0 | K73: =IFERROR($E73*SUMIF('Daily Log'!#REF!,$B73,'Daily Log'!#REF!),0) -> 0 | L73: =IFERROR($E73*SUMIF('Daily Log'!#REF!,$B73,'Daily Log'!#REF!),0) -> 0 | M73: =IFERROR($E73*SUMIF('Daily Log'!#REF!,$B73,'Daily Log'!#REF!),0) -> 0 | N73: =IFERROR($E73*SUMIF('Daily Log'!#REF!,$B73,'Daily Log'!#REF!),0) -> 0 | O73: =IFERROR($E73*SUMIF('Daily Log'!#REF!,$B73,'Daily Log'!#REF!),0) -> 0 | P73: =IFERROR($E73*SUMIF('Daily Log'!#REF!,$B73,'Daily Log'!#REF!),0) -> 0 | Q73: =IFERROR($E73*SUMIF('Daily Log'!#REF!,$B73,'Daily Log'!#REF!),0) -> 0 | R73: =IFERROR($E73*SUMIF('Daily Log'!#REF!,$B73,'Daily Log'!#REF!),0) -> 0 | S73: =IFERROR($E73*SUMIF('Daily Log'!#REF!,$B73,'Daily Log'!#REF!),0) -> 0 | T73: =IFERROR($E73*SUMIF('Daily Log'!#REF!,$B73,'Daily Log'!#REF!),0) -> 0 | U73: =IFERROR($E73*SUMIF('Daily Log'!#REF!,$B73,'Daily Log'!#REF!),0) -> 0 | V73: =IFERROR($E73*SUMIF('Daily Log'!#REF!,$B73,'Daily Log'!#REF!),0) -> 0 | W73: =IFERROR($E73*SUMIF('Daily Log'!#REF!,$B73,'Daily Log'!#REF!),0) -> 0 | X73: =IFERROR($E73*SUMIF('Daily Log'!#REF!,$B73,'Daily Log'!#REF!),0) -> 0 | Y73: =IFERROR($E73*SUMIF('Daily Log'!#REF!,$B73,'Daily Log'!#REF!),0) -> 0 | Z73: =IFERROR($E73*SUMIF('Daily Log'!$C$18:$C$1017,$B73,'Daily Log'!$D$18:$D$1017),0) -> 0 | AA73: =IFERROR($E73*SUMIF('Daily Log'!$F$18:$F$1017,$B73,'Daily Log'!$G$18:$G$1017),0) -> 0 | AB73: =IFERROR($E73*SUMIF('Daily Log'!$I$18:$I$1017,$B73,'Daily Log'!$J$18:$J$1017),0) -> 0 | AC73: =IFERROR($E73*SUMIF('Daily Log'!$L$18:$L$1017,$B73,'Daily Log'!$M$18:$M$1017),0) -> 0 | AD73: =IFERROR($E73*SUMIF('Daily Log'!$O$18:$O$1017,$B73,'Daily Log'!$P$18:$P$1017),0) -> 0 | AE73: =IFERROR($E73*SUMIF('Daily Log'!$R$18:$R$1017,$B73,'Daily Log'!$S$18:$S$1017),0) -> 1 | AF73: =IFERROR($E73*SUMIF('Daily Log'!$U$18:$U$1017,$B73,'Daily Log'!$V$18:$V$1017),0) -> 1 | AG73: =IFERROR($E73*SUMIF('Daily Log'!#REF!,$B73,'Daily Log'!#REF!),0) -> 0 | AH73: =IFERROR($E73*SUMIF('Daily Log'!#REF!,$B73,'Daily Log'!#REF!),0) -> 0 | AI73: =IFERROR($E73*SUMIF('Daily Log'!#REF!,$B73,'Daily Log'!#REF!),0) -> 0 | AJ73: =IFERROR($E73*SUMIF('Daily Log'!#REF!,$B73,'Daily Log'!#REF!),0) -> 0 | AK73: =IFERROR($E73*SUMIF('Daily Log'!#REF!,$B73,'Daily Log'!#REF!),0) -> 0
B74: CE01 MILO (C) | D74: SIDE ORDER-COLD BEVERAGE | E74: 1 | F74: 0 | G74: =IFERROR($E74*SUMIF('Daily Log'!#REF!,$B74,'Daily Log'!#REF!),0) -> 0 | H74: =IFERROR($E74*SUMIF('Daily Log'!#REF!,$B74,'Daily Log'!#REF!),0) -> 0 | I74: =IFERROR($E74*SUMIF('Daily Log'!#REF!,$B74,'Daily Log'!#REF!),0) -> 0 | J74: =IFERROR($E74*SUMIF('Daily Log'!#REF!,$B74,'Daily Log'!#REF!),0) -> 0 | K74: =IFERROR($E74*SUMIF('Daily Log'!#REF!,$B74,'Daily Log'!#REF!),0) -> 0 | L74: =IFERROR($E74*SUMIF('Daily Log'!#REF!,$B74,'Daily Log'!#REF!),0) -> 0 | M74: =IFERROR($E74*SUMIF('Daily Log'!#REF!,$B74,'Daily Log'!#REF!),0) -> 0 | N74: =IFERROR($E74*SUMIF('Daily Log'!#REF!,$B74,'Daily Log'!#REF!),0) -> 0 | O74: =IFERROR($E74*SUMIF('Daily Log'!#REF!,$B74,'Daily Log'!#REF!),0) -> 0 | P74: =IFERROR($E74*SUMIF('Daily Log'!#REF!,$B74,'Daily Log'!#REF!),0) -> 0 | Q74: =IFERROR($E74*SUMIF('Daily Log'!#REF!,$B74,'Daily Log'!#REF!),0) -> 0 | R74: =IFERROR($E74*SUMIF('Daily Log'!#REF!,$B74,'Daily Log'!#REF!),0) -> 0 | S74: =IFERROR($E74*SUMIF('Daily Log'!#REF!,$B74,'Daily Log'!#REF!),0) -> 0 | T74: =IFERROR($E74*SUMIF('Daily Log'!#REF!,$B74,'Daily Log'!#REF!),0) -> 0 | U74: =IFERROR($E74*SUMIF('Daily Log'!#REF!,$B74,'Daily Log'!#REF!),0) -> 0 | V74: =IFERROR($E74*SUMIF('Daily Log'!#REF!,$B74,'Daily Log'!#REF!),0) -> 0 | W74: =IFERROR($E74*SUMIF('Daily Log'!#REF!,$B74,'Daily Log'!#REF!),0) -> 0 | X74: =IFERROR($E74*SUMIF('Daily Log'!#REF!,$B74,'Daily Log'!#REF!),0) -> 0 | Y74: =IFERROR($E74*SUMIF('Daily Log'!#REF!,$B74,'Daily Log'!#REF!),0) -> 0 | Z74: =IFERROR($E74*SUMIF('Daily Log'!$C$18:$C$1017,$B74,'Daily Log'!$D$18:$D$1017),0) -> 0 | AA74: =IFERROR($E74*SUMIF('Daily Log'!$F$18:$F$1017,$B74,'Daily Log'!$G$18:$G$1017),0) -> 0 | AB74: =IFERROR($E74*SUMIF('Daily Log'!$I$18:$I$1017,$B74,'Daily Log'!$J$18:$J$1017),0) -> 0 | AC74: =IFERROR($E74*SUMIF('Daily Log'!$L$18:$L$1017,$B74,'Daily Log'!$M$18:$M$1017),0) -> 0 | AD74: =IFERROR($E74*SUMIF('Daily Log'!$O$18:$O$1017,$B74,'Daily Log'!$P$18:$P$1017),0) -> 0 | AE74: =IFERROR($E74*SUMIF('Daily Log'!$R$18:$R$1017,$B74,'Daily Log'!$S$18:$S$1017),0) -> 0 | AF74: =IFERROR($E74*SUMIF('Daily Log'!$U$18:$U$1017,$B74,'Daily Log'!$V$18:$V$1017),0) -> 0 | AG74: =IFERROR($E74*SUMIF('Daily Log'!#REF!,$B74,'Daily Log'!#REF!),0) -> 0 | AH74: =IFERROR($E74*SUMIF('Daily Log'!#REF!,$B74,'Daily Log'!#REF!),0) -> 0 | AI74: =IFERROR($E74*SUMIF('Daily Log'!#REF!,$B74,'Daily Log'!#REF!),0) -> 0 | AJ74: =IFERROR($E74*SUMIF('Daily Log'!#REF!,$B74,'Daily Log'!#REF!),0) -> 0 | AK74: =IFERROR($E74*SUMIF('Daily Log'!#REF!,$B74,'Daily Log'!#REF!),0) -> 0
B75: CE02 NESCAFE (C) | D75: SIDE ORDER-COLD BEVERAGE | E75: 1 | F75: 0 | G75: =IFERROR($E75*SUMIF('Daily Log'!#REF!,$B75,'Daily Log'!#REF!),0) -> 0 | H75: =IFERROR($E75*SUMIF('Daily Log'!#REF!,$B75,'Daily Log'!#REF!),0) -> 0 | I75: =IFERROR($E75*SUMIF('Daily Log'!#REF!,$B75,'Daily Log'!#REF!),0) -> 0 | J75: =IFERROR($E75*SUMIF('Daily Log'!#REF!,$B75,'Daily Log'!#REF!),0) -> 0 | K75: =IFERROR($E75*SUMIF('Daily Log'!#REF!,$B75,'Daily Log'!#REF!),0) -> 0 | L75: =IFERROR($E75*SUMIF('Daily Log'!#REF!,$B75,'Daily Log'!#REF!),0) -> 0 | M75: =IFERROR($E75*SUMIF('Daily Log'!#REF!,$B75,'Daily Log'!#REF!),0) -> 0 | N75: =IFERROR($E75*SUMIF('Daily Log'!#REF!,$B75,'Daily Log'!#REF!),0) -> 0 | O75: =IFERROR($E75*SUMIF('Daily Log'!#REF!,$B75,'Daily Log'!#REF!),0) -> 0 | P75: =IFERROR($E75*SUMIF('Daily Log'!#REF!,$B75,'Daily Log'!#REF!),0) -> 0 | Q75: =IFERROR($E75*SUMIF('Daily Log'!#REF!,$B75,'Daily Log'!#REF!),0) -> 0 | R75: =IFERROR($E75*SUMIF('Daily Log'!#REF!,$B75,'Daily Log'!#REF!),0) -> 0 | S75: =IFERROR($E75*SUMIF('Daily Log'!#REF!,$B75,'Daily Log'!#REF!),0) -> 0 | T75: =IFERROR($E75*SUMIF('Daily Log'!#REF!,$B75,'Daily Log'!#REF!),0) -> 0 | U75: =IFERROR($E75*SUMIF('Daily Log'!#REF!,$B75,'Daily Log'!#REF!),0) -> 0 | V75: =IFERROR($E75*SUMIF('Daily Log'!#REF!,$B75,'Daily Log'!#REF!),0) -> 0 | W75: =IFERROR($E75*SUMIF('Daily Log'!#REF!,$B75,'Daily Log'!#REF!),0) -> 0 | X75: =IFERROR($E75*SUMIF('Daily Log'!#REF!,$B75,'Daily Log'!#REF!),0) -> 0 | Y75: =IFERROR($E75*SUMIF('Daily Log'!#REF!,$B75,'Daily Log'!#REF!),0) -> 0 | Z75: =IFERROR($E75*SUMIF('Daily Log'!$C$18:$C$1017,$B75,'Daily Log'!$D$18:$D$1017),0) -> 0 | AA75: =IFERROR($E75*SUMIF('Daily Log'!$F$18:$F$1017,$B75,'Daily Log'!$G$18:$G$1017),0) -> 0 | AB75: =IFERROR($E75*SUMIF('Daily Log'!$I$18:$I$1017,$B75,'Daily Log'!$J$18:$J$1017),0) -> 0 | AC75: =IFERROR($E75*SUMIF('Daily Log'!$L$18:$L$1017,$B75,'Daily Log'!$M$18:$M$1017),0) -> 0 | AD75: =IFERROR($E75*SUMIF('Daily Log'!$O$18:$O$1017,$B75,'Daily Log'!$P$18:$P$1017),0) -> 0 | AE75: =IFERROR($E75*SUMIF('Daily Log'!$R$18:$R$1017,$B75,'Daily Log'!$S$18:$S$1017),0) -> 0 | AF75: =IFERROR($E75*SUMIF('Daily Log'!$U$18:$U$1017,$B75,'Daily Log'!$V$18:$V$1017),0) -> 0 | AG75: =IFERROR($E75*SUMIF('Daily Log'!#REF!,$B75,'Daily Log'!#REF!),0) -> 0 | AH75: =IFERROR($E75*SUMIF('Daily Log'!#REF!,$B75,'Daily Log'!#REF!),0) -> 0 | AI75: =IFERROR($E75*SUMIF('Daily Log'!#REF!,$B75,'Daily Log'!#REF!),0) -> 0 | AJ75: =IFERROR($E75*SUMIF('Daily Log'!#REF!,$B75,'Daily Log'!#REF!),0) -> 0 | AK75: =IFERROR($E75*SUMIF('Daily Log'!#REF!,$B75,'Daily Log'!#REF!),0) -> 0
B76: CE03 TEA (C) | D76: SIDE ORDER-COLD BEVERAGE | E76: 1 | F76: 0 | G76: =IFERROR($E76*SUMIF('Daily Log'!#REF!,$B76,'Daily Log'!#REF!),0) -> 0 | H76: =IFERROR($E76*SUMIF('Daily Log'!#REF!,$B76,'Daily Log'!#REF!),0) -> 0 | I76: =IFERROR($E76*SUMIF('Daily Log'!#REF!,$B76,'Daily Log'!#REF!),0) -> 0 | J76: =IFERROR($E76*SUMIF('Daily Log'!#REF!,$B76,'Daily Log'!#REF!),0) -> 0 | K76: =IFERROR($E76*SUMIF('Daily Log'!#REF!,$B76,'Daily Log'!#REF!),0) -> 0 | L76: =IFERROR($E76*SUMIF('Daily Log'!#REF!,$B76,'Daily Log'!#REF!),0) -> 0 | M76: =IFERROR($E76*SUMIF('Daily Log'!#REF!,$B76,'Daily Log'!#REF!),0) -> 0 | N76: =IFERROR($E76*SUMIF('Daily Log'!#REF!,$B76,'Daily Log'!#REF!),0) -> 0 | O76: =IFERROR($E76*SUMIF('Daily Log'!#REF!,$B76,'Daily Log'!#REF!),0) -> 0 | P76: =IFERROR($E76*SUMIF('Daily Log'!#REF!,$B76,'Daily Log'!#REF!),0) -> 0 | Q76: =IFERROR($E76*SUMIF('Daily Log'!#REF!,$B76,'Daily Log'!#REF!),0) -> 0 | R76: =IFERROR($E76*SUMIF('Daily Log'!#REF!,$B76,'Daily Log'!#REF!),0) -> 0 | S76: =IFERROR($E76*SUMIF('Daily Log'!#REF!,$B76,'Daily Log'!#REF!),0) -> 0 | T76: =IFERROR($E76*SUMIF('Daily Log'!#REF!,$B76,'Daily Log'!#REF!),0) -> 0 | U76: =IFERROR($E76*SUMIF('Daily Log'!#REF!,$B76,'Daily Log'!#REF!),0) -> 0 | V76: =IFERROR($E76*SUMIF('Daily Log'!#REF!,$B76,'Daily Log'!#REF!),0) -> 0 | W76: =IFERROR($E76*SUMIF('Daily Log'!#REF!,$B76,'Daily Log'!#REF!),0) -> 0 | X76: =IFERROR($E76*SUMIF('Daily Log'!#REF!,$B76,'Daily Log'!#REF!),0) -> 0 | Y76: =IFERROR($E76*SUMIF('Daily Log'!#REF!,$B76,'Daily Log'!#REF!),0) -> 0 | Z76: =IFERROR($E76*SUMIF('Daily Log'!$C$18:$C$1017,$B76,'Daily Log'!$D$18:$D$1017),0) -> 0 | AA76: =IFERROR($E76*SUMIF('Daily Log'!$F$18:$F$1017,$B76,'Daily Log'!$G$18:$G$1017),0) -> 0 | AB76: =IFERROR($E76*SUMIF('Daily Log'!$I$18:$I$1017,$B76,'Daily Log'!$J$18:$J$1017),0) -> 0 | AC76: =IFERROR($E76*SUMIF('Daily Log'!$L$18:$L$1017,$B76,'Daily Log'!$M$18:$M$1017),0) -> 0 | AD76: =IFERROR($E76*SUMIF('Daily Log'!$O$18:$O$1017,$B76,'Daily Log'!$P$18:$P$1017),0) -> 0 | AE76: =IFERROR($E76*SUMIF('Daily Log'!$R$18:$R$1017,$B76,'Daily Log'!$S$18:$S$1017),0) -> 0 | AF76: =IFERROR($E76*SUMIF('Daily Log'!$U$18:$U$1017,$B76,'Daily Log'!$V$18:$V$1017),0) -> 0 | AG76: =IFERROR($E76*SUMIF('Daily Log'!#REF!,$B76,'Daily Log'!#REF!),0) -> 0 | AH76: =IFERROR($E76*SUMIF('Daily Log'!#REF!,$B76,'Daily Log'!#REF!),0) -> 0 | AI76: =IFERROR($E76*SUMIF('Daily Log'!#REF!,$B76,'Daily Log'!#REF!),0) -> 0 | AJ76: =IFERROR($E76*SUMIF('Daily Log'!#REF!,$B76,'Daily Log'!#REF!),0) -> 0 | AK76: =IFERROR($E76*SUMIF('Daily Log'!#REF!,$B76,'Daily Log'!#REF!),0) -> 0
B77: CE04 LEMON TEA (C) | D77: SIDE ORDER-COLD BEVERAGE | E77: 1 | F77: 0 | G77: =IFERROR($E77*SUMIF('Daily Log'!#REF!,$B77,'Daily Log'!#REF!),0) -> 0 | H77: =IFERROR($E77*SUMIF('Daily Log'!#REF!,$B77,'Daily Log'!#REF!),0) -> 0 | I77: =IFERROR($E77*SUMIF('Daily Log'!#REF!,$B77,'Daily Log'!#REF!),0) -> 0 | J77: =IFERROR($E77*SUMIF('Daily Log'!#REF!,$B77,'Daily Log'!#REF!),0) -> 0 | K77: =IFERROR($E77*SUMIF('Daily Log'!#REF!,$B77,'Daily Log'!#REF!),0) -> 0 | L77: =IFERROR($E77*SUMIF('Daily Log'!#REF!,$B77,'Daily Log'!#REF!),0) -> 0 | M77: =IFERROR($E77*SUMIF('Daily Log'!#REF!,$B77,'Daily Log'!#REF!),0) -> 0 | N77: =IFERROR($E77*SUMIF('Daily Log'!#REF!,$B77,'Daily Log'!#REF!),0) -> 0 | O77: =IFERROR($E77*SUMIF('Daily Log'!#REF!,$B77,'Daily Log'!#REF!),0) -> 0 | P77: =IFERROR($E77*SUMIF('Daily Log'!#REF!,$B77,'Daily Log'!#REF!),0) -> 0 | Q77: =IFERROR($E77*SUMIF('Daily Log'!#REF!,$B77,'Daily Log'!#REF!),0) -> 0 | R77: =IFERROR($E77*SUMIF('Daily Log'!#REF!,$B77,'Daily Log'!#REF!),0) -> 0 | S77: =IFERROR($E77*SUMIF('Daily Log'!#REF!,$B77,'Daily Log'!#REF!),0) -> 0 | T77: =IFERROR($E77*SUMIF('Daily Log'!#REF!,$B77,'Daily Log'!#REF!),0) -> 0 | U77: =IFERROR($E77*SUMIF('Daily Log'!#REF!,$B77,'Daily Log'!#REF!),0) -> 0 | V77: =IFERROR($E77*SUMIF('Daily Log'!#REF!,$B77,'Daily Log'!#REF!),0) -> 0 | W77: =IFERROR($E77*SUMIF('Daily Log'!#REF!,$B77,'Daily Log'!#REF!),0) -> 0 | X77: =IFERROR($E77*SUMIF('Daily Log'!#REF!,$B77,'Daily Log'!#REF!),0) -> 0 | Y77: =IFERROR($E77*SUMIF('Daily Log'!#REF!,$B77,'Daily Log'!#REF!),0) -> 0 | Z77: =IFERROR($E77*SUMIF('Daily Log'!$C$18:$C$1017,$B77,'Daily Log'!$D$18:$D$1017),0) -> 0 | AA77: =IFERROR($E77*SUMIF('Daily Log'!$F$18:$F$1017,$B77,'Daily Log'!$G$18:$G$1017),0) -> 0 | AB77: =IFERROR($E77*SUMIF('Daily Log'!$I$18:$I$1017,$B77,'Daily Log'!$J$18:$J$1017),0) -> 0 | AC77: =IFERROR($E77*SUMIF('Daily Log'!$L$18:$L$1017,$B77,'Daily Log'!$M$18:$M$1017),0) -> 0 | AD77: =IFERROR($E77*SUMIF('Daily Log'!$O$18:$O$1017,$B77,'Daily Log'!$P$18:$P$1017),0) -> 0 | AE77: =IFERROR($E77*SUMIF('Daily Log'!$R$18:$R$1017,$B77,'Daily Log'!$S$18:$S$1017),0) -> 0 | AF77: =IFERROR($E77*SUMIF('Daily Log'!$U$18:$U$1017,$B77,'Daily Log'!$V$18:$V$1017),0) -> 0 | AG77: =IFERROR($E77*SUMIF('Daily Log'!#REF!,$B77,'Daily Log'!#REF!),0) -> 0 | AH77: =IFERROR($E77*SUMIF('Daily Log'!#REF!,$B77,'Daily Log'!#REF!),0) -> 0 | AI77: =IFERROR($E77*SUMIF('Daily Log'!#REF!,$B77,'Daily Log'!#REF!),0) -> 0 | AJ77: =IFERROR($E77*SUMIF('Daily Log'!#REF!,$B77,'Daily Log'!#REF!),0) -> 0 | AK77: =IFERROR($E77*SUMIF('Daily Log'!#REF!,$B77,'Daily Log'!#REF!),0) -> 0
B78: CE05 GRN TEA (C) | D78: SIDE ORDER-COLD BEVERAGE | E78: 1 | F78: 0 | G78: =IFERROR($E78*SUMIF('Daily Log'!#REF!,$B78,'Daily Log'!#REF!),0) -> 0 | H78: =IFERROR($E78*SUMIF('Daily Log'!#REF!,$B78,'Daily Log'!#REF!),0) -> 0 | I78: =IFERROR($E78*SUMIF('Daily Log'!#REF!,$B78,'Daily Log'!#REF!),0) -> 0 | J78: =IFERROR($E78*SUMIF('Daily Log'!#REF!,$B78,'Daily Log'!#REF!),0) -> 0 | K78: =IFERROR($E78*SUMIF('Daily Log'!#REF!,$B78,'Daily Log'!#REF!),0) -> 0 | L78: =IFERROR($E78*SUMIF('Daily Log'!#REF!,$B78,'Daily Log'!#REF!),0) -> 0 | M78: =IFERROR($E78*SUMIF('Daily Log'!#REF!,$B78,'Daily Log'!#REF!),0) -> 0 | N78: =IFERROR($E78*SUMIF('Daily Log'!#REF!,$B78,'Daily Log'!#REF!),0) -> 0 | O78: =IFERROR($E78*SUMIF('Daily Log'!#REF!,$B78,'Daily Log'!#REF!),0) -> 0 | P78: =IFERROR($E78*SUMIF('Daily Log'!#REF!,$B78,'Daily Log'!#REF!),0) -> 0 | Q78: =IFERROR($E78*SUMIF('Daily Log'!#REF!,$B78,'Daily Log'!#REF!),0) -> 0 | R78: =IFERROR($E78*SUMIF('Daily Log'!#REF!,$B78,'Daily Log'!#REF!),0) -> 0 | S78: =IFERROR($E78*SUMIF('Daily Log'!#REF!,$B78,'Daily Log'!#REF!),0) -> 0 | T78: =IFERROR($E78*SUMIF('Daily Log'!#REF!,$B78,'Daily Log'!#REF!),0) -> 0 | U78: =IFERROR($E78*SUMIF('Daily Log'!#REF!,$B78,'Daily Log'!#REF!),0) -> 0 | V78: =IFERROR($E78*SUMIF('Daily Log'!#REF!,$B78,'Daily Log'!#REF!),0) -> 0 | W78: =IFERROR($E78*SUMIF('Daily Log'!#REF!,$B78,'Daily Log'!#REF!),0) -> 0 | X78: =IFERROR($E78*SUMIF('Daily Log'!#REF!,$B78,'Daily Log'!#REF!),0) -> 0 | Y78: =IFERROR($E78*SUMIF('Daily Log'!#REF!,$B78,'Daily Log'!#REF!),0) -> 0 | Z78: =IFERROR($E78*SUMIF('Daily Log'!$C$18:$C$1017,$B78,'Daily Log'!$D$18:$D$1017),0) -> 0 | AA78: =IFERROR($E78*SUMIF('Daily Log'!$F$18:$F$1017,$B78,'Daily Log'!$G$18:$G$1017),0) -> 0 | AB78: =IFERROR($E78*SUMIF('Daily Log'!$I$18:$I$1017,$B78,'Daily Log'!$J$18:$J$1017),0) -> 0 | AC78: =IFERROR($E78*SUMIF('Daily Log'!$L$18:$L$1017,$B78,'Daily Log'!$M$18:$M$1017),0) -> 0 | AD78: =IFERROR($E78*SUMIF('Daily Log'!$O$18:$O$1017,$B78,'Daily Log'!$P$18:$P$1017),0) -> 0 | AE78: =IFERROR($E78*SUMIF('Daily Log'!$R$18:$R$1017,$B78,'Daily Log'!$S$18:$S$1017),0) -> 0 | AF78: =IFERROR($E78*SUMIF('Daily Log'!$U$18:$U$1017,$B78,'Daily Log'!$V$18:$V$1017),0) -> 0 | AG78: =IFERROR($E78*SUMIF('Daily Log'!#REF!,$B78,'Daily Log'!#REF!),0) -> 0 | AH78: =IFERROR($E78*SUMIF('Daily Log'!#REF!,$B78,'Daily Log'!#REF!),0) -> 0 | AI78: =IFERROR($E78*SUMIF('Daily Log'!#REF!,$B78,'Daily Log'!#REF!),0) -> 0 | AJ78: =IFERROR($E78*SUMIF('Daily Log'!#REF!,$B78,'Daily Log'!#REF!),0) -> 0 | AK78: =IFERROR($E78*SUMIF('Daily Log'!#REF!,$B78,'Daily Log'!#REF!),0) -> 0
B79: CE06 HNY GRN TEA (C) | D79: SIDE ORDER-COLD BEVERAGE | E79: 1 | F79: 2 | G79: =IFERROR($E79*SUMIF('Daily Log'!#REF!,$B79,'Daily Log'!#REF!),0) -> 0 | H79: =IFERROR($E79*SUMIF('Daily Log'!#REF!,$B79,'Daily Log'!#REF!),0) -> 0 | I79: =IFERROR($E79*SUMIF('Daily Log'!#REF!,$B79,'Daily Log'!#REF!),0) -> 0 | J79: =IFERROR($E79*SUMIF('Daily Log'!#REF!,$B79,'Daily Log'!#REF!),0) -> 0 | K79: =IFERROR($E79*SUMIF('Daily Log'!#REF!,$B79,'Daily Log'!#REF!),0) -> 0 | L79: =IFERROR($E79*SUMIF('Daily Log'!#REF!,$B79,'Daily Log'!#REF!),0) -> 0 | M79: =IFERROR($E79*SUMIF('Daily Log'!#REF!,$B79,'Daily Log'!#REF!),0) -> 0 | N79: =IFERROR($E79*SUMIF('Daily Log'!#REF!,$B79,'Daily Log'!#REF!),0) -> 0 | O79: =IFERROR($E79*SUMIF('Daily Log'!#REF!,$B79,'Daily Log'!#REF!),0) -> 0 | P79: =IFERROR($E79*SUMIF('Daily Log'!#REF!,$B79,'Daily Log'!#REF!),0) -> 0 | Q79: =IFERROR($E79*SUMIF('Daily Log'!#REF!,$B79,'Daily Log'!#REF!),0) -> 0 | R79: =IFERROR($E79*SUMIF('Daily Log'!#REF!,$B79,'Daily Log'!#REF!),0) -> 0 | S79: =IFERROR($E79*SUMIF('Daily Log'!#REF!,$B79,'Daily Log'!#REF!),0) -> 0 | T79: =IFERROR($E79*SUMIF('Daily Log'!#REF!,$B79,'Daily Log'!#REF!),0) -> 0 | U79: =IFERROR($E79*SUMIF('Daily Log'!#REF!,$B79,'Daily Log'!#REF!),0) -> 0 | V79: =IFERROR($E79*SUMIF('Daily Log'!#REF!,$B79,'Daily Log'!#REF!),0) -> 0 | W79: =IFERROR($E79*SUMIF('Daily Log'!#REF!,$B79,'Daily Log'!#REF!),0) -> 0 | X79: =IFERROR($E79*SUMIF('Daily Log'!#REF!,$B79,'Daily Log'!#REF!),0) -> 0 | Y79: =IFERROR($E79*SUMIF('Daily Log'!#REF!,$B79,'Daily Log'!#REF!),0) -> 0 | Z79: =IFERROR($E79*SUMIF('Daily Log'!$C$18:$C$1017,$B79,'Daily Log'!$D$18:$D$1017),0) -> 0 | AA79: =IFERROR($E79*SUMIF('Daily Log'!$F$18:$F$1017,$B79,'Daily Log'!$G$18:$G$1017),0) -> 0 | AB79: =IFERROR($E79*SUMIF('Daily Log'!$I$18:$I$1017,$B79,'Daily Log'!$J$18:$J$1017),0) -> 0 | AC79: =IFERROR($E79*SUMIF('Daily Log'!$L$18:$L$1017,$B79,'Daily Log'!$M$18:$M$1017),0) -> 0 | AD79: =IFERROR($E79*SUMIF('Daily Log'!$O$18:$O$1017,$B79,'Daily Log'!$P$18:$P$1017),0) -> 0 | AE79: =IFERROR($E79*SUMIF('Daily Log'!$R$18:$R$1017,$B79,'Daily Log'!$S$18:$S$1017),0) -> 2 | AF79: =IFERROR($E79*SUMIF('Daily Log'!$U$18:$U$1017,$B79,'Daily Log'!$V$18:$V$1017),0) -> 0 | AG79: =IFERROR($E79*SUMIF('Daily Log'!#REF!,$B79,'Daily Log'!#REF!),0) -> 0 | AH79: =IFERROR($E79*SUMIF('Daily Log'!#REF!,$B79,'Daily Log'!#REF!),0) -> 0 | AI79: =IFERROR($E79*SUMIF('Daily Log'!#REF!,$B79,'Daily Log'!#REF!),0) -> 0 | AJ79: =IFERROR($E79*SUMIF('Daily Log'!#REF!,$B79,'Daily Log'!#REF!),0) -> 0 | AK79: =IFERROR($E79*SUMIF('Daily Log'!#REF!,$B79,'Daily Log'!#REF!),0) -> 0
B80: CE07 HONEY (C) | D80: SIDE ORDER-COLD BEVERAGE | E80: 1 | F80: 0 | G80: =IFERROR($E80*SUMIF('Daily Log'!#REF!,$B80,'Daily Log'!#REF!),0) -> 0 | H80: =IFERROR($E80*SUMIF('Daily Log'!#REF!,$B80,'Daily Log'!#REF!),0) -> 0 | I80: =IFERROR($E80*SUMIF('Daily Log'!#REF!,$B80,'Daily Log'!#REF!),0) -> 0 | J80: =IFERROR($E80*SUMIF('Daily Log'!#REF!,$B80,'Daily Log'!#REF!),0) -> 0 | K80: =IFERROR($E80*SUMIF('Daily Log'!#REF!,$B80,'Daily Log'!#REF!),0) -> 0 | L80: =IFERROR($E80*SUMIF('Daily Log'!#REF!,$B80,'Daily Log'!#REF!),0) -> 0 | M80: =IFERROR($E80*SUMIF('Daily Log'!#REF!,$B80,'Daily Log'!#REF!),0) -> 0 | N80: =IFERROR($E80*SUMIF('Daily Log'!#REF!,$B80,'Daily Log'!#REF!),0) -> 0 | O80: =IFERROR($E80*SUMIF('Daily Log'!#REF!,$B80,'Daily Log'!#REF!),0) -> 0 | P80: =IFERROR($E80*SUMIF('Daily Log'!#REF!,$B80,'Daily Log'!#REF!),0) -> 0 | Q80: =IFERROR($E80*SUMIF('Daily Log'!#REF!,$B80,'Daily Log'!#REF!),0) -> 0 | R80: =IFERROR($E80*SUMIF('Daily Log'!#REF!,$B80,'Daily Log'!#REF!),0) -> 0 | S80: =IFERROR($E80*SUMIF('Daily Log'!#REF!,$B80,'Daily Log'!#REF!),0) -> 0 | T80: =IFERROR($E80*SUMIF('Daily Log'!#REF!,$B80,'Daily Log'!#REF!),0) -> 0 | U80: =IFERROR($E80*SUMIF('Daily Log'!#REF!,$B80,'Daily Log'!#REF!),0) -> 0 | V80: =IFERROR($E80*SUMIF('Daily Log'!#REF!,$B80,'Daily Log'!#REF!),0) -> 0 | W80: =IFERROR($E80*SUMIF('Daily Log'!#REF!,$B80,'Daily Log'!#REF!),0) -> 0 | X80: =IFERROR($E80*SUMIF('Daily Log'!#REF!,$B80,'Daily Log'!#REF!),0) -> 0 | Y80: =IFERROR($E80*SUMIF('Daily Log'!#REF!,$B80,'Daily Log'!#REF!),0) -> 0 | Z80: =IFERROR($E80*SUMIF('Daily Log'!$C$18:$C$1017,$B80,'Daily Log'!$D$18:$D$1017),0) -> 0 | AA80: =IFERROR($E80*SUMIF('Daily Log'!$F$18:$F$1017,$B80,'Daily Log'!$G$18:$G$1017),0) -> 0 | AB80: =IFERROR($E80*SUMIF('Daily Log'!$I$18:$I$1017,$B80,'Daily Log'!$J$18:$J$1017),0) -> 0 | AC80: =IFERROR($E80*SUMIF('Daily Log'!$L$18:$L$1017,$B80,'Daily Log'!$M$18:$M$1017),0) -> 0 | AD80: =IFERROR($E80*SUMIF('Daily Log'!$O$18:$O$1017,$B80,'Daily Log'!$P$18:$P$1017),0) -> 0 | AE80: =IFERROR($E80*SUMIF('Daily Log'!$R$18:$R$1017,$B80,'Daily Log'!$S$18:$S$1017),0) -> 0 | AF80: =IFERROR($E80*SUMIF('Daily Log'!$U$18:$U$1017,$B80,'Daily Log'!$V$18:$V$1017),0) -> 0 | AG80: =IFERROR($E80*SUMIF('Daily Log'!#REF!,$B80,'Daily Log'!#REF!),0) -> 0 | AH80: =IFERROR($E80*SUMIF('Daily Log'!#REF!,$B80,'Daily Log'!#REF!),0) -> 0 | AI80: =IFERROR($E80*SUMIF('Daily Log'!#REF!,$B80,'Daily Log'!#REF!),0) -> 0 | AJ80: =IFERROR($E80*SUMIF('Daily Log'!#REF!,$B80,'Daily Log'!#REF!),0) -> 0 | AK80: =IFERROR($E80*SUMIF('Daily Log'!#REF!,$B80,'Daily Log'!#REF!),0) -> 0
B81: CE08 LEMON HONEY (C) | D81: SIDE ORDER-COLD BEVERAGE | E81: 1 | F81: 0 | G81: =IFERROR($E81*SUMIF('Daily Log'!#REF!,$B81,'Daily Log'!#REF!),0) -> 0 | H81: =IFERROR($E81*SUMIF('Daily Log'!#REF!,$B81,'Daily Log'!#REF!),0) -> 0 | I81: =IFERROR($E81*SUMIF('Daily Log'!#REF!,$B81,'Daily Log'!#REF!),0) -> 0 | J81: =IFERROR($E81*SUMIF('Daily Log'!#REF!,$B81,'Daily Log'!#REF!),0) -> 0 | K81: =IFERROR($E81*SUMIF('Daily Log'!#REF!,$B81,'Daily Log'!#REF!),0) -> 0 | L81: =IFERROR($E81*SUMIF('Daily Log'!#REF!,$B81,'Daily Log'!#REF!),0) -> 0 | M81: =IFERROR($E81*SUMIF('Daily Log'!#REF!,$B81,'Daily Log'!#REF!),0) -> 0 | N81: =IFERROR($E81*SUMIF('Daily Log'!#REF!,$B81,'Daily Log'!#REF!),0) -> 0 | O81: =IFERROR($E81*SUMIF('Daily Log'!#REF!,$B81,'Daily Log'!#REF!),0) -> 0 | P81: =IFERROR($E81*SUMIF('Daily Log'!#REF!,$B81,'Daily Log'!#REF!),0) -> 0 | Q81: =IFERROR($E81*SUMIF('Daily Log'!#REF!,$B81,'Daily Log'!#REF!),0) -> 0 | R81: =IFERROR($E81*SUMIF('Daily Log'!#REF!,$B81,'Daily Log'!#REF!),0) -> 0 | S81: =IFERROR($E81*SUMIF('Daily Log'!#REF!,$B81,'Daily Log'!#REF!),0) -> 0 | T81: =IFERROR($E81*SUMIF('Daily Log'!#REF!,$B81,'Daily Log'!#REF!),0) -> 0 | U81: =IFERROR($E81*SUMIF('Daily Log'!#REF!,$B81,'Daily Log'!#REF!),0) -> 0 | V81: =IFERROR($E81*SUMIF('Daily Log'!#REF!,$B81,'Daily Log'!#REF!),0) -> 0 | W81: =IFERROR($E81*SUMIF('Daily Log'!#REF!,$B81,'Daily Log'!#REF!),0) -> 0 | X81: =IFERROR($E81*SUMIF('Daily Log'!#REF!,$B81,'Daily Log'!#REF!),0) -> 0 | Y81: =IFERROR($E81*SUMIF('Daily Log'!#REF!,$B81,'Daily Log'!#REF!),0) -> 0 | Z81: =IFERROR($E81*SUMIF('Daily Log'!$C$18:$C$1017,$B81,'Daily Log'!$D$18:$D$1017),0) -> 0 | AA81: =IFERROR($E81*SUMIF('Daily Log'!$F$18:$F$1017,$B81,'Daily Log'!$G$18:$G$1017),0) -> 0 | AB81: =IFERROR($E81*SUMIF('Daily Log'!$I$18:$I$1017,$B81,'Daily Log'!$J$18:$J$1017),0) -> 0 | AC81: =IFERROR($E81*SUMIF('Daily Log'!$L$18:$L$1017,$B81,'Daily Log'!$M$18:$M$1017),0) -> 0 | AD81: =IFERROR($E81*SUMIF('Daily Log'!$O$18:$O$1017,$B81,'Daily Log'!$P$18:$P$1017),0) -> 0 | AE81: =IFERROR($E81*SUMIF('Daily Log'!$R$18:$R$1017,$B81,'Daily Log'!$S$18:$S$1017),0) -> 0 | AF81: =IFERROR($E81*SUMIF('Daily Log'!$U$18:$U$1017,$B81,'Daily Log'!$V$18:$V$1017),0) -> 0 | AG81: =IFERROR($E81*SUMIF('Daily Log'!#REF!,$B81,'Daily Log'!#REF!),0) -> 0 | AH81: =IFERROR($E81*SUMIF('Daily Log'!#REF!,$B81,'Daily Log'!#REF!),0) -> 0 | AI81: =IFERROR($E81*SUMIF('Daily Log'!#REF!,$B81,'Daily Log'!#REF!),0) -> 0 | AJ81: =IFERROR($E81*SUMIF('Daily Log'!#REF!,$B81,'Daily Log'!#REF!),0) -> 0 | AK81: =IFERROR($E81*SUMIF('Daily Log'!#REF!,$B81,'Daily Log'!#REF!),0) -> 0
B82: CF01 MILO (H) | D82: SIDE ORDER-HOT BEVERAGE | E82: 1 | F82: 0 | G82: =IFERROR($E82*SUMIF('Daily Log'!#REF!,$B82,'Daily Log'!#REF!),0) -> 0 | H82: =IFERROR($E82*SUMIF('Daily Log'!#REF!,$B82,'Daily Log'!#REF!),0) -> 0 | I82: =IFERROR($E82*SUMIF('Daily Log'!#REF!,$B82,'Daily Log'!#REF!),0) -> 0 | J82: =IFERROR($E82*SUMIF('Daily Log'!#REF!,$B82,'Daily Log'!#REF!),0) -> 0 | K82: =IFERROR($E82*SUMIF('Daily Log'!#REF!,$B82,'Daily Log'!#REF!),0) -> 0 | L82: =IFERROR($E82*SUMIF('Daily Log'!#REF!,$B82,'Daily Log'!#REF!),0) -> 0 | M82: =IFERROR($E82*SUMIF('Daily Log'!#REF!,$B82,'Daily Log'!#REF!),0) -> 0 | N82: =IFERROR($E82*SUMIF('Daily Log'!#REF!,$B82,'Daily Log'!#REF!),0) -> 0 | O82: =IFERROR($E82*SUMIF('Daily Log'!#REF!,$B82,'Daily Log'!#REF!),0) -> 0 | P82: =IFERROR($E82*SUMIF('Daily Log'!#REF!,$B82,'Daily Log'!#REF!),0) -> 0 | Q82: =IFERROR($E82*SUMIF('Daily Log'!#REF!,$B82,'Daily Log'!#REF!),0) -> 0 | R82: =IFERROR($E82*SUMIF('Daily Log'!#REF!,$B82,'Daily Log'!#REF!),0) -> 0 | S82: =IFERROR($E82*SUMIF('Daily Log'!#REF!,$B82,'Daily Log'!#REF!),0) -> 0 | T82: =IFERROR($E82*SUMIF('Daily Log'!#REF!,$B82,'Daily Log'!#REF!),0) -> 0 | U82: =IFERROR($E82*SUMIF('Daily Log'!#REF!,$B82,'Daily Log'!#REF!),0) -> 0 | V82: =IFERROR($E82*SUMIF('Daily Log'!#REF!,$B82,'Daily Log'!#REF!),0) -> 0 | W82: =IFERROR($E82*SUMIF('Daily Log'!#REF!,$B82,'Daily Log'!#REF!),0) -> 0 | X82: =IFERROR($E82*SUMIF('Daily Log'!#REF!,$B82,'Daily Log'!#REF!),0) -> 0 | Y82: =IFERROR($E82*SUMIF('Daily Log'!#REF!,$B82,'Daily Log'!#REF!),0) -> 0 | Z82: =IFERROR($E82*SUMIF('Daily Log'!$C$18:$C$1017,$B82,'Daily Log'!$D$18:$D$1017),0) -> 0 | AA82: =IFERROR($E82*SUMIF('Daily Log'!$F$18:$F$1017,$B82,'Daily Log'!$G$18:$G$1017),0) -> 0 | AB82: =IFERROR($E82*SUMIF('Daily Log'!$I$18:$I$1017,$B82,'Daily Log'!$J$18:$J$1017),0) -> 0 | AC82: =IFERROR($E82*SUMIF('Daily Log'!$L$18:$L$1017,$B82,'Daily Log'!$M$18:$M$1017),0) -> 0 | AD82: =IFERROR($E82*SUMIF('Daily Log'!$O$18:$O$1017,$B82,'Daily Log'!$P$18:$P$1017),0) -> 0 | AE82: =IFERROR($E82*SUMIF('Daily Log'!$R$18:$R$1017,$B82,'Daily Log'!$S$18:$S$1017),0) -> 0 | AF82: =IFERROR($E82*SUMIF('Daily Log'!$U$18:$U$1017,$B82,'Daily Log'!$V$18:$V$1017),0) -> 0 | AG82: =IFERROR($E82*SUMIF('Daily Log'!#REF!,$B82,'Daily Log'!#REF!),0) -> 0 | AH82: =IFERROR($E82*SUMIF('Daily Log'!#REF!,$B82,'Daily Log'!#REF!),0) -> 0 | AI82: =IFERROR($E82*SUMIF('Daily Log'!#REF!,$B82,'Daily Log'!#REF!),0) -> 0 | AJ82: =IFERROR($E82*SUMIF('Daily Log'!#REF!,$B82,'Daily Log'!#REF!),0) -> 0 | AK82: =IFERROR($E82*SUMIF('Daily Log'!#REF!,$B82,'Daily Log'!#REF!),0) -> 0
B83: CF02 NESCAFE (H) | D83: SIDE ORDER-HOT BEVERAGE | E83: 1 | F83: 0 | G83: =IFERROR($E83*SUMIF('Daily Log'!#REF!,$B83,'Daily Log'!#REF!),0) -> 0 | H83: =IFERROR($E83*SUMIF('Daily Log'!#REF!,$B83,'Daily Log'!#REF!),0) -> 0 | I83: =IFERROR($E83*SUMIF('Daily Log'!#REF!,$B83,'Daily Log'!#REF!),0) -> 0 | J83: =IFERROR($E83*SUMIF('Daily Log'!#REF!,$B83,'Daily Log'!#REF!),0) -> 0 | K83: =IFERROR($E83*SUMIF('Daily Log'!#REF!,$B83,'Daily Log'!#REF!),0) -> 0 | L83: =IFERROR($E83*SUMIF('Daily Log'!#REF!,$B83,'Daily Log'!#REF!),0) -> 0 | M83: =IFERROR($E83*SUMIF('Daily Log'!#REF!,$B83,'Daily Log'!#REF!),0) -> 0 | N83: =IFERROR($E83*SUMIF('Daily Log'!#REF!,$B83,'Daily Log'!#REF!),0) -> 0 | O83: =IFERROR($E83*SUMIF('Daily Log'!#REF!,$B83,'Daily Log'!#REF!),0) -> 0 | P83: =IFERROR($E83*SUMIF('Daily Log'!#REF!,$B83,'Daily Log'!#REF!),0) -> 0 | Q83: =IFERROR($E83*SUMIF('Daily Log'!#REF!,$B83,'Daily Log'!#REF!),0) -> 0 | R83: =IFERROR($E83*SUMIF('Daily Log'!#REF!,$B83,'Daily Log'!#REF!),0) -> 0 | S83: =IFERROR($E83*SUMIF('Daily Log'!#REF!,$B83,'Daily Log'!#REF!),0) -> 0 | T83: =IFERROR($E83*SUMIF('Daily Log'!#REF!,$B83,'Daily Log'!#REF!),0) -> 0 | U83: =IFERROR($E83*SUMIF('Daily Log'!#REF!,$B83,'Daily Log'!#REF!),0) -> 0 | V83: =IFERROR($E83*SUMIF('Daily Log'!#REF!,$B83,'Daily Log'!#REF!),0) -> 0 | W83: =IFERROR($E83*SUMIF('Daily Log'!#REF!,$B83,'Daily Log'!#REF!),0) -> 0 | X83: =IFERROR($E83*SUMIF('Daily Log'!#REF!,$B83,'Daily Log'!#REF!),0) -> 0 | Y83: =IFERROR($E83*SUMIF('Daily Log'!#REF!,$B83,'Daily Log'!#REF!),0) -> 0 | Z83: =IFERROR($E83*SUMIF('Daily Log'!$C$18:$C$1017,$B83,'Daily Log'!$D$18:$D$1017),0) -> 0 | AA83: =IFERROR($E83*SUMIF('Daily Log'!$F$18:$F$1017,$B83,'Daily Log'!$G$18:$G$1017),0) -> 0 | AB83: =IFERROR($E83*SUMIF('Daily Log'!$I$18:$I$1017,$B83,'Daily Log'!$J$18:$J$1017),0) -> 0 | AC83: =IFERROR($E83*SUMIF('Daily Log'!$L$18:$L$1017,$B83,'Daily Log'!$M$18:$M$1017),0) -> 0 | AD83: =IFERROR($E83*SUMIF('Daily Log'!$O$18:$O$1017,$B83,'Daily Log'!$P$18:$P$1017),0) -> 0 | AE83: =IFERROR($E83*SUMIF('Daily Log'!$R$18:$R$1017,$B83,'Daily Log'!$S$18:$S$1017),0) -> 0 | AF83: =IFERROR($E83*SUMIF('Daily Log'!$U$18:$U$1017,$B83,'Daily Log'!$V$18:$V$1017),0) -> 0 | AG83: =IFERROR($E83*SUMIF('Daily Log'!#REF!,$B83,'Daily Log'!#REF!),0) -> 0 | AH83: =IFERROR($E83*SUMIF('Daily Log'!#REF!,$B83,'Daily Log'!#REF!),0) -> 0 | AI83: =IFERROR($E83*SUMIF('Daily Log'!#REF!,$B83,'Daily Log'!#REF!),0) -> 0 | AJ83: =IFERROR($E83*SUMIF('Daily Log'!#REF!,$B83,'Daily Log'!#REF!),0) -> 0 | AK83: =IFERROR($E83*SUMIF('Daily Log'!#REF!,$B83,'Daily Log'!#REF!),0) -> 0
B84: CF03 TEA (H) | D84: SIDE ORDER-HOT BEVERAGE | E84: 1 | F84: 0 | G84: =IFERROR($E84*SUMIF('Daily Log'!#REF!,$B84,'Daily Log'!#REF!),0) -> 0 | H84: =IFERROR($E84*SUMIF('Daily Log'!#REF!,$B84,'Daily Log'!#REF!),0) -> 0 | I84: =IFERROR($E84*SUMIF('Daily Log'!#REF!,$B84,'Daily Log'!#REF!),0) -> 0 | J84: =IFERROR($E84*SUMIF('Daily Log'!#REF!,$B84,'Daily Log'!#REF!),0) -> 0 | K84: =IFERROR($E84*SUMIF('Daily Log'!#REF!,$B84,'Daily Log'!#REF!),0) -> 0 | L84: =IFERROR($E84*SUMIF('Daily Log'!#REF!,$B84,'Daily Log'!#REF!),0) -> 0 | M84: =IFERROR($E84*SUMIF('Daily Log'!#REF!,$B84,'Daily Log'!#REF!),0) -> 0 | N84: =IFERROR($E84*SUMIF('Daily Log'!#REF!,$B84,'Daily Log'!#REF!),0) -> 0 | O84: =IFERROR($E84*SUMIF('Daily Log'!#REF!,$B84,'Daily Log'!#REF!),0) -> 0 | P84: =IFERROR($E84*SUMIF('Daily Log'!#REF!,$B84,'Daily Log'!#REF!),0) -> 0 | Q84: =IFERROR($E84*SUMIF('Daily Log'!#REF!,$B84,'Daily Log'!#REF!),0) -> 0 | R84: =IFERROR($E84*SUMIF('Daily Log'!#REF!,$B84,'Daily Log'!#REF!),0) -> 0 | S84: =IFERROR($E84*SUMIF('Daily Log'!#REF!,$B84,'Daily Log'!#REF!),0) -> 0 | T84: =IFERROR($E84*SUMIF('Daily Log'!#REF!,$B84,'Daily Log'!#REF!),0) -> 0 | U84: =IFERROR($E84*SUMIF('Daily Log'!#REF!,$B84,'Daily Log'!#REF!),0) -> 0 | V84: =IFERROR($E84*SUMIF('Daily Log'!#REF!,$B84,'Daily Log'!#REF!),0) -> 0 | W84: =IFERROR($E84*SUMIF('Daily Log'!#REF!,$B84,'Daily Log'!#REF!),0) -> 0 | X84: =IFERROR($E84*SUMIF('Daily Log'!#REF!,$B84,'Daily Log'!#REF!),0) -> 0 | Y84: =IFERROR($E84*SUMIF('Daily Log'!#REF!,$B84,'Daily Log'!#REF!),0) -> 0 | Z84: =IFERROR($E84*SUMIF('Daily Log'!$C$18:$C$1017,$B84,'Daily Log'!$D$18:$D$1017),0) -> 0 | AA84: =IFERROR($E84*SUMIF('Daily Log'!$F$18:$F$1017,$B84,'Daily Log'!$G$18:$G$1017),0) -> 0 | AB84: =IFERROR($E84*SUMIF('Daily Log'!$I$18:$I$1017,$B84,'Daily Log'!$J$18:$J$1017),0) -> 0 | AC84: =IFERROR($E84*SUMIF('Daily Log'!$L$18:$L$1017,$B84,'Daily Log'!$M$18:$M$1017),0) -> 0 | AD84: =IFERROR($E84*SUMIF('Daily Log'!$O$18:$O$1017,$B84,'Daily Log'!$P$18:$P$1017),0) -> 0 | AE84: =IFERROR($E84*SUMIF('Daily Log'!$R$18:$R$1017,$B84,'Daily Log'!$S$18:$S$1017),0) -> 0 | AF84: =IFERROR($E84*SUMIF('Daily Log'!$U$18:$U$1017,$B84,'Daily Log'!$V$18:$V$1017),0) -> 0 | AG84: =IFERROR($E84*SUMIF('Daily Log'!#REF!,$B84,'Daily Log'!#REF!),0) -> 0 | AH84: =IFERROR($E84*SUMIF('Daily Log'!#REF!,$B84,'Daily Log'!#REF!),0) -> 0 | AI84: =IFERROR($E84*SUMIF('Daily Log'!#REF!,$B84,'Daily Log'!#REF!),0) -> 0 | AJ84: =IFERROR($E84*SUMIF('Daily Log'!#REF!,$B84,'Daily Log'!#REF!),0) -> 0 | AK84: =IFERROR($E84*SUMIF('Daily Log'!#REF!,$B84,'Daily Log'!#REF!),0) -> 0
B85: CF04 LEMON TEA (H) | D85: SIDE ORDER-HOT BEVERAGE | E85: 1 | F85: 0 | G85: =IFERROR($E85*SUMIF('Daily Log'!#REF!,$B85,'Daily Log'!#REF!),0) -> 0 | H85: =IFERROR($E85*SUMIF('Daily Log'!#REF!,$B85,'Daily Log'!#REF!),0) -> 0 | I85: =IFERROR($E85*SUMIF('Daily Log'!#REF!,$B85,'Daily Log'!#REF!),0) -> 0 | J85: =IFERROR($E85*SUMIF('Daily Log'!#REF!,$B85,'Daily Log'!#REF!),0) -> 0 | K85: =IFERROR($E85*SUMIF('Daily Log'!#REF!,$B85,'Daily Log'!#REF!),0) -> 0 | L85: =IFERROR($E85*SUMIF('Daily Log'!#REF!,$B85,'Daily Log'!#REF!),0) -> 0 | M85: =IFERROR($E85*SUMIF('Daily Log'!#REF!,$B85,'Daily Log'!#REF!),0) -> 0 | N85: =IFERROR($E85*SUMIF('Daily Log'!#REF!,$B85,'Daily Log'!#REF!),0) -> 0 | O85: =IFERROR($E85*SUMIF('Daily Log'!#REF!,$B85,'Daily Log'!#REF!),0) -> 0 | P85: =IFERROR($E85*SUMIF('Daily Log'!#REF!,$B85,'Daily Log'!#REF!),0) -> 0 | Q85: =IFERROR($E85*SUMIF('Daily Log'!#REF!,$B85,'Daily Log'!#REF!),0) -> 0 | R85: =IFERROR($E85*SUMIF('Daily Log'!#REF!,$B85,'Daily Log'!#REF!),0) -> 0 | S85: =IFERROR($E85*SUMIF('Daily Log'!#REF!,$B85,'Daily Log'!#REF!),0) -> 0 | T85: =IFERROR($E85*SUMIF('Daily Log'!#REF!,$B85,'Daily Log'!#REF!),0) -> 0 | U85: =IFERROR($E85*SUMIF('Daily Log'!#REF!,$B85,'Daily Log'!#REF!),0) -> 0 | V85: =IFERROR($E85*SUMIF('Daily Log'!#REF!,$B85,'Daily Log'!#REF!),0) -> 0 | W85: =IFERROR($E85*SUMIF('Daily Log'!#REF!,$B85,'Daily Log'!#REF!),0) -> 0 | X85: =IFERROR($E85*SUMIF('Daily Log'!#REF!,$B85,'Daily Log'!#REF!),0) -> 0 | Y85: =IFERROR($E85*SUMIF('Daily Log'!#REF!,$B85,'Daily Log'!#REF!),0) -> 0 | Z85: =IFERROR($E85*SUMIF('Daily Log'!$C$18:$C$1017,$B85,'Daily Log'!$D$18:$D$1017),0) -> 0 | AA85: =IFERROR($E85*SUMIF('Daily Log'!$F$18:$F$1017,$B85,'Daily Log'!$G$18:$G$1017),0) -> 0 | AB85: =IFERROR($E85*SUMIF('Daily Log'!$I$18:$I$1017,$B85,'Daily Log'!$J$18:$J$1017),0) -> 0 | AC85: =IFERROR($E85*SUMIF('Daily Log'!$L$18:$L$1017,$B85,'Daily Log'!$M$18:$M$1017),0) -> 0 | AD85: =IFERROR($E85*SUMIF('Daily Log'!$O$18:$O$1017,$B85,'Daily Log'!$P$18:$P$1017),0) -> 0 | AE85: =IFERROR($E85*SUMIF('Daily Log'!$R$18:$R$1017,$B85,'Daily Log'!$S$18:$S$1017),0) -> 0 | AF85: =IFERROR($E85*SUMIF('Daily Log'!$U$18:$U$1017,$B85,'Daily Log'!$V$18:$V$1017),0) -> 0 | AG85: =IFERROR($E85*SUMIF('Daily Log'!#REF!,$B85,'Daily Log'!#REF!),0) -> 0 | AH85: =IFERROR($E85*SUMIF('Daily Log'!#REF!,$B85,'Daily Log'!#REF!),0) -> 0 | AI85: =IFERROR($E85*SUMIF('Daily Log'!#REF!,$B85,'Daily Log'!#REF!),0) -> 0 | AJ85: =IFERROR($E85*SUMIF('Daily Log'!#REF!,$B85,'Daily Log'!#REF!),0) -> 0 | AK85: =IFERROR($E85*SUMIF('Daily Log'!#REF!,$B85,'Daily Log'!#REF!),0) -> 0
B86: CF05 GRN TEA (H) | D86: SIDE ORDER-HOT BEVERAGE | E86: 1 | F86: 1 | G86: =IFERROR($E86*SUMIF('Daily Log'!#REF!,$B86,'Daily Log'!#REF!),0) -> 0 | H86: =IFERROR($E86*SUMIF('Daily Log'!#REF!,$B86,'Daily Log'!#REF!),0) -> 0 | I86: =IFERROR($E86*SUMIF('Daily Log'!#REF!,$B86,'Daily Log'!#REF!),0) -> 0 | J86: =IFERROR($E86*SUMIF('Daily Log'!#REF!,$B86,'Daily Log'!#REF!),0) -> 0 | K86: =IFERROR($E86*SUMIF('Daily Log'!#REF!,$B86,'Daily Log'!#REF!),0) -> 0 | L86: =IFERROR($E86*SUMIF('Daily Log'!#REF!,$B86,'Daily Log'!#REF!),0) -> 0 | M86: =IFERROR($E86*SUMIF('Daily Log'!#REF!,$B86,'Daily Log'!#REF!),0) -> 0 | N86: =IFERROR($E86*SUMIF('Daily Log'!#REF!,$B86,'Daily Log'!#REF!),0) -> 0 | O86: =IFERROR($E86*SUMIF('Daily Log'!#REF!,$B86,'Daily Log'!#REF!),0) -> 0 | P86: =IFERROR($E86*SUMIF('Daily Log'!#REF!,$B86,'Daily Log'!#REF!),0) -> 0 | Q86: =IFERROR($E86*SUMIF('Daily Log'!#REF!,$B86,'Daily Log'!#REF!),0) -> 0 | R86: =IFERROR($E86*SUMIF('Daily Log'!#REF!,$B86,'Daily Log'!#REF!),0) -> 0 | S86: =IFERROR($E86*SUMIF('Daily Log'!#REF!,$B86,'Daily Log'!#REF!),0) -> 0 | T86: =IFERROR($E86*SUMIF('Daily Log'!#REF!,$B86,'Daily Log'!#REF!),0) -> 0 | U86: =IFERROR($E86*SUMIF('Daily Log'!#REF!,$B86,'Daily Log'!#REF!),0) -> 0 | V86: =IFERROR($E86*SUMIF('Daily Log'!#REF!,$B86,'Daily Log'!#REF!),0) -> 0 | W86: =IFERROR($E86*SUMIF('Daily Log'!#REF!,$B86,'Daily Log'!#REF!),0) -> 0 | X86: =IFERROR($E86*SUMIF('Daily Log'!#REF!,$B86,'Daily Log'!#REF!),0) -> 0 | Y86: =IFERROR($E86*SUMIF('Daily Log'!#REF!,$B86,'Daily Log'!#REF!),0) -> 0 | Z86: =IFERROR($E86*SUMIF('Daily Log'!$C$18:$C$1017,$B86,'Daily Log'!$D$18:$D$1017),0) -> 0 | AA86: =IFERROR($E86*SUMIF('Daily Log'!$F$18:$F$1017,$B86,'Daily Log'!$G$18:$G$1017),0) -> 0 | AB86: =IFERROR($E86*SUMIF('Daily Log'!$I$18:$I$1017,$B86,'Daily Log'!$J$18:$J$1017),0) -> 0 | AC86: =IFERROR($E86*SUMIF('Daily Log'!$L$18:$L$1017,$B86,'Daily Log'!$M$18:$M$1017),0) -> 0 | AD86: =IFERROR($E86*SUMIF('Daily Log'!$O$18:$O$1017,$B86,'Daily Log'!$P$18:$P$1017),0) -> 1 | AE86: =IFERROR($E86*SUMIF('Daily Log'!$R$18:$R$1017,$B86,'Daily Log'!$S$18:$S$1017),0) -> 0 | AF86: =IFERROR($E86*SUMIF('Daily Log'!$U$18:$U$1017,$B86,'Daily Log'!$V$18:$V$1017),0) -> 0 | AG86: =IFERROR($E86*SUMIF('Daily Log'!#REF!,$B86,'Daily Log'!#REF!),0) -> 0 | AH86: =IFERROR($E86*SUMIF('Daily Log'!#REF!,$B86,'Daily Log'!#REF!),0) -> 0 | AI86: =IFERROR($E86*SUMIF('Daily Log'!#REF!,$B86,'Daily Log'!#REF!),0) -> 0 | AJ86: =IFERROR($E86*SUMIF('Daily Log'!#REF!,$B86,'Daily Log'!#REF!),0) -> 0 | AK86: =IFERROR($E86*SUMIF('Daily Log'!#REF!,$B86,'Daily Log'!#REF!),0) -> 0
B87: CF06 HNY GRN TEA (H) | D87: SIDE ORDER-HOT BEVERAGE | E87: 1 | F87: 1 | G87: =IFERROR($E87*SUMIF('Daily Log'!#REF!,$B87,'Daily Log'!#REF!),0) -> 0 | H87: =IFERROR($E87*SUMIF('Daily Log'!#REF!,$B87,'Daily Log'!#REF!),0) -> 0 | I87: =IFERROR($E87*SUMIF('Daily Log'!#REF!,$B87,'Daily Log'!#REF!),0) -> 0 | J87: =IFERROR($E87*SUMIF('Daily Log'!#REF!,$B87,'Daily Log'!#REF!),0) -> 0 | K87: =IFERROR($E87*SUMIF('Daily Log'!#REF!,$B87,'Daily Log'!#REF!),0) -> 0 | L87: =IFERROR($E87*SUMIF('Daily Log'!#REF!,$B87,'Daily Log'!#REF!),0) -> 0 | M87: =IFERROR($E87*SUMIF('Daily Log'!#REF!,$B87,'Daily Log'!#REF!),0) -> 0 | N87: =IFERROR($E87*SUMIF('Daily Log'!#REF!,$B87,'Daily Log'!#REF!),0) -> 0 | O87: =IFERROR($E87*SUMIF('Daily Log'!#REF!,$B87,'Daily Log'!#REF!),0) -> 0 | P87: =IFERROR($E87*SUMIF('Daily Log'!#REF!,$B87,'Daily Log'!#REF!),0) -> 0 | Q87: =IFERROR($E87*SUMIF('Daily Log'!#REF!,$B87,'Daily Log'!#REF!),0) -> 0 | R87: =IFERROR($E87*SUMIF('Daily Log'!#REF!,$B87,'Daily Log'!#REF!),0) -> 0 | S87: =IFERROR($E87*SUMIF('Daily Log'!#REF!,$B87,'Daily Log'!#REF!),0) -> 0 | T87: =IFERROR($E87*SUMIF('Daily Log'!#REF!,$B87,'Daily Log'!#REF!),0) -> 0 | U87: =IFERROR($E87*SUMIF('Daily Log'!#REF!,$B87,'Daily Log'!#REF!),0) -> 0 | V87: =IFERROR($E87*SUMIF('Daily Log'!#REF!,$B87,'Daily Log'!#REF!),0) -> 0 | W87: =IFERROR($E87*SUMIF('Daily Log'!#REF!,$B87,'Daily Log'!#REF!),0) -> 0 | X87: =IFERROR($E87*SUMIF('Daily Log'!#REF!,$B87,'Daily Log'!#REF!),0) -> 0 | Y87: =IFERROR($E87*SUMIF('Daily Log'!#REF!,$B87,'Daily Log'!#REF!),0) -> 0 | Z87: =IFERROR($E87*SUMIF('Daily Log'!$C$18:$C$1017,$B87,'Daily Log'!$D$18:$D$1017),0) -> 1 | AA87: =IFERROR($E87*SUMIF('Daily Log'!$F$18:$F$1017,$B87,'Daily Log'!$G$18:$G$1017),0) -> 0 | AB87: =IFERROR($E87*SUMIF('Daily Log'!$I$18:$I$1017,$B87,'Daily Log'!$J$18:$J$1017),0) -> 0 | AC87: =IFERROR($E87*SUMIF('Daily Log'!$L$18:$L$1017,$B87,'Daily Log'!$M$18:$M$1017),0) -> 0 | AD87: =IFERROR($E87*SUMIF('Daily Log'!$O$18:$O$1017,$B87,'Daily Log'!$P$18:$P$1017),0) -> 0 | AE87: =IFERROR($E87*SUMIF('Daily Log'!$R$18:$R$1017,$B87,'Daily Log'!$S$18:$S$1017),0) -> 0 | AF87: =IFERROR($E87*SUMIF('Daily Log'!$U$18:$U$1017,$B87,'Daily Log'!$V$18:$V$1017),0) -> 0 | AG87: =IFERROR($E87*SUMIF('Daily Log'!#REF!,$B87,'Daily Log'!#REF!),0) -> 0 | AH87: =IFERROR($E87*SUMIF('Daily Log'!#REF!,$B87,'Daily Log'!#REF!),0) -> 0 | AI87: =IFERROR($E87*SUMIF('Daily Log'!#REF!,$B87,'Daily Log'!#REF!),0) -> 0 | AJ87: =IFERROR($E87*SUMIF('Daily Log'!#REF!,$B87,'Daily Log'!#REF!),0) -> 0 | AK87: =IFERROR($E87*SUMIF('Daily Log'!#REF!,$B87,'Daily Log'!#REF!),0) -> 0
B88: CF07 HONEY (H) | D88: SIDE ORDER-HOT BEVERAGE | E88: 1 | F88: 0 | G88: =IFERROR($E88*SUMIF('Daily Log'!#REF!,$B88,'Daily Log'!#REF!),0) -> 0 | H88: =IFERROR($E88*SUMIF('Daily Log'!#REF!,$B88,'Daily Log'!#REF!),0) -> 0 | I88: =IFERROR($E88*SUMIF('Daily Log'!#REF!,$B88,'Daily Log'!#REF!),0) -> 0 | J88: =IFERROR($E88*SUMIF('Daily Log'!#REF!,$B88,'Daily Log'!#REF!),0) -> 0 | K88: =IFERROR($E88*SUMIF('Daily Log'!#REF!,$B88,'Daily Log'!#REF!),0) -> 0 | L88: =IFERROR($E88*SUMIF('Daily Log'!#REF!,$B88,'Daily Log'!#REF!),0) -> 0 | M88: =IFERROR($E88*SUMIF('Daily Log'!#REF!,$B88,'Daily Log'!#REF!),0) -> 0 | N88: =IFERROR($E88*SUMIF('Daily Log'!#REF!,$B88,'Daily Log'!#REF!),0) -> 0 | O88: =IFERROR($E88*SUMIF('Daily Log'!#REF!,$B88,'Daily Log'!#REF!),0) -> 0 | P88: =IFERROR($E88*SUMIF('Daily Log'!#REF!,$B88,'Daily Log'!#REF!),0) -> 0 | Q88: =IFERROR($E88*SUMIF('Daily Log'!#REF!,$B88,'Daily Log'!#REF!),0) -> 0 | R88: =IFERROR($E88*SUMIF('Daily Log'!#REF!,$B88,'Daily Log'!#REF!),0) -> 0 | S88: =IFERROR($E88*SUMIF('Daily Log'!#REF!,$B88,'Daily Log'!#REF!),0) -> 0 | T88: =IFERROR($E88*SUMIF('Daily Log'!#REF!,$B88,'Daily Log'!#REF!),0) -> 0 | U88: =IFERROR($E88*SUMIF('Daily Log'!#REF!,$B88,'Daily Log'!#REF!),0) -> 0 | V88: =IFERROR($E88*SUMIF('Daily Log'!#REF!,$B88,'Daily Log'!#REF!),0) -> 0 | W88: =IFERROR($E88*SUMIF('Daily Log'!#REF!,$B88,'Daily Log'!#REF!),0) -> 0 | X88: =IFERROR($E88*SUMIF('Daily Log'!#REF!,$B88,'Daily Log'!#REF!),0) -> 0 | Y88: =IFERROR($E88*SUMIF('Daily Log'!#REF!,$B88,'Daily Log'!#REF!),0) -> 0 | Z88: =IFERROR($E88*SUMIF('Daily Log'!$C$18:$C$1017,$B88,'Daily Log'!$D$18:$D$1017),0) -> 0 | AA88: =IFERROR($E88*SUMIF('Daily Log'!$F$18:$F$1017,$B88,'Daily Log'!$G$18:$G$1017),0) -> 0 | AB88: =IFERROR($E88*SUMIF('Daily Log'!$I$18:$I$1017,$B88,'Daily Log'!$J$18:$J$1017),0) -> 0 | AC88: =IFERROR($E88*SUMIF('Daily Log'!$L$18:$L$1017,$B88,'Daily Log'!$M$18:$M$1017),0) -> 0 | AD88: =IFERROR($E88*SUMIF('Daily Log'!$O$18:$O$1017,$B88,'Daily Log'!$P$18:$P$1017),0) -> 0 | AE88: =IFERROR($E88*SUMIF('Daily Log'!$R$18:$R$1017,$B88,'Daily Log'!$S$18:$S$1017),0) -> 0 | AF88: =IFERROR($E88*SUMIF('Daily Log'!$U$18:$U$1017,$B88,'Daily Log'!$V$18:$V$1017),0) -> 0 | AG88: =IFERROR($E88*SUMIF('Daily Log'!#REF!,$B88,'Daily Log'!#REF!),0) -> 0 | AH88: =IFERROR($E88*SUMIF('Daily Log'!#REF!,$B88,'Daily Log'!#REF!),0) -> 0 | AI88: =IFERROR($E88*SUMIF('Daily Log'!#REF!,$B88,'Daily Log'!#REF!),0) -> 0 | AJ88: =IFERROR($E88*SUMIF('Daily Log'!#REF!,$B88,'Daily Log'!#REF!),0) -> 0 | AK88: =IFERROR($E88*SUMIF('Daily Log'!#REF!,$B88,'Daily Log'!#REF!),0) -> 0
B89: CF08 LEMON HONEY (H) | D89: SIDE ORDER-HOT BEVERAGE | E89: 1 | F89: 3 | G89: =IFERROR($E89*SUMIF('Daily Log'!#REF!,$B89,'Daily Log'!#REF!),0) -> 0 | H89: =IFERROR($E89*SUMIF('Daily Log'!#REF!,$B89,'Daily Log'!#REF!),0) -> 0 | I89: =IFERROR($E89*SUMIF('Daily Log'!#REF!,$B89,'Daily Log'!#REF!),0) -> 0 | J89: =IFERROR($E89*SUMIF('Daily Log'!#REF!,$B89,'Daily Log'!#REF!),0) -> 0 | K89: =IFERROR($E89*SUMIF('Daily Log'!#REF!,$B89,'Daily Log'!#REF!),0) -> 0 | L89: =IFERROR($E89*SUMIF('Daily Log'!#REF!,$B89,'Daily Log'!#REF!),0) -> 0 | M89: =IFERROR($E89*SUMIF('Daily Log'!#REF!,$B89,'Daily Log'!#REF!),0) -> 0 | N89: =IFERROR($E89*SUMIF('Daily Log'!#REF!,$B89,'Daily Log'!#REF!),0) -> 0 | O89: =IFERROR($E89*SUMIF('Daily Log'!#REF!,$B89,'Daily Log'!#REF!),0) -> 0 | P89: =IFERROR($E89*SUMIF('Daily Log'!#REF!,$B89,'Daily Log'!#REF!),0) -> 0 | Q89: =IFERROR($E89*SUMIF('Daily Log'!#REF!,$B89,'Daily Log'!#REF!),0) -> 0 | R89: =IFERROR($E89*SUMIF('Daily Log'!#REF!,$B89,'Daily Log'!#REF!),0) -> 0 | S89: =IFERROR($E89*SUMIF('Daily Log'!#REF!,$B89,'Daily Log'!#REF!),0) -> 0 | T89: =IFERROR($E89*SUMIF('Daily Log'!#REF!,$B89,'Daily Log'!#REF!),0) -> 0 | U89: =IFERROR($E89*SUMIF('Daily Log'!#REF!,$B89,'Daily Log'!#REF!),0) -> 0 | V89: =IFERROR($E89*SUMIF('Daily Log'!#REF!,$B89,'Daily Log'!#REF!),0) -> 0 | W89: =IFERROR($E89*SUMIF('Daily Log'!#REF!,$B89,'Daily Log'!#REF!),0) -> 0 | X89: =IFERROR($E89*SUMIF('Daily Log'!#REF!,$B89,'Daily Log'!#REF!),0) -> 0 | Y89: =IFERROR($E89*SUMIF('Daily Log'!#REF!,$B89,'Daily Log'!#REF!),0) -> 0 | Z89: =IFERROR($E89*SUMIF('Daily Log'!$C$18:$C$1017,$B89,'Daily Log'!$D$18:$D$1017),0) -> 0 | AA89: =IFERROR($E89*SUMIF('Daily Log'!$F$18:$F$1017,$B89,'Daily Log'!$G$18:$G$1017),0) -> 0 | AB89: =IFERROR($E89*SUMIF('Daily Log'!$I$18:$I$1017,$B89,'Daily Log'!$J$18:$J$1017),0) -> 0 | AC89: =IFERROR($E89*SUMIF('Daily Log'!$L$18:$L$1017,$B89,'Daily Log'!$M$18:$M$1017),0) -> 0 | AD89: =IFERROR($E89*SUMIF('Daily Log'!$O$18:$O$1017,$B89,'Daily Log'!$P$18:$P$1017),0) -> 0 | AE89: =IFERROR($E89*SUMIF('Daily Log'!$R$18:$R$1017,$B89,'Daily Log'!$S$18:$S$1017),0) -> 3 | AF89: =IFERROR($E89*SUMIF('Daily Log'!$U$18:$U$1017,$B89,'Daily Log'!$V$18:$V$1017),0) -> 0 | AG89: =IFERROR($E89*SUMIF('Daily Log'!#REF!,$B89,'Daily Log'!#REF!),0) -> 0 | AH89: =IFERROR($E89*SUMIF('Daily Log'!#REF!,$B89,'Daily Log'!#REF!),0) -> 0 | AI89: =IFERROR($E89*SUMIF('Daily Log'!#REF!,$B89,'Daily Log'!#REF!),0) -> 0 | AJ89: =IFERROR($E89*SUMIF('Daily Log'!#REF!,$B89,'Daily Log'!#REF!),0) -> 0 | AK89: =IFERROR($E89*SUMIF('Daily Log'!#REF!,$B89,'Daily Log'!#REF!),0) -> 0
B90: CF09 CAPPUCCINO (H) | D90: SIDE ORDER-HOT BEVERAGE | E90: 1 | F90: 0 | G90: =IFERROR($E90*SUMIF('Daily Log'!#REF!,$B90,'Daily Log'!#REF!),0) -> 0 | H90: =IFERROR($E90*SUMIF('Daily Log'!#REF!,$B90,'Daily Log'!#REF!),0) -> 0 | I90: =IFERROR($E90*SUMIF('Daily Log'!#REF!,$B90,'Daily Log'!#REF!),0) -> 0 | J90: =IFERROR($E90*SUMIF('Daily Log'!#REF!,$B90,'Daily Log'!#REF!),0) -> 0 | K90: =IFERROR($E90*SUMIF('Daily Log'!#REF!,$B90,'Daily Log'!#REF!),0) -> 0 | L90: =IFERROR($E90*SUMIF('Daily Log'!#REF!,$B90,'Daily Log'!#REF!),0) -> 0 | M90: =IFERROR($E90*SUMIF('Daily Log'!#REF!,$B90,'Daily Log'!#REF!),0) -> 0 | N90: =IFERROR($E90*SUMIF('Daily Log'!#REF!,$B90,'Daily Log'!#REF!),0) -> 0 | O90: =IFERROR($E90*SUMIF('Daily Log'!#REF!,$B90,'Daily Log'!#REF!),0) -> 0 | P90: =IFERROR($E90*SUMIF('Daily Log'!#REF!,$B90,'Daily Log'!#REF!),0) -> 0 | Q90: =IFERROR($E90*SUMIF('Daily Log'!#REF!,$B90,'Daily Log'!#REF!),0) -> 0 | R90: =IFERROR($E90*SUMIF('Daily Log'!#REF!,$B90,'Daily Log'!#REF!),0) -> 0 | S90: =IFERROR($E90*SUMIF('Daily Log'!#REF!,$B90,'Daily Log'!#REF!),0) -> 0 | T90: =IFERROR($E90*SUMIF('Daily Log'!#REF!,$B90,'Daily Log'!#REF!),0) -> 0 | U90: =IFERROR($E90*SUMIF('Daily Log'!#REF!,$B90,'Daily Log'!#REF!),0) -> 0 | V90: =IFERROR($E90*SUMIF('Daily Log'!#REF!,$B90,'Daily Log'!#REF!),0) -> 0 | W90: =IFERROR($E90*SUMIF('Daily Log'!#REF!,$B90,'Daily Log'!#REF!),0) -> 0 | X90: =IFERROR($E90*SUMIF('Daily Log'!#REF!,$B90,'Daily Log'!#REF!),0) -> 0 | Y90: =IFERROR($E90*SUMIF('Daily Log'!#REF!,$B90,'Daily Log'!#REF!),0) -> 0 | Z90: =IFERROR($E90*SUMIF('Daily Log'!$C$18:$C$1017,$B90,'Daily Log'!$D$18:$D$1017),0) -> 0 | AA90: =IFERROR($E90*SUMIF('Daily Log'!$F$18:$F$1017,$B90,'Daily Log'!$G$18:$G$1017),0) -> 0 | AB90: =IFERROR($E90*SUMIF('Daily Log'!$I$18:$I$1017,$B90,'Daily Log'!$J$18:$J$1017),0) -> 0 | AC90: =IFERROR($E90*SUMIF('Daily Log'!$L$18:$L$1017,$B90,'Daily Log'!$M$18:$M$1017),0) -> 0 | AD90: =IFERROR($E90*SUMIF('Daily Log'!$O$18:$O$1017,$B90,'Daily Log'!$P$18:$P$1017),0) -> 0 | AE90: =IFERROR($E90*SUMIF('Daily Log'!$R$18:$R$1017,$B90,'Daily Log'!$S$18:$S$1017),0) -> 0 | AF90: =IFERROR($E90*SUMIF('Daily Log'!$U$18:$U$1017,$B90,'Daily Log'!$V$18:$V$1017),0) -> 0 | AG90: =IFERROR($E90*SUMIF('Daily Log'!#REF!,$B90,'Daily Log'!#REF!),0) -> 0 | AH90: =IFERROR($E90*SUMIF('Daily Log'!#REF!,$B90,'Daily Log'!#REF!),0) -> 0 | AI90: =IFERROR($E90*SUMIF('Daily Log'!#REF!,$B90,'Daily Log'!#REF!),0) -> 0 | AJ90: =IFERROR($E90*SUMIF('Daily Log'!#REF!,$B90,'Daily Log'!#REF!),0) -> 0 | AK90: =IFERROR($E90*SUMIF('Daily Log'!#REF!,$B90,'Daily Log'!#REF!),0) -> 0
B91: CF10 CHOCOLATE (H) | D91: SIDE ORDER-HOT BEVERAGE | E91: 1 | F91: 1 | G91: =IFERROR($E91*SUMIF('Daily Log'!#REF!,$B91,'Daily Log'!#REF!),0) -> 0 | H91: =IFERROR($E91*SUMIF('Daily Log'!#REF!,$B91,'Daily Log'!#REF!),0) -> 0 | I91: =IFERROR($E91*SUMIF('Daily Log'!#REF!,$B91,'Daily Log'!#REF!),0) -> 0 | J91: =IFERROR($E91*SUMIF('Daily Log'!#REF!,$B91,'Daily Log'!#REF!),0) -> 0 | K91: =IFERROR($E91*SUMIF('Daily Log'!#REF!,$B91,'Daily Log'!#REF!),0) -> 0 | L91: =IFERROR($E91*SUMIF('Daily Log'!#REF!,$B91,'Daily Log'!#REF!),0) -> 0 | M91: =IFERROR($E91*SUMIF('Daily Log'!#REF!,$B91,'Daily Log'!#REF!),0) -> 0 | N91: =IFERROR($E91*SUMIF('Daily Log'!#REF!,$B91,'Daily Log'!#REF!),0) -> 0 | O91: =IFERROR($E91*SUMIF('Daily Log'!#REF!,$B91,'Daily Log'!#REF!),0) -> 0 | P91: =IFERROR($E91*SUMIF('Daily Log'!#REF!,$B91,'Daily Log'!#REF!),0) -> 0 | Q91: =IFERROR($E91*SUMIF('Daily Log'!#REF!,$B91,'Daily Log'!#REF!),0) -> 0 | R91: =IFERROR($E91*SUMIF('Daily Log'!#REF!,$B91,'Daily Log'!#REF!),0) -> 0 | S91: =IFERROR($E91*SUMIF('Daily Log'!#REF!,$B91,'Daily Log'!#REF!),0) -> 0 | T91: =IFERROR($E91*SUMIF('Daily Log'!#REF!,$B91,'Daily Log'!#REF!),0) -> 0 | U91: =IFERROR($E91*SUMIF('Daily Log'!#REF!,$B91,'Daily Log'!#REF!),0) -> 0 | V91: =IFERROR($E91*SUMIF('Daily Log'!#REF!,$B91,'Daily Log'!#REF!),0) -> 0 | W91: =IFERROR($E91*SUMIF('Daily Log'!#REF!,$B91,'Daily Log'!#REF!),0) -> 0 | X91: =IFERROR($E91*SUMIF('Daily Log'!#REF!,$B91,'Daily Log'!#REF!),0) -> 0 | Y91: =IFERROR($E91*SUMIF('Daily Log'!#REF!,$B91,'Daily Log'!#REF!),0) -> 0 | Z91: =IFERROR($E91*SUMIF('Daily Log'!$C$18:$C$1017,$B91,'Daily Log'!$D$18:$D$1017),0) -> 0 | AA91: =IFERROR($E91*SUMIF('Daily Log'!$F$18:$F$1017,$B91,'Daily Log'!$G$18:$G$1017),0) -> 0 | AB91: =IFERROR($E91*SUMIF('Daily Log'!$I$18:$I$1017,$B91,'Daily Log'!$J$18:$J$1017),0) -> 0 | AC91: =IFERROR($E91*SUMIF('Daily Log'!$L$18:$L$1017,$B91,'Daily Log'!$M$18:$M$1017),0) -> 0 | AD91: =IFERROR($E91*SUMIF('Daily Log'!$O$18:$O$1017,$B91,'Daily Log'!$P$18:$P$1017),0) -> 0 | AE91: =IFERROR($E91*SUMIF('Daily Log'!$R$18:$R$1017,$B91,'Daily Log'!$S$18:$S$1017),0) -> 1 | AF91: =IFERROR($E91*SUMIF('Daily Log'!$U$18:$U$1017,$B91,'Daily Log'!$V$18:$V$1017),0) -> 0 | AG91: =IFERROR($E91*SUMIF('Daily Log'!#REF!,$B91,'Daily Log'!#REF!),0) -> 0 | AH91: =IFERROR($E91*SUMIF('Daily Log'!#REF!,$B91,'Daily Log'!#REF!),0) -> 0 | AI91: =IFERROR($E91*SUMIF('Daily Log'!#REF!,$B91,'Daily Log'!#REF!),0) -> 0 | AJ91: =IFERROR($E91*SUMIF('Daily Log'!#REF!,$B91,'Daily Log'!#REF!),0) -> 0 | AK91: =IFERROR($E91*SUMIF('Daily Log'!#REF!,$B91,'Daily Log'!#REF!),0) -> 0
B92: CF11 MOCHA (H) | D92: SIDE ORDER-HOT BEVERAGE | E92: 1 | F92: 1 | G92: =IFERROR($E92*SUMIF('Daily Log'!#REF!,$B92,'Daily Log'!#REF!),0) -> 0 | H92: =IFERROR($E92*SUMIF('Daily Log'!#REF!,$B92,'Daily Log'!#REF!),0) -> 0 | I92: =IFERROR($E92*SUMIF('Daily Log'!#REF!,$B92,'Daily Log'!#REF!),0) -> 0 | J92: =IFERROR($E92*SUMIF('Daily Log'!#REF!,$B92,'Daily Log'!#REF!),0) -> 0 | K92: =IFERROR($E92*SUMIF('Daily Log'!#REF!,$B92,'Daily Log'!#REF!),0) -> 0 | L92: =IFERROR($E92*SUMIF('Daily Log'!#REF!,$B92,'Daily Log'!#REF!),0) -> 0 | M92: =IFERROR($E92*SUMIF('Daily Log'!#REF!,$B92,'Daily Log'!#REF!),0) -> 0 | N92: =IFERROR($E92*SUMIF('Daily Log'!#REF!,$B92,'Daily Log'!#REF!),0) -> 0 | O92: =IFERROR($E92*SUMIF('Daily Log'!#REF!,$B92,'Daily Log'!#REF!),0) -> 0 | P92: =IFERROR($E92*SUMIF('Daily Log'!#REF!,$B92,'Daily Log'!#REF!),0) -> 0 | Q92: =IFERROR($E92*SUMIF('Daily Log'!#REF!,$B92,'Daily Log'!#REF!),0) -> 0 | R92: =IFERROR($E92*SUMIF('Daily Log'!#REF!,$B92,'Daily Log'!#REF!),0) -> 0 | S92: =IFERROR($E92*SUMIF('Daily Log'!#REF!,$B92,'Daily Log'!#REF!),0) -> 0 | T92: =IFERROR($E92*SUMIF('Daily Log'!#REF!,$B92,'Daily Log'!#REF!),0) -> 0 | U92: =IFERROR($E92*SUMIF('Daily Log'!#REF!,$B92,'Daily Log'!#REF!),0) -> 0 | V92: =IFERROR($E92*SUMIF('Daily Log'!#REF!,$B92,'Daily Log'!#REF!),0) -> 0 | W92: =IFERROR($E92*SUMIF('Daily Log'!#REF!,$B92,'Daily Log'!#REF!),0) -> 0 | X92: =IFERROR($E92*SUMIF('Daily Log'!#REF!,$B92,'Daily Log'!#REF!),0) -> 0 | Y92: =IFERROR($E92*SUMIF('Daily Log'!#REF!,$B92,'Daily Log'!#REF!),0) -> 0 | Z92: =IFERROR($E92*SUMIF('Daily Log'!$C$18:$C$1017,$B92,'Daily Log'!$D$18:$D$1017),0) -> 0 | AA92: =IFERROR($E92*SUMIF('Daily Log'!$F$18:$F$1017,$B92,'Daily Log'!$G$18:$G$1017),0) -> 0 | AB92: =IFERROR($E92*SUMIF('Daily Log'!$I$18:$I$1017,$B92,'Daily Log'!$J$18:$J$1017),0) -> 0 | AC92: =IFERROR($E92*SUMIF('Daily Log'!$L$18:$L$1017,$B92,'Daily Log'!$M$18:$M$1017),0) -> 0 | AD92: =IFERROR($E92*SUMIF('Daily Log'!$O$18:$O$1017,$B92,'Daily Log'!$P$18:$P$1017),0) -> 0 | AE92: =IFERROR($E92*SUMIF('Daily Log'!$R$18:$R$1017,$B92,'Daily Log'!$S$18:$S$1017),0) -> 0 | AF92: =IFERROR($E92*SUMIF('Daily Log'!$U$18:$U$1017,$B92,'Daily Log'!$V$18:$V$1017),0) -> 1 | AG92: =IFERROR($E92*SUMIF('Daily Log'!#REF!,$B92,'Daily Log'!#REF!),0) -> 0 | AH92: =IFERROR($E92*SUMIF('Daily Log'!#REF!,$B92,'Daily Log'!#REF!),0) -> 0 | AI92: =IFERROR($E92*SUMIF('Daily Log'!#REF!,$B92,'Daily Log'!#REF!),0) -> 0 | AJ92: =IFERROR($E92*SUMIF('Daily Log'!#REF!,$B92,'Daily Log'!#REF!),0) -> 0 | AK92: =IFERROR($E92*SUMIF('Daily Log'!#REF!,$B92,'Daily Log'!#REF!),0) -> 0
B93: CF12 CHAMOMILE (H) | D93: SIDE ORDER-HOT BEVERAGE | E93: 1 | F93: 0 | G93: =IFERROR($E93*SUMIF('Daily Log'!#REF!,$B93,'Daily Log'!#REF!),0) -> 0 | H93: =IFERROR($E93*SUMIF('Daily Log'!#REF!,$B93,'Daily Log'!#REF!),0) -> 0 | I93: =IFERROR($E93*SUMIF('Daily Log'!#REF!,$B93,'Daily Log'!#REF!),0) -> 0 | J93: =IFERROR($E93*SUMIF('Daily Log'!#REF!,$B93,'Daily Log'!#REF!),0) -> 0 | K93: =IFERROR($E93*SUMIF('Daily Log'!#REF!,$B93,'Daily Log'!#REF!),0) -> 0 | L93: =IFERROR($E93*SUMIF('Daily Log'!#REF!,$B93,'Daily Log'!#REF!),0) -> 0 | M93: =IFERROR($E93*SUMIF('Daily Log'!#REF!,$B93,'Daily Log'!#REF!),0) -> 0 | N93: =IFERROR($E93*SUMIF('Daily Log'!#REF!,$B93,'Daily Log'!#REF!),0) -> 0 | O93: =IFERROR($E93*SUMIF('Daily Log'!#REF!,$B93,'Daily Log'!#REF!),0) -> 0 | P93: =IFERROR($E93*SUMIF('Daily Log'!#REF!,$B93,'Daily Log'!#REF!),0) -> 0 | Q93: =IFERROR($E93*SUMIF('Daily Log'!#REF!,$B93,'Daily Log'!#REF!),0) -> 0 | R93: =IFERROR($E93*SUMIF('Daily Log'!#REF!,$B93,'Daily Log'!#REF!),0) -> 0 | S93: =IFERROR($E93*SUMIF('Daily Log'!#REF!,$B93,'Daily Log'!#REF!),0) -> 0 | T93: =IFERROR($E93*SUMIF('Daily Log'!#REF!,$B93,'Daily Log'!#REF!),0) -> 0 | U93: =IFERROR($E93*SUMIF('Daily Log'!#REF!,$B93,'Daily Log'!#REF!),0) -> 0 | V93: =IFERROR($E93*SUMIF('Daily Log'!#REF!,$B93,'Daily Log'!#REF!),0) -> 0 | W93: =IFERROR($E93*SUMIF('Daily Log'!#REF!,$B93,'Daily Log'!#REF!),0) -> 0 | X93: =IFERROR($E93*SUMIF('Daily Log'!#REF!,$B93,'Daily Log'!#REF!),0) -> 0 | Y93: =IFERROR($E93*SUMIF('Daily Log'!#REF!,$B93,'Daily Log'!#REF!),0) -> 0 | Z93: =IFERROR($E93*SUMIF('Daily Log'!$C$18:$C$1017,$B93,'Daily Log'!$D$18:$D$1017),0) -> 0 | AA93: =IFERROR($E93*SUMIF('Daily Log'!$F$18:$F$1017,$B93,'Daily Log'!$G$18:$G$1017),0) -> 0 | AB93: =IFERROR($E93*SUMIF('Daily Log'!$I$18:$I$1017,$B93,'Daily Log'!$J$18:$J$1017),0) -> 0 | AC93: =IFERROR($E93*SUMIF('Daily Log'!$L$18:$L$1017,$B93,'Daily Log'!$M$18:$M$1017),0) -> 0 | AD93: =IFERROR($E93*SUMIF('Daily Log'!$O$18:$O$1017,$B93,'Daily Log'!$P$18:$P$1017),0) -> 0 | AE93: =IFERROR($E93*SUMIF('Daily Log'!$R$18:$R$1017,$B93,'Daily Log'!$S$18:$S$1017),0) -> 0 | AF93: =IFERROR($E93*SUMIF('Daily Log'!$U$18:$U$1017,$B93,'Daily Log'!$V$18:$V$1017),0) -> 0 | AG93: =IFERROR($E93*SUMIF('Daily Log'!#REF!,$B93,'Daily Log'!#REF!),0) -> 0 | AH93: =IFERROR($E93*SUMIF('Daily Log'!#REF!,$B93,'Daily Log'!#REF!),0) -> 0 | AI93: =IFERROR($E93*SUMIF('Daily Log'!#REF!,$B93,'Daily Log'!#REF!),0) -> 0 | AJ93: =IFERROR($E93*SUMIF('Daily Log'!#REF!,$B93,'Daily Log'!#REF!),0) -> 0 | AK93: =IFERROR($E93*SUMIF('Daily Log'!#REF!,$B93,'Daily Log'!#REF!),0) -> 0
B94: CF13 DARJEELING (H) | D94: SIDE ORDER-HOT BEVERAGE | E94: 1 | F94: =SUM($G94:$AK94) -> 0 | G94: =IFERROR($E94*SUMIF('Daily Log'!#REF!,$B94,'Daily Log'!#REF!),0) -> 0 | H94: =IFERROR($E94*SUMIF('Daily Log'!#REF!,$B94,'Daily Log'!#REF!),0) -> 0 | I94: =IFERROR($E94*SUMIF('Daily Log'!#REF!,$B94,'Daily Log'!#REF!),0) -> 0 | J94: =IFERROR($E94*SUMIF('Daily Log'!#REF!,$B94,'Daily Log'!#REF!),0) -> 0 | K94: =IFERROR($E94*SUMIF('Daily Log'!#REF!,$B94,'Daily Log'!#REF!),0) -> 0 | L94: =IFERROR($E94*SUMIF('Daily Log'!#REF!,$B94,'Daily Log'!#REF!),0) -> 0 | M94: =IFERROR($E94*SUMIF('Daily Log'!#REF!,$B94,'Daily Log'!#REF!),0) -> 0 | N94: =IFERROR($E94*SUMIF('Daily Log'!#REF!,$B94,'Daily Log'!#REF!),0) -> 0 | O94: =IFERROR($E94*SUMIF('Daily Log'!#REF!,$B94,'Daily Log'!#REF!),0) -> 0 | P94: =IFERROR($E94*SUMIF('Daily Log'!#REF!,$B94,'Daily Log'!#REF!),0) -> 0 | Q94: =IFERROR($E94*SUMIF('Daily Log'!#REF!,$B94,'Daily Log'!#REF!),0) -> 0 | R94: =IFERROR($E94*SUMIF('Daily Log'!#REF!,$B94,'Daily Log'!#REF!),0) -> 0 | S94: =IFERROR($E94*SUMIF('Daily Log'!#REF!,$B94,'Daily Log'!#REF!),0) -> 0 | T94: =IFERROR($E94*SUMIF('Daily Log'!#REF!,$B94,'Daily Log'!#REF!),0) -> 0 | U94: =IFERROR($E94*SUMIF('Daily Log'!#REF!,$B94,'Daily Log'!#REF!),0) -> 0 | V94: =IFERROR($E94*SUMIF('Daily Log'!#REF!,$B94,'Daily Log'!#REF!),0) -> 0 | W94: =IFERROR($E94*SUMIF('Daily Log'!#REF!,$B94,'Daily Log'!#REF!),0) -> 0 | X94: =IFERROR($E94*SUMIF('Daily Log'!#REF!,$B94,'Daily Log'!#REF!),0) -> 0 | Y94: =IFERROR($E94*SUMIF('Daily Log'!#REF!,$B94,'Daily Log'!#REF!),0) -> 0 | Z94: =IFERROR($E94*SUMIF('Daily Log'!$C$18:$C$1017,$B94,'Daily Log'!$D$18:$D$1017),0) -> 0 | AA94: =IFERROR($E94*SUMIF('Daily Log'!$F$18:$F$1017,$B94,'Daily Log'!$G$18:$G$1017),0) -> 0 | AB94: =IFERROR($E94*SUMIF('Daily Log'!$I$18:$I$1017,$B94,'Daily Log'!$J$18:$J$1017),0) -> 0 | AC94: =IFERROR($E94*SUMIF('Daily Log'!$L$18:$L$1017,$B94,'Daily Log'!$M$18:$M$1017),0) -> 0 | AD94: =IFERROR($E94*SUMIF('Daily Log'!$O$18:$O$1017,$B94,'Daily Log'!$P$18:$P$1017),0) -> 0 | AE94: =IFERROR($E94*SUMIF('Daily Log'!$R$18:$R$1017,$B94,'Daily Log'!$S$18:$S$1017),0) -> 0 | AF94: =IFERROR($E94*SUMIF('Daily Log'!$U$18:$U$1017,$B94,'Daily Log'!$V$18:$V$1017),0) -> 0 | AG94: =IFERROR($E94*SUMIF('Daily Log'!#REF!,$B94,'Daily Log'!#REF!),0) -> 0 | AH94: =IFERROR($E94*SUMIF('Daily Log'!#REF!,$B94,'Daily Log'!#REF!),0) -> 0 | AI94: =IFERROR($E94*SUMIF('Daily Log'!#REF!,$B94,'Daily Log'!#REF!),0) -> 0 | AJ94: =IFERROR($E94*SUMIF('Daily Log'!#REF!,$B94,'Daily Log'!#REF!),0) -> 0 | AK94: =IFERROR($E94*SUMIF('Daily Log'!#REF!,$B94,'Daily Log'!#REF!),0) -> 0
B95: CF14 EARL GREY (H) | D95: SIDE ORDER-HOT BEVERAGE | E95: 1 | F95: 0 | G95: =IFERROR($E95*SUMIF('Daily Log'!#REF!,$B95,'Daily Log'!#REF!),0) -> 0 | H95: =IFERROR($E95*SUMIF('Daily Log'!#REF!,$B95,'Daily Log'!#REF!),0) -> 0 | I95: =IFERROR($E95*SUMIF('Daily Log'!#REF!,$B95,'Daily Log'!#REF!),0) -> 0 | J95: =IFERROR($E95*SUMIF('Daily Log'!#REF!,$B95,'Daily Log'!#REF!),0) -> 0 | K95: =IFERROR($E95*SUMIF('Daily Log'!#REF!,$B95,'Daily Log'!#REF!),0) -> 0 | L95: =IFERROR($E95*SUMIF('Daily Log'!#REF!,$B95,'Daily Log'!#REF!),0) -> 0 | M95: =IFERROR($E95*SUMIF('Daily Log'!#REF!,$B95,'Daily Log'!#REF!),0) -> 0 | N95: =IFERROR($E95*SUMIF('Daily Log'!#REF!,$B95,'Daily Log'!#REF!),0) -> 0 | O95: =IFERROR($E95*SUMIF('Daily Log'!#REF!,$B95,'Daily Log'!#REF!),0) -> 0 | P95: =IFERROR($E95*SUMIF('Daily Log'!#REF!,$B95,'Daily Log'!#REF!),0) -> 0 | Q95: =IFERROR($E95*SUMIF('Daily Log'!#REF!,$B95,'Daily Log'!#REF!),0) -> 0 | R95: =IFERROR($E95*SUMIF('Daily Log'!#REF!,$B95,'Daily Log'!#REF!),0) -> 0 | S95: =IFERROR($E95*SUMIF('Daily Log'!#REF!,$B95,'Daily Log'!#REF!),0) -> 0 | T95: =IFERROR($E95*SUMIF('Daily Log'!#REF!,$B95,'Daily Log'!#REF!),0) -> 0 | U95: =IFERROR($E95*SUMIF('Daily Log'!#REF!,$B95,'Daily Log'!#REF!),0) -> 0 | V95: =IFERROR($E95*SUMIF('Daily Log'!#REF!,$B95,'Daily Log'!#REF!),0) -> 0 | W95: =IFERROR($E95*SUMIF('Daily Log'!#REF!,$B95,'Daily Log'!#REF!),0) -> 0 | X95: =IFERROR($E95*SUMIF('Daily Log'!#REF!,$B95,'Daily Log'!#REF!),0) -> 0 | Y95: =IFERROR($E95*SUMIF('Daily Log'!#REF!,$B95,'Daily Log'!#REF!),0) -> 0 | Z95: =IFERROR($E95*SUMIF('Daily Log'!$C$18:$C$1017,$B95,'Daily Log'!$D$18:$D$1017),0) -> 0 | AA95: =IFERROR($E95*SUMIF('Daily Log'!$F$18:$F$1017,$B95,'Daily Log'!$G$18:$G$1017),0) -> 0 | AB95: =IFERROR($E95*SUMIF('Daily Log'!$I$18:$I$1017,$B95,'Daily Log'!$J$18:$J$1017),0) -> 0 | AC95: =IFERROR($E95*SUMIF('Daily Log'!$L$18:$L$1017,$B95,'Daily Log'!$M$18:$M$1017),0) -> 0 | AD95: =IFERROR($E95*SUMIF('Daily Log'!$O$18:$O$1017,$B95,'Daily Log'!$P$18:$P$1017),0) -> 0 | AE95: =IFERROR($E95*SUMIF('Daily Log'!$R$18:$R$1017,$B95,'Daily Log'!$S$18:$S$1017),0) -> 0 | AF95: =IFERROR($E95*SUMIF('Daily Log'!$U$18:$U$1017,$B95,'Daily Log'!$V$18:$V$1017),0) -> 0 | AG95: =IFERROR($E95*SUMIF('Daily Log'!#REF!,$B95,'Daily Log'!#REF!),0) -> 0 | AH95: =IFERROR($E95*SUMIF('Daily Log'!#REF!,$B95,'Daily Log'!#REF!),0) -> 0 | AI95: =IFERROR($E95*SUMIF('Daily Log'!#REF!,$B95,'Daily Log'!#REF!),0) -> 0 | AJ95: =IFERROR($E95*SUMIF('Daily Log'!#REF!,$B95,'Daily Log'!#REF!),0) -> 0 | AK95: =IFERROR($E95*SUMIF('Daily Log'!#REF!,$B95,'Daily Log'!#REF!),0) -> 0
B96: CG01 MINERAL WATER | D96: MIENRAL WATE R | E96: 1 | F96: 13 | G96: =IFERROR($E96*SUMIF('Daily Log'!#REF!,$B96,'Daily Log'!#REF!),0) -> 0 | H96: =IFERROR($E96*SUMIF('Daily Log'!#REF!,$B96,'Daily Log'!#REF!),0) -> 0 | I96: =IFERROR($E96*SUMIF('Daily Log'!#REF!,$B96,'Daily Log'!#REF!),0) -> 0 | J96: =IFERROR($E96*SUMIF('Daily Log'!#REF!,$B96,'Daily Log'!#REF!),0) -> 0 | K96: =IFERROR($E96*SUMIF('Daily Log'!#REF!,$B96,'Daily Log'!#REF!),0) -> 0 | L96: =IFERROR($E96*SUMIF('Daily Log'!#REF!,$B96,'Daily Log'!#REF!),0) -> 0 | M96: =IFERROR($E96*SUMIF('Daily Log'!#REF!,$B96,'Daily Log'!#REF!),0) -> 0 | N96: =IFERROR($E96*SUMIF('Daily Log'!#REF!,$B96,'Daily Log'!#REF!),0) -> 0 | O96: =IFERROR($E96*SUMIF('Daily Log'!#REF!,$B96,'Daily Log'!#REF!),0) -> 0 | P96: =IFERROR($E96*SUMIF('Daily Log'!#REF!,$B96,'Daily Log'!#REF!),0) -> 0 | Q96: =IFERROR($E96*SUMIF('Daily Log'!#REF!,$B96,'Daily Log'!#REF!),0) -> 0 | R96: =IFERROR($E96*SUMIF('Daily Log'!#REF!,$B96,'Daily Log'!#REF!),0) -> 0 | S96: =IFERROR($E96*SUMIF('Daily Log'!#REF!,$B96,'Daily Log'!#REF!),0) -> 0 | T96: =IFERROR($E96*SUMIF('Daily Log'!#REF!,$B96,'Daily Log'!#REF!),0) -> 0 | U96: =IFERROR($E96*SUMIF('Daily Log'!#REF!,$B96,'Daily Log'!#REF!),0) -> 0 | V96: =IFERROR($E96*SUMIF('Daily Log'!#REF!,$B96,'Daily Log'!#REF!),0) -> 0 | W96: =IFERROR($E96*SUMIF('Daily Log'!#REF!,$B96,'Daily Log'!#REF!),0) -> 0 | X96: =IFERROR($E96*SUMIF('Daily Log'!#REF!,$B96,'Daily Log'!#REF!),0) -> 0 | Y96: =IFERROR($E96*SUMIF('Daily Log'!#REF!,$B96,'Daily Log'!#REF!),0) -> 0 | Z96: =IFERROR($E96*SUMIF('Daily Log'!$C$18:$C$1017,$B96,'Daily Log'!$D$18:$D$1017),0) -> 0 | AA96: =IFERROR($E96*SUMIF('Daily Log'!$F$18:$F$1017,$B96,'Daily Log'!$G$18:$G$1017),0) -> 4 | AB96: =IFERROR($E96*SUMIF('Daily Log'!$I$18:$I$1017,$B96,'Daily Log'!$J$18:$J$1017),0) -> 5 | AC96: =IFERROR($E96*SUMIF('Daily Log'!$L$18:$L$1017,$B96,'Daily Log'!$M$18:$M$1017),0) -> 1 | AD96: =IFERROR($E96*SUMIF('Daily Log'!$O$18:$O$1017,$B96,'Daily Log'!$P$18:$P$1017),0) -> 1 | AE96: =IFERROR($E96*SUMIF('Daily Log'!$R$18:$R$1017,$B96,'Daily Log'!$S$18:$S$1017),0) -> 2 | AF96: =IFERROR($E96*SUMIF('Daily Log'!$U$18:$U$1017,$B96,'Daily Log'!$V$18:$V$1017),0) -> 0 | AG96: =IFERROR($E96*SUMIF('Daily Log'!#REF!,$B96,'Daily Log'!#REF!),0) -> 0 | AH96: =IFERROR($E96*SUMIF('Daily Log'!#REF!,$B96,'Daily Log'!#REF!),0) -> 0 | AI96: =IFERROR($E96*SUMIF('Daily Log'!#REF!,$B96,'Daily Log'!#REF!),0) -> 0 | AJ96: =IFERROR($E96*SUMIF('Daily Log'!#REF!,$B96,'Daily Log'!#REF!),0) -> 0 | AK96: =IFERROR($E96*SUMIF('Daily Log'!#REF!,$B96,'Daily Log'!#REF!),0) -> 0
B97: CH01 7 UP JUG | D97: (DRINKS) IN JUG | E97: 1 | F97: 0 | G97: =IFERROR($E97*SUMIF('Daily Log'!#REF!,$B97,'Daily Log'!#REF!),0) -> 0 | H97: =IFERROR($E97*SUMIF('Daily Log'!#REF!,$B97,'Daily Log'!#REF!),0) -> 0 | I97: =IFERROR($E97*SUMIF('Daily Log'!#REF!,$B97,'Daily Log'!#REF!),0) -> 0 | J97: =IFERROR($E97*SUMIF('Daily Log'!#REF!,$B97,'Daily Log'!#REF!),0) -> 0 | K97: =IFERROR($E97*SUMIF('Daily Log'!#REF!,$B97,'Daily Log'!#REF!),0) -> 0 | L97: =IFERROR($E97*SUMIF('Daily Log'!#REF!,$B97,'Daily Log'!#REF!),0) -> 0 | M97: =IFERROR($E97*SUMIF('Daily Log'!#REF!,$B97,'Daily Log'!#REF!),0) -> 0 | N97: =IFERROR($E97*SUMIF('Daily Log'!#REF!,$B97,'Daily Log'!#REF!),0) -> 0 | O97: =IFERROR($E97*SUMIF('Daily Log'!#REF!,$B97,'Daily Log'!#REF!),0) -> 0 | P97: =IFERROR($E97*SUMIF('Daily Log'!#REF!,$B97,'Daily Log'!#REF!),0) -> 0 | Q97: =IFERROR($E97*SUMIF('Daily Log'!#REF!,$B97,'Daily Log'!#REF!),0) -> 0 | R97: =IFERROR($E97*SUMIF('Daily Log'!#REF!,$B97,'Daily Log'!#REF!),0) -> 0 | S97: =IFERROR($E97*SUMIF('Daily Log'!#REF!,$B97,'Daily Log'!#REF!),0) -> 0 | T97: =IFERROR($E97*SUMIF('Daily Log'!#REF!,$B97,'Daily Log'!#REF!),0) -> 0 | U97: =IFERROR($E97*SUMIF('Daily Log'!#REF!,$B97,'Daily Log'!#REF!),0) -> 0 | V97: =IFERROR($E97*SUMIF('Daily Log'!#REF!,$B97,'Daily Log'!#REF!),0) -> 0 | W97: =IFERROR($E97*SUMIF('Daily Log'!#REF!,$B97,'Daily Log'!#REF!),0) -> 0 | X97: =IFERROR($E97*SUMIF('Daily Log'!#REF!,$B97,'Daily Log'!#REF!),0) -> 0 | Y97: =IFERROR($E97*SUMIF('Daily Log'!#REF!,$B97,'Daily Log'!#REF!),0) -> 0 | Z97: =IFERROR($E97*SUMIF('Daily Log'!$C$18:$C$1017,$B97,'Daily Log'!$D$18:$D$1017),0) -> 0 | AA97: =IFERROR($E97*SUMIF('Daily Log'!$F$18:$F$1017,$B97,'Daily Log'!$G$18:$G$1017),0) -> 0 | AB97: =IFERROR($E97*SUMIF('Daily Log'!$I$18:$I$1017,$B97,'Daily Log'!$J$18:$J$1017),0) -> 0 | AC97: =IFERROR($E97*SUMIF('Daily Log'!$L$18:$L$1017,$B97,'Daily Log'!$M$18:$M$1017),0) -> 0 | AD97: =IFERROR($E97*SUMIF('Daily Log'!$O$18:$O$1017,$B97,'Daily Log'!$P$18:$P$1017),0) -> 0 | AE97: =IFERROR($E97*SUMIF('Daily Log'!$R$18:$R$1017,$B97,'Daily Log'!$S$18:$S$1017),0) -> 0 | AF97: =IFERROR($E97*SUMIF('Daily Log'!$U$18:$U$1017,$B97,'Daily Log'!$V$18:$V$1017),0) -> 0 | AG97: =IFERROR($E97*SUMIF('Daily Log'!#REF!,$B97,'Daily Log'!#REF!),0) -> 0 | AH97: =IFERROR($E97*SUMIF('Daily Log'!#REF!,$B97,'Daily Log'!#REF!),0) -> 0 | AI97: =IFERROR($E97*SUMIF('Daily Log'!#REF!,$B97,'Daily Log'!#REF!),0) -> 0 | AJ97: =IFERROR($E97*SUMIF('Daily Log'!#REF!,$B97,'Daily Log'!#REF!),0) -> 0 | AK97: =IFERROR($E97*SUMIF('Daily Log'!#REF!,$B97,'Daily Log'!#REF!),0) -> 0
B98: CH02 GRN TEA JUG | D98: (DRINKS) IN JUG | E98: 1 | F98: 0 | G98: =IFERROR($E98*SUMIF('Daily Log'!#REF!,$B98,'Daily Log'!#REF!),0) -> 0 | H98: =IFERROR($E98*SUMIF('Daily Log'!#REF!,$B98,'Daily Log'!#REF!),0) -> 0 | I98: =IFERROR($E98*SUMIF('Daily Log'!#REF!,$B98,'Daily Log'!#REF!),0) -> 0 | J98: =IFERROR($E98*SUMIF('Daily Log'!#REF!,$B98,'Daily Log'!#REF!),0) -> 0 | K98: =IFERROR($E98*SUMIF('Daily Log'!#REF!,$B98,'Daily Log'!#REF!),0) -> 0 | L98: =IFERROR($E98*SUMIF('Daily Log'!#REF!,$B98,'Daily Log'!#REF!),0) -> 0 | M98: =IFERROR($E98*SUMIF('Daily Log'!#REF!,$B98,'Daily Log'!#REF!),0) -> 0 | N98: =IFERROR($E98*SUMIF('Daily Log'!#REF!,$B98,'Daily Log'!#REF!),0) -> 0 | O98: =IFERROR($E98*SUMIF('Daily Log'!#REF!,$B98,'Daily Log'!#REF!),0) -> 0 | P98: =IFERROR($E98*SUMIF('Daily Log'!#REF!,$B98,'Daily Log'!#REF!),0) -> 0 | Q98: =IFERROR($E98*SUMIF('Daily Log'!#REF!,$B98,'Daily Log'!#REF!),0) -> 0 | R98: =IFERROR($E98*SUMIF('Daily Log'!#REF!,$B98,'Daily Log'!#REF!),0) -> 0 | S98: =IFERROR($E98*SUMIF('Daily Log'!#REF!,$B98,'Daily Log'!#REF!),0) -> 0 | T98: =IFERROR($E98*SUMIF('Daily Log'!#REF!,$B98,'Daily Log'!#REF!),0) -> 0 | U98: =IFERROR($E98*SUMIF('Daily Log'!#REF!,$B98,'Daily Log'!#REF!),0) -> 0 | V98: =IFERROR($E98*SUMIF('Daily Log'!#REF!,$B98,'Daily Log'!#REF!),0) -> 0 | W98: =IFERROR($E98*SUMIF('Daily Log'!#REF!,$B98,'Daily Log'!#REF!),0) -> 0 | X98: =IFERROR($E98*SUMIF('Daily Log'!#REF!,$B98,'Daily Log'!#REF!),0) -> 0 | Y98: =IFERROR($E98*SUMIF('Daily Log'!#REF!,$B98,'Daily Log'!#REF!),0) -> 0 | Z98: =IFERROR($E98*SUMIF('Daily Log'!$C$18:$C$1017,$B98,'Daily Log'!$D$18:$D$1017),0) -> 0 | AA98: =IFERROR($E98*SUMIF('Daily Log'!$F$18:$F$1017,$B98,'Daily Log'!$G$18:$G$1017),0) -> 0 | AB98: =IFERROR($E98*SUMIF('Daily Log'!$I$18:$I$1017,$B98,'Daily Log'!$J$18:$J$1017),0) -> 0 | AC98: =IFERROR($E98*SUMIF('Daily Log'!$L$18:$L$1017,$B98,'Daily Log'!$M$18:$M$1017),0) -> 0 | AD98: =IFERROR($E98*SUMIF('Daily Log'!$O$18:$O$1017,$B98,'Daily Log'!$P$18:$P$1017),0) -> 0 | AE98: =IFERROR($E98*SUMIF('Daily Log'!$R$18:$R$1017,$B98,'Daily Log'!$S$18:$S$1017),0) -> 0 | AF98: =IFERROR($E98*SUMIF('Daily Log'!$U$18:$U$1017,$B98,'Daily Log'!$V$18:$V$1017),0) -> 0 | AG98: =IFERROR($E98*SUMIF('Daily Log'!#REF!,$B98,'Daily Log'!#REF!),0) -> 0 | AH98: =IFERROR($E98*SUMIF('Daily Log'!#REF!,$B98,'Daily Log'!#REF!),0) -> 0 | AI98: =IFERROR($E98*SUMIF('Daily Log'!#REF!,$B98,'Daily Log'!#REF!),0) -> 0 | AJ98: =IFERROR($E98*SUMIF('Daily Log'!#REF!,$B98,'Daily Log'!#REF!),0) -> 0 | AK98: =IFERROR($E98*SUMIF('Daily Log'!#REF!,$B98,'Daily Log'!#REF!),0) -> 0
B99: CH03 PEPSI JUG | D99: (DRINKS) IN JUG | E99: 1 | F99: 0 | G99: =IFERROR($E99*SUMIF('Daily Log'!#REF!,$B99,'Daily Log'!#REF!),0) -> 0 | H99: =IFERROR($E99*SUMIF('Daily Log'!#REF!,$B99,'Daily Log'!#REF!),0) -> 0 | I99: =IFERROR($E99*SUMIF('Daily Log'!#REF!,$B99,'Daily Log'!#REF!),0) -> 0 | J99: =IFERROR($E99*SUMIF('Daily Log'!#REF!,$B99,'Daily Log'!#REF!),0) -> 0 | K99: =IFERROR($E99*SUMIF('Daily Log'!#REF!,$B99,'Daily Log'!#REF!),0) -> 0 | L99: =IFERROR($E99*SUMIF('Daily Log'!#REF!,$B99,'Daily Log'!#REF!),0) -> 0 | M99: =IFERROR($E99*SUMIF('Daily Log'!#REF!,$B99,'Daily Log'!#REF!),0) -> 0 | N99: =IFERROR($E99*SUMIF('Daily Log'!#REF!,$B99,'Daily Log'!#REF!),0) -> 0 | O99: =IFERROR($E99*SUMIF('Daily Log'!#REF!,$B99,'Daily Log'!#REF!),0) -> 0 | P99: =IFERROR($E99*SUMIF('Daily Log'!#REF!,$B99,'Daily Log'!#REF!),0) -> 0 | Q99: =IFERROR($E99*SUMIF('Daily Log'!#REF!,$B99,'Daily Log'!#REF!),0) -> 0 | R99: =IFERROR($E99*SUMIF('Daily Log'!#REF!,$B99,'Daily Log'!#REF!),0) -> 0 | S99: =IFERROR($E99*SUMIF('Daily Log'!#REF!,$B99,'Daily Log'!#REF!),0) -> 0 | T99: =IFERROR($E99*SUMIF('Daily Log'!#REF!,$B99,'Daily Log'!#REF!),0) -> 0 | U99: =IFERROR($E99*SUMIF('Daily Log'!#REF!,$B99,'Daily Log'!#REF!),0) -> 0 | V99: =IFERROR($E99*SUMIF('Daily Log'!#REF!,$B99,'Daily Log'!#REF!),0) -> 0 | W99: =IFERROR($E99*SUMIF('Daily Log'!#REF!,$B99,'Daily Log'!#REF!),0) -> 0 | X99: =IFERROR($E99*SUMIF('Daily Log'!#REF!,$B99,'Daily Log'!#REF!),0) -> 0 | Y99: =IFERROR($E99*SUMIF('Daily Log'!#REF!,$B99,'Daily Log'!#REF!),0) -> 0 | Z99: =IFERROR($E99*SUMIF('Daily Log'!$C$18:$C$1017,$B99,'Daily Log'!$D$18:$D$1017),0) -> 0 | AA99: =IFERROR($E99*SUMIF('Daily Log'!$F$18:$F$1017,$B99,'Daily Log'!$G$18:$G$1017),0) -> 0 | AB99: =IFERROR($E99*SUMIF('Daily Log'!$I$18:$I$1017,$B99,'Daily Log'!$J$18:$J$1017),0) -> 0 | AC99: =IFERROR($E99*SUMIF('Daily Log'!$L$18:$L$1017,$B99,'Daily Log'!$M$18:$M$1017),0) -> 0 | AD99: =IFERROR($E99*SUMIF('Daily Log'!$O$18:$O$1017,$B99,'Daily Log'!$P$18:$P$1017),0) -> 0 | AE99: =IFERROR($E99*SUMIF('Daily Log'!$R$18:$R$1017,$B99,'Daily Log'!$S$18:$S$1017),0) -> 0 | AF99: =IFERROR($E99*SUMIF('Daily Log'!$U$18:$U$1017,$B99,'Daily Log'!$V$18:$V$1017),0) -> 0 | AG99: =IFERROR($E99*SUMIF('Daily Log'!#REF!,$B99,'Daily Log'!#REF!),0) -> 0 | AH99: =IFERROR($E99*SUMIF('Daily Log'!#REF!,$B99,'Daily Log'!#REF!),0) -> 0 | AI99: =IFERROR($E99*SUMIF('Daily Log'!#REF!,$B99,'Daily Log'!#REF!),0) -> 0 | AJ99: =IFERROR($E99*SUMIF('Daily Log'!#REF!,$B99,'Daily Log'!#REF!),0) -> 0 | AK99: =IFERROR($E99*SUMIF('Daily Log'!#REF!,$B99,'Daily Log'!#REF!),0) -> 0
B100: CH04 RIBENA JUG | D100: (DRINKS) IN JUG | E100: 1 | F100: 0 | G100: =IFERROR($E100*SUMIF('Daily Log'!#REF!,$B100,'Daily Log'!#REF!),0) -> 0 | H100: =IFERROR($E100*SUMIF('Daily Log'!#REF!,$B100,'Daily Log'!#REF!),0) -> 0 | I100: =IFERROR($E100*SUMIF('Daily Log'!#REF!,$B100,'Daily Log'!#REF!),0) -> 0 | J100: =IFERROR($E100*SUMIF('Daily Log'!#REF!,$B100,'Daily Log'!#REF!),0) -> 0 | K100: =IFERROR($E100*SUMIF('Daily Log'!#REF!,$B100,'Daily Log'!#REF!),0) -> 0 | L100: =IFERROR($E100*SUMIF('Daily Log'!#REF!,$B100,'Daily Log'!#REF!),0) -> 0 | M100: =IFERROR($E100*SUMIF('Daily Log'!#REF!,$B100,'Daily Log'!#REF!),0) -> 0 | N100: =IFERROR($E100*SUMIF('Daily Log'!#REF!,$B100,'Daily Log'!#REF!),0) -> 0 | O100: =IFERROR($E100*SUMIF('Daily Log'!#REF!,$B100,'Daily Log'!#REF!),0) -> 0 | P100: =IFERROR($E100*SUMIF('Daily Log'!#REF!,$B100,'Daily Log'!#REF!),0) -> 0 | Q100: =IFERROR($E100*SUMIF('Daily Log'!#REF!,$B100,'Daily Log'!#REF!),0) -> 0 | R100: =IFERROR($E100*SUMIF('Daily Log'!#REF!,$B100,'Daily Log'!#REF!),0) -> 0 | S100: =IFERROR($E100*SUMIF('Daily Log'!#REF!,$B100,'Daily Log'!#REF!),0) -> 0 | T100: =IFERROR($E100*SUMIF('Daily Log'!#REF!,$B100,'Daily Log'!#REF!),0) -> 0 | U100: =IFERROR($E100*SUMIF('Daily Log'!#REF!,$B100,'Daily Log'!#REF!),0) -> 0 | V100: =IFERROR($E100*SUMIF('Daily Log'!#REF!,$B100,'Daily Log'!#REF!),0) -> 0 | W100: =IFERROR($E100*SUMIF('Daily Log'!#REF!,$B100,'Daily Log'!#REF!),0) -> 0 | X100: =IFERROR($E100*SUMIF('Daily Log'!#REF!,$B100,'Daily Log'!#REF!),0) -> 0 | Y100: =IFERROR($E100*SUMIF('Daily Log'!#REF!,$B100,'Daily Log'!#REF!),0) -> 0 | Z100: =IFERROR($E100*SUMIF('Daily Log'!$C$18:$C$1017,$B100,'Daily Log'!$D$18:$D$1017),0) -> 0 | AA100: =IFERROR($E100*SUMIF('Daily Log'!$F$18:$F$1017,$B100,'Daily Log'!$G$18:$G$1017),0) -> 0 | AB100: =IFERROR($E100*SUMIF('Daily Log'!$I$18:$I$1017,$B100,'Daily Log'!$J$18:$J$1017),0) -> 0 | AC100: =IFERROR($E100*SUMIF('Daily Log'!$L$18:$L$1017,$B100,'Daily Log'!$M$18:$M$1017),0) -> 0 | AD100: =IFERROR($E100*SUMIF('Daily Log'!$O$18:$O$1017,$B100,'Daily Log'!$P$18:$P$1017),0) -> 0 | AE100: =IFERROR($E100*SUMIF('Daily Log'!$R$18:$R$1017,$B100,'Daily Log'!$S$18:$S$1017),0) -> 0 | AF100: =IFERROR($E100*SUMIF('Daily Log'!$U$18:$U$1017,$B100,'Daily Log'!$V$18:$V$1017),0) -> 0 | AG100: =IFERROR($E100*SUMIF('Daily Log'!#REF!,$B100,'Daily Log'!#REF!),0) -> 0 | AH100: =IFERROR($E100*SUMIF('Daily Log'!#REF!,$B100,'Daily Log'!#REF!),0) -> 0 | AI100: =IFERROR($E100*SUMIF('Daily Log'!#REF!,$B100,'Daily Log'!#REF!),0) -> 0 | AJ100: =IFERROR($E100*SUMIF('Daily Log'!#REF!,$B100,'Daily Log'!#REF!),0) -> 0 | AK100: =IFERROR($E100*SUMIF('Daily Log'!#REF!,$B100,'Daily Log'!#REF!),0) -> 0
B101: CH05 SODA JUG | D101: (DRINKS) IN JUG | E101: 1 | F101: 0 | G101: =IFERROR($E101*SUMIF('Daily Log'!#REF!,$B101,'Daily Log'!#REF!),0) -> 0 | H101: =IFERROR($E101*SUMIF('Daily Log'!#REF!,$B101,'Daily Log'!#REF!),0) -> 0 | I101: =IFERROR($E101*SUMIF('Daily Log'!#REF!,$B101,'Daily Log'!#REF!),0) -> 0 | J101: =IFERROR($E101*SUMIF('Daily Log'!#REF!,$B101,'Daily Log'!#REF!),0) -> 0 | K101: =IFERROR($E101*SUMIF('Daily Log'!#REF!,$B101,'Daily Log'!#REF!),0) -> 0 | L101: =IFERROR($E101*SUMIF('Daily Log'!#REF!,$B101,'Daily Log'!#REF!),0) -> 0 | M101: =IFERROR($E101*SUMIF('Daily Log'!#REF!,$B101,'Daily Log'!#REF!),0) -> 0 | N101: =IFERROR($E101*SUMIF('Daily Log'!#REF!,$B101,'Daily Log'!#REF!),0) -> 0 | O101: =IFERROR($E101*SUMIF('Daily Log'!#REF!,$B101,'Daily Log'!#REF!),0) -> 0 | P101: =IFERROR($E101*SUMIF('Daily Log'!#REF!,$B101,'Daily Log'!#REF!),0) -> 0 | Q101: =IFERROR($E101*SUMIF('Daily Log'!#REF!,$B101,'Daily Log'!#REF!),0) -> 0 | R101: =IFERROR($E101*SUMIF('Daily Log'!#REF!,$B101,'Daily Log'!#REF!),0) -> 0 | S101: =IFERROR($E101*SUMIF('Daily Log'!#REF!,$B101,'Daily Log'!#REF!),0) -> 0 | T101: =IFERROR($E101*SUMIF('Daily Log'!#REF!,$B101,'Daily Log'!#REF!),0) -> 0 | U101: =IFERROR($E101*SUMIF('Daily Log'!#REF!,$B101,'Daily Log'!#REF!),0) -> 0 | V101: =IFERROR($E101*SUMIF('Daily Log'!#REF!,$B101,'Daily Log'!#REF!),0) -> 0 | W101: =IFERROR($E101*SUMIF('Daily Log'!#REF!,$B101,'Daily Log'!#REF!),0) -> 0 | X101: =IFERROR($E101*SUMIF('Daily Log'!#REF!,$B101,'Daily Log'!#REF!),0) -> 0 | Y101: =IFERROR($E101*SUMIF('Daily Log'!#REF!,$B101,'Daily Log'!#REF!),0) -> 0 | Z101: =IFERROR($E101*SUMIF('Daily Log'!$C$18:$C$1017,$B101,'Daily Log'!$D$18:$D$1017),0) -> 0 | AA101: =IFERROR($E101*SUMIF('Daily Log'!$F$18:$F$1017,$B101,'Daily Log'!$G$18:$G$1017),0) -> 0 | AB101: =IFERROR($E101*SUMIF('Daily Log'!$I$18:$I$1017,$B101,'Daily Log'!$J$18:$J$1017),0) -> 0 | AC101: =IFERROR($E101*SUMIF('Daily Log'!$L$18:$L$1017,$B101,'Daily Log'!$M$18:$M$1017),0) -> 0 | AD101: =IFERROR($E101*SUMIF('Daily Log'!$O$18:$O$1017,$B101,'Daily Log'!$P$18:$P$1017),0) -> 0 | AE101: =IFERROR($E101*SUMIF('Daily Log'!$R$18:$R$1017,$B101,'Daily Log'!$S$18:$S$1017),0) -> 0 | AF101: =IFERROR($E101*SUMIF('Daily Log'!$U$18:$U$1017,$B101,'Daily Log'!$V$18:$V$1017),0) -> 0 | AG101: =IFERROR($E101*SUMIF('Daily Log'!#REF!,$B101,'Daily Log'!#REF!),0) -> 0 | AH101: =IFERROR($E101*SUMIF('Daily Log'!#REF!,$B101,'Daily Log'!#REF!),0) -> 0 | AI101: =IFERROR($E101*SUMIF('Daily Log'!#REF!,$B101,'Daily Log'!#REF!),0) -> 0 | AJ101: =IFERROR($E101*SUMIF('Daily Log'!#REF!,$B101,'Daily Log'!#REF!),0) -> 0 | AK101: =IFERROR($E101*SUMIF('Daily Log'!#REF!,$B101,'Daily Log'!#REF!),0) -> 0
B102: CH06 WATER JUG | D102: (DRINKS) IN JUG | E102: 1 | F102: 0 | G102: =IFERROR($E102*SUMIF('Daily Log'!#REF!,$B102,'Daily Log'!#REF!),0) -> 0 | H102: =IFERROR($E102*SUMIF('Daily Log'!#REF!,$B102,'Daily Log'!#REF!),0) -> 0 | I102: =IFERROR($E102*SUMIF('Daily Log'!#REF!,$B102,'Daily Log'!#REF!),0) -> 0 | J102: =IFERROR($E102*SUMIF('Daily Log'!#REF!,$B102,'Daily Log'!#REF!),0) -> 0 | K102: =IFERROR($E102*SUMIF('Daily Log'!#REF!,$B102,'Daily Log'!#REF!),0) -> 0 | L102: =IFERROR($E102*SUMIF('Daily Log'!#REF!,$B102,'Daily Log'!#REF!),0) -> 0 | M102: =IFERROR($E102*SUMIF('Daily Log'!#REF!,$B102,'Daily Log'!#REF!),0) -> 0 | N102: =IFERROR($E102*SUMIF('Daily Log'!#REF!,$B102,'Daily Log'!#REF!),0) -> 0 | O102: =IFERROR($E102*SUMIF('Daily Log'!#REF!,$B102,'Daily Log'!#REF!),0) -> 0 | P102: =IFERROR($E102*SUMIF('Daily Log'!#REF!,$B102,'Daily Log'!#REF!),0) -> 0 | Q102: =IFERROR($E102*SUMIF('Daily Log'!#REF!,$B102,'Daily Log'!#REF!),0) -> 0 | R102: =IFERROR($E102*SUMIF('Daily Log'!#REF!,$B102,'Daily Log'!#REF!),0) -> 0 | S102: =IFERROR($E102*SUMIF('Daily Log'!#REF!,$B102,'Daily Log'!#REF!),0) -> 0 | T102: =IFERROR($E102*SUMIF('Daily Log'!#REF!,$B102,'Daily Log'!#REF!),0) -> 0 | U102: =IFERROR($E102*SUMIF('Daily Log'!#REF!,$B102,'Daily Log'!#REF!),0) -> 0 | V102: =IFERROR($E102*SUMIF('Daily Log'!#REF!,$B102,'Daily Log'!#REF!),0) -> 0 | W102: =IFERROR($E102*SUMIF('Daily Log'!#REF!,$B102,'Daily Log'!#REF!),0) -> 0 | X102: =IFERROR($E102*SUMIF('Daily Log'!#REF!,$B102,'Daily Log'!#REF!),0) -> 0 | Y102: =IFERROR($E102*SUMIF('Daily Log'!#REF!,$B102,'Daily Log'!#REF!),0) -> 0 | Z102: =IFERROR($E102*SUMIF('Daily Log'!$C$18:$C$1017,$B102,'Daily Log'!$D$18:$D$1017),0) -> 0 | AA102: =IFERROR($E102*SUMIF('Daily Log'!$F$18:$F$1017,$B102,'Daily Log'!$G$18:$G$1017),0) -> 0 | AB102: =IFERROR($E102*SUMIF('Daily Log'!$I$18:$I$1017,$B102,'Daily Log'!$J$18:$J$1017),0) -> 0 | AC102: =IFERROR($E102*SUMIF('Daily Log'!$L$18:$L$1017,$B102,'Daily Log'!$M$18:$M$1017),0) -> 0 | AD102: =IFERROR($E102*SUMIF('Daily Log'!$O$18:$O$1017,$B102,'Daily Log'!$P$18:$P$1017),0) -> 0 | AE102: =IFERROR($E102*SUMIF('Daily Log'!$R$18:$R$1017,$B102,'Daily Log'!$S$18:$S$1017),0) -> 0 | AF102: =IFERROR($E102*SUMIF('Daily Log'!$U$18:$U$1017,$B102,'Daily Log'!$V$18:$V$1017),0) -> 0 | AG102: =IFERROR($E102*SUMIF('Daily Log'!#REF!,$B102,'Daily Log'!#REF!),0) -> 0 | AH102: =IFERROR($E102*SUMIF('Daily Log'!#REF!,$B102,'Daily Log'!#REF!),0) -> 0 | AI102: =IFERROR($E102*SUMIF('Daily Log'!#REF!,$B102,'Daily Log'!#REF!),0) -> 0 | AJ102: =IFERROR($E102*SUMIF('Daily Log'!#REF!,$B102,'Daily Log'!#REF!),0) -> 0 | AK102: =IFERROR($E102*SUMIF('Daily Log'!#REF!,$B102,'Daily Log'!#REF!),0) -> 0
B103: CI01 GRAPE J | D103: FFD-COLD BEVERAGE | E103: 1 | F103: 96 | G103: =IFERROR($E103*SUMIF('Daily Log'!#REF!,$B103,'Daily Log'!#REF!),0) -> 0 | H103: =IFERROR($E103*SUMIF('Daily Log'!#REF!,$B103,'Daily Log'!#REF!),0) -> 0 | I103: =IFERROR($E103*SUMIF('Daily Log'!#REF!,$B103,'Daily Log'!#REF!),0) -> 0 | J103: =IFERROR($E103*SUMIF('Daily Log'!#REF!,$B103,'Daily Log'!#REF!),0) -> 0 | K103: =IFERROR($E103*SUMIF('Daily Log'!#REF!,$B103,'Daily Log'!#REF!),0) -> 0 | L103: =IFERROR($E103*SUMIF('Daily Log'!#REF!,$B103,'Daily Log'!#REF!),0) -> 0 | M103: =IFERROR($E103*SUMIF('Daily Log'!#REF!,$B103,'Daily Log'!#REF!),0) -> 0 | N103: =IFERROR($E103*SUMIF('Daily Log'!#REF!,$B103,'Daily Log'!#REF!),0) -> 0 | O103: =IFERROR($E103*SUMIF('Daily Log'!#REF!,$B103,'Daily Log'!#REF!),0) -> 0 | P103: =IFERROR($E103*SUMIF('Daily Log'!#REF!,$B103,'Daily Log'!#REF!),0) -> 0 | Q103: =IFERROR($E103*SUMIF('Daily Log'!#REF!,$B103,'Daily Log'!#REF!),0) -> 0 | R103: =IFERROR($E103*SUMIF('Daily Log'!#REF!,$B103,'Daily Log'!#REF!),0) -> 0 | S103: =IFERROR($E103*SUMIF('Daily Log'!#REF!,$B103,'Daily Log'!#REF!),0) -> 0 | T103: =IFERROR($E103*SUMIF('Daily Log'!#REF!,$B103,'Daily Log'!#REF!),0) -> 0 | U103: =IFERROR($E103*SUMIF('Daily Log'!#REF!,$B103,'Daily Log'!#REF!),0) -> 0 | V103: =IFERROR($E103*SUMIF('Daily Log'!#REF!,$B103,'Daily Log'!#REF!),0) -> 0 | W103: =IFERROR($E103*SUMIF('Daily Log'!#REF!,$B103,'Daily Log'!#REF!),0) -> 0 | X103: =IFERROR($E103*SUMIF('Daily Log'!#REF!,$B103,'Daily Log'!#REF!),0) -> 0 | Y103: =IFERROR($E103*SUMIF('Daily Log'!#REF!,$B103,'Daily Log'!#REF!),0) -> 0 | Z103: =IFERROR($E103*SUMIF('Daily Log'!$C$18:$C$1017,$B103,'Daily Log'!$D$18:$D$1017),0) -> 12 | AA103: =IFERROR($E103*SUMIF('Daily Log'!$F$18:$F$1017,$B103,'Daily Log'!$G$18:$G$1017),0) -> 11 | AB103: =IFERROR($E103*SUMIF('Daily Log'!$I$18:$I$1017,$B103,'Daily Log'!$J$18:$J$1017),0) -> 11 | AC103: =IFERROR($E103*SUMIF('Daily Log'!$L$18:$L$1017,$B103,'Daily Log'!$M$18:$M$1017),0) -> 19 | AD103: =IFERROR($E103*SUMIF('Daily Log'!$O$18:$O$1017,$B103,'Daily Log'!$P$18:$P$1017),0) -> 14 | AE103: =IFERROR($E103*SUMIF('Daily Log'!$R$18:$R$1017,$B103,'Daily Log'!$S$18:$S$1017),0) -> 14 | AF103: =IFERROR($E103*SUMIF('Daily Log'!$U$18:$U$1017,$B103,'Daily Log'!$V$18:$V$1017),0) -> 15 | AG103: =IFERROR($E103*SUMIF('Daily Log'!#REF!,$B103,'Daily Log'!#REF!),0) -> 0 | AH103: =IFERROR($E103*SUMIF('Daily Log'!#REF!,$B103,'Daily Log'!#REF!),0) -> 0 | AI103: =IFERROR($E103*SUMIF('Daily Log'!#REF!,$B103,'Daily Log'!#REF!),0) -> 0 | AJ103: =IFERROR($E103*SUMIF('Daily Log'!#REF!,$B103,'Daily Log'!#REF!),0) -> 0 | AK103: =IFERROR($E103*SUMIF('Daily Log'!#REF!,$B103,'Daily Log'!#REF!),0) -> 0
B104: CI02 APPLE J | D104: FFD-COLD BEVERAGE | E104: 1 | F104: 157 | G104: =IFERROR($E104*SUMIF('Daily Log'!#REF!,$B104,'Daily Log'!#REF!),0) -> 0 | H104: =IFERROR($E104*SUMIF('Daily Log'!#REF!,$B104,'Daily Log'!#REF!),0) -> 0 | I104: =IFERROR($E104*SUMIF('Daily Log'!#REF!,$B104,'Daily Log'!#REF!),0) -> 0 | J104: =IFERROR($E104*SUMIF('Daily Log'!#REF!,$B104,'Daily Log'!#REF!),0) -> 0 | K104: =IFERROR($E104*SUMIF('Daily Log'!#REF!,$B104,'Daily Log'!#REF!),0) -> 0 | L104: =IFERROR($E104*SUMIF('Daily Log'!#REF!,$B104,'Daily Log'!#REF!),0) -> 0 | M104: =IFERROR($E104*SUMIF('Daily Log'!#REF!,$B104,'Daily Log'!#REF!),0) -> 0 | N104: =IFERROR($E104*SUMIF('Daily Log'!#REF!,$B104,'Daily Log'!#REF!),0) -> 0 | O104: =IFERROR($E104*SUMIF('Daily Log'!#REF!,$B104,'Daily Log'!#REF!),0) -> 0 | P104: =IFERROR($E104*SUMIF('Daily Log'!#REF!,$B104,'Daily Log'!#REF!),0) -> 0 | Q104: =IFERROR($E104*SUMIF('Daily Log'!#REF!,$B104,'Daily Log'!#REF!),0) -> 0 | R104: =IFERROR($E104*SUMIF('Daily Log'!#REF!,$B104,'Daily Log'!#REF!),0) -> 0 | S104: =IFERROR($E104*SUMIF('Daily Log'!#REF!,$B104,'Daily Log'!#REF!),0) -> 0 | T104: =IFERROR($E104*SUMIF('Daily Log'!#REF!,$B104,'Daily Log'!#REF!),0) -> 0 | U104: =IFERROR($E104*SUMIF('Daily Log'!#REF!,$B104,'Daily Log'!#REF!),0) -> 0 | V104: =IFERROR($E104*SUMIF('Daily Log'!#REF!,$B104,'Daily Log'!#REF!),0) -> 0 | W104: =IFERROR($E104*SUMIF('Daily Log'!#REF!,$B104,'Daily Log'!#REF!),0) -> 0 | X104: =IFERROR($E104*SUMIF('Daily Log'!#REF!,$B104,'Daily Log'!#REF!),0) -> 0 | Y104: =IFERROR($E104*SUMIF('Daily Log'!#REF!,$B104,'Daily Log'!#REF!),0) -> 0 | Z104: =IFERROR($E104*SUMIF('Daily Log'!$C$18:$C$1017,$B104,'Daily Log'!$D$18:$D$1017),0) -> 20 | AA104: =IFERROR($E104*SUMIF('Daily Log'!$F$18:$F$1017,$B104,'Daily Log'!$G$18:$G$1017),0) -> 16 | AB104: =IFERROR($E104*SUMIF('Daily Log'!$I$18:$I$1017,$B104,'Daily Log'!$J$18:$J$1017),0) -> 17 | AC104: =IFERROR($E104*SUMIF('Daily Log'!$L$18:$L$1017,$B104,'Daily Log'!$M$18:$M$1017),0) -> 27 | AD104: =IFERROR($E104*SUMIF('Daily Log'!$O$18:$O$1017,$B104,'Daily Log'!$P$18:$P$1017),0) -> 34 | AE104: =IFERROR($E104*SUMIF('Daily Log'!$R$18:$R$1017,$B104,'Daily Log'!$S$18:$S$1017),0) -> 27 | AF104: =IFERROR($E104*SUMIF('Daily Log'!$U$18:$U$1017,$B104,'Daily Log'!$V$18:$V$1017),0) -> 16 | AG104: =IFERROR($E104*SUMIF('Daily Log'!#REF!,$B104,'Daily Log'!#REF!),0) -> 0 | AH104: =IFERROR($E104*SUMIF('Daily Log'!#REF!,$B104,'Daily Log'!#REF!),0) -> 0 | AI104: =IFERROR($E104*SUMIF('Daily Log'!#REF!,$B104,'Daily Log'!#REF!),0) -> 0 | AJ104: =IFERROR($E104*SUMIF('Daily Log'!#REF!,$B104,'Daily Log'!#REF!),0) -> 0 | AK104: =IFERROR($E104*SUMIF('Daily Log'!#REF!,$B104,'Daily Log'!#REF!),0) -> 0
B105: CI03 KIWI J | D105: FFD-COLD BEVERAGE | E105: 1 | F105: 0 | G105: =IFERROR($E105*SUMIF('Daily Log'!#REF!,$B105,'Daily Log'!#REF!),0) -> 0 | H105: =IFERROR($E105*SUMIF('Daily Log'!#REF!,$B105,'Daily Log'!#REF!),0) -> 0 | I105: =IFERROR($E105*SUMIF('Daily Log'!#REF!,$B105,'Daily Log'!#REF!),0) -> 0 | J105: =IFERROR($E105*SUMIF('Daily Log'!#REF!,$B105,'Daily Log'!#REF!),0) -> 0 | K105: =IFERROR($E105*SUMIF('Daily Log'!#REF!,$B105,'Daily Log'!#REF!),0) -> 0 | L105: =IFERROR($E105*SUMIF('Daily Log'!#REF!,$B105,'Daily Log'!#REF!),0) -> 0 | M105: =IFERROR($E105*SUMIF('Daily Log'!#REF!,$B105,'Daily Log'!#REF!),0) -> 0 | N105: =IFERROR($E105*SUMIF('Daily Log'!#REF!,$B105,'Daily Log'!#REF!),0) -> 0 | O105: =IFERROR($E105*SUMIF('Daily Log'!#REF!,$B105,'Daily Log'!#REF!),0) -> 0 | P105: =IFERROR($E105*SUMIF('Daily Log'!#REF!,$B105,'Daily Log'!#REF!),0) -> 0 | Q105: =IFERROR($E105*SUMIF('Daily Log'!#REF!,$B105,'Daily Log'!#REF!),0) -> 0 | R105: =IFERROR($E105*SUMIF('Daily Log'!#REF!,$B105,'Daily Log'!#REF!),0) -> 0 | S105: =IFERROR($E105*SUMIF('Daily Log'!#REF!,$B105,'Daily Log'!#REF!),0) -> 0 | T105: =IFERROR($E105*SUMIF('Daily Log'!#REF!,$B105,'Daily Log'!#REF!),0) -> 0 | U105: =IFERROR($E105*SUMIF('Daily Log'!#REF!,$B105,'Daily Log'!#REF!),0) -> 0 | V105: =IFERROR($E105*SUMIF('Daily Log'!#REF!,$B105,'Daily Log'!#REF!),0) -> 0 | W105: =IFERROR($E105*SUMIF('Daily Log'!#REF!,$B105,'Daily Log'!#REF!),0) -> 0 | X105: =IFERROR($E105*SUMIF('Daily Log'!#REF!,$B105,'Daily Log'!#REF!),0) -> 0 | Y105: =IFERROR($E105*SUMIF('Daily Log'!#REF!,$B105,'Daily Log'!#REF!),0) -> 0 | Z105: =IFERROR($E105*SUMIF('Daily Log'!$C$18:$C$1017,$B105,'Daily Log'!$D$18:$D$1017),0) -> 0 | AA105: =IFERROR($E105*SUMIF('Daily Log'!$F$18:$F$1017,$B105,'Daily Log'!$G$18:$G$1017),0) -> 0 | AB105: =IFERROR($E105*SUMIF('Daily Log'!$I$18:$I$1017,$B105,'Daily Log'!$J$18:$J$1017),0) -> 0 | AC105: =IFERROR($E105*SUMIF('Daily Log'!$L$18:$L$1017,$B105,'Daily Log'!$M$18:$M$1017),0) -> 0 | AD105: =IFERROR($E105*SUMIF('Daily Log'!$O$18:$O$1017,$B105,'Daily Log'!$P$18:$P$1017),0) -> 0 | AE105: =IFERROR($E105*SUMIF('Daily Log'!$R$18:$R$1017,$B105,'Daily Log'!$S$18:$S$1017),0) -> 0 | AF105: =IFERROR($E105*SUMIF('Daily Log'!$U$18:$U$1017,$B105,'Daily Log'!$V$18:$V$1017),0) -> 0 | AG105: =IFERROR($E105*SUMIF('Daily Log'!#REF!,$B105,'Daily Log'!#REF!),0) -> 0 | AH105: =IFERROR($E105*SUMIF('Daily Log'!#REF!,$B105,'Daily Log'!#REF!),0) -> 0 | AI105: =IFERROR($E105*SUMIF('Daily Log'!#REF!,$B105,'Daily Log'!#REF!),0) -> 0 | AJ105: =IFERROR($E105*SUMIF('Daily Log'!#REF!,$B105,'Daily Log'!#REF!),0) -> 0 | AK105: =IFERROR($E105*SUMIF('Daily Log'!#REF!,$B105,'Daily Log'!#REF!),0) -> 0
B106: CI04 MANGO J | D106: FFD-COLD BEVERAGE | E106: 1 | F106: 165 | G106: =IFERROR($E106*SUMIF('Daily Log'!#REF!,$B106,'Daily Log'!#REF!),0) -> 0 | H106: =IFERROR($E106*SUMIF('Daily Log'!#REF!,$B106,'Daily Log'!#REF!),0) -> 0 | I106: =IFERROR($E106*SUMIF('Daily Log'!#REF!,$B106,'Daily Log'!#REF!),0) -> 0 | J106: =IFERROR($E106*SUMIF('Daily Log'!#REF!,$B106,'Daily Log'!#REF!),0) -> 0 | K106: =IFERROR($E106*SUMIF('Daily Log'!#REF!,$B106,'Daily Log'!#REF!),0) -> 0 | L106: =IFERROR($E106*SUMIF('Daily Log'!#REF!,$B106,'Daily Log'!#REF!),0) -> 0 | M106: =IFERROR($E106*SUMIF('Daily Log'!#REF!,$B106,'Daily Log'!#REF!),0) -> 0 | N106: =IFERROR($E106*SUMIF('Daily Log'!#REF!,$B106,'Daily Log'!#REF!),0) -> 0 | O106: =IFERROR($E106*SUMIF('Daily Log'!#REF!,$B106,'Daily Log'!#REF!),0) -> 0 | P106: =IFERROR($E106*SUMIF('Daily Log'!#REF!,$B106,'Daily Log'!#REF!),0) -> 0 | Q106: =IFERROR($E106*SUMIF('Daily Log'!#REF!,$B106,'Daily Log'!#REF!),0) -> 0 | R106: =IFERROR($E106*SUMIF('Daily Log'!#REF!,$B106,'Daily Log'!#REF!),0) -> 0 | S106: =IFERROR($E106*SUMIF('Daily Log'!#REF!,$B106,'Daily Log'!#REF!),0) -> 0 | T106: =IFERROR($E106*SUMIF('Daily Log'!#REF!,$B106,'Daily Log'!#REF!),0) -> 0 | U106: =IFERROR($E106*SUMIF('Daily Log'!#REF!,$B106,'Daily Log'!#REF!),0) -> 0 | V106: =IFERROR($E106*SUMIF('Daily Log'!#REF!,$B106,'Daily Log'!#REF!),0) -> 0 | W106: =IFERROR($E106*SUMIF('Daily Log'!#REF!,$B106,'Daily Log'!#REF!),0) -> 0 | X106: =IFERROR($E106*SUMIF('Daily Log'!#REF!,$B106,'Daily Log'!#REF!),0) -> 0 | Y106: =IFERROR($E106*SUMIF('Daily Log'!#REF!,$B106,'Daily Log'!#REF!),0) -> 0 | Z106: =IFERROR($E106*SUMIF('Daily Log'!$C$18:$C$1017,$B106,'Daily Log'!$D$18:$D$1017),0) -> 24 | AA106: =IFERROR($E106*SUMIF('Daily Log'!$F$18:$F$1017,$B106,'Daily Log'!$G$18:$G$1017),0) -> 18 | AB106: =IFERROR($E106*SUMIF('Daily Log'!$I$18:$I$1017,$B106,'Daily Log'!$J$18:$J$1017),0) -> 16 | AC106: =IFERROR($E106*SUMIF('Daily Log'!$L$18:$L$1017,$B106,'Daily Log'!$M$18:$M$1017),0) -> 32 | AD106: =IFERROR($E106*SUMIF('Daily Log'!$O$18:$O$1017,$B106,'Daily Log'!$P$18:$P$1017),0) -> 16 | AE106: =IFERROR($E106*SUMIF('Daily Log'!$R$18:$R$1017,$B106,'Daily Log'!$S$18:$S$1017),0) -> 33 | AF106: =IFERROR($E106*SUMIF('Daily Log'!$U$18:$U$1017,$B106,'Daily Log'!$V$18:$V$1017),0) -> 26 | AG106: =IFERROR($E106*SUMIF('Daily Log'!#REF!,$B106,'Daily Log'!#REF!),0) -> 0 | AH106: =IFERROR($E106*SUMIF('Daily Log'!#REF!,$B106,'Daily Log'!#REF!),0) -> 0 | AI106: =IFERROR($E106*SUMIF('Daily Log'!#REF!,$B106,'Daily Log'!#REF!),0) -> 0 | AJ106: =IFERROR($E106*SUMIF('Daily Log'!#REF!,$B106,'Daily Log'!#REF!),0) -> 0 | AK106: =IFERROR($E106*SUMIF('Daily Log'!#REF!,$B106,'Daily Log'!#REF!),0) -> 0
B107: CI05 PASSION J | D107: FFD-COLD BEVERAGE | E107: 1 | F107: 219 | G107: =IFERROR($E107*SUMIF('Daily Log'!#REF!,$B107,'Daily Log'!#REF!),0) -> 0 | H107: =IFERROR($E107*SUMIF('Daily Log'!#REF!,$B107,'Daily Log'!#REF!),0) -> 0 | I107: =IFERROR($E107*SUMIF('Daily Log'!#REF!,$B107,'Daily Log'!#REF!),0) -> 0 | J107: =IFERROR($E107*SUMIF('Daily Log'!#REF!,$B107,'Daily Log'!#REF!),0) -> 0 | K107: =IFERROR($E107*SUMIF('Daily Log'!#REF!,$B107,'Daily Log'!#REF!),0) -> 0 | L107: =IFERROR($E107*SUMIF('Daily Log'!#REF!,$B107,'Daily Log'!#REF!),0) -> 0 | M107: =IFERROR($E107*SUMIF('Daily Log'!#REF!,$B107,'Daily Log'!#REF!),0) -> 0 | N107: =IFERROR($E107*SUMIF('Daily Log'!#REF!,$B107,'Daily Log'!#REF!),0) -> 0 | O107: =IFERROR($E107*SUMIF('Daily Log'!#REF!,$B107,'Daily Log'!#REF!),0) -> 0 | P107: =IFERROR($E107*SUMIF('Daily Log'!#REF!,$B107,'Daily Log'!#REF!),0) -> 0 | Q107: =IFERROR($E107*SUMIF('Daily Log'!#REF!,$B107,'Daily Log'!#REF!),0) -> 0 | R107: =IFERROR($E107*SUMIF('Daily Log'!#REF!,$B107,'Daily Log'!#REF!),0) -> 0 | S107: =IFERROR($E107*SUMIF('Daily Log'!#REF!,$B107,'Daily Log'!#REF!),0) -> 0 | T107: =IFERROR($E107*SUMIF('Daily Log'!#REF!,$B107,'Daily Log'!#REF!),0) -> 0 | U107: =IFERROR($E107*SUMIF('Daily Log'!#REF!,$B107,'Daily Log'!#REF!),0) -> 0 | V107: =IFERROR($E107*SUMIF('Daily Log'!#REF!,$B107,'Daily Log'!#REF!),0) -> 0 | W107: =IFERROR($E107*SUMIF('Daily Log'!#REF!,$B107,'Daily Log'!#REF!),0) -> 0 | X107: =IFERROR($E107*SUMIF('Daily Log'!#REF!,$B107,'Daily Log'!#REF!),0) -> 0 | Y107: =IFERROR($E107*SUMIF('Daily Log'!#REF!,$B107,'Daily Log'!#REF!),0) -> 0 | Z107: =IFERROR($E107*SUMIF('Daily Log'!$C$18:$C$1017,$B107,'Daily Log'!$D$18:$D$1017),0) -> 3 | AA107: =IFERROR($E107*SUMIF('Daily Log'!$F$18:$F$1017,$B107,'Daily Log'!$G$18:$G$1017),0) -> 33 | AB107: =IFERROR($E107*SUMIF('Daily Log'!$I$18:$I$1017,$B107,'Daily Log'!$J$18:$J$1017),0) -> 25 | AC107: =IFERROR($E107*SUMIF('Daily Log'!$L$18:$L$1017,$B107,'Daily Log'!$M$18:$M$1017),0) -> 59 | AD107: =IFERROR($E107*SUMIF('Daily Log'!$O$18:$O$1017,$B107,'Daily Log'!$P$18:$P$1017),0) -> 35 | AE107: =IFERROR($E107*SUMIF('Daily Log'!$R$18:$R$1017,$B107,'Daily Log'!$S$18:$S$1017),0) -> 32 | AF107: =IFERROR($E107*SUMIF('Daily Log'!$U$18:$U$1017,$B107,'Daily Log'!$V$18:$V$1017),0) -> 32 | AG107: =IFERROR($E107*SUMIF('Daily Log'!#REF!,$B107,'Daily Log'!#REF!),0) -> 0 | AH107: =IFERROR($E107*SUMIF('Daily Log'!#REF!,$B107,'Daily Log'!#REF!),0) -> 0 | AI107: =IFERROR($E107*SUMIF('Daily Log'!#REF!,$B107,'Daily Log'!#REF!),0) -> 0 | AJ107: =IFERROR($E107*SUMIF('Daily Log'!#REF!,$B107,'Daily Log'!#REF!),0) -> 0 | AK107: =IFERROR($E107*SUMIF('Daily Log'!#REF!,$B107,'Daily Log'!#REF!),0) -> 0
B108: CI06 RIBENA J | D108: FFD-COLD BEVERAGE | E108: 1 | F108: 381 | G108: =IFERROR($E108*SUMIF('Daily Log'!#REF!,$B108,'Daily Log'!#REF!),0) -> 0 | H108: =IFERROR($E108*SUMIF('Daily Log'!#REF!,$B108,'Daily Log'!#REF!),0) -> 0 | I108: =IFERROR($E108*SUMIF('Daily Log'!#REF!,$B108,'Daily Log'!#REF!),0) -> 0 | J108: =IFERROR($E108*SUMIF('Daily Log'!#REF!,$B108,'Daily Log'!#REF!),0) -> 0 | K108: =IFERROR($E108*SUMIF('Daily Log'!#REF!,$B108,'Daily Log'!#REF!),0) -> 0 | L108: =IFERROR($E108*SUMIF('Daily Log'!#REF!,$B108,'Daily Log'!#REF!),0) -> 0 | M108: =IFERROR($E108*SUMIF('Daily Log'!#REF!,$B108,'Daily Log'!#REF!),0) -> 0 | N108: =IFERROR($E108*SUMIF('Daily Log'!#REF!,$B108,'Daily Log'!#REF!),0) -> 0 | O108: =IFERROR($E108*SUMIF('Daily Log'!#REF!,$B108,'Daily Log'!#REF!),0) -> 0 | P108: =IFERROR($E108*SUMIF('Daily Log'!#REF!,$B108,'Daily Log'!#REF!),0) -> 0 | Q108: =IFERROR($E108*SUMIF('Daily Log'!#REF!,$B108,'Daily Log'!#REF!),0) -> 0 | R108: =IFERROR($E108*SUMIF('Daily Log'!#REF!,$B108,'Daily Log'!#REF!),0) -> 0 | S108: =IFERROR($E108*SUMIF('Daily Log'!#REF!,$B108,'Daily Log'!#REF!),0) -> 0 | T108: =IFERROR($E108*SUMIF('Daily Log'!#REF!,$B108,'Daily Log'!#REF!),0) -> 0 | U108: =IFERROR($E108*SUMIF('Daily Log'!#REF!,$B108,'Daily Log'!#REF!),0) -> 0 | V108: =IFERROR($E108*SUMIF('Daily Log'!#REF!,$B108,'Daily Log'!#REF!),0) -> 0 | W108: =IFERROR($E108*SUMIF('Daily Log'!#REF!,$B108,'Daily Log'!#REF!),0) -> 0 | X108: =IFERROR($E108*SUMIF('Daily Log'!#REF!,$B108,'Daily Log'!#REF!),0) -> 0 | Y108: =IFERROR($E108*SUMIF('Daily Log'!#REF!,$B108,'Daily Log'!#REF!),0) -> 0 | Z108: =IFERROR($E108*SUMIF('Daily Log'!$C$18:$C$1017,$B108,'Daily Log'!$D$18:$D$1017),0) -> 45 | AA108: =IFERROR($E108*SUMIF('Daily Log'!$F$18:$F$1017,$B108,'Daily Log'!$G$18:$G$1017),0) -> 53 | AB108: =IFERROR($E108*SUMIF('Daily Log'!$I$18:$I$1017,$B108,'Daily Log'!$J$18:$J$1017),0) -> 42 | AC108: =IFERROR($E108*SUMIF('Daily Log'!$L$18:$L$1017,$B108,'Daily Log'!$M$18:$M$1017),0) -> 52 | AD108: =IFERROR($E108*SUMIF('Daily Log'!$O$18:$O$1017,$B108,'Daily Log'!$P$18:$P$1017),0) -> 69 | AE108: =IFERROR($E108*SUMIF('Daily Log'!$R$18:$R$1017,$B108,'Daily Log'!$S$18:$S$1017),0) -> 72 | AF108: =IFERROR($E108*SUMIF('Daily Log'!$U$18:$U$1017,$B108,'Daily Log'!$V$18:$V$1017),0) -> 48 | AG108: =IFERROR($E108*SUMIF('Daily Log'!#REF!,$B108,'Daily Log'!#REF!),0) -> 0 | AH108: =IFERROR($E108*SUMIF('Daily Log'!#REF!,$B108,'Daily Log'!#REF!),0) -> 0 | AI108: =IFERROR($E108*SUMIF('Daily Log'!#REF!,$B108,'Daily Log'!#REF!),0) -> 0 | AJ108: =IFERROR($E108*SUMIF('Daily Log'!#REF!,$B108,'Daily Log'!#REF!),0) -> 0 | AK108: =IFERROR($E108*SUMIF('Daily Log'!#REF!,$B108,'Daily Log'!#REF!),0) -> 0
B109: CJ01 GRAPE SO | D109: FFD-COLD BEVERAGE | E109: 1 | F109: 1 | G109: =IFERROR($E109*SUMIF('Daily Log'!#REF!,$B109,'Daily Log'!#REF!),0) -> 0 | H109: =IFERROR($E109*SUMIF('Daily Log'!#REF!,$B109,'Daily Log'!#REF!),0) -> 0 | I109: =IFERROR($E109*SUMIF('Daily Log'!#REF!,$B109,'Daily Log'!#REF!),0) -> 0 | J109: =IFERROR($E109*SUMIF('Daily Log'!#REF!,$B109,'Daily Log'!#REF!),0) -> 0 | K109: =IFERROR($E109*SUMIF('Daily Log'!#REF!,$B109,'Daily Log'!#REF!),0) -> 0 | L109: =IFERROR($E109*SUMIF('Daily Log'!#REF!,$B109,'Daily Log'!#REF!),0) -> 0 | M109: =IFERROR($E109*SUMIF('Daily Log'!#REF!,$B109,'Daily Log'!#REF!),0) -> 0 | N109: =IFERROR($E109*SUMIF('Daily Log'!#REF!,$B109,'Daily Log'!#REF!),0) -> 0 | O109: =IFERROR($E109*SUMIF('Daily Log'!#REF!,$B109,'Daily Log'!#REF!),0) -> 0 | P109: =IFERROR($E109*SUMIF('Daily Log'!#REF!,$B109,'Daily Log'!#REF!),0) -> 0 | Q109: =IFERROR($E109*SUMIF('Daily Log'!#REF!,$B109,'Daily Log'!#REF!),0) -> 0 | R109: =IFERROR($E109*SUMIF('Daily Log'!#REF!,$B109,'Daily Log'!#REF!),0) -> 0 | S109: =IFERROR($E109*SUMIF('Daily Log'!#REF!,$B109,'Daily Log'!#REF!),0) -> 0 | T109: =IFERROR($E109*SUMIF('Daily Log'!#REF!,$B109,'Daily Log'!#REF!),0) -> 0 | U109: =IFERROR($E109*SUMIF('Daily Log'!#REF!,$B109,'Daily Log'!#REF!),0) -> 0 | V109: =IFERROR($E109*SUMIF('Daily Log'!#REF!,$B109,'Daily Log'!#REF!),0) -> 0 | W109: =IFERROR($E109*SUMIF('Daily Log'!#REF!,$B109,'Daily Log'!#REF!),0) -> 0 | X109: =IFERROR($E109*SUMIF('Daily Log'!#REF!,$B109,'Daily Log'!#REF!),0) -> 0 | Y109: =IFERROR($E109*SUMIF('Daily Log'!#REF!,$B109,'Daily Log'!#REF!),0) -> 0 | Z109: =IFERROR($E109*SUMIF('Daily Log'!$C$18:$C$1017,$B109,'Daily Log'!$D$18:$D$1017),0) -> 0 | AA109: =IFERROR($E109*SUMIF('Daily Log'!$F$18:$F$1017,$B109,'Daily Log'!$G$18:$G$1017),0) -> 0 | AB109: =IFERROR($E109*SUMIF('Daily Log'!$I$18:$I$1017,$B109,'Daily Log'!$J$18:$J$1017),0) -> 0 | AC109: =IFERROR($E109*SUMIF('Daily Log'!$L$18:$L$1017,$B109,'Daily Log'!$M$18:$M$1017),0) -> 0 | AD109: =IFERROR($E109*SUMIF('Daily Log'!$O$18:$O$1017,$B109,'Daily Log'!$P$18:$P$1017),0) -> 0 | AE109: =IFERROR($E109*SUMIF('Daily Log'!$R$18:$R$1017,$B109,'Daily Log'!$S$18:$S$1017),0) -> 1 | AF109: =IFERROR($E109*SUMIF('Daily Log'!$U$18:$U$1017,$B109,'Daily Log'!$V$18:$V$1017),0) -> 0 | AG109: =IFERROR($E109*SUMIF('Daily Log'!#REF!,$B109,'Daily Log'!#REF!),0) -> 0 | AH109: =IFERROR($E109*SUMIF('Daily Log'!#REF!,$B109,'Daily Log'!#REF!),0) -> 0 | AI109: =IFERROR($E109*SUMIF('Daily Log'!#REF!,$B109,'Daily Log'!#REF!),0) -> 0 | AJ109: =IFERROR($E109*SUMIF('Daily Log'!#REF!,$B109,'Daily Log'!#REF!),0) -> 0 | AK109: =IFERROR($E109*SUMIF('Daily Log'!#REF!,$B109,'Daily Log'!#REF!),0) -> 0
B110: CJ02 APPLE SO | D110: FFD-COLD BEVERAGE | E110: 1 | F110: 7 | G110: =IFERROR($E110*SUMIF('Daily Log'!#REF!,$B110,'Daily Log'!#REF!),0) -> 0 | H110: =IFERROR($E110*SUMIF('Daily Log'!#REF!,$B110,'Daily Log'!#REF!),0) -> 0 | I110: =IFERROR($E110*SUMIF('Daily Log'!#REF!,$B110,'Daily Log'!#REF!),0) -> 0 | J110: =IFERROR($E110*SUMIF('Daily Log'!#REF!,$B110,'Daily Log'!#REF!),0) -> 0 | K110: =IFERROR($E110*SUMIF('Daily Log'!#REF!,$B110,'Daily Log'!#REF!),0) -> 0 | L110: =IFERROR($E110*SUMIF('Daily Log'!#REF!,$B110,'Daily Log'!#REF!),0) -> 0 | M110: =IFERROR($E110*SUMIF('Daily Log'!#REF!,$B110,'Daily Log'!#REF!),0) -> 0 | N110: =IFERROR($E110*SUMIF('Daily Log'!#REF!,$B110,'Daily Log'!#REF!),0) -> 0 | O110: =IFERROR($E110*SUMIF('Daily Log'!#REF!,$B110,'Daily Log'!#REF!),0) -> 0 | P110: =IFERROR($E110*SUMIF('Daily Log'!#REF!,$B110,'Daily Log'!#REF!),0) -> 0 | Q110: =IFERROR($E110*SUMIF('Daily Log'!#REF!,$B110,'Daily Log'!#REF!),0) -> 0 | R110: =IFERROR($E110*SUMIF('Daily Log'!#REF!,$B110,'Daily Log'!#REF!),0) -> 0 | S110: =IFERROR($E110*SUMIF('Daily Log'!#REF!,$B110,'Daily Log'!#REF!),0) -> 0 | T110: =IFERROR($E110*SUMIF('Daily Log'!#REF!,$B110,'Daily Log'!#REF!),0) -> 0 | U110: =IFERROR($E110*SUMIF('Daily Log'!#REF!,$B110,'Daily Log'!#REF!),0) -> 0 | V110: =IFERROR($E110*SUMIF('Daily Log'!#REF!,$B110,'Daily Log'!#REF!),0) -> 0 | W110: =IFERROR($E110*SUMIF('Daily Log'!#REF!,$B110,'Daily Log'!#REF!),0) -> 0 | X110: =IFERROR($E110*SUMIF('Daily Log'!#REF!,$B110,'Daily Log'!#REF!),0) -> 0 | Y110: =IFERROR($E110*SUMIF('Daily Log'!#REF!,$B110,'Daily Log'!#REF!),0) -> 0 | Z110: =IFERROR($E110*SUMIF('Daily Log'!$C$18:$C$1017,$B110,'Daily Log'!$D$18:$D$1017),0) -> 0 | AA110: =IFERROR($E110*SUMIF('Daily Log'!$F$18:$F$1017,$B110,'Daily Log'!$G$18:$G$1017),0) -> 0 | AB110: =IFERROR($E110*SUMIF('Daily Log'!$I$18:$I$1017,$B110,'Daily Log'!$J$18:$J$1017),0) -> 1 | AC110: =IFERROR($E110*SUMIF('Daily Log'!$L$18:$L$1017,$B110,'Daily Log'!$M$18:$M$1017),0) -> 6 | AD110: =IFERROR($E110*SUMIF('Daily Log'!$O$18:$O$1017,$B110,'Daily Log'!$P$18:$P$1017),0) -> 0 | AE110: =IFERROR($E110*SUMIF('Daily Log'!$R$18:$R$1017,$B110,'Daily Log'!$S$18:$S$1017),0) -> 0 | AF110: =IFERROR($E110*SUMIF('Daily Log'!$U$18:$U$1017,$B110,'Daily Log'!$V$18:$V$1017),0) -> 0 | AG110: =IFERROR($E110*SUMIF('Daily Log'!#REF!,$B110,'Daily Log'!#REF!),0) -> 0 | AH110: =IFERROR($E110*SUMIF('Daily Log'!#REF!,$B110,'Daily Log'!#REF!),0) -> 0 | AI110: =IFERROR($E110*SUMIF('Daily Log'!#REF!,$B110,'Daily Log'!#REF!),0) -> 0 | AJ110: =IFERROR($E110*SUMIF('Daily Log'!#REF!,$B110,'Daily Log'!#REF!),0) -> 0 | AK110: =IFERROR($E110*SUMIF('Daily Log'!#REF!,$B110,'Daily Log'!#REF!),0) -> 0
B111: CJ03 KIWI SO | D111: FFD-COLD BEVERAGE | E111: 1 | F111: 0 | G111: =IFERROR($E111*SUMIF('Daily Log'!#REF!,$B111,'Daily Log'!#REF!),0) -> 0 | H111: =IFERROR($E111*SUMIF('Daily Log'!#REF!,$B111,'Daily Log'!#REF!),0) -> 0 | I111: =IFERROR($E111*SUMIF('Daily Log'!#REF!,$B111,'Daily Log'!#REF!),0) -> 0 | J111: =IFERROR($E111*SUMIF('Daily Log'!#REF!,$B111,'Daily Log'!#REF!),0) -> 0 | K111: =IFERROR($E111*SUMIF('Daily Log'!#REF!,$B111,'Daily Log'!#REF!),0) -> 0 | L111: =IFERROR($E111*SUMIF('Daily Log'!#REF!,$B111,'Daily Log'!#REF!),0) -> 0 | M111: =IFERROR($E111*SUMIF('Daily Log'!#REF!,$B111,'Daily Log'!#REF!),0) -> 0 | N111: =IFERROR($E111*SUMIF('Daily Log'!#REF!,$B111,'Daily Log'!#REF!),0) -> 0 | O111: =IFERROR($E111*SUMIF('Daily Log'!#REF!,$B111,'Daily Log'!#REF!),0) -> 0 | P111: =IFERROR($E111*SUMIF('Daily Log'!#REF!,$B111,'Daily Log'!#REF!),0) -> 0 | Q111: =IFERROR($E111*SUMIF('Daily Log'!#REF!,$B111,'Daily Log'!#REF!),0) -> 0 | R111: =IFERROR($E111*SUMIF('Daily Log'!#REF!,$B111,'Daily Log'!#REF!),0) -> 0 | S111: =IFERROR($E111*SUMIF('Daily Log'!#REF!,$B111,'Daily Log'!#REF!),0) -> 0 | T111: =IFERROR($E111*SUMIF('Daily Log'!#REF!,$B111,'Daily Log'!#REF!),0) -> 0 | U111: =IFERROR($E111*SUMIF('Daily Log'!#REF!,$B111,'Daily Log'!#REF!),0) -> 0 | V111: =IFERROR($E111*SUMIF('Daily Log'!#REF!,$B111,'Daily Log'!#REF!),0) -> 0 | W111: =IFERROR($E111*SUMIF('Daily Log'!#REF!,$B111,'Daily Log'!#REF!),0) -> 0 | X111: =IFERROR($E111*SUMIF('Daily Log'!#REF!,$B111,'Daily Log'!#REF!),0) -> 0 | Y111: =IFERROR($E111*SUMIF('Daily Log'!#REF!,$B111,'Daily Log'!#REF!),0) -> 0 | Z111: =IFERROR($E111*SUMIF('Daily Log'!$C$18:$C$1017,$B111,'Daily Log'!$D$18:$D$1017),0) -> 0 | AA111: =IFERROR($E111*SUMIF('Daily Log'!$F$18:$F$1017,$B111,'Daily Log'!$G$18:$G$1017),0) -> 0 | AB111: =IFERROR($E111*SUMIF('Daily Log'!$I$18:$I$1017,$B111,'Daily Log'!$J$18:$J$1017),0) -> 0 | AC111: =IFERROR($E111*SUMIF('Daily Log'!$L$18:$L$1017,$B111,'Daily Log'!$M$18:$M$1017),0) -> 0 | AD111: =IFERROR($E111*SUMIF('Daily Log'!$O$18:$O$1017,$B111,'Daily Log'!$P$18:$P$1017),0) -> 0 | AE111: =IFERROR($E111*SUMIF('Daily Log'!$R$18:$R$1017,$B111,'Daily Log'!$S$18:$S$1017),0) -> 0 | AF111: =IFERROR($E111*SUMIF('Daily Log'!$U$18:$U$1017,$B111,'Daily Log'!$V$18:$V$1017),0) -> 0 | AG111: =IFERROR($E111*SUMIF('Daily Log'!#REF!,$B111,'Daily Log'!#REF!),0) -> 0 | AH111: =IFERROR($E111*SUMIF('Daily Log'!#REF!,$B111,'Daily Log'!#REF!),0) -> 0 | AI111: =IFERROR($E111*SUMIF('Daily Log'!#REF!,$B111,'Daily Log'!#REF!),0) -> 0 | AJ111: =IFERROR($E111*SUMIF('Daily Log'!#REF!,$B111,'Daily Log'!#REF!),0) -> 0 | AK111: =IFERROR($E111*SUMIF('Daily Log'!#REF!,$B111,'Daily Log'!#REF!),0) -> 0
B112: CJ04 MANGO SO | D112: FFD-COLD BEVERAGE | E112: 1 | F112: 3 | G112: =IFERROR($E112*SUMIF('Daily Log'!#REF!,$B112,'Daily Log'!#REF!),0) -> 0 | H112: =IFERROR($E112*SUMIF('Daily Log'!#REF!,$B112,'Daily Log'!#REF!),0) -> 0 | I112: =IFERROR($E112*SUMIF('Daily Log'!#REF!,$B112,'Daily Log'!#REF!),0) -> 0 | J112: =IFERROR($E112*SUMIF('Daily Log'!#REF!,$B112,'Daily Log'!#REF!),0) -> 0 | K112: =IFERROR($E112*SUMIF('Daily Log'!#REF!,$B112,'Daily Log'!#REF!),0) -> 0 | L112: =IFERROR($E112*SUMIF('Daily Log'!#REF!,$B112,'Daily Log'!#REF!),0) -> 0 | M112: =IFERROR($E112*SUMIF('Daily Log'!#REF!,$B112,'Daily Log'!#REF!),0) -> 0 | N112: =IFERROR($E112*SUMIF('Daily Log'!#REF!,$B112,'Daily Log'!#REF!),0) -> 0 | O112: =IFERROR($E112*SUMIF('Daily Log'!#REF!,$B112,'Daily Log'!#REF!),0) -> 0 | P112: =IFERROR($E112*SUMIF('Daily Log'!#REF!,$B112,'Daily Log'!#REF!),0) -> 0 | Q112: =IFERROR($E112*SUMIF('Daily Log'!#REF!,$B112,'Daily Log'!#REF!),0) -> 0 | R112: =IFERROR($E112*SUMIF('Daily Log'!#REF!,$B112,'Daily Log'!#REF!),0) -> 0 | S112: =IFERROR($E112*SUMIF('Daily Log'!#REF!,$B112,'Daily Log'!#REF!),0) -> 0 | T112: =IFERROR($E112*SUMIF('Daily Log'!#REF!,$B112,'Daily Log'!#REF!),0) -> 0 | U112: =IFERROR($E112*SUMIF('Daily Log'!#REF!,$B112,'Daily Log'!#REF!),0) -> 0 | V112: =IFERROR($E112*SUMIF('Daily Log'!#REF!,$B112,'Daily Log'!#REF!),0) -> 0 | W112: =IFERROR($E112*SUMIF('Daily Log'!#REF!,$B112,'Daily Log'!#REF!),0) -> 0 | X112: =IFERROR($E112*SUMIF('Daily Log'!#REF!,$B112,'Daily Log'!#REF!),0) -> 0 | Y112: =IFERROR($E112*SUMIF('Daily Log'!#REF!,$B112,'Daily Log'!#REF!),0) -> 0 | Z112: =IFERROR($E112*SUMIF('Daily Log'!$C$18:$C$1017,$B112,'Daily Log'!$D$18:$D$1017),0) -> 0 | AA112: =IFERROR($E112*SUMIF('Daily Log'!$F$18:$F$1017,$B112,'Daily Log'!$G$18:$G$1017),0) -> 3 | AB112: =IFERROR($E112*SUMIF('Daily Log'!$I$18:$I$1017,$B112,'Daily Log'!$J$18:$J$1017),0) -> 0 | AC112: =IFERROR($E112*SUMIF('Daily Log'!$L$18:$L$1017,$B112,'Daily Log'!$M$18:$M$1017),0) -> 0 | AD112: =IFERROR($E112*SUMIF('Daily Log'!$O$18:$O$1017,$B112,'Daily Log'!$P$18:$P$1017),0) -> 0 | AE112: =IFERROR($E112*SUMIF('Daily Log'!$R$18:$R$1017,$B112,'Daily Log'!$S$18:$S$1017),0) -> 0 | AF112: =IFERROR($E112*SUMIF('Daily Log'!$U$18:$U$1017,$B112,'Daily Log'!$V$18:$V$1017),0) -> 0 | AG112: =IFERROR($E112*SUMIF('Daily Log'!#REF!,$B112,'Daily Log'!#REF!),0) -> 0 | AH112: =IFERROR($E112*SUMIF('Daily Log'!#REF!,$B112,'Daily Log'!#REF!),0) -> 0 | AI112: =IFERROR($E112*SUMIF('Daily Log'!#REF!,$B112,'Daily Log'!#REF!),0) -> 0 | AJ112: =IFERROR($E112*SUMIF('Daily Log'!#REF!,$B112,'Daily Log'!#REF!),0) -> 0 | AK112: =IFERROR($E112*SUMIF('Daily Log'!#REF!,$B112,'Daily Log'!#REF!),0) -> 0
B113: CJ05 PASSION SO | D113: FFD-COLD BEVERAGE | E113: 1 | F113: 5 | G113: =IFERROR($E113*SUMIF('Daily Log'!#REF!,$B113,'Daily Log'!#REF!),0) -> 0 | H113: =IFERROR($E113*SUMIF('Daily Log'!#REF!,$B113,'Daily Log'!#REF!),0) -> 0 | I113: =IFERROR($E113*SUMIF('Daily Log'!#REF!,$B113,'Daily Log'!#REF!),0) -> 0 | J113: =IFERROR($E113*SUMIF('Daily Log'!#REF!,$B113,'Daily Log'!#REF!),0) -> 0 | K113: =IFERROR($E113*SUMIF('Daily Log'!#REF!,$B113,'Daily Log'!#REF!),0) -> 0 | L113: =IFERROR($E113*SUMIF('Daily Log'!#REF!,$B113,'Daily Log'!#REF!),0) -> 0 | M113: =IFERROR($E113*SUMIF('Daily Log'!#REF!,$B113,'Daily Log'!#REF!),0) -> 0 | N113: =IFERROR($E113*SUMIF('Daily Log'!#REF!,$B113,'Daily Log'!#REF!),0) -> 0 | O113: =IFERROR($E113*SUMIF('Daily Log'!#REF!,$B113,'Daily Log'!#REF!),0) -> 0 | P113: =IFERROR($E113*SUMIF('Daily Log'!#REF!,$B113,'Daily Log'!#REF!),0) -> 0 | Q113: =IFERROR($E113*SUMIF('Daily Log'!#REF!,$B113,'Daily Log'!#REF!),0) -> 0 | R113: =IFERROR($E113*SUMIF('Daily Log'!#REF!,$B113,'Daily Log'!#REF!),0) -> 0 | S113: =IFERROR($E113*SUMIF('Daily Log'!#REF!,$B113,'Daily Log'!#REF!),0) -> 0 | T113: =IFERROR($E113*SUMIF('Daily Log'!#REF!,$B113,'Daily Log'!#REF!),0) -> 0 | U113: =IFERROR($E113*SUMIF('Daily Log'!#REF!,$B113,'Daily Log'!#REF!),0) -> 0 | V113: =IFERROR($E113*SUMIF('Daily Log'!#REF!,$B113,'Daily Log'!#REF!),0) -> 0 | W113: =IFERROR($E113*SUMIF('Daily Log'!#REF!,$B113,'Daily Log'!#REF!),0) -> 0 | X113: =IFERROR($E113*SUMIF('Daily Log'!#REF!,$B113,'Daily Log'!#REF!),0) -> 0 | Y113: =IFERROR($E113*SUMIF('Daily Log'!#REF!,$B113,'Daily Log'!#REF!),0) -> 0 | Z113: =IFERROR($E113*SUMIF('Daily Log'!$C$18:$C$1017,$B113,'Daily Log'!$D$18:$D$1017),0) -> 0 | AA113: =IFERROR($E113*SUMIF('Daily Log'!$F$18:$F$1017,$B113,'Daily Log'!$G$18:$G$1017),0) -> 0 | AB113: =IFERROR($E113*SUMIF('Daily Log'!$I$18:$I$1017,$B113,'Daily Log'!$J$18:$J$1017),0) -> 1 | AC113: =IFERROR($E113*SUMIF('Daily Log'!$L$18:$L$1017,$B113,'Daily Log'!$M$18:$M$1017),0) -> 3 | AD113: =IFERROR($E113*SUMIF('Daily Log'!$O$18:$O$1017,$B113,'Daily Log'!$P$18:$P$1017),0) -> 0 | AE113: =IFERROR($E113*SUMIF('Daily Log'!$R$18:$R$1017,$B113,'Daily Log'!$S$18:$S$1017),0) -> 0 | AF113: =IFERROR($E113*SUMIF('Daily Log'!$U$18:$U$1017,$B113,'Daily Log'!$V$18:$V$1017),0) -> 1 | AG113: =IFERROR($E113*SUMIF('Daily Log'!#REF!,$B113,'Daily Log'!#REF!),0) -> 0 | AH113: =IFERROR($E113*SUMIF('Daily Log'!#REF!,$B113,'Daily Log'!#REF!),0) -> 0 | AI113: =IFERROR($E113*SUMIF('Daily Log'!#REF!,$B113,'Daily Log'!#REF!),0) -> 0 | AJ113: =IFERROR($E113*SUMIF('Daily Log'!#REF!,$B113,'Daily Log'!#REF!),0) -> 0 | AK113: =IFERROR($E113*SUMIF('Daily Log'!#REF!,$B113,'Daily Log'!#REF!),0) -> 0
B114: CJ06 RIBENA SO | D114: FFD-COLD BEVERAGE | E114: 1 | F114: 18 | G114: =IFERROR($E114*SUMIF('Daily Log'!#REF!,$B114,'Daily Log'!#REF!),0) -> 0 | H114: =IFERROR($E114*SUMIF('Daily Log'!#REF!,$B114,'Daily Log'!#REF!),0) -> 0 | I114: =IFERROR($E114*SUMIF('Daily Log'!#REF!,$B114,'Daily Log'!#REF!),0) -> 0 | J114: =IFERROR($E114*SUMIF('Daily Log'!#REF!,$B114,'Daily Log'!#REF!),0) -> 0 | K114: =IFERROR($E114*SUMIF('Daily Log'!#REF!,$B114,'Daily Log'!#REF!),0) -> 0 | L114: =IFERROR($E114*SUMIF('Daily Log'!#REF!,$B114,'Daily Log'!#REF!),0) -> 0 | M114: =IFERROR($E114*SUMIF('Daily Log'!#REF!,$B114,'Daily Log'!#REF!),0) -> 0 | N114: =IFERROR($E114*SUMIF('Daily Log'!#REF!,$B114,'Daily Log'!#REF!),0) -> 0 | O114: =IFERROR($E114*SUMIF('Daily Log'!#REF!,$B114,'Daily Log'!#REF!),0) -> 0 | P114: =IFERROR($E114*SUMIF('Daily Log'!#REF!,$B114,'Daily Log'!#REF!),0) -> 0 | Q114: =IFERROR($E114*SUMIF('Daily Log'!#REF!,$B114,'Daily Log'!#REF!),0) -> 0 | R114: =IFERROR($E114*SUMIF('Daily Log'!#REF!,$B114,'Daily Log'!#REF!),0) -> 0 | S114: =IFERROR($E114*SUMIF('Daily Log'!#REF!,$B114,'Daily Log'!#REF!),0) -> 0 | T114: =IFERROR($E114*SUMIF('Daily Log'!#REF!,$B114,'Daily Log'!#REF!),0) -> 0 | U114: =IFERROR($E114*SUMIF('Daily Log'!#REF!,$B114,'Daily Log'!#REF!),0) -> 0 | V114: =IFERROR($E114*SUMIF('Daily Log'!#REF!,$B114,'Daily Log'!#REF!),0) -> 0 | W114: =IFERROR($E114*SUMIF('Daily Log'!#REF!,$B114,'Daily Log'!#REF!),0) -> 0 | X114: =IFERROR($E114*SUMIF('Daily Log'!#REF!,$B114,'Daily Log'!#REF!),0) -> 0 | Y114: =IFERROR($E114*SUMIF('Daily Log'!#REF!,$B114,'Daily Log'!#REF!),0) -> 0 | Z114: =IFERROR($E114*SUMIF('Daily Log'!$C$18:$C$1017,$B114,'Daily Log'!$D$18:$D$1017),0) -> 0 | AA114: =IFERROR($E114*SUMIF('Daily Log'!$F$18:$F$1017,$B114,'Daily Log'!$G$18:$G$1017),0) -> 11 | AB114: =IFERROR($E114*SUMIF('Daily Log'!$I$18:$I$1017,$B114,'Daily Log'!$J$18:$J$1017),0) -> 1 | AC114: =IFERROR($E114*SUMIF('Daily Log'!$L$18:$L$1017,$B114,'Daily Log'!$M$18:$M$1017),0) -> 0 | AD114: =IFERROR($E114*SUMIF('Daily Log'!$O$18:$O$1017,$B114,'Daily Log'!$P$18:$P$1017),0) -> 0 | AE114: =IFERROR($E114*SUMIF('Daily Log'!$R$18:$R$1017,$B114,'Daily Log'!$S$18:$S$1017),0) -> 1 | AF114: =IFERROR($E114*SUMIF('Daily Log'!$U$18:$U$1017,$B114,'Daily Log'!$V$18:$V$1017),0) -> 5 | AG114: =IFERROR($E114*SUMIF('Daily Log'!#REF!,$B114,'Daily Log'!#REF!),0) -> 0 | AH114: =IFERROR($E114*SUMIF('Daily Log'!#REF!,$B114,'Daily Log'!#REF!),0) -> 0 | AI114: =IFERROR($E114*SUMIF('Daily Log'!#REF!,$B114,'Daily Log'!#REF!),0) -> 0 | AJ114: =IFERROR($E114*SUMIF('Daily Log'!#REF!,$B114,'Daily Log'!#REF!),0) -> 0 | AK114: =IFERROR($E114*SUMIF('Daily Log'!#REF!,$B114,'Daily Log'!#REF!),0) -> 0
B115: CL01 7 UP | D115: FFD-COLD BEVERAGE | E115: 1 | F115: 124 | G115: =IFERROR($E115*SUMIF('Daily Log'!#REF!,$B115,'Daily Log'!#REF!),0) -> 0 | H115: =IFERROR($E115*SUMIF('Daily Log'!#REF!,$B115,'Daily Log'!#REF!),0) -> 0 | I115: =IFERROR($E115*SUMIF('Daily Log'!#REF!,$B115,'Daily Log'!#REF!),0) -> 0 | J115: =IFERROR($E115*SUMIF('Daily Log'!#REF!,$B115,'Daily Log'!#REF!),0) -> 0 | K115: =IFERROR($E115*SUMIF('Daily Log'!#REF!,$B115,'Daily Log'!#REF!),0) -> 0 | L115: =IFERROR($E115*SUMIF('Daily Log'!#REF!,$B115,'Daily Log'!#REF!),0) -> 0 | M115: =IFERROR($E115*SUMIF('Daily Log'!#REF!,$B115,'Daily Log'!#REF!),0) -> 0 | N115: =IFERROR($E115*SUMIF('Daily Log'!#REF!,$B115,'Daily Log'!#REF!),0) -> 0 | O115: =IFERROR($E115*SUMIF('Daily Log'!#REF!,$B115,'Daily Log'!#REF!),0) -> 0 | P115: =IFERROR($E115*SUMIF('Daily Log'!#REF!,$B115,'Daily Log'!#REF!),0) -> 0 | Q115: =IFERROR($E115*SUMIF('Daily Log'!#REF!,$B115,'Daily Log'!#REF!),0) -> 0 | R115: =IFERROR($E115*SUMIF('Daily Log'!#REF!,$B115,'Daily Log'!#REF!),0) -> 0 | S115: =IFERROR($E115*SUMIF('Daily Log'!#REF!,$B115,'Daily Log'!#REF!),0) -> 0 | T115: =IFERROR($E115*SUMIF('Daily Log'!#REF!,$B115,'Daily Log'!#REF!),0) -> 0 | U115: =IFERROR($E115*SUMIF('Daily Log'!#REF!,$B115,'Daily Log'!#REF!),0) -> 0 | V115: =IFERROR($E115*SUMIF('Daily Log'!#REF!,$B115,'Daily Log'!#REF!),0) -> 0 | W115: =IFERROR($E115*SUMIF('Daily Log'!#REF!,$B115,'Daily Log'!#REF!),0) -> 0 | X115: =IFERROR($E115*SUMIF('Daily Log'!#REF!,$B115,'Daily Log'!#REF!),0) -> 0 | Y115: =IFERROR($E115*SUMIF('Daily Log'!#REF!,$B115,'Daily Log'!#REF!),0) -> 0 | Z115: =IFERROR($E115*SUMIF('Daily Log'!$C$18:$C$1017,$B115,'Daily Log'!$D$18:$D$1017),0) -> 7 | AA115: =IFERROR($E115*SUMIF('Daily Log'!$F$18:$F$1017,$B115,'Daily Log'!$G$18:$G$1017),0) -> 17 | AB115: =IFERROR($E115*SUMIF('Daily Log'!$I$18:$I$1017,$B115,'Daily Log'!$J$18:$J$1017),0) -> 17 | AC115: =IFERROR($E115*SUMIF('Daily Log'!$L$18:$L$1017,$B115,'Daily Log'!$M$18:$M$1017),0) -> 22 | AD115: =IFERROR($E115*SUMIF('Daily Log'!$O$18:$O$1017,$B115,'Daily Log'!$P$18:$P$1017),0) -> 32 | AE115: =IFERROR($E115*SUMIF('Daily Log'!$R$18:$R$1017,$B115,'Daily Log'!$S$18:$S$1017),0) -> 16 | AF115: =IFERROR($E115*SUMIF('Daily Log'!$U$18:$U$1017,$B115,'Daily Log'!$V$18:$V$1017),0) -> 13 | AG115: =IFERROR($E115*SUMIF('Daily Log'!#REF!,$B115,'Daily Log'!#REF!),0) -> 0 | AH115: =IFERROR($E115*SUMIF('Daily Log'!#REF!,$B115,'Daily Log'!#REF!),0) -> 0 | AI115: =IFERROR($E115*SUMIF('Daily Log'!#REF!,$B115,'Daily Log'!#REF!),0) -> 0 | AJ115: =IFERROR($E115*SUMIF('Daily Log'!#REF!,$B115,'Daily Log'!#REF!),0) -> 0 | AK115: =IFERROR($E115*SUMIF('Daily Log'!#REF!,$B115,'Daily Log'!#REF!),0) -> 0
B116: CL02 7 UP REVIVE | D116: FFD-COLD BEVERAGE | E116: 1 | F116: 54 | G116: =IFERROR($E116*SUMIF('Daily Log'!#REF!,$B116,'Daily Log'!#REF!),0) -> 0 | H116: =IFERROR($E116*SUMIF('Daily Log'!#REF!,$B116,'Daily Log'!#REF!),0) -> 0 | I116: =IFERROR($E116*SUMIF('Daily Log'!#REF!,$B116,'Daily Log'!#REF!),0) -> 0 | J116: =IFERROR($E116*SUMIF('Daily Log'!#REF!,$B116,'Daily Log'!#REF!),0) -> 0 | K116: =IFERROR($E116*SUMIF('Daily Log'!#REF!,$B116,'Daily Log'!#REF!),0) -> 0 | L116: =IFERROR($E116*SUMIF('Daily Log'!#REF!,$B116,'Daily Log'!#REF!),0) -> 0 | M116: =IFERROR($E116*SUMIF('Daily Log'!#REF!,$B116,'Daily Log'!#REF!),0) -> 0 | N116: =IFERROR($E116*SUMIF('Daily Log'!#REF!,$B116,'Daily Log'!#REF!),0) -> 0 | O116: =IFERROR($E116*SUMIF('Daily Log'!#REF!,$B116,'Daily Log'!#REF!),0) -> 0 | P116: =IFERROR($E116*SUMIF('Daily Log'!#REF!,$B116,'Daily Log'!#REF!),0) -> 0 | Q116: =IFERROR($E116*SUMIF('Daily Log'!#REF!,$B116,'Daily Log'!#REF!),0) -> 0 | R116: =IFERROR($E116*SUMIF('Daily Log'!#REF!,$B116,'Daily Log'!#REF!),0) -> 0 | S116: =IFERROR($E116*SUMIF('Daily Log'!#REF!,$B116,'Daily Log'!#REF!),0) -> 0 | T116: =IFERROR($E116*SUMIF('Daily Log'!#REF!,$B116,'Daily Log'!#REF!),0) -> 0 | U116: =IFERROR($E116*SUMIF('Daily Log'!#REF!,$B116,'Daily Log'!#REF!),0) -> 0 | V116: =IFERROR($E116*SUMIF('Daily Log'!#REF!,$B116,'Daily Log'!#REF!),0) -> 0 | W116: =IFERROR($E116*SUMIF('Daily Log'!#REF!,$B116,'Daily Log'!#REF!),0) -> 0 | X116: =IFERROR($E116*SUMIF('Daily Log'!#REF!,$B116,'Daily Log'!#REF!),0) -> 0 | Y116: =IFERROR($E116*SUMIF('Daily Log'!#REF!,$B116,'Daily Log'!#REF!),0) -> 0 | Z116: =IFERROR($E116*SUMIF('Daily Log'!$C$18:$C$1017,$B116,'Daily Log'!$D$18:$D$1017),0) -> 3 | AA116: =IFERROR($E116*SUMIF('Daily Log'!$F$18:$F$1017,$B116,'Daily Log'!$G$18:$G$1017),0) -> 6 | AB116: =IFERROR($E116*SUMIF('Daily Log'!$I$18:$I$1017,$B116,'Daily Log'!$J$18:$J$1017),0) -> 1 | AC116: =IFERROR($E116*SUMIF('Daily Log'!$L$18:$L$1017,$B116,'Daily Log'!$M$18:$M$1017),0) -> 12 | AD116: =IFERROR($E116*SUMIF('Daily Log'!$O$18:$O$1017,$B116,'Daily Log'!$P$18:$P$1017),0) -> 11 | AE116: =IFERROR($E116*SUMIF('Daily Log'!$R$18:$R$1017,$B116,'Daily Log'!$S$18:$S$1017),0) -> 6 | AF116: =IFERROR($E116*SUMIF('Daily Log'!$U$18:$U$1017,$B116,'Daily Log'!$V$18:$V$1017),0) -> 15 | AG116: =IFERROR($E116*SUMIF('Daily Log'!#REF!,$B116,'Daily Log'!#REF!),0) -> 0 | AH116: =IFERROR($E116*SUMIF('Daily Log'!#REF!,$B116,'Daily Log'!#REF!),0) -> 0 | AI116: =IFERROR($E116*SUMIF('Daily Log'!#REF!,$B116,'Daily Log'!#REF!),0) -> 0 | AJ116: =IFERROR($E116*SUMIF('Daily Log'!#REF!,$B116,'Daily Log'!#REF!),0) -> 0 | AK116: =IFERROR($E116*SUMIF('Daily Log'!#REF!,$B116,'Daily Log'!#REF!),0) -> 0
B117: CL03 PEPSI | D117: FFD-COLD BEVERAGE | E117: 1 | F117: 609 | G117: =IFERROR($E117*SUMIF('Daily Log'!#REF!,$B117,'Daily Log'!#REF!),0) -> 0 | H117: =IFERROR($E117*SUMIF('Daily Log'!#REF!,$B117,'Daily Log'!#REF!),0) -> 0 | I117: =IFERROR($E117*SUMIF('Daily Log'!#REF!,$B117,'Daily Log'!#REF!),0) -> 0 | J117: =IFERROR($E117*SUMIF('Daily Log'!#REF!,$B117,'Daily Log'!#REF!),0) -> 0 | K117: =IFERROR($E117*SUMIF('Daily Log'!#REF!,$B117,'Daily Log'!#REF!),0) -> 0 | L117: =IFERROR($E117*SUMIF('Daily Log'!#REF!,$B117,'Daily Log'!#REF!),0) -> 0 | M117: =IFERROR($E117*SUMIF('Daily Log'!#REF!,$B117,'Daily Log'!#REF!),0) -> 0 | N117: =IFERROR($E117*SUMIF('Daily Log'!#REF!,$B117,'Daily Log'!#REF!),0) -> 0 | O117: =IFERROR($E117*SUMIF('Daily Log'!#REF!,$B117,'Daily Log'!#REF!),0) -> 0 | P117: =IFERROR($E117*SUMIF('Daily Log'!#REF!,$B117,'Daily Log'!#REF!),0) -> 0 | Q117: =IFERROR($E117*SUMIF('Daily Log'!#REF!,$B117,'Daily Log'!#REF!),0) -> 0 | R117: =IFERROR($E117*SUMIF('Daily Log'!#REF!,$B117,'Daily Log'!#REF!),0) -> 0 | S117: =IFERROR($E117*SUMIF('Daily Log'!#REF!,$B117,'Daily Log'!#REF!),0) -> 0 | T117: =IFERROR($E117*SUMIF('Daily Log'!#REF!,$B117,'Daily Log'!#REF!),0) -> 0 | U117: =IFERROR($E117*SUMIF('Daily Log'!#REF!,$B117,'Daily Log'!#REF!),0) -> 0 | V117: =IFERROR($E117*SUMIF('Daily Log'!#REF!,$B117,'Daily Log'!#REF!),0) -> 0 | W117: =IFERROR($E117*SUMIF('Daily Log'!#REF!,$B117,'Daily Log'!#REF!),0) -> 0 | X117: =IFERROR($E117*SUMIF('Daily Log'!#REF!,$B117,'Daily Log'!#REF!),0) -> 0 | Y117: =IFERROR($E117*SUMIF('Daily Log'!#REF!,$B117,'Daily Log'!#REF!),0) -> 0 | Z117: =IFERROR($E117*SUMIF('Daily Log'!$C$18:$C$1017,$B117,'Daily Log'!$D$18:$D$1017),0) -> 95 | AA117: =IFERROR($E117*SUMIF('Daily Log'!$F$18:$F$1017,$B117,'Daily Log'!$G$18:$G$1017),0) -> 40 | AB117: =IFERROR($E117*SUMIF('Daily Log'!$I$18:$I$1017,$B117,'Daily Log'!$J$18:$J$1017),0) -> 90 | AC117: =IFERROR($E117*SUMIF('Daily Log'!$L$18:$L$1017,$B117,'Daily Log'!$M$18:$M$1017),0) -> 105 | AD117: =IFERROR($E117*SUMIF('Daily Log'!$O$18:$O$1017,$B117,'Daily Log'!$P$18:$P$1017),0) -> 97 | AE117: =IFERROR($E117*SUMIF('Daily Log'!$R$18:$R$1017,$B117,'Daily Log'!$S$18:$S$1017),0) -> 112 | AF117: =IFERROR($E117*SUMIF('Daily Log'!$U$18:$U$1017,$B117,'Daily Log'!$V$18:$V$1017),0) -> 70 | AG117: =IFERROR($E117*SUMIF('Daily Log'!#REF!,$B117,'Daily Log'!#REF!),0) -> 0 | AH117: =IFERROR($E117*SUMIF('Daily Log'!#REF!,$B117,'Daily Log'!#REF!),0) -> 0 | AI117: =IFERROR($E117*SUMIF('Daily Log'!#REF!,$B117,'Daily Log'!#REF!),0) -> 0 | AJ117: =IFERROR($E117*SUMIF('Daily Log'!#REF!,$B117,'Daily Log'!#REF!),0) -> 0 | AK117: =IFERROR($E117*SUMIF('Daily Log'!#REF!,$B117,'Daily Log'!#REF!),0) -> 0
B118: CM01 MILO (C) | D118: FFD-COLD BEVERAGE | E118: 1 | F118: 250 | G118: =IFERROR($E118*SUMIF('Daily Log'!#REF!,$B118,'Daily Log'!#REF!),0) -> 0 | H118: =IFERROR($E118*SUMIF('Daily Log'!#REF!,$B118,'Daily Log'!#REF!),0) -> 0 | I118: =IFERROR($E118*SUMIF('Daily Log'!#REF!,$B118,'Daily Log'!#REF!),0) -> 0 | J118: =IFERROR($E118*SUMIF('Daily Log'!#REF!,$B118,'Daily Log'!#REF!),0) -> 0 | K118: =IFERROR($E118*SUMIF('Daily Log'!#REF!,$B118,'Daily Log'!#REF!),0) -> 0 | L118: =IFERROR($E118*SUMIF('Daily Log'!#REF!,$B118,'Daily Log'!#REF!),0) -> 0 | M118: =IFERROR($E118*SUMIF('Daily Log'!#REF!,$B118,'Daily Log'!#REF!),0) -> 0 | N118: =IFERROR($E118*SUMIF('Daily Log'!#REF!,$B118,'Daily Log'!#REF!),0) -> 0 | O118: =IFERROR($E118*SUMIF('Daily Log'!#REF!,$B118,'Daily Log'!#REF!),0) -> 0 | P118: =IFERROR($E118*SUMIF('Daily Log'!#REF!,$B118,'Daily Log'!#REF!),0) -> 0 | Q118: =IFERROR($E118*SUMIF('Daily Log'!#REF!,$B118,'Daily Log'!#REF!),0) -> 0 | R118: =IFERROR($E118*SUMIF('Daily Log'!#REF!,$B118,'Daily Log'!#REF!),0) -> 0 | S118: =IFERROR($E118*SUMIF('Daily Log'!#REF!,$B118,'Daily Log'!#REF!),0) -> 0 | T118: =IFERROR($E118*SUMIF('Daily Log'!#REF!,$B118,'Daily Log'!#REF!),0) -> 0 | U118: =IFERROR($E118*SUMIF('Daily Log'!#REF!,$B118,'Daily Log'!#REF!),0) -> 0 | V118: =IFERROR($E118*SUMIF('Daily Log'!#REF!,$B118,'Daily Log'!#REF!),0) -> 0 | W118: =IFERROR($E118*SUMIF('Daily Log'!#REF!,$B118,'Daily Log'!#REF!),0) -> 0 | X118: =IFERROR($E118*SUMIF('Daily Log'!#REF!,$B118,'Daily Log'!#REF!),0) -> 0 | Y118: =IFERROR($E118*SUMIF('Daily Log'!#REF!,$B118,'Daily Log'!#REF!),0) -> 0 | Z118: =IFERROR($E118*SUMIF('Daily Log'!$C$18:$C$1017,$B118,'Daily Log'!$D$18:$D$1017),0) -> 33 | AA118: =IFERROR($E118*SUMIF('Daily Log'!$F$18:$F$1017,$B118,'Daily Log'!$G$18:$G$1017),0) -> 41 | AB118: =IFERROR($E118*SUMIF('Daily Log'!$I$18:$I$1017,$B118,'Daily Log'!$J$18:$J$1017),0) -> 36 | AC118: =IFERROR($E118*SUMIF('Daily Log'!$L$18:$L$1017,$B118,'Daily Log'!$M$18:$M$1017),0) -> 35 | AD118: =IFERROR($E118*SUMIF('Daily Log'!$O$18:$O$1017,$B118,'Daily Log'!$P$18:$P$1017),0) -> 27 | AE118: =IFERROR($E118*SUMIF('Daily Log'!$R$18:$R$1017,$B118,'Daily Log'!$S$18:$S$1017),0) -> 34 | AF118: =IFERROR($E118*SUMIF('Daily Log'!$U$18:$U$1017,$B118,'Daily Log'!$V$18:$V$1017),0) -> 44 | AG118: =IFERROR($E118*SUMIF('Daily Log'!#REF!,$B118,'Daily Log'!#REF!),0) -> 0 | AH118: =IFERROR($E118*SUMIF('Daily Log'!#REF!,$B118,'Daily Log'!#REF!),0) -> 0 | AI118: =IFERROR($E118*SUMIF('Daily Log'!#REF!,$B118,'Daily Log'!#REF!),0) -> 0 | AJ118: =IFERROR($E118*SUMIF('Daily Log'!#REF!,$B118,'Daily Log'!#REF!),0) -> 0 | AK118: =IFERROR($E118*SUMIF('Daily Log'!#REF!,$B118,'Daily Log'!#REF!),0) -> 0
B119: CM02 NESCAFE (C) | D119: FFD-COLD BEVERAGE | E119: 1 | F119: 87 | G119: =IFERROR($E119*SUMIF('Daily Log'!#REF!,$B119,'Daily Log'!#REF!),0) -> 0 | H119: =IFERROR($E119*SUMIF('Daily Log'!#REF!,$B119,'Daily Log'!#REF!),0) -> 0 | I119: =IFERROR($E119*SUMIF('Daily Log'!#REF!,$B119,'Daily Log'!#REF!),0) -> 0 | J119: =IFERROR($E119*SUMIF('Daily Log'!#REF!,$B119,'Daily Log'!#REF!),0) -> 0 | K119: =IFERROR($E119*SUMIF('Daily Log'!#REF!,$B119,'Daily Log'!#REF!),0) -> 0 | L119: =IFERROR($E119*SUMIF('Daily Log'!#REF!,$B119,'Daily Log'!#REF!),0) -> 0 | M119: =IFERROR($E119*SUMIF('Daily Log'!#REF!,$B119,'Daily Log'!#REF!),0) -> 0 | N119: =IFERROR($E119*SUMIF('Daily Log'!#REF!,$B119,'Daily Log'!#REF!),0) -> 0 | O119: =IFERROR($E119*SUMIF('Daily Log'!#REF!,$B119,'Daily Log'!#REF!),0) -> 0 | P119: =IFERROR($E119*SUMIF('Daily Log'!#REF!,$B119,'Daily Log'!#REF!),0) -> 0 | Q119: =IFERROR($E119*SUMIF('Daily Log'!#REF!,$B119,'Daily Log'!#REF!),0) -> 0 | R119: =IFERROR($E119*SUMIF('Daily Log'!#REF!,$B119,'Daily Log'!#REF!),0) -> 0 | S119: =IFERROR($E119*SUMIF('Daily Log'!#REF!,$B119,'Daily Log'!#REF!),0) -> 0 | T119: =IFERROR($E119*SUMIF('Daily Log'!#REF!,$B119,'Daily Log'!#REF!),0) -> 0 | U119: =IFERROR($E119*SUMIF('Daily Log'!#REF!,$B119,'Daily Log'!#REF!),0) -> 0 | V119: =IFERROR($E119*SUMIF('Daily Log'!#REF!,$B119,'Daily Log'!#REF!),0) -> 0 | W119: =IFERROR($E119*SUMIF('Daily Log'!#REF!,$B119,'Daily Log'!#REF!),0) -> 0 | X119: =IFERROR($E119*SUMIF('Daily Log'!#REF!,$B119,'Daily Log'!#REF!),0) -> 0 | Y119: =IFERROR($E119*SUMIF('Daily Log'!#REF!,$B119,'Daily Log'!#REF!),0) -> 0 | Z119: =IFERROR($E119*SUMIF('Daily Log'!$C$18:$C$1017,$B119,'Daily Log'!$D$18:$D$1017),0) -> 10 | AA119: =IFERROR($E119*SUMIF('Daily Log'!$F$18:$F$1017,$B119,'Daily Log'!$G$18:$G$1017),0) -> 13 | AB119: =IFERROR($E119*SUMIF('Daily Log'!$I$18:$I$1017,$B119,'Daily Log'!$J$18:$J$1017),0) -> 14 | AC119: =IFERROR($E119*SUMIF('Daily Log'!$L$18:$L$1017,$B119,'Daily Log'!$M$18:$M$1017),0) -> 11 | AD119: =IFERROR($E119*SUMIF('Daily Log'!$O$18:$O$1017,$B119,'Daily Log'!$P$18:$P$1017),0) -> 10 | AE119: =IFERROR($E119*SUMIF('Daily Log'!$R$18:$R$1017,$B119,'Daily Log'!$S$18:$S$1017),0) -> 13 | AF119: =IFERROR($E119*SUMIF('Daily Log'!$U$18:$U$1017,$B119,'Daily Log'!$V$18:$V$1017),0) -> 16 | AG119: =IFERROR($E119*SUMIF('Daily Log'!#REF!,$B119,'Daily Log'!#REF!),0) -> 0 | AH119: =IFERROR($E119*SUMIF('Daily Log'!#REF!,$B119,'Daily Log'!#REF!),0) -> 0 | AI119: =IFERROR($E119*SUMIF('Daily Log'!#REF!,$B119,'Daily Log'!#REF!),0) -> 0 | AJ119: =IFERROR($E119*SUMIF('Daily Log'!#REF!,$B119,'Daily Log'!#REF!),0) -> 0 | AK119: =IFERROR($E119*SUMIF('Daily Log'!#REF!,$B119,'Daily Log'!#REF!),0) -> 0
B120: CM03 TEA (C) | D120: FFD-COLD BEVERAGE | E120: 1 | F120: 18 | G120: =IFERROR($E120*SUMIF('Daily Log'!#REF!,$B120,'Daily Log'!#REF!),0) -> 0 | H120: =IFERROR($E120*SUMIF('Daily Log'!#REF!,$B120,'Daily Log'!#REF!),0) -> 0 | I120: =IFERROR($E120*SUMIF('Daily Log'!#REF!,$B120,'Daily Log'!#REF!),0) -> 0 | J120: =IFERROR($E120*SUMIF('Daily Log'!#REF!,$B120,'Daily Log'!#REF!),0) -> 0 | K120: =IFERROR($E120*SUMIF('Daily Log'!#REF!,$B120,'Daily Log'!#REF!),0) -> 0 | L120: =IFERROR($E120*SUMIF('Daily Log'!#REF!,$B120,'Daily Log'!#REF!),0) -> 0 | M120: =IFERROR($E120*SUMIF('Daily Log'!#REF!,$B120,'Daily Log'!#REF!),0) -> 0 | N120: =IFERROR($E120*SUMIF('Daily Log'!#REF!,$B120,'Daily Log'!#REF!),0) -> 0 | O120: =IFERROR($E120*SUMIF('Daily Log'!#REF!,$B120,'Daily Log'!#REF!),0) -> 0 | P120: =IFERROR($E120*SUMIF('Daily Log'!#REF!,$B120,'Daily Log'!#REF!),0) -> 0 | Q120: =IFERROR($E120*SUMIF('Daily Log'!#REF!,$B120,'Daily Log'!#REF!),0) -> 0 | R120: =IFERROR($E120*SUMIF('Daily Log'!#REF!,$B120,'Daily Log'!#REF!),0) -> 0 | S120: =IFERROR($E120*SUMIF('Daily Log'!#REF!,$B120,'Daily Log'!#REF!),0) -> 0 | T120: =IFERROR($E120*SUMIF('Daily Log'!#REF!,$B120,'Daily Log'!#REF!),0) -> 0 | U120: =IFERROR($E120*SUMIF('Daily Log'!#REF!,$B120,'Daily Log'!#REF!),0) -> 0 | V120: =IFERROR($E120*SUMIF('Daily Log'!#REF!,$B120,'Daily Log'!#REF!),0) -> 0 | W120: =IFERROR($E120*SUMIF('Daily Log'!#REF!,$B120,'Daily Log'!#REF!),0) -> 0 | X120: =IFERROR($E120*SUMIF('Daily Log'!#REF!,$B120,'Daily Log'!#REF!),0) -> 0 | Y120: =IFERROR($E120*SUMIF('Daily Log'!#REF!,$B120,'Daily Log'!#REF!),0) -> 0 | Z120: =IFERROR($E120*SUMIF('Daily Log'!$C$18:$C$1017,$B120,'Daily Log'!$D$18:$D$1017),0) -> 3 | AA120: =IFERROR($E120*SUMIF('Daily Log'!$F$18:$F$1017,$B120,'Daily Log'!$G$18:$G$1017),0) -> 0 | AB120: =IFERROR($E120*SUMIF('Daily Log'!$I$18:$I$1017,$B120,'Daily Log'!$J$18:$J$1017),0) -> 1 | AC120: =IFERROR($E120*SUMIF('Daily Log'!$L$18:$L$1017,$B120,'Daily Log'!$M$18:$M$1017),0) -> 5 | AD120: =IFERROR($E120*SUMIF('Daily Log'!$O$18:$O$1017,$B120,'Daily Log'!$P$18:$P$1017),0) -> 3 | AE120: =IFERROR($E120*SUMIF('Daily Log'!$R$18:$R$1017,$B120,'Daily Log'!$S$18:$S$1017),0) -> 3 | AF120: =IFERROR($E120*SUMIF('Daily Log'!$U$18:$U$1017,$B120,'Daily Log'!$V$18:$V$1017),0) -> 3 | AG120: =IFERROR($E120*SUMIF('Daily Log'!#REF!,$B120,'Daily Log'!#REF!),0) -> 0 | AH120: =IFERROR($E120*SUMIF('Daily Log'!#REF!,$B120,'Daily Log'!#REF!),0) -> 0 | AI120: =IFERROR($E120*SUMIF('Daily Log'!#REF!,$B120,'Daily Log'!#REF!),0) -> 0 | AJ120: =IFERROR($E120*SUMIF('Daily Log'!#REF!,$B120,'Daily Log'!#REF!),0) -> 0 | AK120: =IFERROR($E120*SUMIF('Daily Log'!#REF!,$B120,'Daily Log'!#REF!),0) -> 0
B121: CM04 LEMON TEA (C) | D121: FFD-COLD BEVERAGE | E121: 1 | F121: 588 | G121: =IFERROR($E121*SUMIF('Daily Log'!#REF!,$B121,'Daily Log'!#REF!),0) -> 0 | H121: =IFERROR($E121*SUMIF('Daily Log'!#REF!,$B121,'Daily Log'!#REF!),0) -> 0 | I121: =IFERROR($E121*SUMIF('Daily Log'!#REF!,$B121,'Daily Log'!#REF!),0) -> 0 | J121: =IFERROR($E121*SUMIF('Daily Log'!#REF!,$B121,'Daily Log'!#REF!),0) -> 0 | K121: =IFERROR($E121*SUMIF('Daily Log'!#REF!,$B121,'Daily Log'!#REF!),0) -> 0 | L121: =IFERROR($E121*SUMIF('Daily Log'!#REF!,$B121,'Daily Log'!#REF!),0) -> 0 | M121: =IFERROR($E121*SUMIF('Daily Log'!#REF!,$B121,'Daily Log'!#REF!),0) -> 0 | N121: =IFERROR($E121*SUMIF('Daily Log'!#REF!,$B121,'Daily Log'!#REF!),0) -> 0 | O121: =IFERROR($E121*SUMIF('Daily Log'!#REF!,$B121,'Daily Log'!#REF!),0) -> 0 | P121: =IFERROR($E121*SUMIF('Daily Log'!#REF!,$B121,'Daily Log'!#REF!),0) -> 0 | Q121: =IFERROR($E121*SUMIF('Daily Log'!#REF!,$B121,'Daily Log'!#REF!),0) -> 0 | R121: =IFERROR($E121*SUMIF('Daily Log'!#REF!,$B121,'Daily Log'!#REF!),0) -> 0 | S121: =IFERROR($E121*SUMIF('Daily Log'!#REF!,$B121,'Daily Log'!#REF!),0) -> 0 | T121: =IFERROR($E121*SUMIF('Daily Log'!#REF!,$B121,'Daily Log'!#REF!),0) -> 0 | U121: =IFERROR($E121*SUMIF('Daily Log'!#REF!,$B121,'Daily Log'!#REF!),0) -> 0 | V121: =IFERROR($E121*SUMIF('Daily Log'!#REF!,$B121,'Daily Log'!#REF!),0) -> 0 | W121: =IFERROR($E121*SUMIF('Daily Log'!#REF!,$B121,'Daily Log'!#REF!),0) -> 0 | X121: =IFERROR($E121*SUMIF('Daily Log'!#REF!,$B121,'Daily Log'!#REF!),0) -> 0 | Y121: =IFERROR($E121*SUMIF('Daily Log'!#REF!,$B121,'Daily Log'!#REF!),0) -> 0 | Z121: =IFERROR($E121*SUMIF('Daily Log'!$C$18:$C$1017,$B121,'Daily Log'!$D$18:$D$1017),0) -> 68 | AA121: =IFERROR($E121*SUMIF('Daily Log'!$F$18:$F$1017,$B121,'Daily Log'!$G$18:$G$1017),0) -> 63 | AB121: =IFERROR($E121*SUMIF('Daily Log'!$I$18:$I$1017,$B121,'Daily Log'!$J$18:$J$1017),0) -> 69 | AC121: =IFERROR($E121*SUMIF('Daily Log'!$L$18:$L$1017,$B121,'Daily Log'!$M$18:$M$1017),0) -> 119 | AD121: =IFERROR($E121*SUMIF('Daily Log'!$O$18:$O$1017,$B121,'Daily Log'!$P$18:$P$1017),0) -> 66 | AE121: =IFERROR($E121*SUMIF('Daily Log'!$R$18:$R$1017,$B121,'Daily Log'!$S$18:$S$1017),0) -> 114 | AF121: =IFERROR($E121*SUMIF('Daily Log'!$U$18:$U$1017,$B121,'Daily Log'!$V$18:$V$1017),0) -> 89 | AG121: =IFERROR($E121*SUMIF('Daily Log'!#REF!,$B121,'Daily Log'!#REF!),0) -> 0 | AH121: =IFERROR($E121*SUMIF('Daily Log'!#REF!,$B121,'Daily Log'!#REF!),0) -> 0 | AI121: =IFERROR($E121*SUMIF('Daily Log'!#REF!,$B121,'Daily Log'!#REF!),0) -> 0 | AJ121: =IFERROR($E121*SUMIF('Daily Log'!#REF!,$B121,'Daily Log'!#REF!),0) -> 0 | AK121: =IFERROR($E121*SUMIF('Daily Log'!#REF!,$B121,'Daily Log'!#REF!),0) -> 0
B122: CM05 GRN TEA (C) | D122: FFD-COLD BEVERAGE | E122: 1 | F122: 406 | G122: =IFERROR($E122*SUMIF('Daily Log'!#REF!,$B122,'Daily Log'!#REF!),0) -> 0 | H122: =IFERROR($E122*SUMIF('Daily Log'!#REF!,$B122,'Daily Log'!#REF!),0) -> 0 | I122: =IFERROR($E122*SUMIF('Daily Log'!#REF!,$B122,'Daily Log'!#REF!),0) -> 0 | J122: =IFERROR($E122*SUMIF('Daily Log'!#REF!,$B122,'Daily Log'!#REF!),0) -> 0 | K122: =IFERROR($E122*SUMIF('Daily Log'!#REF!,$B122,'Daily Log'!#REF!),0) -> 0 | L122: =IFERROR($E122*SUMIF('Daily Log'!#REF!,$B122,'Daily Log'!#REF!),0) -> 0 | M122: =IFERROR($E122*SUMIF('Daily Log'!#REF!,$B122,'Daily Log'!#REF!),0) -> 0 | N122: =IFERROR($E122*SUMIF('Daily Log'!#REF!,$B122,'Daily Log'!#REF!),0) -> 0 | O122: =IFERROR($E122*SUMIF('Daily Log'!#REF!,$B122,'Daily Log'!#REF!),0) -> 0 | P122: =IFERROR($E122*SUMIF('Daily Log'!#REF!,$B122,'Daily Log'!#REF!),0) -> 0 | Q122: =IFERROR($E122*SUMIF('Daily Log'!#REF!,$B122,'Daily Log'!#REF!),0) -> 0 | R122: =IFERROR($E122*SUMIF('Daily Log'!#REF!,$B122,'Daily Log'!#REF!),0) -> 0 | S122: =IFERROR($E122*SUMIF('Daily Log'!#REF!,$B122,'Daily Log'!#REF!),0) -> 0 | T122: =IFERROR($E122*SUMIF('Daily Log'!#REF!,$B122,'Daily Log'!#REF!),0) -> 0 | U122: =IFERROR($E122*SUMIF('Daily Log'!#REF!,$B122,'Daily Log'!#REF!),0) -> 0 | V122: =IFERROR($E122*SUMIF('Daily Log'!#REF!,$B122,'Daily Log'!#REF!),0) -> 0 | W122: =IFERROR($E122*SUMIF('Daily Log'!#REF!,$B122,'Daily Log'!#REF!),0) -> 0 | X122: =IFERROR($E122*SUMIF('Daily Log'!#REF!,$B122,'Daily Log'!#REF!),0) -> 0 | Y122: =IFERROR($E122*SUMIF('Daily Log'!#REF!,$B122,'Daily Log'!#REF!),0) -> 0 | Z122: =IFERROR($E122*SUMIF('Daily Log'!$C$18:$C$1017,$B122,'Daily Log'!$D$18:$D$1017),0) -> 64 | AA122: =IFERROR($E122*SUMIF('Daily Log'!$F$18:$F$1017,$B122,'Daily Log'!$G$18:$G$1017),0) -> 54 | AB122: =IFERROR($E122*SUMIF('Daily Log'!$I$18:$I$1017,$B122,'Daily Log'!$J$18:$J$1017),0) -> 37 | AC122: =IFERROR($E122*SUMIF('Daily Log'!$L$18:$L$1017,$B122,'Daily Log'!$M$18:$M$1017),0) -> 75 | AD122: =IFERROR($E122*SUMIF('Daily Log'!$O$18:$O$1017,$B122,'Daily Log'!$P$18:$P$1017),0) -> 54 | AE122: =IFERROR($E122*SUMIF('Daily Log'!$R$18:$R$1017,$B122,'Daily Log'!$S$18:$S$1017),0) -> 63 | AF122: =IFERROR($E122*SUMIF('Daily Log'!$U$18:$U$1017,$B122,'Daily Log'!$V$18:$V$1017),0) -> 59 | AG122: =IFERROR($E122*SUMIF('Daily Log'!#REF!,$B122,'Daily Log'!#REF!),0) -> 0 | AH122: =IFERROR($E122*SUMIF('Daily Log'!#REF!,$B122,'Daily Log'!#REF!),0) -> 0 | AI122: =IFERROR($E122*SUMIF('Daily Log'!#REF!,$B122,'Daily Log'!#REF!),0) -> 0 | AJ122: =IFERROR($E122*SUMIF('Daily Log'!#REF!,$B122,'Daily Log'!#REF!),0) -> 0 | AK122: =IFERROR($E122*SUMIF('Daily Log'!#REF!,$B122,'Daily Log'!#REF!),0) -> 0
B123: CM06 HNY GRN TEA (C) | D123: FFD-COLD BEVERAGE | E123: 1 | F123: 667 | G123: =IFERROR($E123*SUMIF('Daily Log'!#REF!,$B123,'Daily Log'!#REF!),0) -> 0 | H123: =IFERROR($E123*SUMIF('Daily Log'!#REF!,$B123,'Daily Log'!#REF!),0) -> 0 | I123: =IFERROR($E123*SUMIF('Daily Log'!#REF!,$B123,'Daily Log'!#REF!),0) -> 0 | J123: =IFERROR($E123*SUMIF('Daily Log'!#REF!,$B123,'Daily Log'!#REF!),0) -> 0 | K123: =IFERROR($E123*SUMIF('Daily Log'!#REF!,$B123,'Daily Log'!#REF!),0) -> 0 | L123: =IFERROR($E123*SUMIF('Daily Log'!#REF!,$B123,'Daily Log'!#REF!),0) -> 0 | M123: =IFERROR($E123*SUMIF('Daily Log'!#REF!,$B123,'Daily Log'!#REF!),0) -> 0 | N123: =IFERROR($E123*SUMIF('Daily Log'!#REF!,$B123,'Daily Log'!#REF!),0) -> 0 | O123: =IFERROR($E123*SUMIF('Daily Log'!#REF!,$B123,'Daily Log'!#REF!),0) -> 0 | P123: =IFERROR($E123*SUMIF('Daily Log'!#REF!,$B123,'Daily Log'!#REF!),0) -> 0 | Q123: =IFERROR($E123*SUMIF('Daily Log'!#REF!,$B123,'Daily Log'!#REF!),0) -> 0 | R123: =IFERROR($E123*SUMIF('Daily Log'!#REF!,$B123,'Daily Log'!#REF!),0) -> 0 | S123: =IFERROR($E123*SUMIF('Daily Log'!#REF!,$B123,'Daily Log'!#REF!),0) -> 0 | T123: =IFERROR($E123*SUMIF('Daily Log'!#REF!,$B123,'Daily Log'!#REF!),0) -> 0 | U123: =IFERROR($E123*SUMIF('Daily Log'!#REF!,$B123,'Daily Log'!#REF!),0) -> 0 | V123: =IFERROR($E123*SUMIF('Daily Log'!#REF!,$B123,'Daily Log'!#REF!),0) -> 0 | W123: =IFERROR($E123*SUMIF('Daily Log'!#REF!,$B123,'Daily Log'!#REF!),0) -> 0 | X123: =IFERROR($E123*SUMIF('Daily Log'!#REF!,$B123,'Daily Log'!#REF!),0) -> 0 | Y123: =IFERROR($E123*SUMIF('Daily Log'!#REF!,$B123,'Daily Log'!#REF!),0) -> 0 | Z123: =IFERROR($E123*SUMIF('Daily Log'!$C$18:$C$1017,$B123,'Daily Log'!$D$18:$D$1017),0) -> 93 | AA123: =IFERROR($E123*SUMIF('Daily Log'!$F$18:$F$1017,$B123,'Daily Log'!$G$18:$G$1017),0) -> 75 | AB123: =IFERROR($E123*SUMIF('Daily Log'!$I$18:$I$1017,$B123,'Daily Log'!$J$18:$J$1017),0) -> 58 | AC123: =IFERROR($E123*SUMIF('Daily Log'!$L$18:$L$1017,$B123,'Daily Log'!$M$18:$M$1017),0) -> 99 | AD123: =IFERROR($E123*SUMIF('Daily Log'!$O$18:$O$1017,$B123,'Daily Log'!$P$18:$P$1017),0) -> 107 | AE123: =IFERROR($E123*SUMIF('Daily Log'!$R$18:$R$1017,$B123,'Daily Log'!$S$18:$S$1017),0) -> 120 | AF123: =IFERROR($E123*SUMIF('Daily Log'!$U$18:$U$1017,$B123,'Daily Log'!$V$18:$V$1017),0) -> 115 | AG123: =IFERROR($E123*SUMIF('Daily Log'!#REF!,$B123,'Daily Log'!#REF!),0) -> 0 | AH123: =IFERROR($E123*SUMIF('Daily Log'!#REF!,$B123,'Daily Log'!#REF!),0) -> 0 | AI123: =IFERROR($E123*SUMIF('Daily Log'!#REF!,$B123,'Daily Log'!#REF!),0) -> 0 | AJ123: =IFERROR($E123*SUMIF('Daily Log'!#REF!,$B123,'Daily Log'!#REF!),0) -> 0 | AK123: =IFERROR($E123*SUMIF('Daily Log'!#REF!,$B123,'Daily Log'!#REF!),0) -> 0
B124: CM07 HONEY (C) | D124: FFD-COLD BEVERAGE | E124: 1 | F124: 145 | G124: =IFERROR($E124*SUMIF('Daily Log'!#REF!,$B124,'Daily Log'!#REF!),0) -> 0 | H124: =IFERROR($E124*SUMIF('Daily Log'!#REF!,$B124,'Daily Log'!#REF!),0) -> 0 | I124: =IFERROR($E124*SUMIF('Daily Log'!#REF!,$B124,'Daily Log'!#REF!),0) -> 0 | J124: =IFERROR($E124*SUMIF('Daily Log'!#REF!,$B124,'Daily Log'!#REF!),0) -> 0 | K124: =IFERROR($E124*SUMIF('Daily Log'!#REF!,$B124,'Daily Log'!#REF!),0) -> 0 | L124: =IFERROR($E124*SUMIF('Daily Log'!#REF!,$B124,'Daily Log'!#REF!),0) -> 0 | M124: =IFERROR($E124*SUMIF('Daily Log'!#REF!,$B124,'Daily Log'!#REF!),0) -> 0 | N124: =IFERROR($E124*SUMIF('Daily Log'!#REF!,$B124,'Daily Log'!#REF!),0) -> 0 | O124: =IFERROR($E124*SUMIF('Daily Log'!#REF!,$B124,'Daily Log'!#REF!),0) -> 0 | P124: =IFERROR($E124*SUMIF('Daily Log'!#REF!,$B124,'Daily Log'!#REF!),0) -> 0 | Q124: =IFERROR($E124*SUMIF('Daily Log'!#REF!,$B124,'Daily Log'!#REF!),0) -> 0 | R124: =IFERROR($E124*SUMIF('Daily Log'!#REF!,$B124,'Daily Log'!#REF!),0) -> 0 | S124: =IFERROR($E124*SUMIF('Daily Log'!#REF!,$B124,'Daily Log'!#REF!),0) -> 0 | T124: =IFERROR($E124*SUMIF('Daily Log'!#REF!,$B124,'Daily Log'!#REF!),0) -> 0 | U124: =IFERROR($E124*SUMIF('Daily Log'!#REF!,$B124,'Daily Log'!#REF!),0) -> 0 | V124: =IFERROR($E124*SUMIF('Daily Log'!#REF!,$B124,'Daily Log'!#REF!),0) -> 0 | W124: =IFERROR($E124*SUMIF('Daily Log'!#REF!,$B124,'Daily Log'!#REF!),0) -> 0 | X124: =IFERROR($E124*SUMIF('Daily Log'!#REF!,$B124,'Daily Log'!#REF!),0) -> 0 | Y124: =IFERROR($E124*SUMIF('Daily Log'!#REF!,$B124,'Daily Log'!#REF!),0) -> 0 | Z124: =IFERROR($E124*SUMIF('Daily Log'!$C$18:$C$1017,$B124,'Daily Log'!$D$18:$D$1017),0) -> 26 | AA124: =IFERROR($E124*SUMIF('Daily Log'!$F$18:$F$1017,$B124,'Daily Log'!$G$18:$G$1017),0) -> 12 | AB124: =IFERROR($E124*SUMIF('Daily Log'!$I$18:$I$1017,$B124,'Daily Log'!$J$18:$J$1017),0) -> 20 | AC124: =IFERROR($E124*SUMIF('Daily Log'!$L$18:$L$1017,$B124,'Daily Log'!$M$18:$M$1017),0) -> 24 | AD124: =IFERROR($E124*SUMIF('Daily Log'!$O$18:$O$1017,$B124,'Daily Log'!$P$18:$P$1017),0) -> 26 | AE124: =IFERROR($E124*SUMIF('Daily Log'!$R$18:$R$1017,$B124,'Daily Log'!$S$18:$S$1017),0) -> 26 | AF124: =IFERROR($E124*SUMIF('Daily Log'!$U$18:$U$1017,$B124,'Daily Log'!$V$18:$V$1017),0) -> 11 | AG124: =IFERROR($E124*SUMIF('Daily Log'!#REF!,$B124,'Daily Log'!#REF!),0) -> 0 | AH124: =IFERROR($E124*SUMIF('Daily Log'!#REF!,$B124,'Daily Log'!#REF!),0) -> 0 | AI124: =IFERROR($E124*SUMIF('Daily Log'!#REF!,$B124,'Daily Log'!#REF!),0) -> 0 | AJ124: =IFERROR($E124*SUMIF('Daily Log'!#REF!,$B124,'Daily Log'!#REF!),0) -> 0 | AK124: =IFERROR($E124*SUMIF('Daily Log'!#REF!,$B124,'Daily Log'!#REF!),0) -> 0
B125: CM08 LEMON HONEY (C) | D125: FFD-COLD BEVERAGE | E125: 1 | F125: 1162 | G125: =IFERROR($E125*SUMIF('Daily Log'!#REF!,$B125,'Daily Log'!#REF!),0) -> 0 | H125: =IFERROR($E125*SUMIF('Daily Log'!#REF!,$B125,'Daily Log'!#REF!),0) -> 0 | I125: =IFERROR($E125*SUMIF('Daily Log'!#REF!,$B125,'Daily Log'!#REF!),0) -> 0 | J125: =IFERROR($E125*SUMIF('Daily Log'!#REF!,$B125,'Daily Log'!#REF!),0) -> 0 | K125: =IFERROR($E125*SUMIF('Daily Log'!#REF!,$B125,'Daily Log'!#REF!),0) -> 0 | L125: =IFERROR($E125*SUMIF('Daily Log'!#REF!,$B125,'Daily Log'!#REF!),0) -> 0 | M125: =IFERROR($E125*SUMIF('Daily Log'!#REF!,$B125,'Daily Log'!#REF!),0) -> 0 | N125: =IFERROR($E125*SUMIF('Daily Log'!#REF!,$B125,'Daily Log'!#REF!),0) -> 0 | O125: =IFERROR($E125*SUMIF('Daily Log'!#REF!,$B125,'Daily Log'!#REF!),0) -> 0 | P125: =IFERROR($E125*SUMIF('Daily Log'!#REF!,$B125,'Daily Log'!#REF!),0) -> 0 | Q125: =IFERROR($E125*SUMIF('Daily Log'!#REF!,$B125,'Daily Log'!#REF!),0) -> 0 | R125: =IFERROR($E125*SUMIF('Daily Log'!#REF!,$B125,'Daily Log'!#REF!),0) -> 0 | S125: =IFERROR($E125*SUMIF('Daily Log'!#REF!,$B125,'Daily Log'!#REF!),0) -> 0 | T125: =IFERROR($E125*SUMIF('Daily Log'!#REF!,$B125,'Daily Log'!#REF!),0) -> 0 | U125: =IFERROR($E125*SUMIF('Daily Log'!#REF!,$B125,'Daily Log'!#REF!),0) -> 0 | V125: =IFERROR($E125*SUMIF('Daily Log'!#REF!,$B125,'Daily Log'!#REF!),0) -> 0 | W125: =IFERROR($E125*SUMIF('Daily Log'!#REF!,$B125,'Daily Log'!#REF!),0) -> 0 | X125: =IFERROR($E125*SUMIF('Daily Log'!#REF!,$B125,'Daily Log'!#REF!),0) -> 0 | Y125: =IFERROR($E125*SUMIF('Daily Log'!#REF!,$B125,'Daily Log'!#REF!),0) -> 0 | Z125: =IFERROR($E125*SUMIF('Daily Log'!$C$18:$C$1017,$B125,'Daily Log'!$D$18:$D$1017),0) -> 134 | AA125: =IFERROR($E125*SUMIF('Daily Log'!$F$18:$F$1017,$B125,'Daily Log'!$G$18:$G$1017),0) -> 136 | AB125: =IFERROR($E125*SUMIF('Daily Log'!$I$18:$I$1017,$B125,'Daily Log'!$J$18:$J$1017),0) -> 109 | AC125: =IFERROR($E125*SUMIF('Daily Log'!$L$18:$L$1017,$B125,'Daily Log'!$M$18:$M$1017),0) -> 191 | AD125: =IFERROR($E125*SUMIF('Daily Log'!$O$18:$O$1017,$B125,'Daily Log'!$P$18:$P$1017),0) -> 229 | AE125: =IFERROR($E125*SUMIF('Daily Log'!$R$18:$R$1017,$B125,'Daily Log'!$S$18:$S$1017),0) -> 170 | AF125: =IFERROR($E125*SUMIF('Daily Log'!$U$18:$U$1017,$B125,'Daily Log'!$V$18:$V$1017),0) -> 193 | AG125: =IFERROR($E125*SUMIF('Daily Log'!#REF!,$B125,'Daily Log'!#REF!),0) -> 0 | AH125: =IFERROR($E125*SUMIF('Daily Log'!#REF!,$B125,'Daily Log'!#REF!),0) -> 0 | AI125: =IFERROR($E125*SUMIF('Daily Log'!#REF!,$B125,'Daily Log'!#REF!),0) -> 0 | AJ125: =IFERROR($E125*SUMIF('Daily Log'!#REF!,$B125,'Daily Log'!#REF!),0) -> 0 | AK125: =IFERROR($E125*SUMIF('Daily Log'!#REF!,$B125,'Daily Log'!#REF!),0) -> 0
B126: CN01 MILO (H) | D126: FFD-HOT BEVERAGE | E126: 1 | F126: 200 | G126: =IFERROR($E126*SUMIF('Daily Log'!#REF!,$B126,'Daily Log'!#REF!),0) -> 0 | H126: =IFERROR($E126*SUMIF('Daily Log'!#REF!,$B126,'Daily Log'!#REF!),0) -> 0 | I126: =IFERROR($E126*SUMIF('Daily Log'!#REF!,$B126,'Daily Log'!#REF!),0) -> 0 | J126: =IFERROR($E126*SUMIF('Daily Log'!#REF!,$B126,'Daily Log'!#REF!),0) -> 0 | K126: =IFERROR($E126*SUMIF('Daily Log'!#REF!,$B126,'Daily Log'!#REF!),0) -> 0 | L126: =IFERROR($E126*SUMIF('Daily Log'!#REF!,$B126,'Daily Log'!#REF!),0) -> 0 | M126: =IFERROR($E126*SUMIF('Daily Log'!#REF!,$B126,'Daily Log'!#REF!),0) -> 0 | N126: =IFERROR($E126*SUMIF('Daily Log'!#REF!,$B126,'Daily Log'!#REF!),0) -> 0 | O126: =IFERROR($E126*SUMIF('Daily Log'!#REF!,$B126,'Daily Log'!#REF!),0) -> 0 | P126: =IFERROR($E126*SUMIF('Daily Log'!#REF!,$B126,'Daily Log'!#REF!),0) -> 0 | Q126: =IFERROR($E126*SUMIF('Daily Log'!#REF!,$B126,'Daily Log'!#REF!),0) -> 0 | R126: =IFERROR($E126*SUMIF('Daily Log'!#REF!,$B126,'Daily Log'!#REF!),0) -> 0 | S126: =IFERROR($E126*SUMIF('Daily Log'!#REF!,$B126,'Daily Log'!#REF!),0) -> 0 | T126: =IFERROR($E126*SUMIF('Daily Log'!#REF!,$B126,'Daily Log'!#REF!),0) -> 0 | U126: =IFERROR($E126*SUMIF('Daily Log'!#REF!,$B126,'Daily Log'!#REF!),0) -> 0 | V126: =IFERROR($E126*SUMIF('Daily Log'!#REF!,$B126,'Daily Log'!#REF!),0) -> 0 | W126: =IFERROR($E126*SUMIF('Daily Log'!#REF!,$B126,'Daily Log'!#REF!),0) -> 0 | X126: =IFERROR($E126*SUMIF('Daily Log'!#REF!,$B126,'Daily Log'!#REF!),0) -> 0 | Y126: =IFERROR($E126*SUMIF('Daily Log'!#REF!,$B126,'Daily Log'!#REF!),0) -> 0 | Z126: =IFERROR($E126*SUMIF('Daily Log'!$C$18:$C$1017,$B126,'Daily Log'!$D$18:$D$1017),0) -> 14 | AA126: =IFERROR($E126*SUMIF('Daily Log'!$F$18:$F$1017,$B126,'Daily Log'!$G$18:$G$1017),0) -> 27 | AB126: =IFERROR($E126*SUMIF('Daily Log'!$I$18:$I$1017,$B126,'Daily Log'!$J$18:$J$1017),0) -> 23 | AC126: =IFERROR($E126*SUMIF('Daily Log'!$L$18:$L$1017,$B126,'Daily Log'!$M$18:$M$1017),0) -> 36 | AD126: =IFERROR($E126*SUMIF('Daily Log'!$O$18:$O$1017,$B126,'Daily Log'!$P$18:$P$1017),0) -> 22 | AE126: =IFERROR($E126*SUMIF('Daily Log'!$R$18:$R$1017,$B126,'Daily Log'!$S$18:$S$1017),0) -> 46 | AF126: =IFERROR($E126*SUMIF('Daily Log'!$U$18:$U$1017,$B126,'Daily Log'!$V$18:$V$1017),0) -> 32 | AG126: =IFERROR($E126*SUMIF('Daily Log'!#REF!,$B126,'Daily Log'!#REF!),0) -> 0 | AH126: =IFERROR($E126*SUMIF('Daily Log'!#REF!,$B126,'Daily Log'!#REF!),0) -> 0 | AI126: =IFERROR($E126*SUMIF('Daily Log'!#REF!,$B126,'Daily Log'!#REF!),0) -> 0 | AJ126: =IFERROR($E126*SUMIF('Daily Log'!#REF!,$B126,'Daily Log'!#REF!),0) -> 0 | AK126: =IFERROR($E126*SUMIF('Daily Log'!#REF!,$B126,'Daily Log'!#REF!),0) -> 0
B127: CN02 NESCAFE (H) | D127: FFD-HOT BEVERAGE | E127: 1 | F127: 86 | G127: =IFERROR($E127*SUMIF('Daily Log'!#REF!,$B127,'Daily Log'!#REF!),0) -> 0 | H127: =IFERROR($E127*SUMIF('Daily Log'!#REF!,$B127,'Daily Log'!#REF!),0) -> 0 | I127: =IFERROR($E127*SUMIF('Daily Log'!#REF!,$B127,'Daily Log'!#REF!),0) -> 0 | J127: =IFERROR($E127*SUMIF('Daily Log'!#REF!,$B127,'Daily Log'!#REF!),0) -> 0 | K127: =IFERROR($E127*SUMIF('Daily Log'!#REF!,$B127,'Daily Log'!#REF!),0) -> 0 | L127: =IFERROR($E127*SUMIF('Daily Log'!#REF!,$B127,'Daily Log'!#REF!),0) -> 0 | M127: =IFERROR($E127*SUMIF('Daily Log'!#REF!,$B127,'Daily Log'!#REF!),0) -> 0 | N127: =IFERROR($E127*SUMIF('Daily Log'!#REF!,$B127,'Daily Log'!#REF!),0) -> 0 | O127: =IFERROR($E127*SUMIF('Daily Log'!#REF!,$B127,'Daily Log'!#REF!),0) -> 0 | P127: =IFERROR($E127*SUMIF('Daily Log'!#REF!,$B127,'Daily Log'!#REF!),0) -> 0 | Q127: =IFERROR($E127*SUMIF('Daily Log'!#REF!,$B127,'Daily Log'!#REF!),0) -> 0 | R127: =IFERROR($E127*SUMIF('Daily Log'!#REF!,$B127,'Daily Log'!#REF!),0) -> 0 | S127: =IFERROR($E127*SUMIF('Daily Log'!#REF!,$B127,'Daily Log'!#REF!),0) -> 0 | T127: =IFERROR($E127*SUMIF('Daily Log'!#REF!,$B127,'Daily Log'!#REF!),0) -> 0 | U127: =IFERROR($E127*SUMIF('Daily Log'!#REF!,$B127,'Daily Log'!#REF!),0) -> 0 | V127: =IFERROR($E127*SUMIF('Daily Log'!#REF!,$B127,'Daily Log'!#REF!),0) -> 0 | W127: =IFERROR($E127*SUMIF('Daily Log'!#REF!,$B127,'Daily Log'!#REF!),0) -> 0 | X127: =IFERROR($E127*SUMIF('Daily Log'!#REF!,$B127,'Daily Log'!#REF!),0) -> 0 | Y127: =IFERROR($E127*SUMIF('Daily Log'!#REF!,$B127,'Daily Log'!#REF!),0) -> 0 | Z127: =IFERROR($E127*SUMIF('Daily Log'!$C$18:$C$1017,$B127,'Daily Log'!$D$18:$D$1017),0) -> 5 | AA127: =IFERROR($E127*SUMIF('Daily Log'!$F$18:$F$1017,$B127,'Daily Log'!$G$18:$G$1017),0) -> 5 | AB127: =IFERROR($E127*SUMIF('Daily Log'!$I$18:$I$1017,$B127,'Daily Log'!$J$18:$J$1017),0) -> 12 | AC127: =IFERROR($E127*SUMIF('Daily Log'!$L$18:$L$1017,$B127,'Daily Log'!$M$18:$M$1017),0) -> 13 | AD127: =IFERROR($E127*SUMIF('Daily Log'!$O$18:$O$1017,$B127,'Daily Log'!$P$18:$P$1017),0) -> 12 | AE127: =IFERROR($E127*SUMIF('Daily Log'!$R$18:$R$1017,$B127,'Daily Log'!$S$18:$S$1017),0) -> 20 | AF127: =IFERROR($E127*SUMIF('Daily Log'!$U$18:$U$1017,$B127,'Daily Log'!$V$18:$V$1017),0) -> 19 | AG127: =IFERROR($E127*SUMIF('Daily Log'!#REF!,$B127,'Daily Log'!#REF!),0) -> 0 | AH127: =IFERROR($E127*SUMIF('Daily Log'!#REF!,$B127,'Daily Log'!#REF!),0) -> 0 | AI127: =IFERROR($E127*SUMIF('Daily Log'!#REF!,$B127,'Daily Log'!#REF!),0) -> 0 | AJ127: =IFERROR($E127*SUMIF('Daily Log'!#REF!,$B127,'Daily Log'!#REF!),0) -> 0 | AK127: =IFERROR($E127*SUMIF('Daily Log'!#REF!,$B127,'Daily Log'!#REF!),0) -> 0
B128: CN03 TEA (H) | D128: FFD-HOT BEVERAGE | E128: 1 | F128: 22 | G128: =IFERROR($E128*SUMIF('Daily Log'!#REF!,$B128,'Daily Log'!#REF!),0) -> 0 | H128: =IFERROR($E128*SUMIF('Daily Log'!#REF!,$B128,'Daily Log'!#REF!),0) -> 0 | I128: =IFERROR($E128*SUMIF('Daily Log'!#REF!,$B128,'Daily Log'!#REF!),0) -> 0 | J128: =IFERROR($E128*SUMIF('Daily Log'!#REF!,$B128,'Daily Log'!#REF!),0) -> 0 | K128: =IFERROR($E128*SUMIF('Daily Log'!#REF!,$B128,'Daily Log'!#REF!),0) -> 0 | L128: =IFERROR($E128*SUMIF('Daily Log'!#REF!,$B128,'Daily Log'!#REF!),0) -> 0 | M128: =IFERROR($E128*SUMIF('Daily Log'!#REF!,$B128,'Daily Log'!#REF!),0) -> 0 | N128: =IFERROR($E128*SUMIF('Daily Log'!#REF!,$B128,'Daily Log'!#REF!),0) -> 0 | O128: =IFERROR($E128*SUMIF('Daily Log'!#REF!,$B128,'Daily Log'!#REF!),0) -> 0 | P128: =IFERROR($E128*SUMIF('Daily Log'!#REF!,$B128,'Daily Log'!#REF!),0) -> 0 | Q128: =IFERROR($E128*SUMIF('Daily Log'!#REF!,$B128,'Daily Log'!#REF!),0) -> 0 | R128: =IFERROR($E128*SUMIF('Daily Log'!#REF!,$B128,'Daily Log'!#REF!),0) -> 0 | S128: =IFERROR($E128*SUMIF('Daily Log'!#REF!,$B128,'Daily Log'!#REF!),0) -> 0 | T128: =IFERROR($E128*SUMIF('Daily Log'!#REF!,$B128,'Daily Log'!#REF!),0) -> 0 | U128: =IFERROR($E128*SUMIF('Daily Log'!#REF!,$B128,'Daily Log'!#REF!),0) -> 0 | V128: =IFERROR($E128*SUMIF('Daily Log'!#REF!,$B128,'Daily Log'!#REF!),0) -> 0 | W128: =IFERROR($E128*SUMIF('Daily Log'!#REF!,$B128,'Daily Log'!#REF!),0) -> 0 | X128: =IFERROR($E128*SUMIF('Daily Log'!#REF!,$B128,'Daily Log'!#REF!),0) -> 0 | Y128: =IFERROR($E128*SUMIF('Daily Log'!#REF!,$B128,'Daily Log'!#REF!),0) -> 0 | Z128: =IFERROR($E128*SUMIF('Daily Log'!$C$18:$C$1017,$B128,'Daily Log'!$D$18:$D$1017),0) -> 1 | AA128: =IFERROR($E128*SUMIF('Daily Log'!$F$18:$F$1017,$B128,'Daily Log'!$G$18:$G$1017),0) -> 2 | AB128: =IFERROR($E128*SUMIF('Daily Log'!$I$18:$I$1017,$B128,'Daily Log'!$J$18:$J$1017),0) -> 1 | AC128: =IFERROR($E128*SUMIF('Daily Log'!$L$18:$L$1017,$B128,'Daily Log'!$M$18:$M$1017),0) -> 3 | AD128: =IFERROR($E128*SUMIF('Daily Log'!$O$18:$O$1017,$B128,'Daily Log'!$P$18:$P$1017),0) -> 6 | AE128: =IFERROR($E128*SUMIF('Daily Log'!$R$18:$R$1017,$B128,'Daily Log'!$S$18:$S$1017),0) -> 5 | AF128: =IFERROR($E128*SUMIF('Daily Log'!$U$18:$U$1017,$B128,'Daily Log'!$V$18:$V$1017),0) -> 4 | AG128: =IFERROR($E128*SUMIF('Daily Log'!#REF!,$B128,'Daily Log'!#REF!),0) -> 0 | AH128: =IFERROR($E128*SUMIF('Daily Log'!#REF!,$B128,'Daily Log'!#REF!),0) -> 0 | AI128: =IFERROR($E128*SUMIF('Daily Log'!#REF!,$B128,'Daily Log'!#REF!),0) -> 0 | AJ128: =IFERROR($E128*SUMIF('Daily Log'!#REF!,$B128,'Daily Log'!#REF!),0) -> 0 | AK128: =IFERROR($E128*SUMIF('Daily Log'!#REF!,$B128,'Daily Log'!#REF!),0) -> 0
B129: CN04 LEMON TEA (H) | D129: FFD-HOT BEVERAGE | E129: 1 | F129: 79 | G129: =IFERROR($E129*SUMIF('Daily Log'!#REF!,$B129,'Daily Log'!#REF!),0) -> 0 | H129: =IFERROR($E129*SUMIF('Daily Log'!#REF!,$B129,'Daily Log'!#REF!),0) -> 0 | I129: =IFERROR($E129*SUMIF('Daily Log'!#REF!,$B129,'Daily Log'!#REF!),0) -> 0 | J129: =IFERROR($E129*SUMIF('Daily Log'!#REF!,$B129,'Daily Log'!#REF!),0) -> 0 | K129: =IFERROR($E129*SUMIF('Daily Log'!#REF!,$B129,'Daily Log'!#REF!),0) -> 0 | L129: =IFERROR($E129*SUMIF('Daily Log'!#REF!,$B129,'Daily Log'!#REF!),0) -> 0 | M129: =IFERROR($E129*SUMIF('Daily Log'!#REF!,$B129,'Daily Log'!#REF!),0) -> 0 | N129: =IFERROR($E129*SUMIF('Daily Log'!#REF!,$B129,'Daily Log'!#REF!),0) -> 0 | O129: =IFERROR($E129*SUMIF('Daily Log'!#REF!,$B129,'Daily Log'!#REF!),0) -> 0 | P129: =IFERROR($E129*SUMIF('Daily Log'!#REF!,$B129,'Daily Log'!#REF!),0) -> 0 | Q129: =IFERROR($E129*SUMIF('Daily Log'!#REF!,$B129,'Daily Log'!#REF!),0) -> 0 | R129: =IFERROR($E129*SUMIF('Daily Log'!#REF!,$B129,'Daily Log'!#REF!),0) -> 0 | S129: =IFERROR($E129*SUMIF('Daily Log'!#REF!,$B129,'Daily Log'!#REF!),0) -> 0 | T129: =IFERROR($E129*SUMIF('Daily Log'!#REF!,$B129,'Daily Log'!#REF!),0) -> 0 | U129: =IFERROR($E129*SUMIF('Daily Log'!#REF!,$B129,'Daily Log'!#REF!),0) -> 0 | V129: =IFERROR($E129*SUMIF('Daily Log'!#REF!,$B129,'Daily Log'!#REF!),0) -> 0 | W129: =IFERROR($E129*SUMIF('Daily Log'!#REF!,$B129,'Daily Log'!#REF!),0) -> 0 | X129: =IFERROR($E129*SUMIF('Daily Log'!#REF!,$B129,'Daily Log'!#REF!),0) -> 0 | Y129: =IFERROR($E129*SUMIF('Daily Log'!#REF!,$B129,'Daily Log'!#REF!),0) -> 0 | Z129: =IFERROR($E129*SUMIF('Daily Log'!$C$18:$C$1017,$B129,'Daily Log'!$D$18:$D$1017),0) -> 5 | AA129: =IFERROR($E129*SUMIF('Daily Log'!$F$18:$F$1017,$B129,'Daily Log'!$G$18:$G$1017),0) -> 11 | AB129: =IFERROR($E129*SUMIF('Daily Log'!$I$18:$I$1017,$B129,'Daily Log'!$J$18:$J$1017),0) -> 1 | AC129: =IFERROR($E129*SUMIF('Daily Log'!$L$18:$L$1017,$B129,'Daily Log'!$M$18:$M$1017),0) -> 16 | AD129: =IFERROR($E129*SUMIF('Daily Log'!$O$18:$O$1017,$B129,'Daily Log'!$P$18:$P$1017),0) -> 11 | AE129: =IFERROR($E129*SUMIF('Daily Log'!$R$18:$R$1017,$B129,'Daily Log'!$S$18:$S$1017),0) -> 20 | AF129: =IFERROR($E129*SUMIF('Daily Log'!$U$18:$U$1017,$B129,'Daily Log'!$V$18:$V$1017),0) -> 15 | AG129: =IFERROR($E129*SUMIF('Daily Log'!#REF!,$B129,'Daily Log'!#REF!),0) -> 0 | AH129: =IFERROR($E129*SUMIF('Daily Log'!#REF!,$B129,'Daily Log'!#REF!),0) -> 0 | AI129: =IFERROR($E129*SUMIF('Daily Log'!#REF!,$B129,'Daily Log'!#REF!),0) -> 0 | AJ129: =IFERROR($E129*SUMIF('Daily Log'!#REF!,$B129,'Daily Log'!#REF!),0) -> 0 | AK129: =IFERROR($E129*SUMIF('Daily Log'!#REF!,$B129,'Daily Log'!#REF!),0) -> 0
B130: CN05 GRN TEA (H) | D130: FFD-HOT BEVERAGE | E130: 1 | F130: 153 | G130: =IFERROR($E130*SUMIF('Daily Log'!#REF!,$B130,'Daily Log'!#REF!),0) -> 0 | H130: =IFERROR($E130*SUMIF('Daily Log'!#REF!,$B130,'Daily Log'!#REF!),0) -> 0 | I130: =IFERROR($E130*SUMIF('Daily Log'!#REF!,$B130,'Daily Log'!#REF!),0) -> 0 | J130: =IFERROR($E130*SUMIF('Daily Log'!#REF!,$B130,'Daily Log'!#REF!),0) -> 0 | K130: =IFERROR($E130*SUMIF('Daily Log'!#REF!,$B130,'Daily Log'!#REF!),0) -> 0 | L130: =IFERROR($E130*SUMIF('Daily Log'!#REF!,$B130,'Daily Log'!#REF!),0) -> 0 | M130: =IFERROR($E130*SUMIF('Daily Log'!#REF!,$B130,'Daily Log'!#REF!),0) -> 0 | N130: =IFERROR($E130*SUMIF('Daily Log'!#REF!,$B130,'Daily Log'!#REF!),0) -> 0 | O130: =IFERROR($E130*SUMIF('Daily Log'!#REF!,$B130,'Daily Log'!#REF!),0) -> 0 | P130: =IFERROR($E130*SUMIF('Daily Log'!#REF!,$B130,'Daily Log'!#REF!),0) -> 0 | Q130: =IFERROR($E130*SUMIF('Daily Log'!#REF!,$B130,'Daily Log'!#REF!),0) -> 0 | R130: =IFERROR($E130*SUMIF('Daily Log'!#REF!,$B130,'Daily Log'!#REF!),0) -> 0 | S130: =IFERROR($E130*SUMIF('Daily Log'!#REF!,$B130,'Daily Log'!#REF!),0) -> 0 | T130: =IFERROR($E130*SUMIF('Daily Log'!#REF!,$B130,'Daily Log'!#REF!),0) -> 0 | U130: =IFERROR($E130*SUMIF('Daily Log'!#REF!,$B130,'Daily Log'!#REF!),0) -> 0 | V130: =IFERROR($E130*SUMIF('Daily Log'!#REF!,$B130,'Daily Log'!#REF!),0) -> 0 | W130: =IFERROR($E130*SUMIF('Daily Log'!#REF!,$B130,'Daily Log'!#REF!),0) -> 0 | X130: =IFERROR($E130*SUMIF('Daily Log'!#REF!,$B130,'Daily Log'!#REF!),0) -> 0 | Y130: =IFERROR($E130*SUMIF('Daily Log'!#REF!,$B130,'Daily Log'!#REF!),0) -> 0 | Z130: =IFERROR($E130*SUMIF('Daily Log'!$C$18:$C$1017,$B130,'Daily Log'!$D$18:$D$1017),0) -> 21 | AA130: =IFERROR($E130*SUMIF('Daily Log'!$F$18:$F$1017,$B130,'Daily Log'!$G$18:$G$1017),0) -> 24 | AB130: =IFERROR($E130*SUMIF('Daily Log'!$I$18:$I$1017,$B130,'Daily Log'!$J$18:$J$1017),0) -> 9 | AC130: =IFERROR($E130*SUMIF('Daily Log'!$L$18:$L$1017,$B130,'Daily Log'!$M$18:$M$1017),0) -> 16 | AD130: =IFERROR($E130*SUMIF('Daily Log'!$O$18:$O$1017,$B130,'Daily Log'!$P$18:$P$1017),0) -> 19 | AE130: =IFERROR($E130*SUMIF('Daily Log'!$R$18:$R$1017,$B130,'Daily Log'!$S$18:$S$1017),0) -> 37 | AF130: =IFERROR($E130*SUMIF('Daily Log'!$U$18:$U$1017,$B130,'Daily Log'!$V$18:$V$1017),0) -> 27 | AG130: =IFERROR($E130*SUMIF('Daily Log'!#REF!,$B130,'Daily Log'!#REF!),0) -> 0 | AH130: =IFERROR($E130*SUMIF('Daily Log'!#REF!,$B130,'Daily Log'!#REF!),0) -> 0 | AI130: =IFERROR($E130*SUMIF('Daily Log'!#REF!,$B130,'Daily Log'!#REF!),0) -> 0 | AJ130: =IFERROR($E130*SUMIF('Daily Log'!#REF!,$B130,'Daily Log'!#REF!),0) -> 0 | AK130: =IFERROR($E130*SUMIF('Daily Log'!#REF!,$B130,'Daily Log'!#REF!),0) -> 0
B131: CN06 HNY GRN TEA (H) | D131: FFD-HOT BEVERAGE | E131: 1 | F131: 281 | G131: =IFERROR($E131*SUMIF('Daily Log'!#REF!,$B131,'Daily Log'!#REF!),0) -> 0 | H131: =IFERROR($E131*SUMIF('Daily Log'!#REF!,$B131,'Daily Log'!#REF!),0) -> 0 | I131: =IFERROR($E131*SUMIF('Daily Log'!#REF!,$B131,'Daily Log'!#REF!),0) -> 0 | J131: =IFERROR($E131*SUMIF('Daily Log'!#REF!,$B131,'Daily Log'!#REF!),0) -> 0 | K131: =IFERROR($E131*SUMIF('Daily Log'!#REF!,$B131,'Daily Log'!#REF!),0) -> 0 | L131: =IFERROR($E131*SUMIF('Daily Log'!#REF!,$B131,'Daily Log'!#REF!),0) -> 0 | M131: =IFERROR($E131*SUMIF('Daily Log'!#REF!,$B131,'Daily Log'!#REF!),0) -> 0 | N131: =IFERROR($E131*SUMIF('Daily Log'!#REF!,$B131,'Daily Log'!#REF!),0) -> 0 | O131: =IFERROR($E131*SUMIF('Daily Log'!#REF!,$B131,'Daily Log'!#REF!),0) -> 0 | P131: =IFERROR($E131*SUMIF('Daily Log'!#REF!,$B131,'Daily Log'!#REF!),0) -> 0 | Q131: =IFERROR($E131*SUMIF('Daily Log'!#REF!,$B131,'Daily Log'!#REF!),0) -> 0 | R131: =IFERROR($E131*SUMIF('Daily Log'!#REF!,$B131,'Daily Log'!#REF!),0) -> 0 | S131: =IFERROR($E131*SUMIF('Daily Log'!#REF!,$B131,'Daily Log'!#REF!),0) -> 0 | T131: =IFERROR($E131*SUMIF('Daily Log'!#REF!,$B131,'Daily Log'!#REF!),0) -> 0 | U131: =IFERROR($E131*SUMIF('Daily Log'!#REF!,$B131,'Daily Log'!#REF!),0) -> 0 | V131: =IFERROR($E131*SUMIF('Daily Log'!#REF!,$B131,'Daily Log'!#REF!),0) -> 0 | W131: =IFERROR($E131*SUMIF('Daily Log'!#REF!,$B131,'Daily Log'!#REF!),0) -> 0 | X131: =IFERROR($E131*SUMIF('Daily Log'!#REF!,$B131,'Daily Log'!#REF!),0) -> 0 | Y131: =IFERROR($E131*SUMIF('Daily Log'!#REF!,$B131,'Daily Log'!#REF!),0) -> 0 | Z131: =IFERROR($E131*SUMIF('Daily Log'!$C$18:$C$1017,$B131,'Daily Log'!$D$18:$D$1017),0) -> 33 | AA131: =IFERROR($E131*SUMIF('Daily Log'!$F$18:$F$1017,$B131,'Daily Log'!$G$18:$G$1017),0) -> 29 | AB131: =IFERROR($E131*SUMIF('Daily Log'!$I$18:$I$1017,$B131,'Daily Log'!$J$18:$J$1017),0) -> 23 | AC131: =IFERROR($E131*SUMIF('Daily Log'!$L$18:$L$1017,$B131,'Daily Log'!$M$18:$M$1017),0) -> 54 | AD131: =IFERROR($E131*SUMIF('Daily Log'!$O$18:$O$1017,$B131,'Daily Log'!$P$18:$P$1017),0) -> 75 | AE131: =IFERROR($E131*SUMIF('Daily Log'!$R$18:$R$1017,$B131,'Daily Log'!$S$18:$S$1017),0) -> 42 | AF131: =IFERROR($E131*SUMIF('Daily Log'!$U$18:$U$1017,$B131,'Daily Log'!$V$18:$V$1017),0) -> 25 | AG131: =IFERROR($E131*SUMIF('Daily Log'!#REF!,$B131,'Daily Log'!#REF!),0) -> 0 | AH131: =IFERROR($E131*SUMIF('Daily Log'!#REF!,$B131,'Daily Log'!#REF!),0) -> 0 | AI131: =IFERROR($E131*SUMIF('Daily Log'!#REF!,$B131,'Daily Log'!#REF!),0) -> 0 | AJ131: =IFERROR($E131*SUMIF('Daily Log'!#REF!,$B131,'Daily Log'!#REF!),0) -> 0 | AK131: =IFERROR($E131*SUMIF('Daily Log'!#REF!,$B131,'Daily Log'!#REF!),0) -> 0
B132: CN07 HONEY (H) | D132: FFD-HOT BEVERAGE | E132: 1 | F132: 139 | G132: =IFERROR($E132*SUMIF('Daily Log'!#REF!,$B132,'Daily Log'!#REF!),0) -> 0 | H132: =IFERROR($E132*SUMIF('Daily Log'!#REF!,$B132,'Daily Log'!#REF!),0) -> 0 | I132: =IFERROR($E132*SUMIF('Daily Log'!#REF!,$B132,'Daily Log'!#REF!),0) -> 0 | J132: =IFERROR($E132*SUMIF('Daily Log'!#REF!,$B132,'Daily Log'!#REF!),0) -> 0 | K132: =IFERROR($E132*SUMIF('Daily Log'!#REF!,$B132,'Daily Log'!#REF!),0) -> 0 | L132: =IFERROR($E132*SUMIF('Daily Log'!#REF!,$B132,'Daily Log'!#REF!),0) -> 0 | M132: =IFERROR($E132*SUMIF('Daily Log'!#REF!,$B132,'Daily Log'!#REF!),0) -> 0 | N132: =IFERROR($E132*SUMIF('Daily Log'!#REF!,$B132,'Daily Log'!#REF!),0) -> 0 | O132: =IFERROR($E132*SUMIF('Daily Log'!#REF!,$B132,'Daily Log'!#REF!),0) -> 0 | P132: =IFERROR($E132*SUMIF('Daily Log'!#REF!,$B132,'Daily Log'!#REF!),0) -> 0 | Q132: =IFERROR($E132*SUMIF('Daily Log'!#REF!,$B132,'Daily Log'!#REF!),0) -> 0 | R132: =IFERROR($E132*SUMIF('Daily Log'!#REF!,$B132,'Daily Log'!#REF!),0) -> 0 | S132: =IFERROR($E132*SUMIF('Daily Log'!#REF!,$B132,'Daily Log'!#REF!),0) -> 0 | T132: =IFERROR($E132*SUMIF('Daily Log'!#REF!,$B132,'Daily Log'!#REF!),0) -> 0 | U132: =IFERROR($E132*SUMIF('Daily Log'!#REF!,$B132,'Daily Log'!#REF!),0) -> 0 | V132: =IFERROR($E132*SUMIF('Daily Log'!#REF!,$B132,'Daily Log'!#REF!),0) -> 0 | W132: =IFERROR($E132*SUMIF('Daily Log'!#REF!,$B132,'Daily Log'!#REF!),0) -> 0 | X132: =IFERROR($E132*SUMIF('Daily Log'!#REF!,$B132,'Daily Log'!#REF!),0) -> 0 | Y132: =IFERROR($E132*SUMIF('Daily Log'!#REF!,$B132,'Daily Log'!#REF!),0) -> 0 | Z132: =IFERROR($E132*SUMIF('Daily Log'!$C$18:$C$1017,$B132,'Daily Log'!$D$18:$D$1017),0) -> 10 | AA132: =IFERROR($E132*SUMIF('Daily Log'!$F$18:$F$1017,$B132,'Daily Log'!$G$18:$G$1017),0) -> 12 | AB132: =IFERROR($E132*SUMIF('Daily Log'!$I$18:$I$1017,$B132,'Daily Log'!$J$18:$J$1017),0) -> 19 | AC132: =IFERROR($E132*SUMIF('Daily Log'!$L$18:$L$1017,$B132,'Daily Log'!$M$18:$M$1017),0) -> 25 | AD132: =IFERROR($E132*SUMIF('Daily Log'!$O$18:$O$1017,$B132,'Daily Log'!$P$18:$P$1017),0) -> 24 | AE132: =IFERROR($E132*SUMIF('Daily Log'!$R$18:$R$1017,$B132,'Daily Log'!$S$18:$S$1017),0) -> 33 | AF132: =IFERROR($E132*SUMIF('Daily Log'!$U$18:$U$1017,$B132,'Daily Log'!$V$18:$V$1017),0) -> 16 | AG132: =IFERROR($E132*SUMIF('Daily Log'!#REF!,$B132,'Daily Log'!#REF!),0) -> 0 | AH132: =IFERROR($E132*SUMIF('Daily Log'!#REF!,$B132,'Daily Log'!#REF!),0) -> 0 | AI132: =IFERROR($E132*SUMIF('Daily Log'!#REF!,$B132,'Daily Log'!#REF!),0) -> 0 | AJ132: =IFERROR($E132*SUMIF('Daily Log'!#REF!,$B132,'Daily Log'!#REF!),0) -> 0 | AK132: =IFERROR($E132*SUMIF('Daily Log'!#REF!,$B132,'Daily Log'!#REF!),0) -> 0
B133: CN08 LEMON HONEY (H) | D133: FFD-HOT BEVERAGE | E133: 1 | F133: 816 | G133: =IFERROR($E133*SUMIF('Daily Log'!#REF!,$B133,'Daily Log'!#REF!),0) -> 0 | H133: =IFERROR($E133*SUMIF('Daily Log'!#REF!,$B133,'Daily Log'!#REF!),0) -> 0 | I133: =IFERROR($E133*SUMIF('Daily Log'!#REF!,$B133,'Daily Log'!#REF!),0) -> 0 | J133: =IFERROR($E133*SUMIF('Daily Log'!#REF!,$B133,'Daily Log'!#REF!),0) -> 0 | K133: =IFERROR($E133*SUMIF('Daily Log'!#REF!,$B133,'Daily Log'!#REF!),0) -> 0 | L133: =IFERROR($E133*SUMIF('Daily Log'!#REF!,$B133,'Daily Log'!#REF!),0) -> 0 | M133: =IFERROR($E133*SUMIF('Daily Log'!#REF!,$B133,'Daily Log'!#REF!),0) -> 0 | N133: =IFERROR($E133*SUMIF('Daily Log'!#REF!,$B133,'Daily Log'!#REF!),0) -> 0 | O133: =IFERROR($E133*SUMIF('Daily Log'!#REF!,$B133,'Daily Log'!#REF!),0) -> 0 | P133: =IFERROR($E133*SUMIF('Daily Log'!#REF!,$B133,'Daily Log'!#REF!),0) -> 0 | Q133: =IFERROR($E133*SUMIF('Daily Log'!#REF!,$B133,'Daily Log'!#REF!),0) -> 0 | R133: =IFERROR($E133*SUMIF('Daily Log'!#REF!,$B133,'Daily Log'!#REF!),0) -> 0 | S133: =IFERROR($E133*SUMIF('Daily Log'!#REF!,$B133,'Daily Log'!#REF!),0) -> 0 | T133: =IFERROR($E133*SUMIF('Daily Log'!#REF!,$B133,'Daily Log'!#REF!),0) -> 0 | U133: =IFERROR($E133*SUMIF('Daily Log'!#REF!,$B133,'Daily Log'!#REF!),0) -> 0 | V133: =IFERROR($E133*SUMIF('Daily Log'!#REF!,$B133,'Daily Log'!#REF!),0) -> 0 | W133: =IFERROR($E133*SUMIF('Daily Log'!#REF!,$B133,'Daily Log'!#REF!),0) -> 0 | X133: =IFERROR($E133*SUMIF('Daily Log'!#REF!,$B133,'Daily Log'!#REF!),0) -> 0 | Y133: =IFERROR($E133*SUMIF('Daily Log'!#REF!,$B133,'Daily Log'!#REF!),0) -> 0 | Z133: =IFERROR($E133*SUMIF('Daily Log'!$C$18:$C$1017,$B133,'Daily Log'!$D$18:$D$1017),0) -> 76 | AA133: =IFERROR($E133*SUMIF('Daily Log'!$F$18:$F$1017,$B133,'Daily Log'!$G$18:$G$1017),0) -> 113 | AB133: =IFERROR($E133*SUMIF('Daily Log'!$I$18:$I$1017,$B133,'Daily Log'!$J$18:$J$1017),0) -> 65 | AC133: =IFERROR($E133*SUMIF('Daily Log'!$L$18:$L$1017,$B133,'Daily Log'!$M$18:$M$1017),0) -> 127 | AD133: =IFERROR($E133*SUMIF('Daily Log'!$O$18:$O$1017,$B133,'Daily Log'!$P$18:$P$1017),0) -> 160 | AE133: =IFERROR($E133*SUMIF('Daily Log'!$R$18:$R$1017,$B133,'Daily Log'!$S$18:$S$1017),0) -> 163 | AF133: =IFERROR($E133*SUMIF('Daily Log'!$U$18:$U$1017,$B133,'Daily Log'!$V$18:$V$1017),0) -> 112 | AG133: =IFERROR($E133*SUMIF('Daily Log'!#REF!,$B133,'Daily Log'!#REF!),0) -> 0 | AH133: =IFERROR($E133*SUMIF('Daily Log'!#REF!,$B133,'Daily Log'!#REF!),0) -> 0 | AI133: =IFERROR($E133*SUMIF('Daily Log'!#REF!,$B133,'Daily Log'!#REF!),0) -> 0 | AJ133: =IFERROR($E133*SUMIF('Daily Log'!#REF!,$B133,'Daily Log'!#REF!),0) -> 0 | AK133: =IFERROR($E133*SUMIF('Daily Log'!#REF!,$B133,'Daily Log'!#REF!),0) -> 0
B134: CN12 CHAMOMILE (H) | D134: FFD-HOT BEVERAGE | E134: 1 | F134: 61 | G134: =IFERROR($E134*SUMIF('Daily Log'!#REF!,$B134,'Daily Log'!#REF!),0) -> 0 | H134: =IFERROR($E134*SUMIF('Daily Log'!#REF!,$B134,'Daily Log'!#REF!),0) -> 0 | I134: =IFERROR($E134*SUMIF('Daily Log'!#REF!,$B134,'Daily Log'!#REF!),0) -> 0 | J134: =IFERROR($E134*SUMIF('Daily Log'!#REF!,$B134,'Daily Log'!#REF!),0) -> 0 | K134: =IFERROR($E134*SUMIF('Daily Log'!#REF!,$B134,'Daily Log'!#REF!),0) -> 0 | L134: =IFERROR($E134*SUMIF('Daily Log'!#REF!,$B134,'Daily Log'!#REF!),0) -> 0 | M134: =IFERROR($E134*SUMIF('Daily Log'!#REF!,$B134,'Daily Log'!#REF!),0) -> 0 | N134: =IFERROR($E134*SUMIF('Daily Log'!#REF!,$B134,'Daily Log'!#REF!),0) -> 0 | O134: =IFERROR($E134*SUMIF('Daily Log'!#REF!,$B134,'Daily Log'!#REF!),0) -> 0 | P134: =IFERROR($E134*SUMIF('Daily Log'!#REF!,$B134,'Daily Log'!#REF!),0) -> 0 | Q134: =IFERROR($E134*SUMIF('Daily Log'!#REF!,$B134,'Daily Log'!#REF!),0) -> 0 | R134: =IFERROR($E134*SUMIF('Daily Log'!#REF!,$B134,'Daily Log'!#REF!),0) -> 0 | S134: =IFERROR($E134*SUMIF('Daily Log'!#REF!,$B134,'Daily Log'!#REF!),0) -> 0 | T134: =IFERROR($E134*SUMIF('Daily Log'!#REF!,$B134,'Daily Log'!#REF!),0) -> 0 | U134: =IFERROR($E134*SUMIF('Daily Log'!#REF!,$B134,'Daily Log'!#REF!),0) -> 0 | V134: =IFERROR($E134*SUMIF('Daily Log'!#REF!,$B134,'Daily Log'!#REF!),0) -> 0 | W134: =IFERROR($E134*SUMIF('Daily Log'!#REF!,$B134,'Daily Log'!#REF!),0) -> 0 | X134: =IFERROR($E134*SUMIF('Daily Log'!#REF!,$B134,'Daily Log'!#REF!),0) -> 0 | Y134: =IFERROR($E134*SUMIF('Daily Log'!#REF!,$B134,'Daily Log'!#REF!),0) -> 0 | Z134: =IFERROR($E134*SUMIF('Daily Log'!$C$18:$C$1017,$B134,'Daily Log'!$D$18:$D$1017),0) -> 3 | AA134: =IFERROR($E134*SUMIF('Daily Log'!$F$18:$F$1017,$B134,'Daily Log'!$G$18:$G$1017),0) -> 9 | AB134: =IFERROR($E134*SUMIF('Daily Log'!$I$18:$I$1017,$B134,'Daily Log'!$J$18:$J$1017),0) -> 2 | AC134: =IFERROR($E134*SUMIF('Daily Log'!$L$18:$L$1017,$B134,'Daily Log'!$M$18:$M$1017),0) -> 7 | AD134: =IFERROR($E134*SUMIF('Daily Log'!$O$18:$O$1017,$B134,'Daily Log'!$P$18:$P$1017),0) -> 13 | AE134: =IFERROR($E134*SUMIF('Daily Log'!$R$18:$R$1017,$B134,'Daily Log'!$S$18:$S$1017),0) -> 16 | AF134: =IFERROR($E134*SUMIF('Daily Log'!$U$18:$U$1017,$B134,'Daily Log'!$V$18:$V$1017),0) -> 11 | AG134: =IFERROR($E134*SUMIF('Daily Log'!#REF!,$B134,'Daily Log'!#REF!),0) -> 0 | AH134: =IFERROR($E134*SUMIF('Daily Log'!#REF!,$B134,'Daily Log'!#REF!),0) -> 0 | AI134: =IFERROR($E134*SUMIF('Daily Log'!#REF!,$B134,'Daily Log'!#REF!),0) -> 0 | AJ134: =IFERROR($E134*SUMIF('Daily Log'!#REF!,$B134,'Daily Log'!#REF!),0) -> 0 | AK134: =IFERROR($E134*SUMIF('Daily Log'!#REF!,$B134,'Daily Log'!#REF!),0) -> 0
B135: CN13 DARJEELING (H) | D135: FFD-HOT BEVERAGE | E135: 1 | F135: 9 | G135: =IFERROR($E135*SUMIF('Daily Log'!#REF!,$B135,'Daily Log'!#REF!),0) -> 0 | H135: =IFERROR($E135*SUMIF('Daily Log'!#REF!,$B135,'Daily Log'!#REF!),0) -> 0 | I135: =IFERROR($E135*SUMIF('Daily Log'!#REF!,$B135,'Daily Log'!#REF!),0) -> 0 | J135: =IFERROR($E135*SUMIF('Daily Log'!#REF!,$B135,'Daily Log'!#REF!),0) -> 0 | K135: =IFERROR($E135*SUMIF('Daily Log'!#REF!,$B135,'Daily Log'!#REF!),0) -> 0 | L135: =IFERROR($E135*SUMIF('Daily Log'!#REF!,$B135,'Daily Log'!#REF!),0) -> 0 | M135: =IFERROR($E135*SUMIF('Daily Log'!#REF!,$B135,'Daily Log'!#REF!),0) -> 0 | N135: =IFERROR($E135*SUMIF('Daily Log'!#REF!,$B135,'Daily Log'!#REF!),0) -> 0 | O135: =IFERROR($E135*SUMIF('Daily Log'!#REF!,$B135,'Daily Log'!#REF!),0) -> 0 | P135: =IFERROR($E135*SUMIF('Daily Log'!#REF!,$B135,'Daily Log'!#REF!),0) -> 0 | Q135: =IFERROR($E135*SUMIF('Daily Log'!#REF!,$B135,'Daily Log'!#REF!),0) -> 0 | R135: =IFERROR($E135*SUMIF('Daily Log'!#REF!,$B135,'Daily Log'!#REF!),0) -> 0 | S135: =IFERROR($E135*SUMIF('Daily Log'!#REF!,$B135,'Daily Log'!#REF!),0) -> 0 | T135: =IFERROR($E135*SUMIF('Daily Log'!#REF!,$B135,'Daily Log'!#REF!),0) -> 0 | U135: =IFERROR($E135*SUMIF('Daily Log'!#REF!,$B135,'Daily Log'!#REF!),0) -> 0 | V135: =IFERROR($E135*SUMIF('Daily Log'!#REF!,$B135,'Daily Log'!#REF!),0) -> 0 | W135: =IFERROR($E135*SUMIF('Daily Log'!#REF!,$B135,'Daily Log'!#REF!),0) -> 0 | X135: =IFERROR($E135*SUMIF('Daily Log'!#REF!,$B135,'Daily Log'!#REF!),0) -> 0 | Y135: =IFERROR($E135*SUMIF('Daily Log'!#REF!,$B135,'Daily Log'!#REF!),0) -> 0 | Z135: =IFERROR($E135*SUMIF('Daily Log'!$C$18:$C$1017,$B135,'Daily Log'!$D$18:$D$1017),0) -> 0 | AA135: =IFERROR($E135*SUMIF('Daily Log'!$F$18:$F$1017,$B135,'Daily Log'!$G$18:$G$1017),0) -> 1 | AB135: =IFERROR($E135*SUMIF('Daily Log'!$I$18:$I$1017,$B135,'Daily Log'!$J$18:$J$1017),0) -> 1 | AC135: =IFERROR($E135*SUMIF('Daily Log'!$L$18:$L$1017,$B135,'Daily Log'!$M$18:$M$1017),0) -> 1 | AD135: =IFERROR($E135*SUMIF('Daily Log'!$O$18:$O$1017,$B135,'Daily Log'!$P$18:$P$1017),0) -> 1 | AE135: =IFERROR($E135*SUMIF('Daily Log'!$R$18:$R$1017,$B135,'Daily Log'!$S$18:$S$1017),0) -> 1 | AF135: =IFERROR($E135*SUMIF('Daily Log'!$U$18:$U$1017,$B135,'Daily Log'!$V$18:$V$1017),0) -> 4 | AG135: =IFERROR($E135*SUMIF('Daily Log'!#REF!,$B135,'Daily Log'!#REF!),0) -> 0 | AH135: =IFERROR($E135*SUMIF('Daily Log'!#REF!,$B135,'Daily Log'!#REF!),0) -> 0 | AI135: =IFERROR($E135*SUMIF('Daily Log'!#REF!,$B135,'Daily Log'!#REF!),0) -> 0 | AJ135: =IFERROR($E135*SUMIF('Daily Log'!#REF!,$B135,'Daily Log'!#REF!),0) -> 0 | AK135: =IFERROR($E135*SUMIF('Daily Log'!#REF!,$B135,'Daily Log'!#REF!),0) -> 0
B136: CN14 EARL GREY (H) | D136: FFD-HOT BEVERAGE | E136: 1 | F136: 23 | G136: =IFERROR($E136*SUMIF('Daily Log'!#REF!,$B136,'Daily Log'!#REF!),0) -> 0 | H136: =IFERROR($E136*SUMIF('Daily Log'!#REF!,$B136,'Daily Log'!#REF!),0) -> 0 | I136: =IFERROR($E136*SUMIF('Daily Log'!#REF!,$B136,'Daily Log'!#REF!),0) -> 0 | J136: =IFERROR($E136*SUMIF('Daily Log'!#REF!,$B136,'Daily Log'!#REF!),0) -> 0 | K136: =IFERROR($E136*SUMIF('Daily Log'!#REF!,$B136,'Daily Log'!#REF!),0) -> 0 | L136: =IFERROR($E136*SUMIF('Daily Log'!#REF!,$B136,'Daily Log'!#REF!),0) -> 0 | M136: =IFERROR($E136*SUMIF('Daily Log'!#REF!,$B136,'Daily Log'!#REF!),0) -> 0 | N136: =IFERROR($E136*SUMIF('Daily Log'!#REF!,$B136,'Daily Log'!#REF!),0) -> 0 | O136: =IFERROR($E136*SUMIF('Daily Log'!#REF!,$B136,'Daily Log'!#REF!),0) -> 0 | P136: =IFERROR($E136*SUMIF('Daily Log'!#REF!,$B136,'Daily Log'!#REF!),0) -> 0 | Q136: =IFERROR($E136*SUMIF('Daily Log'!#REF!,$B136,'Daily Log'!#REF!),0) -> 0 | R136: =IFERROR($E136*SUMIF('Daily Log'!#REF!,$B136,'Daily Log'!#REF!),0) -> 0 | S136: =IFERROR($E136*SUMIF('Daily Log'!#REF!,$B136,'Daily Log'!#REF!),0) -> 0 | T136: =IFERROR($E136*SUMIF('Daily Log'!#REF!,$B136,'Daily Log'!#REF!),0) -> 0 | U136: =IFERROR($E136*SUMIF('Daily Log'!#REF!,$B136,'Daily Log'!#REF!),0) -> 0 | V136: =IFERROR($E136*SUMIF('Daily Log'!#REF!,$B136,'Daily Log'!#REF!),0) -> 0 | W136: =IFERROR($E136*SUMIF('Daily Log'!#REF!,$B136,'Daily Log'!#REF!),0) -> 0 | X136: =IFERROR($E136*SUMIF('Daily Log'!#REF!,$B136,'Daily Log'!#REF!),0) -> 0 | Y136: =IFERROR($E136*SUMIF('Daily Log'!#REF!,$B136,'Daily Log'!#REF!),0) -> 0 | Z136: =IFERROR($E136*SUMIF('Daily Log'!$C$18:$C$1017,$B136,'Daily Log'!$D$18:$D$1017),0) -> 2 | AA136: =IFERROR($E136*SUMIF('Daily Log'!$F$18:$F$1017,$B136,'Daily Log'!$G$18:$G$1017),0) -> 1 | AB136: =IFERROR($E136*SUMIF('Daily Log'!$I$18:$I$1017,$B136,'Daily Log'!$J$18:$J$1017),0) -> 5 | AC136: =IFERROR($E136*SUMIF('Daily Log'!$L$18:$L$1017,$B136,'Daily Log'!$M$18:$M$1017),0) -> 1 | AD136: =IFERROR($E136*SUMIF('Daily Log'!$O$18:$O$1017,$B136,'Daily Log'!$P$18:$P$1017),0) -> 12 | AE136: =IFERROR($E136*SUMIF('Daily Log'!$R$18:$R$1017,$B136,'Daily Log'!$S$18:$S$1017),0) -> 2 | AF136: =IFERROR($E136*SUMIF('Daily Log'!$U$18:$U$1017,$B136,'Daily Log'!$V$18:$V$1017),0) -> 0 | AG136: =IFERROR($E136*SUMIF('Daily Log'!#REF!,$B136,'Daily Log'!#REF!),0) -> 0 | AH136: =IFERROR($E136*SUMIF('Daily Log'!#REF!,$B136,'Daily Log'!#REF!),0) -> 0 | AI136: =IFERROR($E136*SUMIF('Daily Log'!#REF!,$B136,'Daily Log'!#REF!),0) -> 0 | AJ136: =IFERROR($E136*SUMIF('Daily Log'!#REF!,$B136,'Daily Log'!#REF!),0) -> 0 | AK136: =IFERROR($E136*SUMIF('Daily Log'!#REF!,$B136,'Daily Log'!#REF!),0) -> 0
B137: CO01 MINERAL WATER | D137: MINERAL WATER | E137: 1 | F137: 0 | G137: =IFERROR($E137*SUMIF('Daily Log'!#REF!,$B137,'Daily Log'!#REF!),0) -> 0 | H137: =IFERROR($E137*SUMIF('Daily Log'!#REF!,$B137,'Daily Log'!#REF!),0) -> 0 | I137: =IFERROR($E137*SUMIF('Daily Log'!#REF!,$B137,'Daily Log'!#REF!),0) -> 0 | J137: =IFERROR($E137*SUMIF('Daily Log'!#REF!,$B137,'Daily Log'!#REF!),0) -> 0 | K137: =IFERROR($E137*SUMIF('Daily Log'!#REF!,$B137,'Daily Log'!#REF!),0) -> 0 | L137: =IFERROR($E137*SUMIF('Daily Log'!#REF!,$B137,'Daily Log'!#REF!),0) -> 0 | M137: =IFERROR($E137*SUMIF('Daily Log'!#REF!,$B137,'Daily Log'!#REF!),0) -> 0 | N137: =IFERROR($E137*SUMIF('Daily Log'!#REF!,$B137,'Daily Log'!#REF!),0) -> 0 | O137: =IFERROR($E137*SUMIF('Daily Log'!#REF!,$B137,'Daily Log'!#REF!),0) -> 0 | P137: =IFERROR($E137*SUMIF('Daily Log'!#REF!,$B137,'Daily Log'!#REF!),0) -> 0 | Q137: =IFERROR($E137*SUMIF('Daily Log'!#REF!,$B137,'Daily Log'!#REF!),0) -> 0 | R137: =IFERROR($E137*SUMIF('Daily Log'!#REF!,$B137,'Daily Log'!#REF!),0) -> 0 | S137: =IFERROR($E137*SUMIF('Daily Log'!#REF!,$B137,'Daily Log'!#REF!),0) -> 0 | T137: =IFERROR($E137*SUMIF('Daily Log'!#REF!,$B137,'Daily Log'!#REF!),0) -> 0 | U137: =IFERROR($E137*SUMIF('Daily Log'!#REF!,$B137,'Daily Log'!#REF!),0) -> 0 | V137: =IFERROR($E137*SUMIF('Daily Log'!#REF!,$B137,'Daily Log'!#REF!),0) -> 0 | W137: =IFERROR($E137*SUMIF('Daily Log'!#REF!,$B137,'Daily Log'!#REF!),0) -> 0 | X137: =IFERROR($E137*SUMIF('Daily Log'!#REF!,$B137,'Daily Log'!#REF!),0) -> 0 | Y137: =IFERROR($E137*SUMIF('Daily Log'!#REF!,$B137,'Daily Log'!#REF!),0) -> 0 | Z137: =IFERROR($E137*SUMIF('Daily Log'!$C$18:$C$1017,$B137,'Daily Log'!$D$18:$D$1017),0) -> 0 | AA137: =IFERROR($E137*SUMIF('Daily Log'!$F$18:$F$1017,$B137,'Daily Log'!$G$18:$G$1017),0) -> 0 | AB137: =IFERROR($E137*SUMIF('Daily Log'!$I$18:$I$1017,$B137,'Daily Log'!$J$18:$J$1017),0) -> 0 | AC137: =IFERROR($E137*SUMIF('Daily Log'!$L$18:$L$1017,$B137,'Daily Log'!$M$18:$M$1017),0) -> 0 | AD137: =IFERROR($E137*SUMIF('Daily Log'!$O$18:$O$1017,$B137,'Daily Log'!$P$18:$P$1017),0) -> 0 | AE137: =IFERROR($E137*SUMIF('Daily Log'!$R$18:$R$1017,$B137,'Daily Log'!$S$18:$S$1017),0) -> 0 | AF137: =IFERROR($E137*SUMIF('Daily Log'!$U$18:$U$1017,$B137,'Daily Log'!$V$18:$V$1017),0) -> 0 | AG137: =IFERROR($E137*SUMIF('Daily Log'!#REF!,$B137,'Daily Log'!#REF!),0) -> 0 | AH137: =IFERROR($E137*SUMIF('Daily Log'!#REF!,$B137,'Daily Log'!#REF!),0) -> 0 | AI137: =IFERROR($E137*SUMIF('Daily Log'!#REF!,$B137,'Daily Log'!#REF!),0) -> 0 | AJ137: =IFERROR($E137*SUMIF('Daily Log'!#REF!,$B137,'Daily Log'!#REF!),0) -> 0 | AK137: =IFERROR($E137*SUMIF('Daily Log'!#REF!,$B137,'Daily Log'!#REF!),0) -> 0
B138: CO02 PLAIN WATER | D138: SKY JUICE | E138: 1 | F138: 319 | G138: =IFERROR($E138*SUMIF('Daily Log'!#REF!,$B138,'Daily Log'!#REF!),0) -> 0 | H138: =IFERROR($E138*SUMIF('Daily Log'!#REF!,$B138,'Daily Log'!#REF!),0) -> 0 | I138: =IFERROR($E138*SUMIF('Daily Log'!#REF!,$B138,'Daily Log'!#REF!),0) -> 0 | J138: =IFERROR($E138*SUMIF('Daily Log'!#REF!,$B138,'Daily Log'!#REF!),0) -> 0 | K138: =IFERROR($E138*SUMIF('Daily Log'!#REF!,$B138,'Daily Log'!#REF!),0) -> 0 | L138: =IFERROR($E138*SUMIF('Daily Log'!#REF!,$B138,'Daily Log'!#REF!),0) -> 0 | M138: =IFERROR($E138*SUMIF('Daily Log'!#REF!,$B138,'Daily Log'!#REF!),0) -> 0 | N138: =IFERROR($E138*SUMIF('Daily Log'!#REF!,$B138,'Daily Log'!#REF!),0) -> 0 | O138: =IFERROR($E138*SUMIF('Daily Log'!#REF!,$B138,'Daily Log'!#REF!),0) -> 0 | P138: =IFERROR($E138*SUMIF('Daily Log'!#REF!,$B138,'Daily Log'!#REF!),0) -> 0 | Q138: =IFERROR($E138*SUMIF('Daily Log'!#REF!,$B138,'Daily Log'!#REF!),0) -> 0 | R138: =IFERROR($E138*SUMIF('Daily Log'!#REF!,$B138,'Daily Log'!#REF!),0) -> 0 | S138: =IFERROR($E138*SUMIF('Daily Log'!#REF!,$B138,'Daily Log'!#REF!),0) -> 0 | T138: =IFERROR($E138*SUMIF('Daily Log'!#REF!,$B138,'Daily Log'!#REF!),0) -> 0 | U138: =IFERROR($E138*SUMIF('Daily Log'!#REF!,$B138,'Daily Log'!#REF!),0) -> 0 | V138: =IFERROR($E138*SUMIF('Daily Log'!#REF!,$B138,'Daily Log'!#REF!),0) -> 0 | W138: =IFERROR($E138*SUMIF('Daily Log'!#REF!,$B138,'Daily Log'!#REF!),0) -> 0 | X138: =IFERROR($E138*SUMIF('Daily Log'!#REF!,$B138,'Daily Log'!#REF!),0) -> 0 | Y138: =IFERROR($E138*SUMIF('Daily Log'!#REF!,$B138,'Daily Log'!#REF!),0) -> 0 | Z138: =IFERROR($E138*SUMIF('Daily Log'!$C$18:$C$1017,$B138,'Daily Log'!$D$18:$D$1017),0) -> 27 | AA138: =IFERROR($E138*SUMIF('Daily Log'!$F$18:$F$1017,$B138,'Daily Log'!$G$18:$G$1017),0) -> 35 | AB138: =IFERROR($E138*SUMIF('Daily Log'!$I$18:$I$1017,$B138,'Daily Log'!$J$18:$J$1017),0) -> 37 | AC138: =IFERROR($E138*SUMIF('Daily Log'!$L$18:$L$1017,$B138,'Daily Log'!$M$18:$M$1017),0) -> 61 | AD138: =IFERROR($E138*SUMIF('Daily Log'!$O$18:$O$1017,$B138,'Daily Log'!$P$18:$P$1017),0) -> 64 | AE138: =IFERROR($E138*SUMIF('Daily Log'!$R$18:$R$1017,$B138,'Daily Log'!$S$18:$S$1017),0) -> 54 | AF138: =IFERROR($E138*SUMIF('Daily Log'!$U$18:$U$1017,$B138,'Daily Log'!$V$18:$V$1017),0) -> 41 | AG138: =IFERROR($E138*SUMIF('Daily Log'!#REF!,$B138,'Daily Log'!#REF!),0) -> 0 | AH138: =IFERROR($E138*SUMIF('Daily Log'!#REF!,$B138,'Daily Log'!#REF!),0) -> 0 | AI138: =IFERROR($E138*SUMIF('Daily Log'!#REF!,$B138,'Daily Log'!#REF!),0) -> 0 | AJ138: =IFERROR($E138*SUMIF('Daily Log'!#REF!,$B138,'Daily Log'!#REF!),0) -> 0 | AK138: =IFERROR($E138*SUMIF('Daily Log'!#REF!,$B138,'Daily Log'!#REF!),0) -> 0
B139: DB01 1001:BP CKN CP | D139: SIDE ORDER-WESTERN CRUISE | E139: 1 | F139: 16 | G139: =IFERROR($E139*SUMIF('Daily Log'!#REF!,$B139,'Daily Log'!#REF!),0) -> 0 | H139: =IFERROR($E139*SUMIF('Daily Log'!#REF!,$B139,'Daily Log'!#REF!),0) -> 0 | I139: =IFERROR($E139*SUMIF('Daily Log'!#REF!,$B139,'Daily Log'!#REF!),0) -> 0 | J139: =IFERROR($E139*SUMIF('Daily Log'!#REF!,$B139,'Daily Log'!#REF!),0) -> 0 | K139: =IFERROR($E139*SUMIF('Daily Log'!#REF!,$B139,'Daily Log'!#REF!),0) -> 0 | L139: =IFERROR($E139*SUMIF('Daily Log'!#REF!,$B139,'Daily Log'!#REF!),0) -> 0 | M139: =IFERROR($E139*SUMIF('Daily Log'!#REF!,$B139,'Daily Log'!#REF!),0) -> 0 | N139: =IFERROR($E139*SUMIF('Daily Log'!#REF!,$B139,'Daily Log'!#REF!),0) -> 0 | O139: =IFERROR($E139*SUMIF('Daily Log'!#REF!,$B139,'Daily Log'!#REF!),0) -> 0 | P139: =IFERROR($E139*SUMIF('Daily Log'!#REF!,$B139,'Daily Log'!#REF!),0) -> 0 | Q139: =IFERROR($E139*SUMIF('Daily Log'!#REF!,$B139,'Daily Log'!#REF!),0) -> 0 | R139: =IFERROR($E139*SUMIF('Daily Log'!#REF!,$B139,'Daily Log'!#REF!),0) -> 0 | S139: =IFERROR($E139*SUMIF('Daily Log'!#REF!,$B139,'Daily Log'!#REF!),0) -> 0 | T139: =IFERROR($E139*SUMIF('Daily Log'!#REF!,$B139,'Daily Log'!#REF!),0) -> 0 | U139: =IFERROR($E139*SUMIF('Daily Log'!#REF!,$B139,'Daily Log'!#REF!),0) -> 0 | V139: =IFERROR($E139*SUMIF('Daily Log'!#REF!,$B139,'Daily Log'!#REF!),0) -> 0 | W139: =IFERROR($E139*SUMIF('Daily Log'!#REF!,$B139,'Daily Log'!#REF!),0) -> 0 | X139: =IFERROR($E139*SUMIF('Daily Log'!#REF!,$B139,'Daily Log'!#REF!),0) -> 0 | Y139: =IFERROR($E139*SUMIF('Daily Log'!#REF!,$B139,'Daily Log'!#REF!),0) -> 0 | Z139: =IFERROR($E139*SUMIF('Daily Log'!$C$18:$C$1017,$B139,'Daily Log'!$D$18:$D$1017),0) -> 2 | AA139: =IFERROR($E139*SUMIF('Daily Log'!$F$18:$F$1017,$B139,'Daily Log'!$G$18:$G$1017),0) -> 4 | AB139: =IFERROR($E139*SUMIF('Daily Log'!$I$18:$I$1017,$B139,'Daily Log'!$J$18:$J$1017),0) -> 0 | AC139: =IFERROR($E139*SUMIF('Daily Log'!$L$18:$L$1017,$B139,'Daily Log'!$M$18:$M$1017),0) -> 2 | AD139: =IFERROR($E139*SUMIF('Daily Log'!$O$18:$O$1017,$B139,'Daily Log'!$P$18:$P$1017),0) -> 3 | AE139: =IFERROR($E139*SUMIF('Daily Log'!$R$18:$R$1017,$B139,'Daily Log'!$S$18:$S$1017),0) -> 3 | AF139: =IFERROR($E139*SUMIF('Daily Log'!$U$18:$U$1017,$B139,'Daily Log'!$V$18:$V$1017),0) -> 2 | AG139: =IFERROR($E139*SUMIF('Daily Log'!#REF!,$B139,'Daily Log'!#REF!),0) -> 0 | AH139: =IFERROR($E139*SUMIF('Daily Log'!#REF!,$B139,'Daily Log'!#REF!),0) -> 0 | AI139: =IFERROR($E139*SUMIF('Daily Log'!#REF!,$B139,'Daily Log'!#REF!),0) -> 0 | AJ139: =IFERROR($E139*SUMIF('Daily Log'!#REF!,$B139,'Daily Log'!#REF!),0) -> 0 | AK139: =IFERROR($E139*SUMIF('Daily Log'!#REF!,$B139,'Daily Log'!#REF!),0) -> 0
B140: DB02 1002:GVY CHK CP | D140: SIDE ORDER-WESTERN CRUISE | E140: 1 | F140: 3 | G140: =IFERROR($E140*SUMIF('Daily Log'!#REF!,$B140,'Daily Log'!#REF!),0) -> 0 | H140: =IFERROR($E140*SUMIF('Daily Log'!#REF!,$B140,'Daily Log'!#REF!),0) -> 0 | I140: =IFERROR($E140*SUMIF('Daily Log'!#REF!,$B140,'Daily Log'!#REF!),0) -> 0 | J140: =IFERROR($E140*SUMIF('Daily Log'!#REF!,$B140,'Daily Log'!#REF!),0) -> 0 | K140: =IFERROR($E140*SUMIF('Daily Log'!#REF!,$B140,'Daily Log'!#REF!),0) -> 0 | L140: =IFERROR($E140*SUMIF('Daily Log'!#REF!,$B140,'Daily Log'!#REF!),0) -> 0 | M140: =IFERROR($E140*SUMIF('Daily Log'!#REF!,$B140,'Daily Log'!#REF!),0) -> 0 | N140: =IFERROR($E140*SUMIF('Daily Log'!#REF!,$B140,'Daily Log'!#REF!),0) -> 0 | O140: =IFERROR($E140*SUMIF('Daily Log'!#REF!,$B140,'Daily Log'!#REF!),0) -> 0 | P140: =IFERROR($E140*SUMIF('Daily Log'!#REF!,$B140,'Daily Log'!#REF!),0) -> 0 | Q140: =IFERROR($E140*SUMIF('Daily Log'!#REF!,$B140,'Daily Log'!#REF!),0) -> 0 | R140: =IFERROR($E140*SUMIF('Daily Log'!#REF!,$B140,'Daily Log'!#REF!),0) -> 0 | S140: =IFERROR($E140*SUMIF('Daily Log'!#REF!,$B140,'Daily Log'!#REF!),0) -> 0 | T140: =IFERROR($E140*SUMIF('Daily Log'!#REF!,$B140,'Daily Log'!#REF!),0) -> 0 | U140: =IFERROR($E140*SUMIF('Daily Log'!#REF!,$B140,'Daily Log'!#REF!),0) -> 0 | V140: =IFERROR($E140*SUMIF('Daily Log'!#REF!,$B140,'Daily Log'!#REF!),0) -> 0 | W140: =IFERROR($E140*SUMIF('Daily Log'!#REF!,$B140,'Daily Log'!#REF!),0) -> 0 | X140: =IFERROR($E140*SUMIF('Daily Log'!#REF!,$B140,'Daily Log'!#REF!),0) -> 0 | Y140: =IFERROR($E140*SUMIF('Daily Log'!#REF!,$B140,'Daily Log'!#REF!),0) -> 0 | Z140: =IFERROR($E140*SUMIF('Daily Log'!$C$18:$C$1017,$B140,'Daily Log'!$D$18:$D$1017),0) -> 0 | AA140: =IFERROR($E140*SUMIF('Daily Log'!$F$18:$F$1017,$B140,'Daily Log'!$G$18:$G$1017),0) -> 0 | AB140: =IFERROR($E140*SUMIF('Daily Log'!$I$18:$I$1017,$B140,'Daily Log'!$J$18:$J$1017),0) -> 0 | AC140: =IFERROR($E140*SUMIF('Daily Log'!$L$18:$L$1017,$B140,'Daily Log'!$M$18:$M$1017),0) -> 1 | AD140: =IFERROR($E140*SUMIF('Daily Log'!$O$18:$O$1017,$B140,'Daily Log'!$P$18:$P$1017),0) -> 1 | AE140: =IFERROR($E140*SUMIF('Daily Log'!$R$18:$R$1017,$B140,'Daily Log'!$S$18:$S$1017),0) -> 1 | AF140: =IFERROR($E140*SUMIF('Daily Log'!$U$18:$U$1017,$B140,'Daily Log'!$V$18:$V$1017),0) -> 0 | AG140: =IFERROR($E140*SUMIF('Daily Log'!#REF!,$B140,'Daily Log'!#REF!),0) -> 0 | AH140: =IFERROR($E140*SUMIF('Daily Log'!#REF!,$B140,'Daily Log'!#REF!),0) -> 0 | AI140: =IFERROR($E140*SUMIF('Daily Log'!#REF!,$B140,'Daily Log'!#REF!),0) -> 0 | AJ140: =IFERROR($E140*SUMIF('Daily Log'!#REF!,$B140,'Daily Log'!#REF!),0) -> 0 | AK140: =IFERROR($E140*SUMIF('Daily Log'!#REF!,$B140,'Daily Log'!#REF!),0) -> 0
B141: DB03 1003:MSR CKN CP | D141: SIDE ORDER-WESTERN CRUISE | E141: 1 | F141: 13 | G141: =IFERROR($E141*SUMIF('Daily Log'!#REF!,$B141,'Daily Log'!#REF!),0) -> 0 | H141: =IFERROR($E141*SUMIF('Daily Log'!#REF!,$B141,'Daily Log'!#REF!),0) -> 0 | I141: =IFERROR($E141*SUMIF('Daily Log'!#REF!,$B141,'Daily Log'!#REF!),0) -> 0 | J141: =IFERROR($E141*SUMIF('Daily Log'!#REF!,$B141,'Daily Log'!#REF!),0) -> 0 | K141: =IFERROR($E141*SUMIF('Daily Log'!#REF!,$B141,'Daily Log'!#REF!),0) -> 0 | L141: =IFERROR($E141*SUMIF('Daily Log'!#REF!,$B141,'Daily Log'!#REF!),0) -> 0 | M141: =IFERROR($E141*SUMIF('Daily Log'!#REF!,$B141,'Daily Log'!#REF!),0) -> 0 | N141: =IFERROR($E141*SUMIF('Daily Log'!#REF!,$B141,'Daily Log'!#REF!),0) -> 0 | O141: =IFERROR($E141*SUMIF('Daily Log'!#REF!,$B141,'Daily Log'!#REF!),0) -> 0 | P141: =IFERROR($E141*SUMIF('Daily Log'!#REF!,$B141,'Daily Log'!#REF!),0) -> 0 | Q141: =IFERROR($E141*SUMIF('Daily Log'!#REF!,$B141,'Daily Log'!#REF!),0) -> 0 | R141: =IFERROR($E141*SUMIF('Daily Log'!#REF!,$B141,'Daily Log'!#REF!),0) -> 0 | S141: =IFERROR($E141*SUMIF('Daily Log'!#REF!,$B141,'Daily Log'!#REF!),0) -> 0 | T141: =IFERROR($E141*SUMIF('Daily Log'!#REF!,$B141,'Daily Log'!#REF!),0) -> 0 | U141: =IFERROR($E141*SUMIF('Daily Log'!#REF!,$B141,'Daily Log'!#REF!),0) -> 0 | V141: =IFERROR($E141*SUMIF('Daily Log'!#REF!,$B141,'Daily Log'!#REF!),0) -> 0 | W141: =IFERROR($E141*SUMIF('Daily Log'!#REF!,$B141,'Daily Log'!#REF!),0) -> 0 | X141: =IFERROR($E141*SUMIF('Daily Log'!#REF!,$B141,'Daily Log'!#REF!),0) -> 0 | Y141: =IFERROR($E141*SUMIF('Daily Log'!#REF!,$B141,'Daily Log'!#REF!),0) -> 0 | Z141: =IFERROR($E141*SUMIF('Daily Log'!$C$18:$C$1017,$B141,'Daily Log'!$D$18:$D$1017),0) -> 1 | AA141: =IFERROR($E141*SUMIF('Daily Log'!$F$18:$F$1017,$B141,'Daily Log'!$G$18:$G$1017),0) -> 4 | AB141: =IFERROR($E141*SUMIF('Daily Log'!$I$18:$I$1017,$B141,'Daily Log'!$J$18:$J$1017),0) -> 0 | AC141: =IFERROR($E141*SUMIF('Daily Log'!$L$18:$L$1017,$B141,'Daily Log'!$M$18:$M$1017),0) -> 3 | AD141: =IFERROR($E141*SUMIF('Daily Log'!$O$18:$O$1017,$B141,'Daily Log'!$P$18:$P$1017),0) -> 3 | AE141: =IFERROR($E141*SUMIF('Daily Log'!$R$18:$R$1017,$B141,'Daily Log'!$S$18:$S$1017),0) -> 2 | AF141: =IFERROR($E141*SUMIF('Daily Log'!$U$18:$U$1017,$B141,'Daily Log'!$V$18:$V$1017),0) -> 0 | AG141: =IFERROR($E141*SUMIF('Daily Log'!#REF!,$B141,'Daily Log'!#REF!),0) -> 0 | AH141: =IFERROR($E141*SUMIF('Daily Log'!#REF!,$B141,'Daily Log'!#REF!),0) -> 0 | AI141: =IFERROR($E141*SUMIF('Daily Log'!#REF!,$B141,'Daily Log'!#REF!),0) -> 0 | AJ141: =IFERROR($E141*SUMIF('Daily Log'!#REF!,$B141,'Daily Log'!#REF!),0) -> 0 | AK141: =IFERROR($E141*SUMIF('Daily Log'!#REF!,$B141,'Daily Log'!#REF!),0) -> 0
B142: DB04 1004:CKN MARY | D142: SIDE ORDER-WESTERN CRUISE | E142: 1 | F142: 5 | G142: =IFERROR($E142*SUMIF('Daily Log'!#REF!,$B142,'Daily Log'!#REF!),0) -> 0 | H142: =IFERROR($E142*SUMIF('Daily Log'!#REF!,$B142,'Daily Log'!#REF!),0) -> 0 | I142: =IFERROR($E142*SUMIF('Daily Log'!#REF!,$B142,'Daily Log'!#REF!),0) -> 0 | J142: =IFERROR($E142*SUMIF('Daily Log'!#REF!,$B142,'Daily Log'!#REF!),0) -> 0 | K142: =IFERROR($E142*SUMIF('Daily Log'!#REF!,$B142,'Daily Log'!#REF!),0) -> 0 | L142: =IFERROR($E142*SUMIF('Daily Log'!#REF!,$B142,'Daily Log'!#REF!),0) -> 0 | M142: =IFERROR($E142*SUMIF('Daily Log'!#REF!,$B142,'Daily Log'!#REF!),0) -> 0 | N142: =IFERROR($E142*SUMIF('Daily Log'!#REF!,$B142,'Daily Log'!#REF!),0) -> 0 | O142: =IFERROR($E142*SUMIF('Daily Log'!#REF!,$B142,'Daily Log'!#REF!),0) -> 0 | P142: =IFERROR($E142*SUMIF('Daily Log'!#REF!,$B142,'Daily Log'!#REF!),0) -> 0 | Q142: =IFERROR($E142*SUMIF('Daily Log'!#REF!,$B142,'Daily Log'!#REF!),0) -> 0 | R142: =IFERROR($E142*SUMIF('Daily Log'!#REF!,$B142,'Daily Log'!#REF!),0) -> 0 | S142: =IFERROR($E142*SUMIF('Daily Log'!#REF!,$B142,'Daily Log'!#REF!),0) -> 0 | T142: =IFERROR($E142*SUMIF('Daily Log'!#REF!,$B142,'Daily Log'!#REF!),0) -> 0 | U142: =IFERROR($E142*SUMIF('Daily Log'!#REF!,$B142,'Daily Log'!#REF!),0) -> 0 | V142: =IFERROR($E142*SUMIF('Daily Log'!#REF!,$B142,'Daily Log'!#REF!),0) -> 0 | W142: =IFERROR($E142*SUMIF('Daily Log'!#REF!,$B142,'Daily Log'!#REF!),0) -> 0 | X142: =IFERROR($E142*SUMIF('Daily Log'!#REF!,$B142,'Daily Log'!#REF!),0) -> 0 | Y142: =IFERROR($E142*SUMIF('Daily Log'!#REF!,$B142,'Daily Log'!#REF!),0) -> 0 | Z142: =IFERROR($E142*SUMIF('Daily Log'!$C$18:$C$1017,$B142,'Daily Log'!$D$18:$D$1017),0) -> 0 | AA142: =IFERROR($E142*SUMIF('Daily Log'!$F$18:$F$1017,$B142,'Daily Log'!$G$18:$G$1017),0) -> 1 | AB142: =IFERROR($E142*SUMIF('Daily Log'!$I$18:$I$1017,$B142,'Daily Log'!$J$18:$J$1017),0) -> 1 | AC142: =IFERROR($E142*SUMIF('Daily Log'!$L$18:$L$1017,$B142,'Daily Log'!$M$18:$M$1017),0) -> 1 | AD142: =IFERROR($E142*SUMIF('Daily Log'!$O$18:$O$1017,$B142,'Daily Log'!$P$18:$P$1017),0) -> 0 | AE142: =IFERROR($E142*SUMIF('Daily Log'!$R$18:$R$1017,$B142,'Daily Log'!$S$18:$S$1017),0) -> 1 | AF142: =IFERROR($E142*SUMIF('Daily Log'!$U$18:$U$1017,$B142,'Daily Log'!$V$18:$V$1017),0) -> 1 | AG142: =IFERROR($E142*SUMIF('Daily Log'!#REF!,$B142,'Daily Log'!#REF!),0) -> 0 | AH142: =IFERROR($E142*SUMIF('Daily Log'!#REF!,$B142,'Daily Log'!#REF!),0) -> 0 | AI142: =IFERROR($E142*SUMIF('Daily Log'!#REF!,$B142,'Daily Log'!#REF!),0) -> 0 | AJ142: =IFERROR($E142*SUMIF('Daily Log'!#REF!,$B142,'Daily Log'!#REF!),0) -> 0 | AK142: =IFERROR($E142*SUMIF('Daily Log'!#REF!,$B142,'Daily Log'!#REF!),0) -> 0
B143: DB05 1005:FISH&CHIP | D143: SIDE ORDER-WESTERN CRUISE | E143: 1 | F143: 12 | G143: =IFERROR($E143*SUMIF('Daily Log'!#REF!,$B143,'Daily Log'!#REF!),0) -> 0 | H143: =IFERROR($E143*SUMIF('Daily Log'!#REF!,$B143,'Daily Log'!#REF!),0) -> 0 | I143: =IFERROR($E143*SUMIF('Daily Log'!#REF!,$B143,'Daily Log'!#REF!),0) -> 0 | K143: =IFERROR($E143*SUMIF('Daily Log'!#REF!,$B143,'Daily Log'!#REF!),0) -> 0 | L143: =IFERROR($E143*SUMIF('Daily Log'!#REF!,$B143,'Daily Log'!#REF!),0) -> 0 | M143: =IFERROR($E143*SUMIF('Daily Log'!#REF!,$B143,'Daily Log'!#REF!),0) -> 0 | N143: =IFERROR($E143*SUMIF('Daily Log'!#REF!,$B143,'Daily Log'!#REF!),0) -> 0 | O143: =IFERROR($E143*SUMIF('Daily Log'!#REF!,$B143,'Daily Log'!#REF!),0) -> 0 | P143: =IFERROR($E143*SUMIF('Daily Log'!#REF!,$B143,'Daily Log'!#REF!),0) -> 0 | Q143: =IFERROR($E143*SUMIF('Daily Log'!#REF!,$B143,'Daily Log'!#REF!),0) -> 0 | R143: =IFERROR($E143*SUMIF('Daily Log'!#REF!,$B143,'Daily Log'!#REF!),0) -> 0 | S143: =IFERROR($E143*SUMIF('Daily Log'!#REF!,$B143,'Daily Log'!#REF!),0) -> 0 | T143: =IFERROR($E143*SUMIF('Daily Log'!#REF!,$B143,'Daily Log'!#REF!),0) -> 0 | U143: =IFERROR($E143*SUMIF('Daily Log'!#REF!,$B143,'Daily Log'!#REF!),0) -> 0 | V143: =IFERROR($E143*SUMIF('Daily Log'!#REF!,$B143,'Daily Log'!#REF!),0) -> 0 | W143: =IFERROR($E143*SUMIF('Daily Log'!#REF!,$B143,'Daily Log'!#REF!),0) -> 0 | X143: =IFERROR($E143*SUMIF('Daily Log'!#REF!,$B143,'Daily Log'!#REF!),0) -> 0 | Y143: =IFERROR($E143*SUMIF('Daily Log'!#REF!,$B143,'Daily Log'!#REF!),0) -> 0 | Z143: =IFERROR($E143*SUMIF('Daily Log'!$C$18:$C$1017,$B143,'Daily Log'!$D$18:$D$1017),0) -> 0 | AA143: =IFERROR($E143*SUMIF('Daily Log'!$F$18:$F$1017,$B143,'Daily Log'!$G$18:$G$1017),0) -> 1 | AB143: =IFERROR($E143*SUMIF('Daily Log'!$I$18:$I$1017,$B143,'Daily Log'!$J$18:$J$1017),0) -> 0 | AC143: =IFERROR($E143*SUMIF('Daily Log'!$L$18:$L$1017,$B143,'Daily Log'!$M$18:$M$1017),0) -> 3 | AD143: =IFERROR($E143*SUMIF('Daily Log'!$O$18:$O$1017,$B143,'Daily Log'!$P$18:$P$1017),0) -> 1 | AE143: =IFERROR($E143*SUMIF('Daily Log'!$R$18:$R$1017,$B143,'Daily Log'!$S$18:$S$1017),0) -> 3 | AF143: =IFERROR($E143*SUMIF('Daily Log'!$U$18:$U$1017,$B143,'Daily Log'!$V$18:$V$1017),0) -> 4 | AG143: =IFERROR($E143*SUMIF('Daily Log'!#REF!,$B143,'Daily Log'!#REF!),0) -> 0 | AH143: =IFERROR($E143*SUMIF('Daily Log'!#REF!,$B143,'Daily Log'!#REF!),0) -> 0 | AI143: =IFERROR($E143*SUMIF('Daily Log'!#REF!,$B143,'Daily Log'!#REF!),0) -> 0 | AJ143: =IFERROR($E143*SUMIF('Daily Log'!#REF!,$B143,'Daily Log'!#REF!),0) -> 0 | AK143: =IFERROR($E143*SUMIF('Daily Log'!#REF!,$B143,'Daily Log'!#REF!),0) -> 0
